Workbook

Sheet .
A1: Room | B1: PS | D1: Room | E1: ES | G1: Room | H1: PAC
A2: Date | B2: (Все) | D2: Date | E2: (Все) | G2: Date | H2: (Все)
A3: Name | B3: (Все) | D3: Name | E3: (Все) | G3: Name | H3: (Все)
A4: Buy-In | B4: (несколько элементов) | D4: Buy-In | E4: (несколько элементов) | G4: Buy-In | H4: (Все)
A6: Названия строк | D6: Названия строк | G6: Названия строк
A7: 00:20 1,1 Gtd PS Friz Regular 9 | D7: 22:25 1 Bubble Rush ES Friz Turbo 9 | G7: 14:30 3,3 Gtd PAC Friz Regular 9
A8: 05:00 4,4 Big PS Friz Regular 9 | D8: 22:00 1 Daily Micro ES Friz Regular 9 | G8: 14:00 2,2 Gtd PAC Friz Regular 9
A9: 05:10 2,2 Deep Stacks PS Friz Regular 9 | D9: 19:15 1 SuperStack ES Friz Regular 6 | G9: 12:30 1 Gtd PAC Friz Regular 9
A10: 06:05 4,4 Progressive KO PS KO Regular 9 | D10: 19:00 1 Deep Stacks ES Friz Regular 6 | G10: 10:00 3 Gtd PAC Friz Regular 9
A11: 06:15 1,1 Hot PS Friz Turbo 9 | D11: 18:45 1 Gtd ES Friz Regular 6 | G11: 09:15 1,5 Gtd R/A PAC Friz Regular 6
A12: 07:00 2,2 Big PS Friz Regular 9 | D12: 16:45 1 SuperStack ES Friz Regular 6 | G12: 18:00 3 Mini Swordfish PAC Friz Regular 9
A13: 07:00 3,3 Progressive KO PS KO Turbo 9 | D13: 17:40 1 Gtd ES Friz Regular 9 | G13: 17:00 2,2 Gtd R/A PAC Friz Regular 9
A14: 07:15 11 Progressive KO PS KO Regular 9 | D14: 13:00 1 Hot ES Friz Turbo 9 | G14: 17:00 5,5 Big Fish PAC Friz Regular 9
A15: 07:30 5,5 Bounty Builder PS KO Regular 9 | D15: 11:50 1 Gtd ES Friz Regular 9 | G15: 16:30 2,2 Gtd PAC Friz Regular 9
A16: 08:00 3,3 Progressive KO PS KO Turbo 9 | D16: 11:30 1 SuperStack ES Friz Regular 6 | G16: 07:45 3,3 Gtd PAC Friz Regular 9
A17: 08:10 5,5 Deep Stacks PS Friz Regular 9 | D17: 10:30 1 Gtd ES Friz Regular 9 | G17: 07:15 5 Gtd PAC Friz Regular 9
A18: 08:30 2,2 Gtd PS Friz Regular 9 | D18: 09:40 1 Gtd ES Friz Turbo 9 | G18: 09:30 12 Catfish PAC Friz Regular 9
A19: 09:00 1,1 Progressive KO PS KO Turbo 9 | D19: 09:30 1 Gtd ES Friz Regular 9 | G19: 05:30 5 Gtd PAC Friz Regular 8
A20: 09:20 7,5 Progressive KO PS KO Regular 9 | D20: 17:20 1 Gtd ES Friz Turbo 9 | G20: 11:00 12 Catfish PAC Friz Regular 10
A21: 09:30 3,3 Bounty Builder PS KO Regular 9 | D21: 11:30 3 Gtd ES Friz Regular 9 | G21: 12:00 11 Progressive KO PAC KO Regular 9
A22: 09:45 1,1 Zoom R/A PS Friz Turbo 9 | D22: 10:40 1 Gtd R/A ES Friz Turbo 9 | G22: 12:45 5,5 Progressive KO PAC KO Regular 9
A23: 10:00 1,1 Deep Payouts PS Friz Regular 9 | D23: 08:05 2 Gtd ES Friz Regular 9 | G23: 13:30 4,4 Progressive KO PAC KO Regular 9
A24: 10:20 2,2 Progressive KO PS KO Turbo 9 | D24: 07:00 3 Gtd ES Friz Regular 9
A25: 10:25 1,1 Bubble Rush PS Friz Turbo 9 | D25: 21:15 2 Big ES Friz Regular 9
A26: 10:45 1,1 Zoom PS Friz Turbo 9 | D26: 20:15 3 SuperStack ES Friz Regular 6
A27: 11:15 7,5 Deep Stacks PS Friz Regular 9 | D27: 18:15 3 Big ES Friz Regular 9
A28: 11:20 1,1 Gtd R/A PS Friz Regular 9 | D28: 15:30 1 Storm R/A ES Friz Regular 9
A29: 11:40 3,3 Gtd PS Friz Regular 9 | D29: 15:15 3 SuperStack ES Friz Regular 6
A30: 11:45 1,1 Gtd PS Friz Turbo 6 | D30: 12:30 3 Progressive KO ES KO Regular 9
A31: 11:50 2,2 Bubble Rush PS Friz Turbo 9
A32: 12:00 1,1 Big PS Friz Regular 9
A33: 12:15 3,3 Hot PS Friz Turbo 9
A34: 12:30 1,1 MicroMillions PS Friz Regular 8
A35: 12:30 1,1 MicroMillions PS Friz Regular 9
A36: 12:30 3,3 MicroMillions PS KO Regular 9
A37: 12:30 5,5 MicroMillions PS Friz Regular 9
A38: 12:40 1,1 Progressive KO PS KO Turbo 9
A39: 13:00 2,2 Gtd PS Friz Regular 6
A40: 13:30 4,4 Bounty Builder PS KO Regular 9
A41: 13:45 2,2 Deep Stacks PS Friz Regular 9
A42: 13:50 2,2 Gtd PS Friz Turbo 9
A43: 14:00 1,1 Satellite PS Friz Regular 8
A44: 14:05 4,4 Gtd PS Friz Regular 8
A45: 14:10 5,5 Win the Button PS Friz Regular 9
A46: 14:20 1,1 Progressive KO PS KO Regular 9
A47: 14:30 1,1 Splash R/a PS Friz Turbo 9
A48: 14:45 2,2 Gtd PS Friz Regular 6
A49: 15:00 1,1 Gtd PS Friz Regular 9
A50: 15:00 3,3 Saturday Micro PS Friz Regular 9
A51: 15:40 3,3 Deep Payouts PS Friz Turbo 9
A52: 16:00 4,4 Big PS Friz Regular 9
A53: 16:15 1,1 Gtd PS Friz Regular 9
A54: 16:20 5,5 Progressive KO PS KO Regular 6
A55: 16:25 2,2 Player Cap PS Friz Regular 9
A56: 16:30 1,1 MicroMillions PS KO Turbo 6
A57: 16:30 5,5 MicroMillions PS KO Regular 9
A58: 16:30 5,5 Mini Daily Marathon PS Friz Regular 9
A59: 16:40 3,3 Gtd PS Friz Regular 6
A60: 17:10 2,2 Gtd PS Friz Regular 8
A61: 17:15 1,1 Progressive KO PS KO Turbo 9
A62: 17:15 3,3 Mini Sunday Rebuy PS Friz Regular 9
A63: 17:40 1,1 Gtd PS Friz Regular 9
A64: 18:00 1,1 Satellite PS Friz Regular 8
A65: 18:15 3,3 Player Cap PS Friz Regular 9
A66: 18:30 2,2 Bounty Builder PS KO Regular 9
A67: 18:40 1,1 Zoom PS Friz Turbo 9
A68: 19:00 3,3 Big PS Friz Regular 9
A69: 19:15 2,2 Gtd PS Friz Turbo 9
A70: 19:25 1,1 Gtd PS Friz Regular 6
A71: 20:00 1,1 Big PS Friz Regular 9
A72: 20:00 1,1 MicroMillions PS Friz Turbo 9
A73: 20:30 3,3 Bounty Builder PS KO Regular 9
A74: 21:00 2,2 Micro Fast Friday PS Friz Turbo 8
A75: 21:00 22 MicroMillions PS Friz Regular 8
A76: 21:05 11 Sunday Storm PS Friz Regular 9
A77: 21:10 3,3 Player Cap PS Friz Regular 9
A78: 21:15 1,1 Splash R/a PS Friz Turbo 9
A79: 21:15 2,2 Hot PS Friz Turbo 9
A80: 21:30 1,1 Bounty Builder PS KO Regular 9
A81: 21:40 3,3 Zoom PS Friz Turbo 9
A82: 22:00 2,2 Big PS Friz Regular 9
A83: 22:15 3,3 Hot PS Friz Turbo 9
A84: 22:30 1,1 Player Cap PS Friz Regular 9
A85: 22:50 3,3 Gtd PS Friz Regular 6
A86: 23:10 2,2 Deep Stacks PS Friz Regular 9
A87: 23:15 1,1 Hot PS Friz Turbo 9
A88: 23:30 2,2 Bounty Builder PS KO Regular 9
A89: 23:40 3,3 Gtd PS Friz Regular 8

Sheet Game
B1: Room | C1: (Все)
B2: Meset | C2: (Все)
B3: Date | C3: (Все)
B4: Buy-In | C4: (Все)
B6: Названия строк | E6: Name | L6: Games | M6: Buy-in | N6: Roi | O6: Itm | P6: Hand | Q6: bb/100 | R6: EV bb/100 | S6: Profit | T6: Pr/Game
B7: 00:00 0,25 45 Max PS Friz Regular 9 | E7: =IFERROR(IF(VLOOKUP($B7,Таблица1[],9,0)=0,"",VLOOKUP($B7,Таблица1[],9,0)),"") ->  | F7: =IFERROR(VLOOKUP($B7,Таблица1[],16,0),"") -> 0.25 | G7: =IFERROR(VLOOKUP($B7,Таблица1[],10,0),"") -> 45 Max | H7: =IFERROR(VLOOKUP($B7,Таблица1[],11,0),"") -> PS | I7: =IFERROR(VLOOKUP($B7,Таблица1[],12,0),"") -> Friz | J7: =IFERROR(VLOOKUP($B7,Таблица1[],13,0),"") -> Regular | K7: =IFERROR(VLOOKUP($B7,Таблица1[],14,0),"") -> 9 | L7: =COUNTIFS(Таблица1[2019],B7)+SUMIFS(Таблица1[Re-entry],Таблица1[2019],B7) -> 4 | M7: =SUMIFS(Таблица1[Total Buy-In],Таблица1[2019],B7) -> 1 | N7: =IFERROR((S7/M7)*100,0) -> 223 | O7: =IFERROR(COUNTIFS(Таблица1[2019],B7,Таблица1[Winnings],">0")/L7*100,0) -> 25 | P7: =SUMIFS(Таблица1[Total Hands],Таблица1[2019],B7) -> 416 | Q7: =IFERROR(SUMIFS(Таблица1[bb/101],Таблица1[2019],B7)/P7,0) -> 18.65822115 | R7: =IFERROR(SUMIFS(Таблица1[EV bb/101],Таблица1[2019],B7)/P7,0) -> 5.991418269 | S7: =SUMIFS(Таблица1[Net Winnings],Таблица1[2019],B7) -> 2.23 | T7: =IFERROR(S7/L7,0) -> 0.5575
B8: 00:00 0,5 45 Max PS Friz Turbo 9 | E8: =IFERROR(IF(VLOOKUP($B8,Таблица1[],9,0)=0,"",VLOOKUP($B8,Таблица1[],9,0)),"") ->  | F8: =IFERROR(VLOOKUP($B8,Таблица1[],16,0),"") ->  | G8: =IFERROR(VLOOKUP($B8,Таблица1[],10,0),"") ->  | H8: =IFERROR(VLOOKUP($B8,Таблица1[],11,0),"") ->  | I8: =IFERROR(VLOOKUP($B8,Таблица1[],12,0),"") ->  | J8: =IFERROR(VLOOKUP($B8,Таблица1[],13,0),"") ->  | K8: =IFERROR(VLOOKUP($B8,Таблица1[],14,0),"") ->  | L8: =COUNTIFS(Таблица1[2019],B8)+SUMIFS(Таблица1[Re-entry],Таблица1[2019],B8) -> 0 | M8: =SUMIFS(Таблица1[Total Buy-In],Таблица1[2019],B8) -> 0 | N8: =IFERROR((S8/M8)*100,0) -> 0 | O8: =IFERROR(COUNTIFS(Таблица1[2019],B8,Таблица1[Winnings],">0")/L8*100,0) -> 0 | P8: =SUMIFS(Таблица1[Total Hands],Таблица1[2019],B8) -> 0 | Q8: =IFERROR(SUMIFS(Таблица1[bb/101],Таблица1[2019],B8)/P8,0) -> 0 | R8: =IFERROR(SUMIFS(Таблица1[EV bb/101],Таблица1[2019],B8)/P8,0) -> 0 | S8: =SUMIFS(Таблица1[Net Winnings],Таблица1[2019],B8) -> 0 | T8: =IFERROR(S8/L8,0) -> 0
B9: 00:00 1 180 Max PS Friz Regular 9 | E9: =IFERROR(IF(VLOOKUP($B9,Таблица1[],9,0)=0,"",VLOOKUP($B9,Таблица1[],9,0)),"") ->  | F9: =IFERROR(VLOOKUP($B9,Таблица1[],16,0),"") ->  | G9: =IFERROR(VLOOKUP($B9,Таблица1[],10,0),"") ->  | H9: =IFERROR(VLOOKUP($B9,Таблица1[],11,0),"") ->  | I9: =IFERROR(VLOOKUP($B9,Таблица1[],12,0),"") ->  | J9: =IFERROR(VLOOKUP($B9,Таблица1[],13,0),"") ->  | K9: =IFERROR(VLOOKUP($B9,Таблица1[],14,0),"") ->  | L9: =COUNTIFS(Таблица1[2019],B9)+SUMIFS(Таблица1[Re-entry],Таблица1[2019],B9) -> 0 | M9: =SUMIFS(Таблица1[Total Buy-In],Таблица1[2019],B9) -> 0 | N9: 0 | O9: =IFERROR(COUNTIFS(Таблица1[2019],B9,Таблица1[Winnings],">0")/L9*100,0) -> 0 | P9: =SUMIFS(Таблица1[Total Hands],Таблица1[2019],B9) -> 0 | Q9: =IFERROR(SUMIFS(Таблица1[bb/101],Таблица1[2019],B9)/P9,0) -> 0 | R9: =IFERROR(SUMIFS(Таблица1[EV bb/101],Таблица1[2019],B9)/P9,0) -> 0 | S9: =SUMIFS(Таблица1[Net Winnings],Таблица1[2019],B9) -> 0 | T9: 0
B10: 00:00 1 45 Max PS Friz Regular 9 | E10: =IFERROR(IF(VLOOKUP($B10,Таблица1[],9,0)=0,"",VLOOKUP($B10,Таблица1[],9,0)),"") ->  | F10: =IFERROR(VLOOKUP($B10,Таблица1[],16,0),"") ->  | G10: =IFERROR(VLOOKUP($B10,Таблица1[],10,0),"") ->  | H10: =IFERROR(VLOOKUP($B10,Таблица1[],11,0),"") ->  | I10: =IFERROR(VLOOKUP($B10,Таблица1[],12,0),"") ->  | J10: =IFERROR(VLOOKUP($B10,Таблица1[],13,0),"") ->  | K10: =IFERROR(VLOOKUP($B10,Таблица1[],14,0),"") ->  | L10: =COUNTIFS(Таблица1[2019],B10)+SUMIFS(Таблица1[Re-entry],Таблица1[2019],B10) -> 0 | M10: =SUMIFS(Таблица1[Total Buy-In],Таблица1[2019],B10) -> 0 | N10: 0 | O10: =IFERROR(COUNTIFS(Таблица1[2019],B10,Таблица1[Winnings],">0")/L10*100,0) -> 0 | P10: =SUMIFS(Таблица1[Total Hands],Таблица1[2019],B10) -> 0 | Q10: =IFERROR(SUMIFS(Таблица1[bb/101],Таблица1[2019],B10)/P10,0) -> 0 | R10: =IFERROR(SUMIFS(Таблица1[EV bb/101],Таблица1[2019],B10)/P10,0) -> 0 | S10: =SUMIFS(Таблица1[Net Winnings],Таблица1[2019],B10) -> 0 | T10: 0
B11: 00:00 1,5 45 Max PS Friz Turbo 9 | E11: =IFERROR(IF(VLOOKUP($B11,Таблица1[],9,0)=0,"",VLOOKUP($B11,Таблица1[],9,0)),"") ->  | F11: =IFERROR(VLOOKUP($B11,Таблица1[],16,0),"") ->  | G11: =IFERROR(VLOOKUP($B11,Таблица1[],10,0),"") ->  | H11: =IFERROR(VLOOKUP($B11,Таблица1[],11,0),"") ->  | I11: =IFERROR(VLOOKUP($B11,Таблица1[],12,0),"") ->  | J11: =IFERROR(VLOOKUP($B11,Таблица1[],13,0),"") ->  | K11: =IFERROR(VLOOKUP($B11,Таблица1[],14,0),"") ->  | L11: =COUNTIFS(Таблица1[2019],B11)+SUMIFS(Таблица1[Re-entry],Таблица1[2019],B11) -> 0 | M11: =SUMIFS(Таблица1[Total Buy-In],Таблица1[2019],B11) -> 0 | N11: 0 | O11: =IFERROR(COUNTIFS(Таблица1[2019],B11,Таблица1[Winnings],">0")/L11*100,0) -> 0 | P11: =SUMIFS(Таблица1[Total Hands],Таблица1[2019],B11) -> 0 | Q11: =IFERROR(SUMIFS(Таблица1[bb/101],Таблица1[2019],B11)/P11,0) -> 0 | R11: =IFERROR(SUMIFS(Таблица1[EV bb/101],Таблица1[2019],B11)/P11,0) -> 0 | S11: =SUMIFS(Таблица1[Net Winnings],Таблица1[2019],B11) -> 0 | T11: 0
B12: 00:00 1,5 6 Max PS Friz Turbo 6 | E12: =IFERROR(IF(VLOOKUP($B12,Таблица1[],9,0)=0,"",VLOOKUP($B12,Таблица1[],9,0)),"") ->  | F12: =IFERROR(VLOOKUP($B12,Таблица1[],16,0),"") ->  | G12: =IFERROR(VLOOKUP($B12,Таблица1[],10,0),"") ->  | H12: =IFERROR(VLOOKUP($B12,Таблица1[],11,0),"") ->  | I12: =IFERROR(VLOOKUP($B12,Таблица1[],12,0),"") ->  | J12: =IFERROR(VLOOKUP($B12,Таблица1[],13,0),"") ->  | K12: =IFERROR(VLOOKUP($B12,Таблица1[],14,0),"") ->  | L12: =COUNTIFS(Таблица1[2019],B12)+SUMIFS(Таблица1[Re-entry],Таблица1[2019],B12) -> 0 | M12: =SUMIFS(Таблица1[Total Buy-In],Таблица1[2019],B12) -> 0 | N12: 0 | O12: =IFERROR(COUNTIFS(Таблица1[2019],B12,Таблица1[Winnings],">0")/L12*100,0) -> 0 | P12: =SUMIFS(Таблица1[Total Hands],Таблица1[2019],B12) -> 0 | Q12: =IFERROR(SUMIFS(Таблица1[bb/101],Таблица1[2019],B12)/P12,0) -> 0 | R12: =IFERROR(SUMIFS(Таблица1[EV bb/101],Таблица1[2019],B12)/P12,0) -> 0 | S12: =SUMIFS(Таблица1[Net Winnings],Таблица1[2019],B12) -> 0 | T12: 0
B13: 00:00 2,5 180 Max PS Friz Turbo 9 | E13: =IFERROR(IF(VLOOKUP($B13,Таблица1[],9,0)=0,"",VLOOKUP($B13,Таблица1[],9,0)),"") ->  | F13: =IFERROR(VLOOKUP($B13,Таблица1[],16,0),"") ->  | G13: =IFERROR(VLOOKUP($B13,Таблица1[],10,0),"") ->  | H13: =IFERROR(VLOOKUP($B13,Таблица1[],11,0),"") ->  | I13: =IFERROR(VLOOKUP($B13,Таблица1[],12,0),"") ->  | J13: =IFERROR(VLOOKUP($B13,Таблица1[],13,0),"") ->  | K13: =IFERROR(VLOOKUP($B13,Таблица1[],14,0),"") ->  | L13: =COUNTIFS(Таблица1[2019],B13)+SUMIFS(Таблица1[Re-entry],Таблица1[2019],B13) -> 0 | M13: =SUMIFS(Таблица1[Total Buy-In],Таблица1[2019],B13) -> 0 | N13: 0 | O13: =IFERROR(COUNTIFS(Таблица1[2019],B13,Таблица1[Winnings],">0")/L13*100,0) -> 0 | P13: =SUMIFS(Таблица1[Total Hands],Таблица1[2019],B13) -> 0 | Q13: =IFERROR(SUMIFS(Таблица1[bb/101],Таблица1[2019],B13)/P13,0) -> 0 | R13: =IFERROR(SUMIFS(Таблица1[EV bb/101],Таблица1[2019],B13)/P13,0) -> 0 | S13: =SUMIFS(Таблица1[Net Winnings],Таблица1[2019],B13) -> 0 | T13: 0
B14: 00:20 1,1 Gtd PS Friz Regular 9 | E14: =IFERROR(IF(VLOOKUP($B14,Таблица1[],9,0)=0,"",VLOOKUP($B14,Таблица1[],9,0)),"") ->  | F14: =IFERROR(VLOOKUP($B14,Таблица1[],16,0),"") ->  | G14: =IFERROR(VLOOKUP($B14,Таблица1[],10,0),"") ->  | H14: =IFERROR(VLOOKUP($B14,Таблица1[],11,0),"") ->  | I14: =IFERROR(VLOOKUP($B14,Таблица1[],12,0),"") ->  | J14: =IFERROR(VLOOKUP($B14,Таблица1[],13,0),"") ->  | K14: =IFERROR(VLOOKUP($B14,Таблица1[],14,0),"") ->  | L14: =COUNTIFS(Таблица1[2019],B14)+SUMIFS(Таблица1[Re-entry],Таблица1[2019],B14) -> 0 | M14: =SUMIFS(Таблица1[Total Buy-In],Таблица1[2019],B14) -> 0 | N14: 0 | O14: =IFERROR(COUNTIFS(Таблица1[2019],B14,Таблица1[Winnings],">0")/L14*100,0) -> 0 | P14: =SUMIFS(Таблица1[Total Hands],Таблица1[2019],B14) -> 0 | Q14: =IFERROR(SUMIFS(Таблица1[bb/101],Таблица1[2019],B14)/P14,0) -> 0 | R14: =IFERROR(SUMIFS(Таблица1[EV bb/101],Таблица1[2019],B14)/P14,0) -> 0 | S14: =SUMIFS(Таблица1[Net Winnings],Таблица1[2019],B14) -> 0 | T14: 0
B15: 05:00 4,4 Big PS Friz Regular 9 | E15: =IFERROR(IF(VLOOKUP($B15,Таблица1[],9,0)=0,"",VLOOKUP($B15,Таблица1[],9,0)),"") ->  | F15: =IFERROR(VLOOKUP($B15,Таблица1[],16,0),"") ->  | G15: =IFERROR(VLOOKUP($B15,Таблица1[],10,0),"") ->  | H15: =IFERROR(VLOOKUP($B15,Таблица1[],11,0),"") ->  | I15: =IFERROR(VLOOKUP($B15,Таблица1[],12,0),"") ->  | J15: =IFERROR(VLOOKUP($B15,Таблица1[],13,0),"") ->  | K15: =IFERROR(VLOOKUP($B15,Таблица1[],14,0),"") ->  | L15: =COUNTIFS(Таблица1[2019],B15)+SUMIFS(Таблица1[Re-entry],Таблица1[2019],B15) -> 0 | M15: =SUMIFS(Таблица1[Total Buy-In],Таблица1[2019],B15) -> 0 | N15: 0 | O15: =IFERROR(COUNTIFS(Таблица1[2019],B15,Таблица1[Winnings],">0")/L15*100,0) -> 0 | P15: =SUMIFS(Таблица1[Total Hands],Таблица1[2019],B15) -> 0 | Q15: =IFERROR(SUMIFS(Таблица1[bb/101],Таблица1[2019],B15)/P15,0) -> 0 | R15: =IFERROR(SUMIFS(Таблица1[EV bb/101],Таблица1[2019],B15)/P15,0) -> 0 | S15: =SUMIFS(Таблица1[Net Winnings],Таблица1[2019],B15) -> 0 | T15: 0
B16: 05:10 2,2 Deep Stacks PS Friz Regular 9 | E16: =IFERROR(IF(VLOOKUP($B16,Таблица1[],9,0)=0,"",VLOOKUP($B16,Таблица1[],9,0)),"") ->  | F16: =IFERROR(VLOOKUP($B16,Таблица1[],16,0),"") ->  | G16: =IFERROR(VLOOKUP($B16,Таблица1[],10,0),"") ->  | H16: =IFERROR(VLOOKUP($B16,Таблица1[],11,0),"") ->  | I16: =IFERROR(VLOOKUP($B16,Таблица1[],12,0),"") ->  | J16: =IFERROR(VLOOKUP($B16,Таблица1[],13,0),"") ->  | K16: =IFERROR(VLOOKUP($B16,Таблица1[],14,0),"") ->  | L16: =COUNTIFS(Таблица1[2019],B16)+SUMIFS(Таблица1[Re-entry],Таблица1[2019],B16) -> 0 | M16: =SUMIFS(Таблица1[Total Buy-In],Таблица1[2019],B16) -> 0 | N16: 0 | O16: =IFERROR(COUNTIFS(Таблица1[2019],B16,Таблица1[Winnings],">0")/L16*100,0) -> 0 | P16: =SUMIFS(Таблица1[Total Hands],Таблица1[2019],B16) -> 0 | Q16: =IFERROR(SUMIFS(Таблица1[bb/101],Таблица1[2019],B16)/P16,0) -> 0 | R16: =IFERROR(SUMIFS(Таблица1[EV bb/101],Таблица1[2019],B16)/P16,0) -> 0 | S16: =SUMIFS(Таблица1[Net Winnings],Таблица1[2019],B16) -> 0 | T16: 0
B17: 05:30 5 Gtd PAC Friz Regular 8 | E17: =IFERROR(IF(VLOOKUP($B17,Таблица1[],9,0)=0,"",VLOOKUP($B17,Таблица1[],9,0)),"") ->  | F17: =IFERROR(VLOOKUP($B17,Таблица1[],16,0),"") ->  | G17: =IFERROR(VLOOKUP($B17,Таблица1[],10,0),"") ->  | H17: =IFERROR(VLOOKUP($B17,Таблица1[],11,0),"") ->  | I17: =IFERROR(VLOOKUP($B17,Таблица1[],12,0),"") ->  | J17: =IFERROR(VLOOKUP($B17,Таблица1[],13,0),"") ->  | K17: =IFERROR(VLOOKUP($B17,Таблица1[],14,0),"") ->  | L17: =COUNTIFS(Таблица1[2019],B17)+SUMIFS(Таблица1[Re-entry],Таблица1[2019],B17) -> 0 | M17: =SUMIFS(Таблица1[Total Buy-In],Таблица1[2019],B17) -> 0 | N17: 0 | O17: =IFERROR(COUNTIFS(Таблица1[2019],B17,Таблица1[Winnings],">0")/L17*100,0) -> 0 | P17: =SUMIFS(Таблица1[Total Hands],Таблица1[2019],B17) -> 0 | Q17: =IFERROR(SUMIFS(Таблица1[bb/101],Таблица1[2019],B17)/P17,0) -> 0 | R17: =IFERROR(SUMIFS(Таблица1[EV bb/101],Таблица1[2019],B17)/P17,0) -> 0 | S17: =SUMIFS(Таблица1[Net Winnings],Таблица1[2019],B17) -> 0 | T17: 0
B18: 06:05 4,4 Progressive KO PS KO Regular 9 | E18: =IFERROR(IF(VLOOKUP($B18,Таблица1[],9,0)=0,"",VLOOKUP($B18,Таблица1[],9,0)),"") ->  | F18: =IFERROR(VLOOKUP($B18,Таблица1[],16,0),"") ->  | G18: =IFERROR(VLOOKUP($B18,Таблица1[],10,0),"") ->  | H18: =IFERROR(VLOOKUP($B18,Таблица1[],11,0),"") ->  | I18: =IFERROR(VLOOKUP($B18,Таблица1[],12,0),"") ->  | J18: =IFERROR(VLOOKUP($B18,Таблица1[],13,0),"") ->  | K18: =IFERROR(VLOOKUP($B18,Таблица1[],14,0),"") ->  | L18: =COUNTIFS(Таблица1[2019],B18)+SUMIFS(Таблица1[Re-entry],Таблица1[2019],B18) -> 0 | M18: =SUMIFS(Таблица1[Total Buy-In],Таблица1[2019],B18) -> 0 | N18: 0 | O18: =IFERROR(COUNTIFS(Таблица1[2019],B18,Таблица1[Winnings],">0")/L18*100,0) -> 0 | P18: =SUMIFS(Таблица1[Total Hands],Таблица1[2019],B18) -> 0 | Q18: =IFERROR(SUMIFS(Таблица1[bb/101],Таблица1[2019],B18)/P18,0) -> 0 | R18: =IFERROR(SUMIFS(Таблица1[EV bb/101],Таблица1[2019],B18)/P18,0) -> 0 | S18: =SUMIFS(Таблица1[Net Winnings],Таблица1[2019],B18) -> 0 | T18: 0
B19: 06:15 1,1 Hot PS Friz Turbo 9 | E19: =IFERROR(IF(VLOOKUP($B19,Таблица1[],9,0)=0,"",VLOOKUP($B19,Таблица1[],9,0)),"") ->  | F19: =IFERROR(VLOOKUP($B19,Таблица1[],16,0),"") ->  | G19: =IFERROR(VLOOKUP($B19,Таблица1[],10,0),"") ->  | H19: =IFERROR(VLOOKUP($B19,Таблица1[],11,0),"") ->  | I19: =IFERROR(VLOOKUP($B19,Таблица1[],12,0),"") ->  | J19: =IFERROR(VLOOKUP($B19,Таблица1[],13,0),"") ->  | K19: =IFERROR(VLOOKUP($B19,Таблица1[],14,0),"") ->  | L19: =COUNTIFS(Таблица1[2019],B19)+SUMIFS(Таблица1[Re-entry],Таблица1[2019],B19) -> 0 | M19: =SUMIFS(Таблица1[Total Buy-In],Таблица1[2019],B19) -> 0 | N19: 0 | O19: =IFERROR(COUNTIFS(Таблица1[2019],B19,Таблица1[Winnings],">0")/L19*100,0) -> 0 | P19: =SUMIFS(Таблица1[Total Hands],Таблица1[2019],B19) -> 0 | Q19: =IFERROR(SUMIFS(Таблица1[bb/101],Таблица1[2019],B19)/P19,0) -> 0 | R19: =IFERROR(SUMIFS(Таблица1[EV bb/101],Таблица1[2019],B19)/P19,0) -> 0 | S19: =SUMIFS(Таблица1[Net Winnings],Таблица1[2019],B19) -> 0 | T19: 0
B20: 07:00 2,2 Big PS Friz Regular 9 | E20: =IFERROR(IF(VLOOKUP($B20,Таблица1[],9,0)=0,"",VLOOKUP($B20,Таблица1[],9,0)),"") ->  | F20: =IFERROR(VLOOKUP($B20,Таблица1[],16,0),"") ->  | G20: =IFERROR(VLOOKUP($B20,Таблица1[],10,0),"") ->  | H20: =IFERROR(VLOOKUP($B20,Таблица1[],11,0),"") ->  | I20: =IFERROR(VLOOKUP($B20,Таблица1[],12,0),"") ->  | J20: =IFERROR(VLOOKUP($B20,Таблица1[],13,0),"") ->  | K20: =IFERROR(VLOOKUP($B20,Таблица1[],14,0),"") ->  | L20: =COUNTIFS(Таблица1[2019],B20)+SUMIFS(Таблица1[Re-entry],Таблица1[2019],B20) -> 0 | M20: =SUMIFS(Таблица1[Total Buy-In],Таблица1[2019],B20) -> 0 | N20: 0 | O20: =IFERROR(COUNTIFS(Таблица1[2019],B20,Таблица1[Winnings],">0")/L20*100,0) -> 0 | P20: =SUMIFS(Таблица1[Total Hands],Таблица1[2019],B20) -> 0 | Q20: =IFERROR(SUMIFS(Таблица1[bb/101],Таблица1[2019],B20)/P20,0) -> 0 | R20: =IFERROR(SUMIFS(Таблица1[EV bb/101],Таблица1[2019],B20)/P20,0) -> 0 | S20: =SUMIFS(Таблица1[Net Winnings],Таблица1[2019],B20) -> 0 | T20: 0
B21: 07:00 3 Gtd ES Friz Regular 9 | E21: =IFERROR(IF(VLOOKUP($B21,Таблица1[],9,0)=0,"",VLOOKUP($B21,Таблица1[],9,0)),"") ->  | F21: =IFERROR(VLOOKUP($B21,Таблица1[],16,0),"") ->  | G21: =IFERROR(VLOOKUP($B21,Таблица1[],10,0),"") ->  | H21: =IFERROR(VLOOKUP($B21,Таблица1[],11,0),"") ->  | I21: =IFERROR(VLOOKUP($B21,Таблица1[],12,0),"") ->  | J21: =IFERROR(VLOOKUP($B21,Таблица1[],13,0),"") ->  | K21: =IFERROR(VLOOKUP($B21,Таблица1[],14,0),"") ->  | L21: =COUNTIFS(Таблица1[2019],B21)+SUMIFS(Таблица1[Re-entry],Таблица1[2019],B21) -> 0 | M21: =SUMIFS(Таблица1[Total Buy-In],Таблица1[2019],B21) -> 0 | N21: 0 | O21: =IFERROR(COUNTIFS(Таблица1[2019],B21,Таблица1[Winnings],">0")/L21*100,0) -> 0 | P21: =SUMIFS(Таблица1[Total Hands],Таблица1[2019],B21) -> 0 | Q21: =IFERROR(SUMIFS(Таблица1[bb/101],Таблица1[2019],B21)/P21,0) -> 0 | R21: =IFERROR(SUMIFS(Таблица1[EV bb/101],Таблица1[2019],B21)/P21,0) -> 0 | S21: =SUMIFS(Таблица1[Net Winnings],Таблица1[2019],B21) -> 0 | T21: 0
B22: 07:00 3,3 Progressive KO PS KO Turbo 9 | E22: =IFERROR(IF(VLOOKUP($B22,Таблица1[],9,0)=0,"",VLOOKUP($B22,Таблица1[],9,0)),"") ->  | F22: =IFERROR(VLOOKUP($B22,Таблица1[],16,0),"") ->  | G22: =IFERROR(VLOOKUP($B22,Таблица1[],10,0),"") ->  | H22: =IFERROR(VLOOKUP($B22,Таблица1[],11,0),"") ->  | I22: =IFERROR(VLOOKUP($B22,Таблица1[],12,0),"") ->  | J22: =IFERROR(VLOOKUP($B22,Таблица1[],13,0),"") ->  | K22: =IFERROR(VLOOKUP($B22,Таблица1[],14,0),"") ->  | L22: =COUNTIFS(Таблица1[2019],B22)+SUMIFS(Таблица1[Re-entry],Таблица1[2019],B22) -> 0 | M22: =SUMIFS(Таблица1[Total Buy-In],Таблица1[2019],B22) -> 0 | N22: 0 | O22: =IFERROR(COUNTIFS(Таблица1[2019],B22,Таблица1[Winnings],">0")/L22*100,0) -> 0 | P22: =SUMIFS(Таблица1[Total Hands],Таблица1[2019],B22) -> 0 | Q22: =IFERROR(SUMIFS(Таблица1[bb/101],Таблица1[2019],B22)/P22,0) -> 0 | R22: =IFERROR(SUMIFS(Таблица1[EV bb/101],Таблица1[2019],B22)/P22,0) -> 0 | S22: =SUMIFS(Таблица1[Net Winnings],Таблица1[2019],B22) -> 0 | T22: 0
B23: 07:15 11 Progressive KO PS KO Regular 9 | E23: =IFERROR(IF(VLOOKUP($B23,Таблица1[],9,0)=0,"",VLOOKUP($B23,Таблица1[],9,0)),"") ->  | F23: =IFERROR(VLOOKUP($B23,Таблица1[],16,0),"") ->  | G23: =IFERROR(VLOOKUP($B23,Таблица1[],10,0),"") ->  | H23: =IFERROR(VLOOKUP($B23,Таблица1[],11,0),"") ->  | I23: =IFERROR(VLOOKUP($B23,Таблица1[],12,0),"") ->  | J23: =IFERROR(VLOOKUP($B23,Таблица1[],13,0),"") ->  | K23: =IFERROR(VLOOKUP($B23,Таблица1[],14,0),"") ->  | L23: =COUNTIFS(Таблица1[2019],B23)+SUMIFS(Таблица1[Re-entry],Таблица1[2019],B23) -> 0 | M23: =SUMIFS(Таблица1[Total Buy-In],Таблица1[2019],B23) -> 0 | N23: 0 | O23: =IFERROR(COUNTIFS(Таблица1[2019],B23,Таблица1[Winnings],">0")/L23*100,0) -> 0 | P23: =SUMIFS(Таблица1[Total Hands],Таблица1[2019],B23) -> 0 | Q23: =IFERROR(SUMIFS(Таблица1[bb/101],Таблица1[2019],B23)/P23,0) -> 0 | R23: =IFERROR(SUMIFS(Таблица1[EV bb/101],Таблица1[2019],B23)/P23,0) -> 0 | S23: =SUMIFS(Таблица1[Net Winnings],Таблица1[2019],B23) -> 0 | T23: 0
B24: 07:15 5 Gtd PAC Friz Regular 9 | E24: =IFERROR(IF(VLOOKUP($B24,Таблица1[],9,0)=0,"",VLOOKUP($B24,Таблица1[],9,0)),"") ->  | F24: =IFERROR(VLOOKUP($B24,Таблица1[],16,0),"") ->  | G24: =IFERROR(VLOOKUP($B24,Таблица1[],10,0),"") ->  | H24: =IFERROR(VLOOKUP($B24,Таблица1[],11,0),"") ->  | I24: =IFERROR(VLOOKUP($B24,Таблица1[],12,0),"") ->  | J24: =IFERROR(VLOOKUP($B24,Таблица1[],13,0),"") ->  | K24: =IFERROR(VLOOKUP($B24,Таблица1[],14,0),"") ->  | L24: =COUNTIFS(Таблица1[2019],B24)+SUMIFS(Таблица1[Re-entry],Таблица1[2019],B24) -> 0 | M24: =SUMIFS(Таблица1[Total Buy-In],Таблица1[2019],B24) -> 0 | N24: 0 | O24: =IFERROR(COUNTIFS(Таблица1[2019],B24,Таблица1[Winnings],">0")/L24*100,0) -> 0 | P24: =SUMIFS(Таблица1[Total Hands],Таблица1[2019],B24) -> 0 | Q24: =IFERROR(SUMIFS(Таблица1[bb/101],Таблица1[2019],B24)/P24,0) -> 0 | R24: =IFERROR(SUMIFS(Таблица1[EV bb/101],Таблица1[2019],B24)/P24,0) -> 0 | S24: =SUMIFS(Таблица1[Net Winnings],Таблица1[2019],B24) -> 0 | T24: 0
B25: 07:30 5,5 Bounty Builder PS KO Regular 9 | E25: =IFERROR(IF(VLOOKUP($B25,Таблица1[],9,0)=0,"",VLOOKUP($B25,Таблица1[],9,0)),"") ->  | F25: =IFERROR(VLOOKUP($B25,Таблица1[],16,0),"") ->  | G25: =IFERROR(VLOOKUP($B25,Таблица1[],10,0),"") ->  | H25: =IFERROR(VLOOKUP($B25,Таблица1[],11,0),"") ->  | I25: =IFERROR(VLOOKUP($B25,Таблица1[],12,0),"") ->  | J25: =IFERROR(VLOOKUP($B25,Таблица1[],13,0),"") ->  | K25: =IFERROR(VLOOKUP($B25,Таблица1[],14,0),"") ->  | L25: =COUNTIFS(Таблица1[2019],B25)+SUMIFS(Таблица1[Re-entry],Таблица1[2019],B25) -> 0 | M25: =SUMIFS(Таблица1[Total Buy-In],Таблица1[2019],B25) -> 0 | N25: 0 | O25: =IFERROR(COUNTIFS(Таблица1[2019],B25,Таблица1[Winnings],">0")/L25*100,0) -> 0 | P25: =SUMIFS(Таблица1[Total Hands],Таблица1[2019],B25) -> 0 | Q25: =IFERROR(SUMIFS(Таблица1[bb/101],Таблица1[2019],B25)/P25,0) -> 0 | R25: =IFERROR(SUMIFS(Таблица1[EV bb/101],Таблица1[2019],B25)/P25,0) -> 0 | S25: =SUMIFS(Таблица1[Net Winnings],Таблица1[2019],B25) -> 0 | T25: 0
B26: 07:45 3,3 Gtd PAC Friz Regular 9 | E26: =IFERROR(IF(VLOOKUP($B26,Таблица1[],9,0)=0,"",VLOOKUP($B26,Таблица1[],9,0)),"") ->  | F26: =IFERROR(VLOOKUP($B26,Таблица1[],16,0),"") ->  | G26: =IFERROR(VLOOKUP($B26,Таблица1[],10,0),"") ->  | H26: =IFERROR(VLOOKUP($B26,Таблица1[],11,0),"") ->  | I26: =IFERROR(VLOOKUP($B26,Таблица1[],12,0),"") ->  | J26: =IFERROR(VLOOKUP($B26,Таблица1[],13,0),"") ->  | K26: =IFERROR(VLOOKUP($B26,Таблица1[],14,0),"") ->  | L26: =COUNTIFS(Таблица1[2019],B26)+SUMIFS(Таблица1[Re-entry],Таблица1[2019],B26) -> 0 | M26: =SUMIFS(Таблица1[Total Buy-In],Таблица1[2019],B26) -> 0 | N26: 0 | O26: =IFERROR(COUNTIFS(Таблица1[2019],B26,Таблица1[Winnings],">0")/L26*100,0) -> 0 | P26: =SUMIFS(Таблица1[Total Hands],Таблица1[2019],B26) -> 0 | Q26: =IFERROR(SUMIFS(Таблица1[bb/101],Таблица1[2019],B26)/P26,0) -> 0 | R26: =IFERROR(SUMIFS(Таблица1[EV bb/101],Таблица1[2019],B26)/P26,0) -> 0 | S26: =SUMIFS(Таблица1[Net Winnings],Таблица1[2019],B26) -> 0 | T26: 0
B27: 08:00 3,3 Progressive KO PS KO Turbo 9 | E27: =IFERROR(IF(VLOOKUP($B27,Таблица1[],9,0)=0,"",VLOOKUP($B27,Таблица1[],9,0)),"") ->  | F27: =IFERROR(VLOOKUP($B27,Таблица1[],16,0),"") ->  | G27: =IFERROR(VLOOKUP($B27,Таблица1[],10,0),"") ->  | H27: =IFERROR(VLOOKUP($B27,Таблица1[],11,0),"") ->  | I27: =IFERROR(VLOOKUP($B27,Таблица1[],12,0),"") ->  | J27: =IFERROR(VLOOKUP($B27,Таблица1[],13,0),"") ->  | K27: =IFERROR(VLOOKUP($B27,Таблица1[],14,0),"") ->  | L27: =COUNTIFS(Таблица1[2019],B27)+SUMIFS(Таблица1[Re-entry],Таблица1[2019],B27) -> 0 | M27: =SUMIFS(Таблица1[Total Buy-In],Таблица1[2019],B27) -> 0 | N27: 0 | O27: =IFERROR(COUNTIFS(Таблица1[2019],B27,Таблица1[Winnings],">0")/L27*100,0) -> 0 | P27: =SUMIFS(Таблица1[Total Hands],Таблица1[2019],B27) -> 0 | Q27: =IFERROR(SUMIFS(Таблица1[bb/101],Таблица1[2019],B27)/P27,0) -> 0 | R27: =IFERROR(SUMIFS(Таблица1[EV bb/101],Таблица1[2019],B27)/P27,0) -> 0 | S27: =SUMIFS(Таблица1[Net Winnings],Таблица1[2019],B27) -> 0 | T27: 0
B28: 08:05 2 Gtd ES Friz Regular 9 | E28: =IFERROR(IF(VLOOKUP($B28,Таблица1[],9,0)=0,"",VLOOKUP($B28,Таблица1[],9,0)),"") ->  | F28: =IFERROR(VLOOKUP($B28,Таблица1[],16,0),"") ->  | G28: =IFERROR(VLOOKUP($B28,Таблица1[],10,0),"") ->  | H28: =IFERROR(VLOOKUP($B28,Таблица1[],11,0),"") ->  | I28: =IFERROR(VLOOKUP($B28,Таблица1[],12,0),"") ->  | J28: =IFERROR(VLOOKUP($B28,Таблица1[],13,0),"") ->  | K28: =IFERROR(VLOOKUP($B28,Таблица1[],14,0),"") ->  | L28: =COUNTIFS(Таблица1[2019],B28)+SUMIFS(Таблица1[Re-entry],Таблица1[2019],B28) -> 0 | M28: =SUMIFS(Таблица1[Total Buy-In],Таблица1[2019],B28) -> 0 | N28: 0 | O28: =IFERROR(COUNTIFS(Таблица1[2019],B28,Таблица1[Winnings],">0")/L28*100,0) -> 0 | P28: =SUMIFS(Таблица1[Total Hands],Таблица1[2019],B28) -> 0 | Q28: =IFERROR(SUMIFS(Таблица1[bb/101],Таблица1[2019],B28)/P28,0) -> 0 | R28: =IFERROR(SUMIFS(Таблица1[EV bb/101],Таблица1[2019],B28)/P28,0) -> 0 | S28: =SUMIFS(Таблица1[Net Winnings],Таблица1[2019],B28) -> 0 | T28: 0
B29: 08:10 5,5 Deep Stacks PS Friz Regular 9 | E29: =IFERROR(IF(VLOOKUP($B29,Таблица1[],9,0)=0,"",VLOOKUP($B29,Таблица1[],9,0)),"") ->  | F29: =IFERROR(VLOOKUP($B29,Таблица1[],16,0),"") ->  | G29: =IFERROR(VLOOKUP($B29,Таблица1[],10,0),"") ->  | H29: =IFERROR(VLOOKUP($B29,Таблица1[],11,0),"") ->  | I29: =IFERROR(VLOOKUP($B29,Таблица1[],12,0),"") ->  | J29: =IFERROR(VLOOKUP($B29,Таблица1[],13,0),"") ->  | K29: =IFERROR(VLOOKUP($B29,Таблица1[],14,0),"") ->  | L29: =COUNTIFS(Таблица1[2019],B29)+SUMIFS(Таблица1[Re-entry],Таблица1[2019],B29) -> 0 | M29: =SUMIFS(Таблица1[Total Buy-In],Таблица1[2019],B29) -> 0 | N29: 0 | O29: =IFERROR(COUNTIFS(Таблица1[2019],B29,Таблица1[Winnings],">0")/L29*100,0) -> 0 | P29: =SUMIFS(Таблица1[Total Hands],Таблица1[2019],B29) -> 0 | Q29: =IFERROR(SUMIFS(Таблица1[bb/101],Таблица1[2019],B29)/P29,0) -> 0 | R29: =IFERROR(SUMIFS(Таблица1[EV bb/101],Таблица1[2019],B29)/P29,0) -> 0 | S29: =SUMIFS(Таблица1[Net Winnings],Таблица1[2019],B29) -> 0 | T29: 0
B30: 08:30 2,2 Gtd PS Friz Regular 9 | E30: =IFERROR(IF(VLOOKUP($B30,Таблица1[],9,0)=0,"",VLOOKUP($B30,Таблица1[],9,0)),"") ->  | F30: =IFERROR(VLOOKUP($B30,Таблица1[],16,0),"") ->  | G30: =IFERROR(VLOOKUP($B30,Таблица1[],10,0),"") ->  | H30: =IFERROR(VLOOKUP($B30,Таблица1[],11,0),"") ->  | I30: =IFERROR(VLOOKUP($B30,Таблица1[],12,0),"") ->  | J30: =IFERROR(VLOOKUP($B30,Таблица1[],13,0),"") ->  | K30: =IFERROR(VLOOKUP($B30,Таблица1[],14,0),"") ->  | L30: =COUNTIFS(Таблица1[2019],B30)+SUMIFS(Таблица1[Re-entry],Таблица1[2019],B30) -> 0 | M30: =SUMIFS(Таблица1[Total Buy-In],Таблица1[2019],B30) -> 0 | N30: 0 | O30: =IFERROR(COUNTIFS(Таблица1[2019],B30,Таблица1[Winnings],">0")/L30*100,0) -> 0 | P30: =SUMIFS(Таблица1[Total Hands],Таблица1[2019],B30) -> 0 | Q30: =IFERROR(SUMIFS(Таблица1[bb/101],Таблица1[2019],B30)/P30,0) -> 0 | R30: =IFERROR(SUMIFS(Таблица1[EV bb/101],Таблица1[2019],B30)/P30,0) -> 0 | S30: =SUMIFS(Таблица1[Net Winnings],Таблица1[2019],B30) -> 0 | T30: 0
B31: 09:00 1,1 Progressive KO PS KO Turbo 9 | E31: =IFERROR(IF(VLOOKUP($B31,Таблица1[],9,0)=0,"",VLOOKUP($B31,Таблица1[],9,0)),"") ->  | F31: =IFERROR(VLOOKUP($B31,Таблица1[],16,0),"") ->  | G31: =IFERROR(VLOOKUP($B31,Таблица1[],10,0),"") ->  | H31: =IFERROR(VLOOKUP($B31,Таблица1[],11,0),"") ->  | I31: =IFERROR(VLOOKUP($B31,Таблица1[],12,0),"") ->  | J31: =IFERROR(VLOOKUP($B31,Таблица1[],13,0),"") ->  | K31: =IFERROR(VLOOKUP($B31,Таблица1[],14,0),"") ->  | L31: =COUNTIFS(Таблица1[2019],B31)+SUMIFS(Таблица1[Re-entry],Таблица1[2019],B31) -> 0 | M31: =SUMIFS(Таблица1[Total Buy-In],Таблица1[2019],B31) -> 0 | N31: 0 | O31: =IFERROR(COUNTIFS(Таблица1[2019],B31,Таблица1[Winnings],">0")/L31*100,0) -> 0 | P31: =SUMIFS(Таблица1[Total Hands],Таблица1[2019],B31) -> 0 | Q31: =IFERROR(SUMIFS(Таблица1[bb/101],Таблица1[2019],B31)/P31,0) -> 0 | R31: =IFERROR(SUMIFS(Таблица1[EV bb/101],Таблица1[2019],B31)/P31,0) -> 0 | S31: =SUMIFS(Таблица1[Net Winnings],Таблица1[2019],B31) -> 0 | T31: 0
B32: 09:15 1,5 Gtd R/A PAC Friz Regular 6 | E32: =IFERROR(IF(VLOOKUP($B32,Таблица1[],9,0)=0,"",VLOOKUP($B32,Таблица1[],9,0)),"") ->  | F32: =IFERROR(VLOOKUP($B32,Таблица1[],16,0),"") ->  | G32: =IFERROR(VLOOKUP($B32,Таблица1[],10,0),"") ->  | H32: =IFERROR(VLOOKUP($B32,Таблица1[],11,0),"") ->  | I32: =IFERROR(VLOOKUP($B32,Таблица1[],12,0),"") ->  | J32: =IFERROR(VLOOKUP($B32,Таблица1[],13,0),"") ->  | K32: =IFERROR(VLOOKUP($B32,Таблица1[],14,0),"") ->  | L32: =COUNTIFS(Таблица1[2019],B32)+SUMIFS(Таблица1[Re-entry],Таблица1[2019],B32) -> 0 | M32: =SUMIFS(Таблица1[Total Buy-In],Таблица1[2019],B32) -> 0 | N32: 0 | O32: =IFERROR(COUNTIFS(Таблица1[2019],B32,Таблица1[Winnings],">0")/L32*100,0) -> 0 | P32: =SUMIFS(Таблица1[Total Hands],Таблица1[2019],B32) -> 0 | Q32: =IFERROR(SUMIFS(Таблица1[bb/101],Таблица1[2019],B32)/P32,0) -> 0 | R32: =IFERROR(SUMIFS(Таблица1[EV bb/101],Таблица1[2019],B32)/P32,0) -> 0 | S32: =SUMIFS(Таблица1[Net Winnings],Таблица1[2019],B32) -> 0 | T32: 0
B33: 09:20 7,5 Progressive KO PS KO Regular 9 | E33: =IFERROR(IF(VLOOKUP($B33,Таблица1[],9,0)=0,"",VLOOKUP($B33,Таблица1[],9,0)),"") ->  | F33: =IFERROR(VLOOKUP($B33,Таблица1[],16,0),"") ->  | G33: =IFERROR(VLOOKUP($B33,Таблица1[],10,0),"") ->  | H33: =IFERROR(VLOOKUP($B33,Таблица1[],11,0),"") ->  | I33: =IFERROR(VLOOKUP($B33,Таблица1[],12,0),"") ->  | J33: =IFERROR(VLOOKUP($B33,Таблица1[],13,0),"") ->  | K33: =IFERROR(VLOOKUP($B33,Таблица1[],14,0),"") ->  | L33: =COUNTIFS(Таблица1[2019],B33)+SUMIFS(Таблица1[Re-entry],Таблица1[2019],B33) -> 0 | M33: =SUMIFS(Таблица1[Total Buy-In],Таблица1[2019],B33) -> 0 | N33: 0 | O33: =IFERROR(COUNTIFS(Таблица1[2019],B33,Таблица1[Winnings],">0")/L33*100,0) -> 0 | P33: =SUMIFS(Таблица1[Total Hands],Таблица1[2019],B33) -> 0 | Q33: =IFERROR(SUMIFS(Таблица1[bb/101],Таблица1[2019],B33)/P33,0) -> 0 | R33: =IFERROR(SUMIFS(Таблица1[EV bb/101],Таблица1[2019],B33)/P33,0) -> 0 | S33: =SUMIFS(Таблица1[Net Winnings],Таблица1[2019],B33) -> 0 | T33: 0
B34: 09:30 1 Gtd ES Friz Regular 9 | E34: =IFERROR(IF(VLOOKUP($B34,Таблица1[],9,0)=0,"",VLOOKUP($B34,Таблица1[],9,0)),"") ->  | F34: =IFERROR(VLOOKUP($B34,Таблица1[],16,0),"") ->  | G34: =IFERROR(VLOOKUP($B34,Таблица1[],10,0),"") ->  | H34: =IFERROR(VLOOKUP($B34,Таблица1[],11,0),"") ->  | I34: =IFERROR(VLOOKUP($B34,Таблица1[],12,0),"") ->  | J34: =IFERROR(VLOOKUP($B34,Таблица1[],13,0),"") ->  | K34: =IFERROR(VLOOKUP($B34,Таблица1[],14,0),"") ->  | L34: =COUNTIFS(Таблица1[2019],B34)+SUMIFS(Таблица1[Re-entry],Таблица1[2019],B34) -> 0 | M34: =SUMIFS(Таблица1[Total Buy-In],Таблица1[2019],B34) -> 0 | N34: 0 | O34: =IFERROR(COUNTIFS(Таблица1[2019],B34,Таблица1[Winnings],">0")/L34*100,0) -> 0 | P34: =SUMIFS(Таблица1[Total Hands],Таблица1[2019],B34) -> 0 | Q34: =IFERROR(SUMIFS(Таблица1[bb/101],Таблица1[2019],B34)/P34,0) -> 0 | R34: =IFERROR(SUMIFS(Таблица1[EV bb/101],Таблица1[2019],B34)/P34,0) -> 0 | S34: =SUMIFS(Таблица1[Net Winnings],Таблица1[2019],B34) -> 0 | T34: 0
B35: 09:30 12 Catfish PAC Friz Regular 9 | E35: =IFERROR(IF(VLOOKUP($B35,Таблица1[],9,0)=0,"",VLOOKUP($B35,Таблица1[],9,0)),"") ->  | F35: =IFERROR(VLOOKUP($B35,Таблица1[],16,0),"") ->  | G35: =IFERROR(VLOOKUP($B35,Таблица1[],10,0),"") ->  | H35: =IFERROR(VLOOKUP($B35,Таблица1[],11,0),"") ->  | I35: =IFERROR(VLOOKUP($B35,Таблица1[],12,0),"") ->  | J35: =IFERROR(VLOOKUP($B35,Таблица1[],13,0),"") ->  | K35: =IFERROR(VLOOKUP($B35,Таблица1[],14,0),"") ->  | L35: =COUNTIFS(Таблица1[2019],B35)+SUMIFS(Таблица1[Re-entry],Таблица1[2019],B35) -> 0 | M35: =SUMIFS(Таблица1[Total Buy-In],Таблица1[2019],B35) -> 0 | N35: 0 | O35: =IFERROR(COUNTIFS(Таблица1[2019],B35,Таблица1[Winnings],">0")/L35*100,0) -> 0 | P35: =SUMIFS(Таблица1[Total Hands],Таблица1[2019],B35) -> 0 | Q35: =IFERROR(SUMIFS(Таблица1[bb/101],Таблица1[2019],B35)/P35,0) -> 0 | R35: =IFERROR(SUMIFS(Таблица1[EV bb/101],Таблица1[2019],B35)/P35,0) -> 0 | S35: =SUMIFS(Таблица1[Net Winnings],Таблица1[2019],B35) -> 0 | T35: 0
B36: 09:30 3,3 Bounty Builder PS KO Regular 9 | E36: =IFERROR(IF(VLOOKUP($B36,Таблица1[],9,0)=0,"",VLOOKUP($B36,Таблица1[],9,0)),"") ->  | F36: =IFERROR(VLOOKUP($B36,Таблица1[],16,0),"") ->  | G36: =IFERROR(VLOOKUP($B36,Таблица1[],10,0),"") ->  | H36: =IFERROR(VLOOKUP($B36,Таблица1[],11,0),"") ->  | I36: =IFERROR(VLOOKUP($B36,Таблица1[],12,0),"") ->  | J36: =IFERROR(VLOOKUP($B36,Таблица1[],13,0),"") ->  | K36: =IFERROR(VLOOKUP($B36,Таблица1[],14,0),"") ->  | L36: =COUNTIFS(Таблица1[2019],B36)+SUMIFS(Таблица1[Re-entry],Таблица1[2019],B36) -> 0 | M36: =SUMIFS(Таблица1[Total Buy-In],Таблица1[2019],B36) -> 0 | N36: =IFERROR((S36/M36)*100,0) -> 0 | O36: =IFERROR(COUNTIFS(Таблица1[2019],B36,Таблица1[Winnings],">0")/L36*100,0) -> 0 | P36: =SUMIFS(Таблица1[Total Hands],Таблица1[2019],B36) -> 0 | Q36: =IFERROR(SUMIFS(Таблица1[bb/101],Таблица1[2019],B36)/P36,0) -> 0 | R36: =IFERROR(SUMIFS(Таблица1[EV bb/101],Таблица1[2019],B36)/P36,0) -> 0 | S36: =SUMIFS(Таблица1[Net Winnings],Таблица1[2019],B36) -> 0 | T36: =IFERROR(S36/L36,0) -> 0
B37: 09:40 1 Gtd ES Friz Turbo 9 | E37: =IFERROR(IF(VLOOKUP($B37,Таблица1[],9,0)=0,"",VLOOKUP($B37,Таблица1[],9,0)),"") ->  | F37: =IFERROR(VLOOKUP($B37,Таблица1[],16,0),"") ->  | G37: =IFERROR(VLOOKUP($B37,Таблица1[],10,0),"") ->  | H37: =IFERROR(VLOOKUP($B37,Таблица1[],11,0),"") ->  | I37: =IFERROR(VLOOKUP($B37,Таблица1[],12,0),"") ->  | J37: =IFERROR(VLOOKUP($B37,Таблица1[],13,0),"") ->  | K37: =IFERROR(VLOOKUP($B37,Таблица1[],14,0),"") ->  | L37: =COUNTIFS(Таблица1[2019],B37)+SUMIFS(Таблица1[Re-entry],Таблица1[2019],B37) -> 0 | M37: =SUMIFS(Таблица1[Total Buy-In],Таблица1[2019],B37) -> 0 | N37: 0 | O37: =IFERROR(COUNTIFS(Таблица1[2019],B37,Таблица1[Winnings],">0")/L37*100,0) -> 0 | P37: =SUMIFS(Таблица1[Total Hands],Таблица1[2019],B37) -> 0 | Q37: =IFERROR(SUMIFS(Таблица1[bb/101],Таблица1[2019],B37)/P37,0) -> 0 | R37: =IFERROR(SUMIFS(Таблица1[EV bb/101],Таблица1[2019],B37)/P37,0) -> 0 | S37: =SUMIFS(Таблица1[Net Winnings],Таблица1[2019],B37) -> 0 | T37: 0
B38: 09:45 1,1 Zoom R/A PS Friz Turbo 9 | E38: =IFERROR(IF(VLOOKUP($B38,Таблица1[],9,0)=0,"",VLOOKUP($B38,Таблица1[],9,0)),"") ->  | F38: =IFERROR(VLOOKUP($B38,Таблица1[],16,0),"") ->  | G38: =IFERROR(VLOOKUP($B38,Таблица1[],10,0),"") ->  | H38: =IFERROR(VLOOKUP($B38,Таблица1[],11,0),"") ->  | I38: =IFERROR(VLOOKUP($B38,Таблица1[],12,0),"") ->  | J38: =IFERROR(VLOOKUP($B38,Таблица1[],13,0),"") ->  | K38: =IFERROR(VLOOKUP($B38,Таблица1[],14,0),"") ->  | L38: =COUNTIFS(Таблица1[2019],B38)+SUMIFS(Таблица1[Re-entry],Таблица1[2019],B38) -> 0 | M38: =SUMIFS(Таблица1[Total Buy-In],Таблица1[2019],B38) -> 0 | N38: 0 | O38: =IFERROR(COUNTIFS(Таблица1[2019],B38,Таблица1[Winnings],">0")/L38*100,0) -> 0 | P38: =SUMIFS(Таблица1[Total Hands],Таблица1[2019],B38) -> 0 | Q38: =IFERROR(SUMIFS(Таблица1[bb/101],Таблица1[2019],B38)/P38,0) -> 0 | R38: =IFERROR(SUMIFS(Таблица1[EV bb/101],Таблица1[2019],B38)/P38,0) -> 0 | S38: =SUMIFS(Таблица1[Net Winnings],Таблица1[2019],B38) -> 0 | T38: 0
B39: 10:00 1,1 Deep Payouts PS Friz Regular 9 | E39: =IFERROR(IF(VLOOKUP($B39,Таблица1[],9,0)=0,"",VLOOKUP($B39,Таблица1[],9,0)),"") ->  | F39: =IFERROR(VLOOKUP($B39,Таблица1[],16,0),"") ->  | G39: =IFERROR(VLOOKUP($B39,Таблица1[],10,0),"") ->  | H39: =IFERROR(VLOOKUP($B39,Таблица1[],11,0),"") ->  | I39: =IFERROR(VLOOKUP($B39,Таблица1[],12,0),"") ->  | J39: =IFERROR(VLOOKUP($B39,Таблица1[],13,0),"") ->  | K39: =IFERROR(VLOOKUP($B39,Таблица1[],14,0),"") ->  | L39: =COUNTIFS(Таблица1[2019],B39)+SUMIFS(Таблица1[Re-entry],Таблица1[2019],B39) -> 0 | M39: =SUMIFS(Таблица1[Total Buy-In],Таблица1[2019],B39) -> 0 | N39: 0 | O39: =IFERROR(COUNTIFS(Таблица1[2019],B39,Таблица1[Winnings],">0")/L39*100,0) -> 0 | P39: =SUMIFS(Таблица1[Total Hands],Таблица1[2019],B39) -> 0 | Q39: =IFERROR(SUMIFS(Таблица1[bb/101],Таблица1[2019],B39)/P39,0) -> 0 | R39: =IFERROR(SUMIFS(Таблица1[EV bb/101],Таблица1[2019],B39)/P39,0) -> 0 | S39: =SUMIFS(Таблица1[Net Winnings],Таблица1[2019],B39) -> 0 | T39: 0
B40: 10:00 3 Gtd PAC Friz Regular 9 | E40: =IFERROR(IF(VLOOKUP($B40,Таблица1[],9,0)=0,"",VLOOKUP($B40,Таблица1[],9,0)),"") ->  | F40: =IFERROR(VLOOKUP($B40,Таблица1[],16,0),"") ->  | G40: =IFERROR(VLOOKUP($B40,Таблица1[],10,0),"") ->  | H40: =IFERROR(VLOOKUP($B40,Таблица1[],11,0),"") ->  | I40: =IFERROR(VLOOKUP($B40,Таблица1[],12,0),"") ->  | J40: =IFERROR(VLOOKUP($B40,Таблица1[],13,0),"") ->  | K40: =IFERROR(VLOOKUP($B40,Таблица1[],14,0),"") ->  | L40: =COUNTIFS(Таблица1[2019],B40)+SUMIFS(Таблица1[Re-entry],Таблица1[2019],B40) -> 0 | M40: =SUMIFS(Таблица1[Total Buy-In],Таблица1[2019],B40) -> 0 | N40: 0 | O40: =IFERROR(COUNTIFS(Таблица1[2019],B40,Таблица1[Winnings],">0")/L40*100,0) -> 0 | P40: =SUMIFS(Таблица1[Total Hands],Таблица1[2019],B40) -> 0 | Q40: =IFERROR(SUMIFS(Таблица1[bb/101],Таблица1[2019],B40)/P40,0) -> 0 | R40: =IFERROR(SUMIFS(Таблица1[EV bb/101],Таблица1[2019],B40)/P40,0) -> 0 | S40: =SUMIFS(Таблица1[Net Winnings],Таблица1[2019],B40) -> 0 | T40: 0
B41: 10:20 2,2 Progressive KO PS KO Turbo 9 | E41: =IFERROR(IF(VLOOKUP($B41,Таблица1[],9,0)=0,"",VLOOKUP($B41,Таблица1[],9,0)),"") ->  | F41: =IFERROR(VLOOKUP($B41,Таблица1[],16,0),"") ->  | G41: =IFERROR(VLOOKUP($B41,Таблица1[],10,0),"") ->  | H41: =IFERROR(VLOOKUP($B41,Таблица1[],11,0),"") ->  | I41: =IFERROR(VLOOKUP($B41,Таблица1[],12,0),"") ->  | J41: =IFERROR(VLOOKUP($B41,Таблица1[],13,0),"") ->  | K41: =IFERROR(VLOOKUP($B41,Таблица1[],14,0),"") ->  | L41: =COUNTIFS(Таблица1[2019],B41)+SUMIFS(Таблица1[Re-entry],Таблица1[2019],B41) -> 0 | M41: =SUMIFS(Таблица1[Total Buy-In],Таблица1[2019],B41) -> 0 | N41: 0 | O41: =IFERROR(COUNTIFS(Таблица1[2019],B41,Таблица1[Winnings],">0")/L41*100,0) -> 0 | P41: =SUMIFS(Таблица1[Total Hands],Таблица1[2019],B41) -> 0 | Q41: =IFERROR(SUMIFS(Таблица1[bb/101],Таблица1[2019],B41)/P41,0) -> 0 | R41: =IFERROR(SUMIFS(Таблица1[EV bb/101],Таблица1[2019],B41)/P41,0) -> 0 | S41: =SUMIFS(Таблица1[Net Winnings],Таблица1[2019],B41) -> 0 | T41: 0
B42: 10:25 1,1 Bubble Rush PS Friz Turbo 9 | E42: =IFERROR(IF(VLOOKUP($B42,Таблица1[],9,0)=0,"",VLOOKUP($B42,Таблица1[],9,0)),"") ->  | F42: =IFERROR(VLOOKUP($B42,Таблица1[],16,0),"") ->  | G42: =IFERROR(VLOOKUP($B42,Таблица1[],10,0),"") ->  | H42: =IFERROR(VLOOKUP($B42,Таблица1[],11,0),"") ->  | I42: =IFERROR(VLOOKUP($B42,Таблица1[],12,0),"") ->  | J42: =IFERROR(VLOOKUP($B42,Таблица1[],13,0),"") ->  | K42: =IFERROR(VLOOKUP($B42,Таблица1[],14,0),"") ->  | L42: =COUNTIFS(Таблица1[2019],B42)+SUMIFS(Таблица1[Re-entry],Таблица1[2019],B42) -> 0 | M42: =SUMIFS(Таблица1[Total Buy-In],Таблица1[2019],B42) -> 0 | N42: 0 | O42: =IFERROR(COUNTIFS(Таблица1[2019],B42,Таблица1[Winnings],">0")/L42*100,0) -> 0 | P42: =SUMIFS(Таблица1[Total Hands],Таблица1[2019],B42) -> 0 | Q42: =IFERROR(SUMIFS(Таблица1[bb/101],Таблица1[2019],B42)/P42,0) -> 0 | R42: =IFERROR(SUMIFS(Таблица1[EV bb/101],Таблица1[2019],B42)/P42,0) -> 0 | S42: =SUMIFS(Таблица1[Net Winnings],Таблица1[2019],B42) -> 0 | T42: 0
B43: 10:30 1 Gtd ES Friz Regular 9 | E43: =IFERROR(IF(VLOOKUP($B43,Таблица1[],9,0)=0,"",VLOOKUP($B43,Таблица1[],9,0)),"") ->  | F43: =IFERROR(VLOOKUP($B43,Таблица1[],16,0),"") ->  | G43: =IFERROR(VLOOKUP($B43,Таблица1[],10,0),"") ->  | H43: =IFERROR(VLOOKUP($B43,Таблица1[],11,0),"") ->  | I43: =IFERROR(VLOOKUP($B43,Таблица1[],12,0),"") ->  | J43: =IFERROR(VLOOKUP($B43,Таблица1[],13,0),"") ->  | K43: =IFERROR(VLOOKUP($B43,Таблица1[],14,0),"") ->  | L43: =COUNTIFS(Таблица1[2019],B43)+SUMIFS(Таблица1[Re-entry],Таблица1[2019],B43) -> 0 | M43: =SUMIFS(Таблица1[Total Buy-In],Таблица1[2019],B43) -> 0 | N43: 0 | O43: =IFERROR(COUNTIFS(Таблица1[2019],B43,Таблица1[Winnings],">0")/L43*100,0) -> 0 | P43: =SUMIFS(Таблица1[Total Hands],Таблица1[2019],B43) -> 0 | Q43: =IFERROR(SUMIFS(Таблица1[bb/101],Таблица1[2019],B43)/P43,0) -> 0 | R43: =IFERROR(SUMIFS(Таблица1[EV bb/101],Таблица1[2019],B43)/P43,0) -> 0 | S43: =SUMIFS(Таблица1[Net Winnings],Таблица1[2019],B43) -> 0 | T43: 0
B44: 10:40 1 Gtd R/A ES Friz Turbo 9 | E44: =IFERROR(IF(VLOOKUP($B44,Таблица1[],9,0)=0,"",VLOOKUP($B44,Таблица1[],9,0)),"") ->  | F44: =IFERROR(VLOOKUP($B44,Таблица1[],16,0),"") ->  | G44: =IFERROR(VLOOKUP($B44,Таблица1[],10,0),"") ->  | H44: =IFERROR(VLOOKUP($B44,Таблица1[],11,0),"") ->  | I44: =IFERROR(VLOOKUP($B44,Таблица1[],12,0),"") ->  | J44: =IFERROR(VLOOKUP($B44,Таблица1[],13,0),"") ->  | K44: =IFERROR(VLOOKUP($B44,Таблица1[],14,0),"") ->  | L44: =COUNTIFS(Таблица1[2019],B44)+SUMIFS(Таблица1[Re-entry],Таблица1[2019],B44) -> 0 | M44: =SUMIFS(Таблица1[Total Buy-In],Таблица1[2019],B44) -> 0 | N44: 0 | O44: =IFERROR(COUNTIFS(Таблица1[2019],B44,Таблица1[Winnings],">0")/L44*100,0) -> 0 | P44: =SUMIFS(Таблица1[Total Hands],Таблица1[2019],B44) -> 0 | Q44: =IFERROR(SUMIFS(Таблица1[bb/101],Таблица1[2019],B44)/P44,0) -> 0 | R44: =IFERROR(SUMIFS(Таблица1[EV bb/101],Таблица1[2019],B44)/P44,0) -> 0 | S44: =SUMIFS(Таблица1[Net Winnings],Таблица1[2019],B44) -> 0 | T44: 0
B45: 10:45 1,1 Zoom PS Friz Turbo 9 | E45: =IFERROR(IF(VLOOKUP($B45,Таблица1[],9,0)=0,"",VLOOKUP($B45,Таблица1[],9,0)),"") ->  | F45: =IFERROR(VLOOKUP($B45,Таблица1[],16,0),"") ->  | G45: =IFERROR(VLOOKUP($B45,Таблица1[],10,0),"") ->  | H45: =IFERROR(VLOOKUP($B45,Таблица1[],11,0),"") ->  | I45: =IFERROR(VLOOKUP($B45,Таблица1[],12,0),"") ->  | J45: =IFERROR(VLOOKUP($B45,Таблица1[],13,0),"") ->  | K45: =IFERROR(VLOOKUP($B45,Таблица1[],14,0),"") ->  | L45: =COUNTIFS(Таблица1[2019],B45)+SUMIFS(Таблица1[Re-entry],Таблица1[2019],B45) -> 0 | M45: =SUMIFS(Таблица1[Total Buy-In],Таблица1[2019],B45) -> 0 | N45: 0 | O45: =IFERROR(COUNTIFS(Таблица1[2019],B45,Таблица1[Winnings],">0")/L45*100,0) -> 0 | P45: =SUMIFS(Таблица1[Total Hands],Таблица1[2019],B45) -> 0 | Q45: =IFERROR(SUMIFS(Таблица1[bb/101],Таблица1[2019],B45)/P45,0) -> 0 | R45: =IFERROR(SUMIFS(Таблица1[EV bb/101],Таблица1[2019],B45)/P45,0) -> 0 | S45: =SUMIFS(Таблица1[Net Winnings],Таблица1[2019],B45) -> 0 | T45: 0
B46: 11:00 12 Catfish PAC Friz Regular 10 | E46: =IFERROR(IF(VLOOKUP($B46,Таблица1[],9,0)=0,"",VLOOKUP($B46,Таблица1[],9,0)),"") ->  | F46: =IFERROR(VLOOKUP($B46,Таблица1[],16,0),"") ->  | G46: =IFERROR(VLOOKUP($B46,Таблица1[],10,0),"") ->  | H46: =IFERROR(VLOOKUP($B46,Таблица1[],11,0),"") ->  | I46: =IFERROR(VLOOKUP($B46,Таблица1[],12,0),"") ->  | J46: =IFERROR(VLOOKUP($B46,Таблица1[],13,0),"") ->  | K46: =IFERROR(VLOOKUP($B46,Таблица1[],14,0),"") ->  | L46: =COUNTIFS(Таблица1[2019],B46)+SUMIFS(Таблица1[Re-entry],Таблица1[2019],B46) -> 0 | M46: =SUMIFS(Таблица1[Total Buy-In],Таблица1[2019],B46) -> 0 | N46: =IFERROR((S46/M46)*100,0) -> 0 | O46: =IFERROR(COUNTIFS(Таблица1[2019],B46,Таблица1[Winnings],">0")/L46*100,0) -> 0 | P46: =SUMIFS(Таблица1[Total Hands],Таблица1[2019],B46) -> 0 | Q46: =IFERROR(SUMIFS(Таблица1[bb/101],Таблица1[2019],B46)/P46,0) -> 0 | R46: =IFERROR(SUMIFS(Таблица1[EV bb/101],Таблица1[2019],B46)/P46,0) -> 0 | S46: =SUMIFS(Таблица1[Net Winnings],Таблица1[2019],B46) -> 0 | T46: =IFERROR(S46/L46,0) -> 0
B47: 11:15 5 6-Max Club ES Friz Regular 6 | E47: =IFERROR(IF(VLOOKUP($B47,Таблица1[],9,0)=0,"",VLOOKUP($B47,Таблица1[],9,0)),"") ->  | F47: =IFERROR(VLOOKUP($B47,Таблица1[],16,0),"") ->  | G47: =IFERROR(VLOOKUP($B47,Таблица1[],10,0),"") ->  | H47: =IFERROR(VLOOKUP($B47,Таблица1[],11,0),"") ->  | I47: =IFERROR(VLOOKUP($B47,Таблица1[],12,0),"") ->  | J47: =IFERROR(VLOOKUP($B47,Таблица1[],13,0),"") ->  | K47: =IFERROR(VLOOKUP($B47,Таблица1[],14,0),"") ->  | L47: =COUNTIFS(Таблица1[2019],B47)+SUMIFS(Таблица1[Re-entry],Таблица1[2019],B47) -> 0 | M47: =SUMIFS(Таблица1[Total Buy-In],Таблица1[2019],B47) -> 0 | N47: 0 | O47: =IFERROR(COUNTIFS(Таблица1[2019],B47,Таблица1[Winnings],">0")/L47*100,0) -> 0 | P47: =SUMIFS(Таблица1[Total Hands],Таблица1[2019],B47) -> 0 | Q47: =IFERROR(SUMIFS(Таблица1[bb/101],Таблица1[2019],B47)/P47,0) -> 0 | R47: =IFERROR(SUMIFS(Таблица1[EV bb/101],Таблица1[2019],B47)/P47,0) -> 0 | S47: =SUMIFS(Таблица1[Net Winnings],Таблица1[2019],B47) -> 0 | T47: 0
B48: 11:15 7,5 Deep Stacks PS Friz Regular 9 | E48: =IFERROR(IF(VLOOKUP($B48,Таблица1[],9,0)=0,"",VLOOKUP($B48,Таблица1[],9,0)),"") ->  | F48: =IFERROR(VLOOKUP($B48,Таблица1[],16,0),"") ->  | G48: =IFERROR(VLOOKUP($B48,Таблица1[],10,0),"") ->  | H48: =IFERROR(VLOOKUP($B48,Таблица1[],11,0),"") ->  | I48: =IFERROR(VLOOKUP($B48,Таблица1[],12,0),"") ->  | J48: =IFERROR(VLOOKUP($B48,Таблица1[],13,0),"") ->  | K48: =IFERROR(VLOOKUP($B48,Таблица1[],14,0),"") ->  | L48: =COUNTIFS(Таблица1[2019],B48)+SUMIFS(Таблица1[Re-entry],Таблица1[2019],B48) -> 0 | M48: =SUMIFS(Таблица1[Total Buy-In],Таблица1[2019],B48) -> 0 | N48: 0 | O48: =IFERROR(COUNTIFS(Таблица1[2019],B48,Таблица1[Winnings],">0")/L48*100,0) -> 0 | P48: =SUMIFS(Таблица1[Total Hands],Таблица1[2019],B48) -> 0 | Q48: =IFERROR(SUMIFS(Таблица1[bb/101],Таблица1[2019],B48)/P48,0) -> 0 | R48: =IFERROR(SUMIFS(Таблица1[EV bb/101],Таблица1[2019],B48)/P48,0) -> 0 | S48: =SUMIFS(Таблица1[Net Winnings],Таблица1[2019],B48) -> 0 | T48: 0
B49: 11:20 1,1 Gtd R/A PS Friz Regular 9 | E49: =IFERROR(IF(VLOOKUP($B49,Таблица1[],9,0)=0,"",VLOOKUP($B49,Таблица1[],9,0)),"") ->  | F49: =IFERROR(VLOOKUP($B49,Таблица1[],16,0),"") ->  | G49: =IFERROR(VLOOKUP($B49,Таблица1[],10,0),"") ->  | H49: =IFERROR(VLOOKUP($B49,Таблица1[],11,0),"") ->  | I49: =IFERROR(VLOOKUP($B49,Таблица1[],12,0),"") ->  | J49: =IFERROR(VLOOKUP($B49,Таблица1[],13,0),"") ->  | K49: =IFERROR(VLOOKUP($B49,Таблица1[],14,0),"") ->  | L49: =COUNTIFS(Таблица1[2019],B49)+SUMIFS(Таблица1[Re-entry],Таблица1[2019],B49) -> 0 | M49: =SUMIFS(Таблица1[Total Buy-In],Таблица1[2019],B49) -> 0 | N49: 0 | O49: =IFERROR(COUNTIFS(Таблица1[2019],B49,Таблица1[Winnings],">0")/L49*100,0) -> 0 | P49: =SUMIFS(Таблица1[Total Hands],Таблица1[2019],B49) -> 0 | Q49: =IFERROR(SUMIFS(Таблица1[bb/101],Таблица1[2019],B49)/P49,0) -> 0 | R49: =IFERROR(SUMIFS(Таблица1[EV bb/101],Таблица1[2019],B49)/P49,0) -> 0 | S49: =SUMIFS(Таблица1[Net Winnings],Таблица1[2019],B49) -> 0 | T49: 0
B50: 11:30 1 SuperStack ES Friz Regular 6 | E50: =IFERROR(IF(VLOOKUP($B50,Таблица1[],9,0)=0,"",VLOOKUP($B50,Таблица1[],9,0)),"") ->  | F50: =IFERROR(VLOOKUP($B50,Таблица1[],16,0),"") ->  | G50: =IFERROR(VLOOKUP($B50,Таблица1[],10,0),"") ->  | H50: =IFERROR(VLOOKUP($B50,Таблица1[],11,0),"") ->  | I50: =IFERROR(VLOOKUP($B50,Таблица1[],12,0),"") ->  | J50: =IFERROR(VLOOKUP($B50,Таблица1[],13,0),"") ->  | K50: =IFERROR(VLOOKUP($B50,Таблица1[],14,0),"") ->  | L50: =COUNTIFS(Таблица1[2019],B50)+SUMIFS(Таблица1[Re-entry],Таблица1[2019],B50) -> 0 | M50: =SUMIFS(Таблица1[Total Buy-In],Таблица1[2019],B50) -> 0 | N50: 0 | O50: =IFERROR(COUNTIFS(Таблица1[2019],B50,Таблица1[Winnings],">0")/L50*100,0) -> 0 | P50: =SUMIFS(Таблица1[Total Hands],Таблица1[2019],B50) -> 0 | Q50: =IFERROR(SUMIFS(Таблица1[bb/101],Таблица1[2019],B50)/P50,0) -> 0 | R50: =IFERROR(SUMIFS(Таблица1[EV bb/101],Таблица1[2019],B50)/P50,0) -> 0 | S50: =SUMIFS(Таблица1[Net Winnings],Таблица1[2019],B50) -> 0 | T50: 0
B51: 11:30 3 Gtd ES Friz Regular 9 | E51: =IFERROR(IF(VLOOKUP($B51,Таблица1[],9,0)=0,"",VLOOKUP($B51,Таблица1[],9,0)),"") ->  | F51: =IFERROR(VLOOKUP($B51,Таблица1[],16,0),"") ->  | G51: =IFERROR(VLOOKUP($B51,Таблица1[],10,0),"") ->  | H51: =IFERROR(VLOOKUP($B51,Таблица1[],11,0),"") ->  | I51: =IFERROR(VLOOKUP($B51,Таблица1[],12,0),"") ->  | J51: =IFERROR(VLOOKUP($B51,Таблица1[],13,0),"") ->  | K51: =IFERROR(VLOOKUP($B51,Таблица1[],14,0),"") ->  | L51: =COUNTIFS(Таблица1[2019],B51)+SUMIFS(Таблица1[Re-entry],Таблица1[2019],B51) -> 0 | M51: =SUMIFS(Таблица1[Total Buy-In],Таблица1[2019],B51) -> 0 | N51: 0 | O51: =IFERROR(COUNTIFS(Таблица1[2019],B51,Таблица1[Winnings],">0")/L51*100,0) -> 0 | P51: =SUMIFS(Таблица1[Total Hands],Таблица1[2019],B51) -> 0 | Q51: =IFERROR(SUMIFS(Таблица1[bb/101],Таблица1[2019],B51)/P51,0) -> 0 | R51: =IFERROR(SUMIFS(Таблица1[EV bb/101],Таблица1[2019],B51)/P51,0) -> 0 | S51: =SUMIFS(Таблица1[Net Winnings],Таблица1[2019],B51) -> 0 | T51: 0
B52: 11:40 3,3 Gtd PS Friz Regular 9 | E52: =IFERROR(IF(VLOOKUP($B52,Таблица1[],9,0)=0,"",VLOOKUP($B52,Таблица1[],9,0)),"") ->  | F52: =IFERROR(VLOOKUP($B52,Таблица1[],16,0),"") ->  | G52: =IFERROR(VLOOKUP($B52,Таблица1[],10,0),"") ->  | H52: =IFERROR(VLOOKUP($B52,Таблица1[],11,0),"") ->  | I52: =IFERROR(VLOOKUP($B52,Таблица1[],12,0),"") ->  | J52: =IFERROR(VLOOKUP($B52,Таблица1[],13,0),"") ->  | K52: =IFERROR(VLOOKUP($B52,Таблица1[],14,0),"") ->  | L52: =COUNTIFS(Таблица1[2019],B52)+SUMIFS(Таблица1[Re-entry],Таблица1[2019],B52) -> 0 | M52: =SUMIFS(Таблица1[Total Buy-In],Таблица1[2019],B52) -> 0 | N52: 0 | O52: =IFERROR(COUNTIFS(Таблица1[2019],B52,Таблица1[Winnings],">0")/L52*100,0) -> 0 | P52: =SUMIFS(Таблица1[Total Hands],Таблица1[2019],B52) -> 0 | Q52: =IFERROR(SUMIFS(Таблица1[bb/101],Таблица1[2019],B52)/P52,0) -> 0 | R52: =IFERROR(SUMIFS(Таблица1[EV bb/101],Таблица1[2019],B52)/P52,0) -> 0 | S52: =SUMIFS(Таблица1[Net Winnings],Таблица1[2019],B52) -> 0 | T52: 0
B53: 11:45 1,1 Gtd PS Friz Turbo 6 | E53: =IFERROR(IF(VLOOKUP($B53,Таблица1[],9,0)=0,"",VLOOKUP($B53,Таблица1[],9,0)),"") ->  | F53: =IFERROR(VLOOKUP($B53,Таблица1[],16,0),"") ->  | G53: =IFERROR(VLOOKUP($B53,Таблица1[],10,0),"") ->  | H53: =IFERROR(VLOOKUP($B53,Таблица1[],11,0),"") ->  | I53: =IFERROR(VLOOKUP($B53,Таблица1[],12,0),"") ->  | J53: =IFERROR(VLOOKUP($B53,Таблица1[],13,0),"") ->  | K53: =IFERROR(VLOOKUP($B53,Таблица1[],14,0),"") ->  | L53: =COUNTIFS(Таблица1[2019],B53)+SUMIFS(Таблица1[Re-entry],Таблица1[2019],B53) -> 0 | M53: =SUMIFS(Таблица1[Total Buy-In],Таблица1[2019],B53) -> 0 | N53: 0 | O53: =IFERROR(COUNTIFS(Таблица1[2019],B53,Таблица1[Winnings],">0")/L53*100,0) -> 0 | P53: =SUMIFS(Таблица1[Total Hands],Таблица1[2019],B53) -> 0 | Q53: =IFERROR(SUMIFS(Таблица1[bb/101],Таблица1[2019],B53)/P53,0) -> 0 | R53: =IFERROR(SUMIFS(Таблица1[EV bb/101],Таблица1[2019],B53)/P53,0) -> 0 | S53: =SUMIFS(Таблица1[Net Winnings],Таблица1[2019],B53) -> 0 | T53: 0
B54: 11:50 1 Gtd ES Friz Regular 9 | E54: =IFERROR(IF(VLOOKUP($B54,Таблица1[],9,0)=0,"",VLOOKUP($B54,Таблица1[],9,0)),"") ->  | F54: =IFERROR(VLOOKUP($B54,Таблица1[],16,0),"") ->  | G54: =IFERROR(VLOOKUP($B54,Таблица1[],10,0),"") ->  | H54: =IFERROR(VLOOKUP($B54,Таблица1[],11,0),"") ->  | I54: =IFERROR(VLOOKUP($B54,Таблица1[],12,0),"") ->  | J54: =IFERROR(VLOOKUP($B54,Таблица1[],13,0),"") ->  | K54: =IFERROR(VLOOKUP($B54,Таблица1[],14,0),"") ->  | L54: =COUNTIFS(Таблица1[2019],B54)+SUMIFS(Таблица1[Re-entry],Таблица1[2019],B54) -> 0 | M54: =SUMIFS(Таблица1[Total Buy-In],Таблица1[2019],B54) -> 0 | N54: 0 | O54: =IFERROR(COUNTIFS(Таблица1[2019],B54,Таблица1[Winnings],">0")/L54*100,0) -> 0 | P54: =SUMIFS(Таблица1[Total Hands],Таблица1[2019],B54) -> 0 | Q54: =IFERROR(SUMIFS(Таблица1[bb/101],Таблица1[2019],B54)/P54,0) -> 0 | R54: =IFERROR(SUMIFS(Таблица1[EV bb/101],Таблица1[2019],B54)/P54,0) -> 0 | S54: =SUMIFS(Таблица1[Net Winnings],Таблица1[2019],B54) -> 0 | T54: 0
B55: 11:50 2,2 Bubble Rush PS Friz Turbo 9 | E55: =IFERROR(IF(VLOOKUP($B55,Таблица1[],9,0)=0,"",VLOOKUP($B55,Таблица1[],9,0)),"") ->  | F55: =IFERROR(VLOOKUP($B55,Таблица1[],16,0),"") ->  | G55: =IFERROR(VLOOKUP($B55,Таблица1[],10,0),"") ->  | H55: =IFERROR(VLOOKUP($B55,Таблица1[],11,0),"") ->  | I55: =IFERROR(VLOOKUP($B55,Таблица1[],12,0),"") ->  | J55: =IFERROR(VLOOKUP($B55,Таблица1[],13,0),"") ->  | K55: =IFERROR(VLOOKUP($B55,Таблица1[],14,0),"") ->  | L55: =COUNTIFS(Таблица1[2019],B55)+SUMIFS(Таблица1[Re-entry],Таблица1[2019],B55) -> 0 | M55: =SUMIFS(Таблица1[Total Buy-In],Таблица1[2019],B55) -> 0 | N55: 0 | O55: =IFERROR(COUNTIFS(Таблица1[2019],B55,Таблица1[Winnings],">0")/L55*100,0) -> 0 | P55: =SUMIFS(Таблица1[Total Hands],Таблица1[2019],B55) -> 0 | Q55: =IFERROR(SUMIFS(Таблица1[bb/101],Таблица1[2019],B55)/P55,0) -> 0 | R55: =IFERROR(SUMIFS(Таблица1[EV bb/101],Таблица1[2019],B55)/P55,0) -> 0 | S55: =SUMIFS(Таблица1[Net Winnings],Таблица1[2019],B55) -> 0 | T55: 0
B56: 12:00 1,1 Big PS Friz Regular 9 | E56: =IFERROR(IF(VLOOKUP($B56,Таблица1[],9,0)=0,"",VLOOKUP($B56,Таблица1[],9,0)),"") ->  | F56: =IFERROR(VLOOKUP($B56,Таблица1[],16,0),"") ->  | G56: =IFERROR(VLOOKUP($B56,Таблица1[],10,0),"") ->  | H56: =IFERROR(VLOOKUP($B56,Таблица1[],11,0),"") ->  | I56: =IFERROR(VLOOKUP($B56,Таблица1[],12,0),"") ->  | J56: =IFERROR(VLOOKUP($B56,Таблица1[],13,0),"") ->  | K56: =IFERROR(VLOOKUP($B56,Таблица1[],14,0),"") ->  | L56: =COUNTIFS(Таблица1[2019],B56)+SUMIFS(Таблица1[Re-entry],Таблица1[2019],B56) -> 0 | M56: =SUMIFS(Таблица1[Total Buy-In],Таблица1[2019],B56) -> 0 | N56: 0 | O56: =IFERROR(COUNTIFS(Таблица1[2019],B56,Таблица1[Winnings],">0")/L56*100,0) -> 0 | P56: =SUMIFS(Таблица1[Total Hands],Таблица1[2019],B56) -> 0 | Q56: =IFERROR(SUMIFS(Таблица1[bb/101],Таблица1[2019],B56)/P56,0) -> 0 | R56: =IFERROR(SUMIFS(Таблица1[EV bb/101],Таблица1[2019],B56)/P56,0) -> 0 | S56: =SUMIFS(Таблица1[Net Winnings],Таблица1[2019],B56) -> 0 | T56: 0
B57: 12:00 11 Progressive KO PAC KO Regular 9 | E57: =IFERROR(IF(VLOOKUP($B57,Таблица1[],9,0)=0,"",VLOOKUP($B57,Таблица1[],9,0)),"") ->  | F57: =IFERROR(VLOOKUP($B57,Таблица1[],16,0),"") ->  | G57: =IFERROR(VLOOKUP($B57,Таблица1[],10,0),"") ->  | H57: =IFERROR(VLOOKUP($B57,Таблица1[],11,0),"") ->  | I57: =IFERROR(VLOOKUP($B57,Таблица1[],12,0),"") ->  | J57: =IFERROR(VLOOKUP($B57,Таблица1[],13,0),"") ->  | K57: =IFERROR(VLOOKUP($B57,Таблица1[],14,0),"") ->  | L57: =COUNTIFS(Таблица1[2019],B57)+SUMIFS(Таблица1[Re-entry],Таблица1[2019],B57) -> 0 | M57: =SUMIFS(Таблица1[Total Buy-In],Таблица1[2019],B57) -> 0 | N57: 0 | O57: =IFERROR(COUNTIFS(Таблица1[2019],B57,Таблица1[Winnings],">0")/L57*100,0) -> 0 | P57: =SUMIFS(Таблица1[Total Hands],Таблица1[2019],B57) -> 0 | Q57: =IFERROR(SUMIFS(Таблица1[bb/101],Таблица1[2019],B57)/P57,0) -> 0 | R57: =IFERROR(SUMIFS(Таблица1[EV bb/101],Таблица1[2019],B57)/P57,0) -> 0 | S57: =SUMIFS(Таблица1[Net Winnings],Таблица1[2019],B57) -> 0 | T57: 0
B58: 12:15 3,3 Hot PS Friz Turbo 9 | E58: =IFERROR(IF(VLOOKUP($B58,Таблица1[],9,0)=0,"",VLOOKUP($B58,Таблица1[],9,0)),"") ->  | F58: =IFERROR(VLOOKUP($B58,Таблица1[],16,0),"") ->  | G58: =IFERROR(VLOOKUP($B58,Таблица1[],10,0),"") ->  | H58: =IFERROR(VLOOKUP($B58,Таблица1[],11,0),"") ->  | I58: =IFERROR(VLOOKUP($B58,Таблица1[],12,0),"") ->  | J58: =IFERROR(VLOOKUP($B58,Таблица1[],13,0),"") ->  | K58: =IFERROR(VLOOKUP($B58,Таблица1[],14,0),"") ->  | L58: =COUNTIFS(Таблица1[2019],B58)+SUMIFS(Таблица1[Re-entry],Таблица1[2019],B58) -> 0 | M58: =SUMIFS(Таблица1[Total Buy-In],Таблица1[2019],B58) -> 0 | N58: 0 | O58: =IFERROR(COUNTIFS(Таблица1[2019],B58,Таблица1[Winnings],">0")/L58*100,0) -> 0 | P58: =SUMIFS(Таблица1[Total Hands],Таблица1[2019],B58) -> 0 | Q58: =IFERROR(SUMIFS(Таблица1[bb/101],Таблица1[2019],B58)/P58,0) -> 0 | R58: =IFERROR(SUMIFS(Таблица1[EV bb/101],Таблица1[2019],B58)/P58,0) -> 0 | S58: =SUMIFS(Таблица1[Net Winnings],Таблица1[2019],B58) -> 0 | T58: 0
B59: 12:30 1 Gtd PAC Friz Regular 9 | E59: =IFERROR(IF(VLOOKUP($B59,Таблица1[],9,0)=0,"",VLOOKUP($B59,Таблица1[],9,0)),"") ->  | F59: =IFERROR(VLOOKUP($B59,Таблица1[],16,0),"") ->  | G59: =IFERROR(VLOOKUP($B59,Таблица1[],10,0),"") ->  | H59: =IFERROR(VLOOKUP($B59,Таблица1[],11,0),"") ->  | I59: =IFERROR(VLOOKUP($B59,Таблица1[],12,0),"") ->  | J59: =IFERROR(VLOOKUP($B59,Таблица1[],13,0),"") ->  | K59: =IFERROR(VLOOKUP($B59,Таблица1[],14,0),"") ->  | L59: =COUNTIFS(Таблица1[2019],B59)+SUMIFS(Таблица1[Re-entry],Таблица1[2019],B59) -> 0 | M59: =SUMIFS(Таблица1[Total Buy-In],Таблица1[2019],B59) -> 0 | N59: 0 | O59: =IFERROR(COUNTIFS(Таблица1[2019],B59,Таблица1[Winnings],">0")/L59*100,0) -> 0 | P59: =SUMIFS(Таблица1[Total Hands],Таблица1[2019],B59) -> 0 | Q59: =IFERROR(SUMIFS(Таблица1[bb/101],Таблица1[2019],B59)/P59,0) -> 0 | R59: =IFERROR(SUMIFS(Таблица1[EV bb/101],Таблица1[2019],B59)/P59,0) -> 0 | S59: =SUMIFS(Таблица1[Net Winnings],Таблица1[2019],B59) -> 0 | T59: 0
B60: 12:30 1,1 MicroMillions PS Friz Regular 8 | E60: =IFERROR(IF(VLOOKUP($B60,Таблица1[],9,0)=0,"",VLOOKUP($B60,Таблица1[],9,0)),"") ->  | F60: =IFERROR(VLOOKUP($B60,Таблица1[],16,0),"") ->  | G60: =IFERROR(VLOOKUP($B60,Таблица1[],10,0),"") ->  | H60: =IFERROR(VLOOKUP($B60,Таблица1[],11,0),"") ->  | I60: =IFERROR(VLOOKUP($B60,Таблица1[],12,0),"") ->  | J60: =IFERROR(VLOOKUP($B60,Таблица1[],13,0),"") ->  | K60: =IFERROR(VLOOKUP($B60,Таблица1[],14,0),"") ->  | L60: =COUNTIFS(Таблица1[2019],B60)+SUMIFS(Таблица1[Re-entry],Таблица1[2019],B60) -> 0 | M60: =SUMIFS(Таблица1[Total Buy-In],Таблица1[2019],B60) -> 0 | N60: 0 | O60: =IFERROR(COUNTIFS(Таблица1[2019],B60,Таблица1[Winnings],">0")/L60*100,0) -> 0 | P60: =SUMIFS(Таблица1[Total Hands],Таблица1[2019],B60) -> 0 | Q60: =IFERROR(SUMIFS(Таблица1[bb/101],Таблица1[2019],B60)/P60,0) -> 0 | R60: =IFERROR(SUMIFS(Таблица1[EV bb/101],Таблица1[2019],B60)/P60,0) -> 0 | S60: =SUMIFS(Таблица1[Net Winnings],Таблица1[2019],B60) -> 0 | T60: 0
B61: 12:30 1,1 MicroMillions PS Friz Regular 9 | E61: =IFERROR(IF(VLOOKUP($B61,Таблица1[],9,0)=0,"",VLOOKUP($B61,Таблица1[],9,0)),"") ->  | F61: =IFERROR(VLOOKUP($B61,Таблица1[],16,0),"") ->  | G61: =IFERROR(VLOOKUP($B61,Таблица1[],10,0),"") ->  | H61: =IFERROR(VLOOKUP($B61,Таблица1[],11,0),"") ->  | I61: =IFERROR(VLOOKUP($B61,Таблица1[],12,0),"") ->  | J61: =IFERROR(VLOOKUP($B61,Таблица1[],13,0),"") ->  | K61: =IFERROR(VLOOKUP($B61,Таблица1[],14,0),"") ->  | L61: =COUNTIFS(Таблица1[2019],B61)+SUMIFS(Таблица1[Re-entry],Таблица1[2019],B61) -> 0 | M61: =SUMIFS(Таблица1[Total Buy-In],Таблица1[2019],B61) -> 0 | N61: 0 | O61: =IFERROR(COUNTIFS(Таблица1[2019],B61,Таблица1[Winnings],">0")/L61*100,0) -> 0 | P61: =SUMIFS(Таблица1[Total Hands],Таблица1[2019],B61) -> 0 | Q61: =IFERROR(SUMIFS(Таблица1[bb/101],Таблица1[2019],B61)/P61,0) -> 0 | R61: =IFERROR(SUMIFS(Таблица1[EV bb/101],Таблица1[2019],B61)/P61,0) -> 0 | S61: =SUMIFS(Таблица1[Net Winnings],Таблица1[2019],B61) -> 0 | T61: 0
B62: 12:30 3 Progressive KO ES KO Regular 9 | E62: =IFERROR(IF(VLOOKUP($B62,Таблица1[],9,0)=0,"",VLOOKUP($B62,Таблица1[],9,0)),"") ->  | F62: =IFERROR(VLOOKUP($B62,Таблица1[],16,0),"") ->  | G62: =IFERROR(VLOOKUP($B62,Таблица1[],10,0),"") ->  | H62: =IFERROR(VLOOKUP($B62,Таблица1[],11,0),"") ->  | I62: =IFERROR(VLOOKUP($B62,Таблица1[],12,0),"") ->  | J62: =IFERROR(VLOOKUP($B62,Таблица1[],13,0),"") ->  | K62: =IFERROR(VLOOKUP($B62,Таблица1[],14,0),"") ->  | L62: =COUNTIFS(Таблица1[2019],B62)+SUMIFS(Таблица1[Re-entry],Таблица1[2019],B62) -> 0 | M62: =SUMIFS(Таблица1[Total Buy-In],Таблица1[2019],B62) -> 0 | N62: 0 | O62: =IFERROR(COUNTIFS(Таблица1[2019],B62,Таблица1[Winnings],">0")/L62*100,0) -> 0 | P62: =SUMIFS(Таблица1[Total Hands],Таблица1[2019],B62) -> 0 | Q62: =IFERROR(SUMIFS(Таблица1[bb/101],Таблица1[2019],B62)/P62,0) -> 0 | R62: =IFERROR(SUMIFS(Таблица1[EV bb/101],Таблица1[2019],B62)/P62,0) -> 0 | S62: =SUMIFS(Таблица1[Net Winnings],Таблица1[2019],B62) -> 0 | T62: 0
B63: 12:30 3,3 MicroMillions PS KO Regular 9 | E63: =IFERROR(IF(VLOOKUP($B63,Таблица1[],9,0)=0,"",VLOOKUP($B63,Таблица1[],9,0)),"") ->  | F63: =IFERROR(VLOOKUP($B63,Таблица1[],16,0),"") ->  | G63: =IFERROR(VLOOKUP($B63,Таблица1[],10,0),"") ->  | H63: =IFERROR(VLOOKUP($B63,Таблица1[],11,0),"") ->  | I63: =IFERROR(VLOOKUP($B63,Таблица1[],12,0),"") ->  | J63: =IFERROR(VLOOKUP($B63,Таблица1[],13,0),"") ->  | K63: =IFERROR(VLOOKUP($B63,Таблица1[],14,0),"") ->  | L63: =COUNTIFS(Таблица1[2019],B63)+SUMIFS(Таблица1[Re-entry],Таблица1[2019],B63) -> 0 | M63: =SUMIFS(Таблица1[Total Buy-In],Таблица1[2019],B63) -> 0 | N63: 0 | O63: =IFERROR(COUNTIFS(Таблица1[2019],B63,Таблица1[Winnings],">0")/L63*100,0) -> 0 | P63: =SUMIFS(Таблица1[Total Hands],Таблица1[2019],B63) -> 0 | Q63: =IFERROR(SUMIFS(Таблица1[bb/101],Таблица1[2019],B63)/P63,0) -> 0 | R63: =IFERROR(SUMIFS(Таблица1[EV bb/101],Таблица1[2019],B63)/P63,0) -> 0 | S63: =SUMIFS(Таблица1[Net Winnings],Таблица1[2019],B63) -> 0 | T63: 0
B64: 12:30 5,5 MicroMillions PS Friz Regular 9 | E64: =IFERROR(IF(VLOOKUP($B64,Таблица1[],9,0)=0,"",VLOOKUP($B64,Таблица1[],9,0)),"") ->  | F64: =IFERROR(VLOOKUP($B64,Таблица1[],16,0),"") ->  | G64: =IFERROR(VLOOKUP($B64,Таблица1[],10,0),"") ->  | H64: =IFERROR(VLOOKUP($B64,Таблица1[],11,0),"") ->  | I64: =IFERROR(VLOOKUP($B64,Таблица1[],12,0),"") ->  | J64: =IFERROR(VLOOKUP($B64,Таблица1[],13,0),"") ->  | K64: =IFERROR(VLOOKUP($B64,Таблица1[],14,0),"") ->  | L64: =COUNTIFS(Таблица1[2019],B64)+SUMIFS(Таблица1[Re-entry],Таблица1[2019],B64) -> 0 | M64: =SUMIFS(Таблица1[Total Buy-In],Таблица1[2019],B64) -> 0 | N64: 0 | O64: =IFERROR(COUNTIFS(Таблица1[2019],B64,Таблица1[Winnings],">0")/L64*100,0) -> 0 | P64: =SUMIFS(Таблица1[Total Hands],Таблица1[2019],B64) -> 0 | Q64: =IFERROR(SUMIFS(Таблица1[bb/101],Таблица1[2019],B64)/P64,0) -> 0 | R64: =IFERROR(SUMIFS(Таблица1[EV bb/101],Таблица1[2019],B64)/P64,0) -> 0 | S64: =SUMIFS(Таблица1[Net Winnings],Таблица1[2019],B64) -> 0 | T64: 0
B65: 12:40 1,1 Progressive KO PS KO Turbo 9 | E65: =IFERROR(IF(VLOOKUP($B65,Таблица1[],9,0)=0,"",VLOOKUP($B65,Таблица1[],9,0)),"") ->  | F65: =IFERROR(VLOOKUP($B65,Таблица1[],16,0),"") ->  | G65: =IFERROR(VLOOKUP($B65,Таблица1[],10,0),"") ->  | H65: =IFERROR(VLOOKUP($B65,Таблица1[],11,0),"") ->  | I65: =IFERROR(VLOOKUP($B65,Таблица1[],12,0),"") ->  | J65: =IFERROR(VLOOKUP($B65,Таблица1[],13,0),"") ->  | K65: =IFERROR(VLOOKUP($B65,Таблица1[],14,0),"") ->  | L65: =COUNTIFS(Таблица1[2019],B65)+SUMIFS(Таблица1[Re-entry],Таблица1[2019],B65) -> 0 | M65: =SUMIFS(Таблица1[Total Buy-In],Таблица1[2019],B65) -> 0 | N65: 0 | O65: =IFERROR(COUNTIFS(Таблица1[2019],B65,Таблица1[Winnings],">0")/L65*100,0) -> 0 | P65: =SUMIFS(Таблица1[Total Hands],Таблица1[2019],B65) -> 0 | Q65: =IFERROR(SUMIFS(Таблица1[bb/101],Таблица1[2019],B65)/P65,0) -> 0 | R65: =IFERROR(SUMIFS(Таблица1[EV bb/101],Таблица1[2019],B65)/P65,0) -> 0 | S65: =SUMIFS(Таблица1[Net Winnings],Таблица1[2019],B65) -> 0 | T65: 0
B66: 12:45 5,5 Progressive KO PAC KO Regular 9 | E66: =IFERROR(IF(VLOOKUP($B66,Таблица1[],9,0)=0,"",VLOOKUP($B66,Таблица1[],9,0)),"") ->  | F66: =IFERROR(VLOOKUP($B66,Таблица1[],16,0),"") ->  | G66: =IFERROR(VLOOKUP($B66,Таблица1[],10,0),"") ->  | H66: =IFERROR(VLOOKUP($B66,Таблица1[],11,0),"") ->  | I66: =IFERROR(VLOOKUP($B66,Таблица1[],12,0),"") ->  | J66: =IFERROR(VLOOKUP($B66,Таблица1[],13,0),"") ->  | K66: =IFERROR(VLOOKUP($B66,Таблица1[],14,0),"") ->  | L66: =COUNTIFS(Таблица1[2019],B66)+SUMIFS(Таблица1[Re-entry],Таблица1[2019],B66) -> 0 | M66: =SUMIFS(Таблица1[Total Buy-In],Таблица1[2019],B66) -> 0 | N66: 0 | O66: =IFERROR(COUNTIFS(Таблица1[2019],B66,Таблица1[Winnings],">0")/L66*100,0) -> 0 | P66: =SUMIFS(Таблица1[Total Hands],Таблица1[2019],B66) -> 0 | Q66: =IFERROR(SUMIFS(Таблица1[bb/101],Таблица1[2019],B66)/P66,0) -> 0 | R66: =IFERROR(SUMIFS(Таблица1[EV bb/101],Таблица1[2019],B66)/P66,0) -> 0 | S66: =SUMIFS(Таблица1[Net Winnings],Таблица1[2019],B66) -> 0 | T66: 0
B67: 13:00 1 Hot ES Friz Turbo 9 | E67: =IFERROR(IF(VLOOKUP($B67,Таблица1[],9,0)=0,"",VLOOKUP($B67,Таблица1[],9,0)),"") ->  | F67: =IFERROR(VLOOKUP($B67,Таблица1[],16,0),"") ->  | G67: =IFERROR(VLOOKUP($B67,Таблица1[],10,0),"") ->  | H67: =IFERROR(VLOOKUP($B67,Таблица1[],11,0),"") ->  | I67: =IFERROR(VLOOKUP($B67,Таблица1[],12,0),"") ->  | J67: =IFERROR(VLOOKUP($B67,Таблица1[],13,0),"") ->  | K67: =IFERROR(VLOOKUP($B67,Таблица1[],14,0),"") ->  | L67: =COUNTIFS(Таблица1[2019],B67)+SUMIFS(Таблица1[Re-entry],Таблица1[2019],B67) -> 0 | M67: =SUMIFS(Таблица1[Total Buy-In],Таблица1[2019],B67) -> 0 | N67: 0 | O67: =IFERROR(COUNTIFS(Таблица1[2019],B67,Таблица1[Winnings],">0")/L67*100,0) -> 0 | P67: =SUMIFS(Таблица1[Total Hands],Таблица1[2019],B67) -> 0 | Q67: =IFERROR(SUMIFS(Таблица1[bb/101],Таблица1[2019],B67)/P67,0) -> 0 | R67: =IFERROR(SUMIFS(Таблица1[EV bb/101],Таблица1[2019],B67)/P67,0) -> 0 | S67: =SUMIFS(Таблица1[Net Winnings],Таблица1[2019],B67) -> 0 | T67: 0
B68: 13:00 2,2 Gtd PS Friz Regular 6 | E68: =IFERROR(IF(VLOOKUP($B68,Таблица1[],9,0)=0,"",VLOOKUP($B68,Таблица1[],9,0)),"") ->  | F68: =IFERROR(VLOOKUP($B68,Таблица1[],16,0),"") ->  | G68: =IFERROR(VLOOKUP($B68,Таблица1[],10,0),"") ->  | H68: =IFERROR(VLOOKUP($B68,Таблица1[],11,0),"") ->  | I68: =IFERROR(VLOOKUP($B68,Таблица1[],12,0),"") ->  | J68: =IFERROR(VLOOKUP($B68,Таблица1[],13,0),"") ->  | K68: =IFERROR(VLOOKUP($B68,Таблица1[],14,0),"") ->  | L68: =COUNTIFS(Таблица1[2019],B68)+SUMIFS(Таблица1[Re-entry],Таблица1[2019],B68) -> 0 | M68: =SUMIFS(Таблица1[Total Buy-In],Таблица1[2019],B68) -> 0 | N68: 0 | O68: =IFERROR(COUNTIFS(Таблица1[2019],B68,Таблица1[Winnings],">0")/L68*100,0) -> 0 | P68: =SUMIFS(Таблица1[Total Hands],Таблица1[2019],B68) -> 0 | Q68: =IFERROR(SUMIFS(Таблица1[bb/101],Таблица1[2019],B68)/P68,0) -> 0 | R68: =IFERROR(SUMIFS(Таблица1[EV bb/101],Таблица1[2019],B68)/P68,0) -> 0 | S68: =SUMIFS(Таблица1[Net Winnings],Таблица1[2019],B68) -> 0 | T68: 0
B69: 13:00 5 Big ES Friz Regular 9 | E69: =IFERROR(IF(VLOOKUP($B69,Таблица1[],9,0)=0,"",VLOOKUP($B69,Таблица1[],9,0)),"") ->  | F69: =IFERROR(VLOOKUP($B69,Таблица1[],16,0),"") ->  | G69: =IFERROR(VLOOKUP($B69,Таблица1[],10,0),"") ->  | H69: =IFERROR(VLOOKUP($B69,Таблица1[],11,0),"") ->  | I69: =IFERROR(VLOOKUP($B69,Таблица1[],12,0),"") ->  | J69: =IFERROR(VLOOKUP($B69,Таблица1[],13,0),"") ->  | K69: =IFERROR(VLOOKUP($B69,Таблица1[],14,0),"") ->  | L69: =COUNTIFS(Таблица1[2019],B69)+SUMIFS(Таблица1[Re-entry],Таблица1[2019],B69) -> 0 | M69: =SUMIFS(Таблица1[Total Buy-In],Таблица1[2019],B69) -> 0 | N69: 0 | O69: =IFERROR(COUNTIFS(Таблица1[2019],B69,Таблица1[Winnings],">0")/L69*100,0) -> 0 | P69: =SUMIFS(Таблица1[Total Hands],Таблица1[2019],B69) -> 0 | Q69: =IFERROR(SUMIFS(Таблица1[bb/101],Таблица1[2019],B69)/P69,0) -> 0 | R69: =IFERROR(SUMIFS(Таблица1[EV bb/101],Таблица1[2019],B69)/P69,0) -> 0 | S69: =SUMIFS(Таблица1[Net Winnings],Таблица1[2019],B69) -> 0 | T69: 0
B70: 13:30 4,4 Bounty Builder PS KO Regular 9 | E70: =IFERROR(IF(VLOOKUP($B70,Таблица1[],9,0)=0,"",VLOOKUP($B70,Таблица1[],9,0)),"") ->  | F70: =IFERROR(VLOOKUP($B70,Таблица1[],16,0),"") ->  | G70: =IFERROR(VLOOKUP($B70,Таблица1[],10,0),"") ->  | H70: =IFERROR(VLOOKUP($B70,Таблица1[],11,0),"") ->  | I70: =IFERROR(VLOOKUP($B70,Таблица1[],12,0),"") ->  | J70: =IFERROR(VLOOKUP($B70,Таблица1[],13,0),"") ->  | K70: =IFERROR(VLOOKUP($B70,Таблица1[],14,0),"") ->  | L70: =COUNTIFS(Таблица1[2019],B70)+SUMIFS(Таблица1[Re-entry],Таблица1[2019],B70) -> 0 | M70: =SUMIFS(Таблица1[Total Buy-In],Таблица1[2019],B70) -> 0 | N70: =IFERROR((S70/M70)*100,0) -> 0 | O70: =IFERROR(COUNTIFS(Таблица1[2019],B70,Таблица1[Winnings],">0")/L70*100,0) -> 0 | P70: =SUMIFS(Таблица1[Total Hands],Таблица1[2019],B70) -> 0 | Q70: =IFERROR(SUMIFS(Таблица1[bb/101],Таблица1[2019],B70)/P70,0) -> 0 | R70: =IFERROR(SUMIFS(Таблица1[EV bb/101],Таблица1[2019],B70)/P70,0) -> 0 | S70: =SUMIFS(Таблица1[Net Winnings],Таблица1[2019],B70) -> 0 | T70: =IFERROR(S70/L70,0) -> 0
B71: 13:30 4,4 Progressive KO PAC KO Regular 9 | E71: =IFERROR(IF(VLOOKUP($B71,Таблица1[],9,0)=0,"",VLOOKUP($B71,Таблица1[],9,0)),"") ->  | F71: =IFERROR(VLOOKUP($B71,Таблица1[],16,0),"") ->  | G71: =IFERROR(VLOOKUP($B71,Таблица1[],10,0),"") ->  | H71: =IFERROR(VLOOKUP($B71,Таблица1[],11,0),"") ->  | I71: =IFERROR(VLOOKUP($B71,Таблица1[],12,0),"") ->  | J71: =IFERROR(VLOOKUP($B71,Таблица1[],13,0),"") ->  | K71: =IFERROR(VLOOKUP($B71,Таблица1[],14,0),"") ->  | L71: =COUNTIFS(Таблица1[2019],B71)+SUMIFS(Таблица1[Re-entry],Таблица1[2019],B71) -> 0 | M71: =SUMIFS(Таблица1[Total Buy-In],Таблица1[2019],B71) -> 0 | N71: 0 | O71: =IFERROR(COUNTIFS(Таблица1[2019],B71,Таблица1[Winnings],">0")/L71*100,0) -> 0 | P71: =SUMIFS(Таблица1[Total Hands],Таблица1[2019],B71) -> 0 | Q71: =IFERROR(SUMIFS(Таблица1[bb/101],Таблица1[2019],B71)/P71,0) -> 0 | R71: =IFERROR(SUMIFS(Таблица1[EV bb/101],Таблица1[2019],B71)/P71,0) -> 0 | S71: =SUMIFS(Таблица1[Net Winnings],Таблица1[2019],B71) -> 0 | T71: 0
B72: 13:45 2,2 Deep Stacks PS Friz Regular 9 | E72: =IFERROR(IF(VLOOKUP($B72,Таблица1[],9,0)=0,"",VLOOKUP($B72,Таблица1[],9,0)),"") ->  | F72: =IFERROR(VLOOKUP($B72,Таблица1[],16,0),"") ->  | G72: =IFERROR(VLOOKUP($B72,Таблица1[],10,0),"") ->  | H72: =IFERROR(VLOOKUP($B72,Таблица1[],11,0),"") ->  | I72: =IFERROR(VLOOKUP($B72,Таблица1[],12,0),"") ->  | J72: =IFERROR(VLOOKUP($B72,Таблица1[],13,0),"") ->  | K72: =IFERROR(VLOOKUP($B72,Таблица1[],14,0),"") ->  | L72: =COUNTIFS(Таблица1[2019],B72)+SUMIFS(Таблица1[Re-entry],Таблица1[2019],B72) -> 0 | M72: =SUMIFS(Таблица1[Total Buy-In],Таблица1[2019],B72) -> 0 | N72: 0 | O72: =IFERROR(COUNTIFS(Таблица1[2019],B72,Таблица1[Winnings],">0")/L72*100,0) -> 0 | P72: =SUMIFS(Таблица1[Total Hands],Таблица1[2019],B72) -> 0 | Q72: =IFERROR(SUMIFS(Таблица1[bb/101],Таблица1[2019],B72)/P72,0) -> 0 | R72: =IFERROR(SUMIFS(Таблица1[EV bb/101],Таблица1[2019],B72)/P72,0) -> 0 | S72: =SUMIFS(Таблица1[Net Winnings],Таблица1[2019],B72) -> 0 | T72: 0
B73: 13:50 2,2 Gtd PS Friz Turbo 9 | E73: =IFERROR(IF(VLOOKUP($B73,Таблица1[],9,0)=0,"",VLOOKUP($B73,Таблица1[],9,0)),"") ->  | F73: =IFERROR(VLOOKUP($B73,Таблица1[],16,0),"") ->  | G73: =IFERROR(VLOOKUP($B73,Таблица1[],10,0),"") ->  | H73: =IFERROR(VLOOKUP($B73,Таблица1[],11,0),"") ->  | I73: =IFERROR(VLOOKUP($B73,Таблица1[],12,0),"") ->  | J73: =IFERROR(VLOOKUP($B73,Таблица1[],13,0),"") ->  | K73: =IFERROR(VLOOKUP($B73,Таблица1[],14,0),"") ->  | L73: =COUNTIFS(Таблица1[2019],B73)+SUMIFS(Таблица1[Re-entry],Таблица1[2019],B73) -> 0 | M73: =SUMIFS(Таблица1[Total Buy-In],Таблица1[2019],B73) -> 0 | N73: 0 | O73: =IFERROR(COUNTIFS(Таблица1[2019],B73,Таблица1[Winnings],">0")/L73*100,0) -> 0 | P73: =SUMIFS(Таблица1[Total Hands],Таблица1[2019],B73) -> 0 | Q73: =IFERROR(SUMIFS(Таблица1[bb/101],Таблица1[2019],B73)/P73,0) -> 0 | R73: =IFERROR(SUMIFS(Таблица1[EV bb/101],Таблица1[2019],B73)/P73,0) -> 0 | S73: =SUMIFS(Таблица1[Net Winnings],Таблица1[2019],B73) -> 0 | T73: 0
B74: 14:00 1,1 Satellite PS Friz Regular 8 | E74: =IFERROR(IF(VLOOKUP($B74,Таблица1[],9,0)=0,"",VLOOKUP($B74,Таблица1[],9,0)),"") ->  | F74: =IFERROR(VLOOKUP($B74,Таблица1[],16,0),"") ->  | G74: =IFERROR(VLOOKUP($B74,Таблица1[],10,0),"") ->  | H74: =IFERROR(VLOOKUP($B74,Таблица1[],11,0),"") ->  | I74: =IFERROR(VLOOKUP($B74,Таблица1[],12,0),"") ->  | J74: =IFERROR(VLOOKUP($B74,Таблица1[],13,0),"") ->  | K74: =IFERROR(VLOOKUP($B74,Таблица1[],14,0),"") ->  | L74: =COUNTIFS(Таблица1[2019],B74)+SUMIFS(Таблица1[Re-entry],Таблица1[2019],B74) -> 0 | M74: =SUMIFS(Таблица1[Total Buy-In],Таблица1[2019],B74) -> 0 | N74: 0 | O74: =IFERROR(COUNTIFS(Таблица1[2019],B74,Таблица1[Winnings],">0")/L74*100,0) -> 0 | P74: =SUMIFS(Таблица1[Total Hands],Таблица1[2019],B74) -> 0 | Q74: =IFERROR(SUMIFS(Таблица1[bb/101],Таблица1[2019],B74)/P74,0) -> 0 | R74: =IFERROR(SUMIFS(Таблица1[EV bb/101],Таблица1[2019],B74)/P74,0) -> 0 | S74: =SUMIFS(Таблица1[Net Winnings],Таблица1[2019],B74) -> 0 | T74: 0
B75: 14:00 2,2 Gtd PAC Friz Regular 9 | E75: =IFERROR(IF(VLOOKUP($B75,Таблица1[],9,0)=0,"",VLOOKUP($B75,Таблица1[],9,0)),"") ->  | F75: =IFERROR(VLOOKUP($B75,Таблица1[],16,0),"") ->  | G75: =IFERROR(VLOOKUP($B75,Таблица1[],10,0),"") ->  | H75: =IFERROR(VLOOKUP($B75,Таблица1[],11,0),"") ->  | I75: =IFERROR(VLOOKUP($B75,Таблица1[],12,0),"") ->  | J75: =IFERROR(VLOOKUP($B75,Таблица1[],13,0),"") ->  | K75: =IFERROR(VLOOKUP($B75,Таблица1[],14,0),"") ->  | L75: =COUNTIFS(Таблица1[2019],B75)+SUMIFS(Таблица1[Re-entry],Таблица1[2019],B75) -> 0 | M75: =SUMIFS(Таблица1[Total Buy-In],Таблица1[2019],B75) -> 0 | N75: 0 | O75: =IFERROR(COUNTIFS(Таблица1[2019],B75,Таблица1[Winnings],">0")/L75*100,0) -> 0 | P75: =SUMIFS(Таблица1[Total Hands],Таблица1[2019],B75) -> 0 | Q75: =IFERROR(SUMIFS(Таблица1[bb/101],Таблица1[2019],B75)/P75,0) -> 0 | R75: =IFERROR(SUMIFS(Таблица1[EV bb/101],Таблица1[2019],B75)/P75,0) -> 0 | S75: =SUMIFS(Таблица1[Net Winnings],Таблица1[2019],B75) -> 0 | T75: 0
B76: 14:05 4,4 Gtd PS Friz Regular 8 | E76: =IFERROR(IF(VLOOKUP($B76,Таблица1[],9,0)=0,"",VLOOKUP($B76,Таблица1[],9,0)),"") ->  | F76: =IFERROR(VLOOKUP($B76,Таблица1[],16,0),"") ->  | G76: =IFERROR(VLOOKUP($B76,Таблица1[],10,0),"") ->  | H76: =IFERROR(VLOOKUP($B76,Таблица1[],11,0),"") ->  | I76: =IFERROR(VLOOKUP($B76,Таблица1[],12,0),"") ->  | J76: =IFERROR(VLOOKUP($B76,Таблица1[],13,0),"") ->  | K76: =IFERROR(VLOOKUP($B76,Таблица1[],14,0),"") ->  | L76: =COUNTIFS(Таблица1[2019],B76)+SUMIFS(Таблица1[Re-entry],Таблица1[2019],B76) -> 0 | M76: =SUMIFS(Таблица1[Total Buy-In],Таблица1[2019],B76) -> 0 | N76: 0 | O76: =IFERROR(COUNTIFS(Таблица1[2019],B76,Таблица1[Winnings],">0")/L76*100,0) -> 0 | P76: =SUMIFS(Таблица1[Total Hands],Таблица1[2019],B76) -> 0 | Q76: =IFERROR(SUMIFS(Таблица1[bb/101],Таблица1[2019],B76)/P76,0) -> 0 | R76: =IFERROR(SUMIFS(Таблица1[EV bb/101],Таблица1[2019],B76)/P76,0) -> 0 | S76: =SUMIFS(Таблица1[Net Winnings],Таблица1[2019],B76) -> 0 | T76: 0
B77: 14:10 5,5 Win the Button PS Friz Regular 9 | E77: =IFERROR(IF(VLOOKUP($B77,Таблица1[],9,0)=0,"",VLOOKUP($B77,Таблица1[],9,0)),"") ->  | F77: =IFERROR(VLOOKUP($B77,Таблица1[],16,0),"") ->  | G77: =IFERROR(VLOOKUP($B77,Таблица1[],10,0),"") ->  | H77: =IFERROR(VLOOKUP($B77,Таблица1[],11,0),"") ->  | I77: =IFERROR(VLOOKUP($B77,Таблица1[],12,0),"") ->  | J77: =IFERROR(VLOOKUP($B77,Таблица1[],13,0),"") ->  | K77: =IFERROR(VLOOKUP($B77,Таблица1[],14,0),"") ->  | L77: =COUNTIFS(Таблица1[2019],B77)+SUMIFS(Таблица1[Re-entry],Таблица1[2019],B77) -> 0 | M77: =SUMIFS(Таблица1[Total Buy-In],Таблица1[2019],B77) -> 0 | N77: 0 | O77: =IFERROR(COUNTIFS(Таблица1[2019],B77,Таблица1[Winnings],">0")/L77*100,0) -> 0 | P77: =SUMIFS(Таблица1[Total Hands],Таблица1[2019],B77) -> 0 | Q77: =IFERROR(SUMIFS(Таблица1[bb/101],Таблица1[2019],B77)/P77,0) -> 0 | R77: =IFERROR(SUMIFS(Таблица1[EV bb/101],Таблица1[2019],B77)/P77,0) -> 0 | S77: =SUMIFS(Таблица1[Net Winnings],Таблица1[2019],B77) -> 0 | T77: 0
B78: 14:20 1,1 Progressive KO PS KO Regular 9 | E78: =IFERROR(IF(VLOOKUP($B78,Таблица1[],9,0)=0,"",VLOOKUP($B78,Таблица1[],9,0)),"") ->  | F78: =IFERROR(VLOOKUP($B78,Таблица1[],16,0),"") ->  | G78: =IFERROR(VLOOKUP($B78,Таблица1[],10,0),"") ->  | H78: =IFERROR(VLOOKUP($B78,Таблица1[],11,0),"") ->  | I78: =IFERROR(VLOOKUP($B78,Таблица1[],12,0),"") ->  | J78: =IFERROR(VLOOKUP($B78,Таблица1[],13,0),"") ->  | K78: =IFERROR(VLOOKUP($B78,Таблица1[],14,0),"") ->  | L78: =COUNTIFS(Таблица1[2019],B78)+SUMIFS(Таблица1[Re-entry],Таблица1[2019],B78) -> 0 | M78: =SUMIFS(Таблица1[Total Buy-In],Таблица1[2019],B78) -> 0 | N78: 0 | O78: =IFERROR(COUNTIFS(Таблица1[2019],B78,Таблица1[Winnings],">0")/L78*100,0) -> 0 | P78: =SUMIFS(Таблица1[Total Hands],Таблица1[2019],B78) -> 0 | Q78: =IFERROR(SUMIFS(Таблица1[bb/101],Таблица1[2019],B78)/P78,0) -> 0 | R78: =IFERROR(SUMIFS(Таблица1[EV bb/101],Таблица1[2019],B78)/P78,0) -> 0 | S78: =SUMIFS(Таблица1[Net Winnings],Таблица1[2019],B78) -> 0 | T78: 0
B79: 14:30 1,1 Splash R/a PS Friz Turbo 9 | E79: =IFERROR(IF(VLOOKUP($B79,Таблица1[],9,0)=0,"",VLOOKUP($B79,Таблица1[],9,0)),"") ->  | F79: =IFERROR(VLOOKUP($B79,Таблица1[],16,0),"") ->  | G79: =IFERROR(VLOOKUP($B79,Таблица1[],10,0),"") ->  | H79: =IFERROR(VLOOKUP($B79,Таблица1[],11,0),"") ->  | I79: =IFERROR(VLOOKUP($B79,Таблица1[],12,0),"") ->  | J79: =IFERROR(VLOOKUP($B79,Таблица1[],13,0),"") ->  | K79: =IFERROR(VLOOKUP($B79,Таблица1[],14,0),"") ->  | L79: =COUNTIFS(Таблица1[2019],B79)+SUMIFS(Таблица1[Re-entry],Таблица1[2019],B79) -> 0 | M79: =SUMIFS(Таблица1[Total Buy-In],Таблица1[2019],B79) -> 0 | N79: =IFERROR((S79/M79)*100,0) -> 0 | O79: =IFERROR(COUNTIFS(Таблица1[2019],B79,Таблица1[Winnings],">0")/L79*100,0) -> 0 | P79: =SUMIFS(Таблица1[Total Hands],Таблица1[2019],B79) -> 0 | Q79: =IFERROR(SUMIFS(Таблица1[bb/101],Таблица1[2019],B79)/P79,0) -> 0 | R79: =IFERROR(SUMIFS(Таблица1[EV bb/101],Таблица1[2019],B79)/P79,0) -> 0 | S79: =SUMIFS(Таблица1[Net Winnings],Таблица1[2019],B79) -> 0 | T79: =IFERROR(S79/L79,0) -> 0
B80: 14:30 3,3 Gtd PAC Friz Regular 9 | E80: =IFERROR(IF(VLOOKUP($B80,Таблица1[],9,0)=0,"",VLOOKUP($B80,Таблица1[],9,0)),"") ->  | F80: =IFERROR(VLOOKUP($B80,Таблица1[],16,0),"") ->  | G80: =IFERROR(VLOOKUP($B80,Таблица1[],10,0),"") ->  | H80: =IFERROR(VLOOKUP($B80,Таблица1[],11,0),"") ->  | I80: =IFERROR(VLOOKUP($B80,Таблица1[],12,0),"") ->  | J80: =IFERROR(VLOOKUP($B80,Таблица1[],13,0),"") ->  | K80: =IFERROR(VLOOKUP($B80,Таблица1[],14,0),"") ->  | L80: =COUNTIFS(Таблица1[2019],B80)+SUMIFS(Таблица1[Re-entry],Таблица1[2019],B80) -> 0 | M80: =SUMIFS(Таблица1[Total Buy-In],Таблица1[2019],B80) -> 0 | N80: 0 | O80: =IFERROR(COUNTIFS(Таблица1[2019],B80,Таблица1[Winnings],">0")/L80*100,0) -> 0 | P80: =SUMIFS(Таблица1[Total Hands],Таблица1[2019],B80) -> 0 | Q80: =IFERROR(SUMIFS(Таблица1[bb/101],Таблица1[2019],B80)/P80,0) -> 0 | R80: =IFERROR(SUMIFS(Таблица1[EV bb/101],Таблица1[2019],B80)/P80,0) -> 0 | S80: =SUMIFS(Таблица1[Net Winnings],Таблица1[2019],B80) -> 0 | T80: 0
B81: 14:45 2,2 Gtd PS Friz Regular 6 | E81: =IFERROR(IF(VLOOKUP($B81,Таблица1[],9,0)=0,"",VLOOKUP($B81,Таблица1[],9,0)),"") ->  | F81: =IFERROR(VLOOKUP($B81,Таблица1[],16,0),"") ->  | G81: =IFERROR(VLOOKUP($B81,Таблица1[],10,0),"") ->  | H81: =IFERROR(VLOOKUP($B81,Таблица1[],11,0),"") ->  | I81: =IFERROR(VLOOKUP($B81,Таблица1[],12,0),"") ->  | J81: =IFERROR(VLOOKUP($B81,Таблица1[],13,0),"") ->  | K81: =IFERROR(VLOOKUP($B81,Таблица1[],14,0),"") ->  | L81: =COUNTIFS(Таблица1[2019],B81)+SUMIFS(Таблица1[Re-entry],Таблица1[2019],B81) -> 0 | M81: =SUMIFS(Таблица1[Total Buy-In],Таблица1[2019],B81) -> 0 | N81: 0 | O81: =IFERROR(COUNTIFS(Таблица1[2019],B81,Таблица1[Winnings],">0")/L81*100,0) -> 0 | P81: =SUMIFS(Таблица1[Total Hands],Таблица1[2019],B81) -> 0 | Q81: =IFERROR(SUMIFS(Таблица1[bb/101],Таблица1[2019],B81)/P81,0) -> 0 | R81: =IFERROR(SUMIFS(Таблица1[EV bb/101],Таблица1[2019],B81)/P81,0) -> 0 | S81: =SUMIFS(Таблица1[Net Winnings],Таблица1[2019],B81) -> 0 | T81: 0
B82: 15:00 1,1 Gtd PS Friz Regular 9 | E82: =IFERROR(IF(VLOOKUP($B82,Таблица1[],9,0)=0,"",VLOOKUP($B82,Таблица1[],9,0)),"") ->  | F82: =IFERROR(VLOOKUP($B82,Таблица1[],16,0),"") ->  | G82: =IFERROR(VLOOKUP($B82,Таблица1[],10,0),"") ->  | H82: =IFERROR(VLOOKUP($B82,Таблица1[],11,0),"") ->  | I82: =IFERROR(VLOOKUP($B82,Таблица1[],12,0),"") ->  | J82: =IFERROR(VLOOKUP($B82,Таблица1[],13,0),"") ->  | K82: =IFERROR(VLOOKUP($B82,Таблица1[],14,0),"") ->  | L82: =COUNTIFS(Таблица1[2019],B82)+SUMIFS(Таблица1[Re-entry],Таблица1[2019],B82) -> 0 | M82: =SUMIFS(Таблица1[Total Buy-In],Таблица1[2019],B82) -> 0 | N82: 0 | O82: =IFERROR(COUNTIFS(Таблица1[2019],B82,Таблица1[Winnings],">0")/L82*100,0) -> 0 | P82: =SUMIFS(Таблица1[Total Hands],Таблица1[2019],B82) -> 0 | Q82: =IFERROR(SUMIFS(Таблица1[bb/101],Таблица1[2019],B82)/P82,0) -> 0 | R82: =IFERROR(SUMIFS(Таблица1[EV bb/101],Таблица1[2019],B82)/P82,0) -> 0 | S82: =SUMIFS(Таблица1[Net Winnings],Таблица1[2019],B82) -> 0 | T82: 0
B83: 15:00 3,3 Saturday Micro PS Friz Regular 9 | E83: =IFERROR(IF(VLOOKUP($B83,Таблица1[],9,0)=0,"",VLOOKUP($B83,Таблица1[],9,0)),"") ->  | F83: =IFERROR(VLOOKUP($B83,Таблица1[],16,0),"") ->  | G83: =IFERROR(VLOOKUP($B83,Таблица1[],10,0),"") ->  | H83: =IFERROR(VLOOKUP($B83,Таблица1[],11,0),"") ->  | I83: =IFERROR(VLOOKUP($B83,Таблица1[],12,0),"") ->  | J83: =IFERROR(VLOOKUP($B83,Таблица1[],13,0),"") ->  | K83: =IFERROR(VLOOKUP($B83,Таблица1[],14,0),"") ->  | L83: =COUNTIFS(Таблица1[2019],B83)+SUMIFS(Таблица1[Re-entry],Таблица1[2019],B83) -> 0 | M83: =SUMIFS(Таблица1[Total Buy-In],Таблица1[2019],B83) -> 0 | N83: 0 | O83: =IFERROR(COUNTIFS(Таблица1[2019],B83,Таблица1[Winnings],">0")/L83*100,0) -> 0 | P83: =SUMIFS(Таблица1[Total Hands],Таблица1[2019],B83) -> 0 | Q83: =IFERROR(SUMIFS(Таблица1[bb/101],Таблица1[2019],B83)/P83,0) -> 0 | R83: =IFERROR(SUMIFS(Таблица1[EV bb/101],Таблица1[2019],B83)/P83,0) -> 0 | S83: =SUMIFS(Таблица1[Net Winnings],Таблица1[2019],B83) -> 0 | T83: 0
B84: 15:15 3 SuperStack ES Friz Regular 6 | E84: =IFERROR(IF(VLOOKUP($B84,Таблица1[],9,0)=0,"",VLOOKUP($B84,Таблица1[],9,0)),"") ->  | F84: =IFERROR(VLOOKUP($B84,Таблица1[],16,0),"") ->  | G84: =IFERROR(VLOOKUP($B84,Таблица1[],10,0),"") ->  | H84: =IFERROR(VLOOKUP($B84,Таблица1[],11,0),"") ->  | I84: =IFERROR(VLOOKUP($B84,Таблица1[],12,0),"") ->  | J84: =IFERROR(VLOOKUP($B84,Таблица1[],13,0),"") ->  | K84: =IFERROR(VLOOKUP($B84,Таблица1[],14,0),"") ->  | L84: =COUNTIFS(Таблица1[2019],B84)+SUMIFS(Таблица1[Re-entry],Таблица1[2019],B84) -> 0 | M84: =SUMIFS(Таблица1[Total Buy-In],Таблица1[2019],B84) -> 0 | N84: 0 | O84: =IFERROR(COUNTIFS(Таблица1[2019],B84,Таблица1[Winnings],">0")/L84*100,0) -> 0 | P84: =SUMIFS(Таблица1[Total Hands],Таблица1[2019],B84) -> 0 | Q84: =IFERROR(SUMIFS(Таблица1[bb/101],Таблица1[2019],B84)/P84,0) -> 0 | R84: =IFERROR(SUMIFS(Таблица1[EV bb/101],Таблица1[2019],B84)/P84,0) -> 0 | S84: =SUMIFS(Таблица1[Net Winnings],Таблица1[2019],B84) -> 0 | T84: 0
B85: 15:30 1 Storm R/A ES Friz Regular 9 | E85: =IFERROR(IF(VLOOKUP($B85,Таблица1[],9,0)=0,"",VLOOKUP($B85,Таблица1[],9,0)),"") ->  | F85: =IFERROR(VLOOKUP($B85,Таблица1[],16,0),"") ->  | G85: =IFERROR(VLOOKUP($B85,Таблица1[],10,0),"") ->  | H85: =IFERROR(VLOOKUP($B85,Таблица1[],11,0),"") ->  | I85: =IFERROR(VLOOKUP($B85,Таблица1[],12,0),"") ->  | J85: =IFERROR(VLOOKUP($B85,Таблица1[],13,0),"") ->  | K85: =IFERROR(VLOOKUP($B85,Таблица1[],14,0),"") ->  | L85: =COUNTIFS(Таблица1[2019],B85)+SUMIFS(Таблица1[Re-entry],Таблица1[2019],B85) -> 0 | M85: =SUMIFS(Таблица1[Total Buy-In],Таблица1[2019],B85) -> 0 | N85: 0 | O85: =IFERROR(COUNTIFS(Таблица1[2019],B85,Таблица1[Winnings],">0")/L85*100,0) -> 0 | P85: =SUMIFS(Таблица1[Total Hands],Таблица1[2019],B85) -> 0 | Q85: =IFERROR(SUMIFS(Таблица1[bb/101],Таблица1[2019],B85)/P85,0) -> 0 | R85: =IFERROR(SUMIFS(Таблица1[EV bb/101],Таблица1[2019],B85)/P85,0) -> 0 | S85: =SUMIFS(Таблица1[Net Winnings],Таблица1[2019],B85) -> 0 | T85: 0
B86: 15:40 3,3 Deep Payouts PS Friz Turbo 9 | E86: =IFERROR(IF(VLOOKUP($B86,Таблица1[],9,0)=0,"",VLOOKUP($B86,Таблица1[],9,0)),"") ->  | F86: =IFERROR(VLOOKUP($B86,Таблица1[],16,0),"") ->  | G86: =IFERROR(VLOOKUP($B86,Таблица1[],10,0),"") ->  | H86: =IFERROR(VLOOKUP($B86,Таблица1[],11,0),"") ->  | I86: =IFERROR(VLOOKUP($B86,Таблица1[],12,0),"") ->  | J86: =IFERROR(VLOOKUP($B86,Таблица1[],13,0),"") ->  | K86: =IFERROR(VLOOKUP($B86,Таблица1[],14,0),"") ->  | L86: =COUNTIFS(Таблица1[2019],B86)+SUMIFS(Таблица1[Re-entry],Таблица1[2019],B86) -> 0 | M86: =SUMIFS(Таблица1[Total Buy-In],Таблица1[2019],B86) -> 0 | N86: 0 | O86: =IFERROR(COUNTIFS(Таблица1[2019],B86,Таблица1[Winnings],">0")/L86*100,0) -> 0 | P86: =SUMIFS(Таблица1[Total Hands],Таблица1[2019],B86) -> 0 | Q86: =IFERROR(SUMIFS(Таблица1[bb/101],Таблица1[2019],B86)/P86,0) -> 0 | R86: =IFERROR(SUMIFS(Таблица1[EV bb/101],Таблица1[2019],B86)/P86,0) -> 0 | S86: =SUMIFS(Таблица1[Net Winnings],Таблица1[2019],B86) -> 0 | T86: 0
B87: 16:00 4,4 Big PS Friz Regular 9 | E87: =IFERROR(IF(VLOOKUP($B87,Таблица1[],9,0)=0,"",VLOOKUP($B87,Таблица1[],9,0)),"") ->  | F87: =IFERROR(VLOOKUP($B87,Таблица1[],16,0),"") ->  | G87: =IFERROR(VLOOKUP($B87,Таблица1[],10,0),"") ->  | H87: =IFERROR(VLOOKUP($B87,Таблица1[],11,0),"") ->  | I87: =IFERROR(VLOOKUP($B87,Таблица1[],12,0),"") ->  | J87: =IFERROR(VLOOKUP($B87,Таблица1[],13,0),"") ->  | K87: =IFERROR(VLOOKUP($B87,Таблица1[],14,0),"") ->  | L87: =COUNTIFS(Таблица1[2019],B87)+SUMIFS(Таблица1[Re-entry],Таблица1[2019],B87) -> 0 | M87: =SUMIFS(Таблица1[Total Buy-In],Таблица1[2019],B87) -> 0 | N87: 0 | O87: =IFERROR(COUNTIFS(Таблица1[2019],B87,Таблица1[Winnings],">0")/L87*100,0) -> 0 | P87: =SUMIFS(Таблица1[Total Hands],Таблица1[2019],B87) -> 0 | Q87: =IFERROR(SUMIFS(Таблица1[bb/101],Таблица1[2019],B87)/P87,0) -> 0 | R87: =IFERROR(SUMIFS(Таблица1[EV bb/101],Таблица1[2019],B87)/P87,0) -> 0 | S87: =SUMIFS(Таблица1[Net Winnings],Таблица1[2019],B87) -> 0 | T87: 0
B88: 16:15 1,1 Gtd PS Friz Regular 9 | E88: =IFERROR(IF(VLOOKUP($B88,Таблица1[],9,0)=0,"",VLOOKUP($B88,Таблица1[],9,0)),"") ->  | F88: =IFERROR(VLOOKUP($B88,Таблица1[],16,0),"") ->  | G88: =IFERROR(VLOOKUP($B88,Таблица1[],10,0),"") ->  | H88: =IFERROR(VLOOKUP($B88,Таблица1[],11,0),"") ->  | I88: =IFERROR(VLOOKUP($B88,Таблица1[],12,0),"") ->  | J88: =IFERROR(VLOOKUP($B88,Таблица1[],13,0),"") ->  | K88: =IFERROR(VLOOKUP($B88,Таблица1[],14,0),"") ->  | L88: =COUNTIFS(Таблица1[2019],B88)+SUMIFS(Таблица1[Re-entry],Таблица1[2019],B88) -> 0 | M88: =SUMIFS(Таблица1[Total Buy-In],Таблица1[2019],B88) -> 0 | N88: 0 | O88: =IFERROR(COUNTIFS(Таблица1[2019],B88,Таблица1[Winnings],">0")/L88*100,0) -> 0 | P88: =SUMIFS(Таблица1[Total Hands],Таблица1[2019],B88) -> 0 | Q88: =IFERROR(SUMIFS(Таблица1[bb/101],Таблица1[2019],B88)/P88,0) -> 0 | R88: =IFERROR(SUMIFS(Таблица1[EV bb/101],Таблица1[2019],B88)/P88,0) -> 0 | S88: =SUMIFS(Таблица1[Net Winnings],Таблица1[2019],B88) -> 0 | T88: 0
B89: 16:20 5,5 Progressive KO PS KO Regular 6 | E89: =IFERROR(IF(VLOOKUP($B89,Таблица1[],9,0)=0,"",VLOOKUP($B89,Таблица1[],9,0)),"") ->  | F89: =IFERROR(VLOOKUP($B89,Таблица1[],16,0),"") ->  | G89: =IFERROR(VLOOKUP($B89,Таблица1[],10,0),"") ->  | H89: =IFERROR(VLOOKUP($B89,Таблица1[],11,0),"") ->  | I89: =IFERROR(VLOOKUP($B89,Таблица1[],12,0),"") ->  | J89: =IFERROR(VLOOKUP($B89,Таблица1[],13,0),"") ->  | K89: =IFERROR(VLOOKUP($B89,Таблица1[],14,0),"") ->  | L89: =COUNTIFS(Таблица1[2019],B89)+SUMIFS(Таблица1[Re-entry],Таблица1[2019],B89) -> 0 | M89: =SUMIFS(Таблица1[Total Buy-In],Таблица1[2019],B89) -> 0 | N89: 0 | O89: =IFERROR(COUNTIFS(Таблица1[2019],B89,Таблица1[Winnings],">0")/L89*100,0) -> 0 | P89: =SUMIFS(Таблица1[Total Hands],Таблица1[2019],B89) -> 0 | Q89: =IFERROR(SUMIFS(Таблица1[bb/101],Таблица1[2019],B89)/P89,0) -> 0 | R89: =IFERROR(SUMIFS(Таблица1[EV bb/101],Таблица1[2019],B89)/P89,0) -> 0 | S89: =SUMIFS(Таблица1[Net Winnings],Таблица1[2019],B89) -> 0 | T89: 0
B90: 16:25 2,2 Player Cap PS Friz Regular 9 | E90: =IFERROR(IF(VLOOKUP($B90,Таблица1[],9,0)=0,"",VLOOKUP($B90,Таблица1[],9,0)),"") ->  | F90: =IFERROR(VLOOKUP($B90,Таблица1[],16,0),"") ->  | G90: =IFERROR(VLOOKUP($B90,Таблица1[],10,0),"") ->  | H90: =IFERROR(VLOOKUP($B90,Таблица1[],11,0),"") ->  | I90: =IFERROR(VLOOKUP($B90,Таблица1[],12,0),"") ->  | J90: =IFERROR(VLOOKUP($B90,Таблица1[],13,0),"") ->  | K90: =IFERROR(VLOOKUP($B90,Таблица1[],14,0),"") ->  | L90: =COUNTIFS(Таблица1[2019],B90)+SUMIFS(Таблица1[Re-entry],Таблица1[2019],B90) -> 0 | M90: =SUMIFS(Таблица1[Total Buy-In],Таблица1[2019],B90) -> 0 | N90: 0 | O90: =IFERROR(COUNTIFS(Таблица1[2019],B90,Таблица1[Winnings],">0")/L90*100,0) -> 0 | P90: =SUMIFS(Таблица1[Total Hands],Таблица1[2019],B90) -> 0 | Q90: =IFERROR(SUMIFS(Таблица1[bb/101],Таблица1[2019],B90)/P90,0) -> 0 | R90: =IFERROR(SUMIFS(Таблица1[EV bb/101],Таблица1[2019],B90)/P90,0) -> 0 | S90: =SUMIFS(Таблица1[Net Winnings],Таблица1[2019],B90) -> 0 | T90: 0
B91: 16:30 1,1 MicroMillions PS KO Turbo 6 | E91: =IFERROR(IF(VLOOKUP($B91,Таблица1[],9,0)=0,"",VLOOKUP($B91,Таблица1[],9,0)),"") ->  | F91: =IFERROR(VLOOKUP($B91,Таблица1[],16,0),"") ->  | G91: =IFERROR(VLOOKUP($B91,Таблица1[],10,0),"") ->  | H91: =IFERROR(VLOOKUP($B91,Таблица1[],11,0),"") ->  | I91: =IFERROR(VLOOKUP($B91,Таблица1[],12,0),"") ->  | J91: =IFERROR(VLOOKUP($B91,Таблица1[],13,0),"") ->  | K91: =IFERROR(VLOOKUP($B91,Таблица1[],14,0),"") ->  | L91: =COUNTIFS(Таблица1[2019],B91)+SUMIFS(Таблица1[Re-entry],Таблица1[2019],B91) -> 0 | M91: =SUMIFS(Таблица1[Total Buy-In],Таблица1[2019],B91) -> 0 | N91: 0 | O91: =IFERROR(COUNTIFS(Таблица1[2019],B91,Таблица1[Winnings],">0")/L91*100,0) -> 0 | P91: =SUMIFS(Таблица1[Total Hands],Таблица1[2019],B91) -> 0 | Q91: =IFERROR(SUMIFS(Таблица1[bb/101],Таблица1[2019],B91)/P91,0) -> 0 | R91: =IFERROR(SUMIFS(Таблица1[EV bb/101],Таблица1[2019],B91)/P91,0) -> 0 | S91: =SUMIFS(Таблица1[Net Winnings],Таблица1[2019],B91) -> 0 | T91: 0
B92: 16:30 2,2 Gtd PAC Friz Regular 9 | E92: =IFERROR(IF(VLOOKUP($B92,Таблица1[],9,0)=0,"",VLOOKUP($B92,Таблица1[],9,0)),"") ->  | F92: =IFERROR(VLOOKUP($B92,Таблица1[],16,0),"") ->  | G92: =IFERROR(VLOOKUP($B92,Таблица1[],10,0),"") ->  | H92: =IFERROR(VLOOKUP($B92,Таблица1[],11,0),"") ->  | I92: =IFERROR(VLOOKUP($B92,Таблица1[],12,0),"") ->  | J92: =IFERROR(VLOOKUP($B92,Таблица1[],13,0),"") ->  | K92: =IFERROR(VLOOKUP($B92,Таблица1[],14,0),"") ->  | L92: =COUNTIFS(Таблица1[2019],B92)+SUMIFS(Таблица1[Re-entry],Таблица1[2019],B92) -> 0 | M92: =SUMIFS(Таблица1[Total Buy-In],Таблица1[2019],B92) -> 0 | N92: =IFERROR((S92/M92)*100,0) -> 0 | O92: =IFERROR(COUNTIFS(Таблица1[2019],B92,Таблица1[Winnings],">0")/L92*100,0) -> 0 | P92: =SUMIFS(Таблица1[Total Hands],Таблица1[2019],B92) -> 0 | Q92: =IFERROR(SUMIFS(Таблица1[bb/101],Таблица1[2019],B92)/P92,0) -> 0 | R92: =IFERROR(SUMIFS(Таблица1[EV bb/101],Таблица1[2019],B92)/P92,0) -> 0 | S92: =SUMIFS(Таблица1[Net Winnings],Таблица1[2019],B92) -> 0 | T92: =IFERROR(S92/L92,0) -> 0
B93: 16:30 5 6-Max Club ES Friz Regular 6 | E93: =IFERROR(IF(VLOOKUP($B93,Таблица1[],9,0)=0,"",VLOOKUP($B93,Таблица1[],9,0)),"") ->  | F93: =IFERROR(VLOOKUP($B93,Таблица1[],16,0),"") ->  | G93: =IFERROR(VLOOKUP($B93,Таблица1[],10,0),"") ->  | H93: =IFERROR(VLOOKUP($B93,Таблица1[],11,0),"") ->  | I93: =IFERROR(VLOOKUP($B93,Таблица1[],12,0),"") ->  | J93: =IFERROR(VLOOKUP($B93,Таблица1[],13,0),"") ->  | K93: =IFERROR(VLOOKUP($B93,Таблица1[],14,0),"") ->  | L93: =COUNTIFS(Таблица1[2019],B93)+SUMIFS(Таблица1[Re-entry],Таблица1[2019],B93) -> 0 | M93: =SUMIFS(Таблица1[Total Buy-In],Таблица1[2019],B93) -> 0 | N93: 0 | O93: =IFERROR(COUNTIFS(Таблица1[2019],B93,Таблица1[Winnings],">0")/L93*100,0) -> 0 | P93: =SUMIFS(Таблица1[Total Hands],Таблица1[2019],B93) -> 0 | Q93: =IFERROR(SUMIFS(Таблица1[bb/101],Таблица1[2019],B93)/P93,0) -> 0 | R93: =IFERROR(SUMIFS(Таблица1[EV bb/101],Таблица1[2019],B93)/P93,0) -> 0 | S93: =SUMIFS(Таблица1[Net Winnings],Таблица1[2019],B93) -> 0 | T93: 0
B94: 16:30 5,5 MicroMillions PS KO Regular 9 | E94: =IFERROR(IF(VLOOKUP($B94,Таблица1[],9,0)=0,"",VLOOKUP($B94,Таблица1[],9,0)),"") ->  | F94: =IFERROR(VLOOKUP($B94,Таблица1[],16,0),"") ->  | G94: =IFERROR(VLOOKUP($B94,Таблица1[],10,0),"") ->  | H94: =IFERROR(VLOOKUP($B94,Таблица1[],11,0),"") ->  | I94: =IFERROR(VLOOKUP($B94,Таблица1[],12,0),"") ->  | J94: =IFERROR(VLOOKUP($B94,Таблица1[],13,0),"") ->  | K94: =IFERROR(VLOOKUP($B94,Таблица1[],14,0),"") ->  | L94: =COUNTIFS(Таблица1[2019],B94)+SUMIFS(Таблица1[Re-entry],Таблица1[2019],B94) -> 0 | M94: =SUMIFS(Таблица1[Total Buy-In],Таблица1[2019],B94) -> 0 | N94: 0 | O94: =IFERROR(COUNTIFS(Таблица1[2019],B94,Таблица1[Winnings],">0")/L94*100,0) -> 0 | P94: =SUMIFS(Таблица1[Total Hands],Таблица1[2019],B94) -> 0 | Q94: =IFERROR(SUMIFS(Таблица1[bb/101],Таблица1[2019],B94)/P94,0) -> 0 | R94: =IFERROR(SUMIFS(Таблица1[EV bb/101],Таблица1[2019],B94)/P94,0) -> 0 | S94: =SUMIFS(Таблица1[Net Winnings],Таблица1[2019],B94) -> 0 | T94: 0
B95: 16:30 5,5 Mini Daily Marathon PS Friz Regular 9 | E95: =IFERROR(IF(VLOOKUP($B95,Таблица1[],9,0)=0,"",VLOOKUP($B95,Таблица1[],9,0)),"") ->  | F95: =IFERROR(VLOOKUP($B95,Таблица1[],16,0),"") ->  | G95: =IFERROR(VLOOKUP($B95,Таблица1[],10,0),"") ->  | H95: =IFERROR(VLOOKUP($B95,Таблица1[],11,0),"") ->  | I95: =IFERROR(VLOOKUP($B95,Таблица1[],12,0),"") ->  | J95: =IFERROR(VLOOKUP($B95,Таблица1[],13,0),"") ->  | K95: =IFERROR(VLOOKUP($B95,Таблица1[],14,0),"") ->  | L95: =COUNTIFS(Таблица1[2019],B95)+SUMIFS(Таблица1[Re-entry],Таблица1[2019],B95) -> 0 | M95: =SUMIFS(Таблица1[Total Buy-In],Таблица1[2019],B95) -> 0 | N95: =IFERROR((S95/M95)*100,0) -> 0 | O95: =IFERROR(COUNTIFS(Таблица1[2019],B95,Таблица1[Winnings],">0")/L95*100,0) -> 0 | P95: =SUMIFS(Таблица1[Total Hands],Таблица1[2019],B95) -> 0 | Q95: =IFERROR(SUMIFS(Таблица1[bb/101],Таблица1[2019],B95)/P95,0) -> 0 | R95: =IFERROR(SUMIFS(Таблица1[EV bb/101],Таблица1[2019],B95)/P95,0) -> 0 | S95: =SUMIFS(Таблица1[Net Winnings],Таблица1[2019],B95) -> 0 | T95: =IFERROR(S95/L95,0) -> 0
B96: 16:40 3,3 Gtd PS Friz Regular 6 | E96: =IFERROR(IF(VLOOKUP($B96,Таблица1[],9,0)=0,"",VLOOKUP($B96,Таблица1[],9,0)),"") ->  | F96: =IFERROR(VLOOKUP($B96,Таблица1[],16,0),"") ->  | G96: =IFERROR(VLOOKUP($B96,Таблица1[],10,0),"") ->  | H96: =IFERROR(VLOOKUP($B96,Таблица1[],11,0),"") ->  | I96: =IFERROR(VLOOKUP($B96,Таблица1[],12,0),"") ->  | J96: =IFERROR(VLOOKUP($B96,Таблица1[],13,0),"") ->  | K96: =IFERROR(VLOOKUP($B96,Таблица1[],14,0),"") ->  | L96: =COUNTIFS(Таблица1[2019],B96)+SUMIFS(Таблица1[Re-entry],Таблица1[2019],B96) -> 0 | M96: =SUMIFS(Таблица1[Total Buy-In],Таблица1[2019],B96) -> 0 | N96: 0 | O96: =IFERROR(COUNTIFS(Таблица1[2019],B96,Таблица1[Winnings],">0")/L96*100,0) -> 0 | P96: =SUMIFS(Таблица1[Total Hands],Таблица1[2019],B96) -> 0 | Q96: =IFERROR(SUMIFS(Таблица1[bb/101],Таблица1[2019],B96)/P96,0) -> 0 | R96: =IFERROR(SUMIFS(Таблица1[EV bb/101],Таблица1[2019],B96)/P96,0) -> 0 | S96: =SUMIFS(Таблица1[Net Winnings],Таблица1[2019],B96) -> 0 | T96: 0
B97: 16:45 1 SuperStack ES Friz Regular 6 | E97: =IFERROR(IF(VLOOKUP($B97,Таблица1[],9,0)=0,"",VLOOKUP($B97,Таблица1[],9,0)),"") ->  | F97: =IFERROR(VLOOKUP($B97,Таблица1[],16,0),"") ->  | G97: =IFERROR(VLOOKUP($B97,Таблица1[],10,0),"") ->  | H97: =IFERROR(VLOOKUP($B97,Таблица1[],11,0),"") ->  | I97: =IFERROR(VLOOKUP($B97,Таблица1[],12,0),"") ->  | J97: =IFERROR(VLOOKUP($B97,Таблица1[],13,0),"") ->  | K97: =IFERROR(VLOOKUP($B97,Таблица1[],14,0),"") ->  | L97: =COUNTIFS(Таблица1[2019],B97)+SUMIFS(Таблица1[Re-entry],Таблица1[2019],B97) -> 0 | M97: =SUMIFS(Таблица1[Total Buy-In],Таблица1[2019],B97) -> 0 | N97: =IFERROR((S97/M97)*100,0) -> 0 | O97: =IFERROR(COUNTIFS(Таблица1[2019],B97,Таблица1[Winnings],">0")/L97*100,0) -> 0 | P97: =SUMIFS(Таблица1[Total Hands],Таблица1[2019],B97) -> 0 | Q97: =IFERROR(SUMIFS(Таблица1[bb/101],Таблица1[2019],B97)/P97,0) -> 0 | R97: =IFERROR(SUMIFS(Таблица1[EV bb/101],Таблица1[2019],B97)/P97,0) -> 0 | S97: =SUMIFS(Таблица1[Net Winnings],Таблица1[2019],B97) -> 0 | T97: =IFERROR(S97/L97,0) -> 0
B98: 17:00 10 Satellite ES Friz Regular 9 | E98: =IFERROR(IF(VLOOKUP($B98,Таблица1[],9,0)=0,"",VLOOKUP($B98,Таблица1[],9,0)),"") ->  | F98: =IFERROR(VLOOKUP($B98,Таблица1[],16,0),"") ->  | G98: =IFERROR(VLOOKUP($B98,Таблица1[],10,0),"") ->  | H98: =IFERROR(VLOOKUP($B98,Таблица1[],11,0),"") ->  | I98: =IFERROR(VLOOKUP($B98,Таблица1[],12,0),"") ->  | J98: =IFERROR(VLOOKUP($B98,Таблица1[],13,0),"") ->  | K98: =IFERROR(VLOOKUP($B98,Таблица1[],14,0),"") ->  | L98: =COUNTIFS(Таблица1[2019],B98)+SUMIFS(Таблица1[Re-entry],Таблица1[2019],B98) -> 0 | M98: =SUMIFS(Таблица1[Total Buy-In],Таблица1[2019],B98) -> 0 | N98: 0 | O98: =IFERROR(COUNTIFS(Таблица1[2019],B98,Таблица1[Winnings],">0")/L98*100,0) -> 0 | P98: =SUMIFS(Таблица1[Total Hands],Таблица1[2019],B98) -> 0 | Q98: =IFERROR(SUMIFS(Таблица1[bb/101],Таблица1[2019],B98)/P98,0) -> 0 | R98: =IFERROR(SUMIFS(Таблица1[EV bb/101],Таблица1[2019],B98)/P98,0) -> 0 | S98: =SUMIFS(Таблица1[Net Winnings],Таблица1[2019],B98) -> 0 | T98: 0
B99: 17:00 2,2 Gtd R/A PAC Friz Regular 9 | E99: =IFERROR(IF(VLOOKUP($B99,Таблица1[],9,0)=0,"",VLOOKUP($B99,Таблица1[],9,0)),"") ->  | F99: =IFERROR(VLOOKUP($B99,Таблица1[],16,0),"") ->  | G99: =IFERROR(VLOOKUP($B99,Таблица1[],10,0),"") ->  | H99: =IFERROR(VLOOKUP($B99,Таблица1[],11,0),"") ->  | I99: =IFERROR(VLOOKUP($B99,Таблица1[],12,0),"") ->  | J99: =IFERROR(VLOOKUP($B99,Таблица1[],13,0),"") ->  | K99: =IFERROR(VLOOKUP($B99,Таблица1[],14,0),"") ->  | L99: =COUNTIFS(Таблица1[2019],B99)+SUMIFS(Таблица1[Re-entry],Таблица1[2019],B99) -> 0 | M99: =SUMIFS(Таблица1[Total Buy-In],Таблица1[2019],B99) -> 0 | N99: 0 | O99: =IFERROR(COUNTIFS(Таблица1[2019],B99,Таблица1[Winnings],">0")/L99*100,0) -> 0 | P99: =SUMIFS(Таблица1[Total Hands],Таблица1[2019],B99) -> 0 | Q99: =IFERROR(SUMIFS(Таблица1[bb/101],Таблица1[2019],B99)/P99,0) -> 0 | R99: =IFERROR(SUMIFS(Таблица1[EV bb/101],Таблица1[2019],B99)/P99,0) -> 0 | S99: =SUMIFS(Таблица1[Net Winnings],Таблица1[2019],B99) -> 0 | T99: 0
B100: 17:00 5 Big ES Friz Regular 9 | E100: =IFERROR(IF(VLOOKUP($B100,Таблица1[],9,0)=0,"",VLOOKUP($B100,Таблица1[],9,0)),"") ->  | F100: =IFERROR(VLOOKUP($B100,Таблица1[],16,0),"") ->  | G100: =IFERROR(VLOOKUP($B100,Таблица1[],10,0),"") ->  | H100: =IFERROR(VLOOKUP($B100,Таблица1[],11,0),"") ->  | I100: =IFERROR(VLOOKUP($B100,Таблица1[],12,0),"") ->  | J100: =IFERROR(VLOOKUP($B100,Таблица1[],13,0),"") ->  | K100: =IFERROR(VLOOKUP($B100,Таблица1[],14,0),"") ->  | L100: =COUNTIFS(Таблица1[2019],B100)+SUMIFS(Таблица1[Re-entry],Таблица1[2019],B100) -> 0 | M100: =SUMIFS(Таблица1[Total Buy-In],Таблица1[2019],B100) -> 0 | N100: 0 | O100: =IFERROR(COUNTIFS(Таблица1[2019],B100,Таблица1[Winnings],">0")/L100*100,0) -> 0 | P100: =SUMIFS(Таблица1[Total Hands],Таблица1[2019],B100) -> 0 | Q100: =IFERROR(SUMIFS(Таблица1[bb/101],Таблица1[2019],B100)/P100,0) -> 0 | R100: =IFERROR(SUMIFS(Таблица1[EV bb/101],Таблица1[2019],B100)/P100,0) -> 0 | S100: =SUMIFS(Таблица1[Net Winnings],Таблица1[2019],B100) -> 0 | T100: 0
B101: 17:00 5,5 Big Fish PAC Friz Regular 9 | E101: =IFERROR(IF(VLOOKUP($B101,Таблица1[],9,0)=0,"",VLOOKUP($B101,Таблица1[],9,0)),"") ->  | F101: =IFERROR(VLOOKUP($B101,Таблица1[],16,0),"") ->  | G101: =IFERROR(VLOOKUP($B101,Таблица1[],10,0),"") ->  | H101: =IFERROR(VLOOKUP($B101,Таблица1[],11,0),"") ->  | I101: =IFERROR(VLOOKUP($B101,Таблица1[],12,0),"") ->  | J101: =IFERROR(VLOOKUP($B101,Таблица1[],13,0),"") ->  | K101: =IFERROR(VLOOKUP($B101,Таблица1[],14,0),"") ->  | L101: =COUNTIFS(Таблица1[2019],B101)+SUMIFS(Таблица1[Re-entry],Таблица1[2019],B101) -> 0 | M101: =SUMIFS(Таблица1[Total Buy-In],Таблица1[2019],B101) -> 0 | N101: 0 | O101: =IFERROR(COUNTIFS(Таблица1[2019],B101,Таблица1[Winnings],">0")/L101*100,0) -> 0 | P101: =SUMIFS(Таблица1[Total Hands],Таблица1[2019],B101) -> 0 | Q101: =IFERROR(SUMIFS(Таблица1[bb/101],Таблица1[2019],B101)/P101,0) -> 0 | R101: =IFERROR(SUMIFS(Таблица1[EV bb/101],Таблица1[2019],B101)/P101,0) -> 0 | S101: =SUMIFS(Таблица1[Net Winnings],Таблица1[2019],B101) -> 0 | T101: 0
B102: 17:10 2,2 Gtd PS Friz Regular 8 | E102: =IFERROR(IF(VLOOKUP($B102,Таблица1[],9,0)=0,"",VLOOKUP($B102,Таблица1[],9,0)),"") ->  | F102: =IFERROR(VLOOKUP($B102,Таблица1[],16,0),"") ->  | G102: =IFERROR(VLOOKUP($B102,Таблица1[],10,0),"") ->  | H102: =IFERROR(VLOOKUP($B102,Таблица1[],11,0),"") ->  | I102: =IFERROR(VLOOKUP($B102,Таблица1[],12,0),"") ->  | J102: =IFERROR(VLOOKUP($B102,Таблица1[],13,0),"") ->  | K102: =IFERROR(VLOOKUP($B102,Таблица1[],14,0),"") ->  | L102: =COUNTIFS(Таблица1[2019],B102)+SUMIFS(Таблица1[Re-entry],Таблица1[2019],B102) -> 0 | M102: =SUMIFS(Таблица1[Total Buy-In],Таблица1[2019],B102) -> 0 | N102: =IFERROR((S102/M102)*100,0) -> 0 | O102: =IFERROR(COUNTIFS(Таблица1[2019],B102,Таблица1[Winnings],">0")/L102*100,0) -> 0 | P102: =SUMIFS(Таблица1[Total Hands],Таблица1[2019],B102) -> 0 | Q102: =IFERROR(SUMIFS(Таблица1[bb/101],Таблица1[2019],B102)/P102,0) -> 0 | R102: =IFERROR(SUMIFS(Таблица1[EV bb/101],Таблица1[2019],B102)/P102,0) -> 0 | S102: =SUMIFS(Таблица1[Net Winnings],Таблица1[2019],B102) -> 0 | T102: =IFERROR(S102/L102,0) -> 0
B103: 17:15 1,1 Progressive KO PS KO Turbo 9 | E103: =IFERROR(IF(VLOOKUP($B103,Таблица1[],9,0)=0,"",VLOOKUP($B103,Таблица1[],9,0)),"") ->  | F103: =IFERROR(VLOOKUP($B103,Таблица1[],16,0),"") ->  | G103: =IFERROR(VLOOKUP($B103,Таблица1[],10,0),"") ->  | H103: =IFERROR(VLOOKUP($B103,Таблица1[],11,0),"") ->  | I103: =IFERROR(VLOOKUP($B103,Таблица1[],12,0),"") ->  | J103: =IFERROR(VLOOKUP($B103,Таблица1[],13,0),"") ->  | K103: =IFERROR(VLOOKUP($B103,Таблица1[],14,0),"") ->  | L103: =COUNTIFS(Таблица1[2019],B103)+SUMIFS(Таблица1[Re-entry],Таблица1[2019],B103) -> 0 | M103: =SUMIFS(Таблица1[Total Buy-In],Таблица1[2019],B103) -> 0 | N103: 0 | O103: =IFERROR(COUNTIFS(Таблица1[2019],B103,Таблица1[Winnings],">0")/L103*100,0) -> 0 | P103: =SUMIFS(Таблица1[Total Hands],Таблица1[2019],B103) -> 0 | Q103: =IFERROR(SUMIFS(Таблица1[bb/101],Таблица1[2019],B103)/P103,0) -> 0 | R103: =IFERROR(SUMIFS(Таблица1[EV bb/101],Таблица1[2019],B103)/P103,0) -> 0 | S103: =SUMIFS(Таблица1[Net Winnings],Таблица1[2019],B103) -> 0 | T103: 0
B104: 17:15 3,3 Mini Sunday Rebuy PS Friz Regular 9 | E104: =IFERROR(IF(VLOOKUP($B104,Таблица1[],9,0)=0,"",VLOOKUP($B104,Таблица1[],9,0)),"") ->  | F104: =IFERROR(VLOOKUP($B104,Таблица1[],16,0),"") ->  | G104: =IFERROR(VLOOKUP($B104,Таблица1[],10,0),"") ->  | H104: =IFERROR(VLOOKUP($B104,Таблица1[],11,0),"") ->  | I104: =IFERROR(VLOOKUP($B104,Таблица1[],12,0),"") ->  | J104: =IFERROR(VLOOKUP($B104,Таблица1[],13,0),"") ->  | K104: =IFERROR(VLOOKUP($B104,Таблица1[],14,0),"") ->  | L104: =COUNTIFS(Таблица1[2019],B104)+SUMIFS(Таблица1[Re-entry],Таблица1[2019],B104) -> 0 | M104: =SUMIFS(Таблица1[Total Buy-In],Таблица1[2019],B104) -> 0 | N104: 0 | O104: =IFERROR(COUNTIFS(Таблица1[2019],B104,Таблица1[Winnings],">0")/L104*100,0) -> 0 | P104: =SUMIFS(Таблица1[Total Hands],Таблица1[2019],B104) -> 0 | Q104: =IFERROR(SUMIFS(Таблица1[bb/101],Таблица1[2019],B104)/P104,0) -> 0 | R104: =IFERROR(SUMIFS(Таблица1[EV bb/101],Таблица1[2019],B104)/P104,0) -> 0 | S104: =SUMIFS(Таблица1[Net Winnings],Таблица1[2019],B104) -> 0 | T104: 0
B105: 17:20 1 Gtd ES Friz Turbo 9 | E105: =IFERROR(IF(VLOOKUP($B105,Таблица1[],9,0)=0,"",VLOOKUP($B105,Таблица1[],9,0)),"") ->  | F105: =IFERROR(VLOOKUP($B105,Таблица1[],16,0),"") ->  | G105: =IFERROR(VLOOKUP($B105,Таблица1[],10,0),"") ->  | H105: =IFERROR(VLOOKUP($B105,Таблица1[],11,0),"") ->  | I105: =IFERROR(VLOOKUP($B105,Таблица1[],12,0),"") ->  | J105: =IFERROR(VLOOKUP($B105,Таблица1[],13,0),"") ->  | K105: =IFERROR(VLOOKUP($B105,Таблица1[],14,0),"") ->  | L105: =COUNTIFS(Таблица1[2019],B105)+SUMIFS(Таблица1[Re-entry],Таблица1[2019],B105) -> 0 | M105: =SUMIFS(Таблица1[Total Buy-In],Таблица1[2019],B105) -> 0 | N105: 0 | O105: =IFERROR(COUNTIFS(Таблица1[2019],B105,Таблица1[Winnings],">0")/L105*100,0) -> 0 | P105: =SUMIFS(Таблица1[Total Hands],Таблица1[2019],B105) -> 0 | Q105: =IFERROR(SUMIFS(Таблица1[bb/101],Таблица1[2019],B105)/P105,0) -> 0 | R105: =IFERROR(SUMIFS(Таблица1[EV bb/101],Таблица1[2019],B105)/P105,0) -> 0 | S105: =SUMIFS(Таблица1[Net Winnings],Таблица1[2019],B105) -> 0 | T105: 0
B106: 17:30 0,55 Gtd PS Friz Turbo 9 | E106: =IFERROR(IF(VLOOKUP($B106,Таблица1[],9,0)=0,"",VLOOKUP($B106,Таблица1[],9,0)),"") ->  | F106: =IFERROR(VLOOKUP($B106,Таблица1[],16,0),"") ->  | G106: =IFERROR(VLOOKUP($B106,Таблица1[],10,0),"") ->  | H106: =IFERROR(VLOOKUP($B106,Таблица1[],11,0),"") ->  | I106: =IFERROR(VLOOKUP($B106,Таблица1[],12,0),"") ->  | J106: =IFERROR(VLOOKUP($B106,Таблица1[],13,0),"") ->  | K106: =IFERROR(VLOOKUP($B106,Таблица1[],14,0),"") ->  | L106: =COUNTIFS(Таблица1[2019],B106)+SUMIFS(Таблица1[Re-entry],Таблица1[2019],B106) -> 0 | M106: =SUMIFS(Таблица1[Total Buy-In],Таблица1[2019],B106) -> 0 | N106: 0 | O106: =IFERROR(COUNTIFS(Таблица1[2019],B106,Таблица1[Winnings],">0")/L106*100,0) -> 0 | P106: =SUMIFS(Таблица1[Total Hands],Таблица1[2019],B106) -> 0 | Q106: =IFERROR(SUMIFS(Таблица1[bb/101],Таблица1[2019],B106)/P106,0) -> 0 | R106: =IFERROR(SUMIFS(Таблица1[EV bb/101],Таблица1[2019],B106)/P106,0) -> 0 | S106: =SUMIFS(Таблица1[Net Winnings],Таблица1[2019],B106) -> 0 | T106: 0
B107: 17:40 1 Gtd ES Friz Regular 9 | E107: =IFERROR(IF(VLOOKUP($B107,Таблица1[],9,0)=0,"",VLOOKUP($B107,Таблица1[],9,0)),"") ->  | F107: =IFERROR(VLOOKUP($B107,Таблица1[],16,0),"") ->  | G107: =IFERROR(VLOOKUP($B107,Таблица1[],10,0),"") ->  | H107: =IFERROR(VLOOKUP($B107,Таблица1[],11,0),"") ->  | I107: =IFERROR(VLOOKUP($B107,Таблица1[],12,0),"") ->  | J107: =IFERROR(VLOOKUP($B107,Таблица1[],13,0),"") ->  | K107: =IFERROR(VLOOKUP($B107,Таблица1[],14,0),"") ->  | L107: =COUNTIFS(Таблица1[2019],B107)+SUMIFS(Таблица1[Re-entry],Таблица1[2019],B107) -> 0 | M107: =SUMIFS(Таблица1[Total Buy-In],Таблица1[2019],B107) -> 0 | N107: 0 | O107: =IFERROR(COUNTIFS(Таблица1[2019],B107,Таблица1[Winnings],">0")/L107*100,0) -> 0 | P107: =SUMIFS(Таблица1[Total Hands],Таблица1[2019],B107) -> 0 | Q107: =IFERROR(SUMIFS(Таблица1[bb/101],Таблица1[2019],B107)/P107,0) -> 0 | R107: =IFERROR(SUMIFS(Таблица1[EV bb/101],Таблица1[2019],B107)/P107,0) -> 0 | S107: =SUMIFS(Таблица1[Net Winnings],Таблица1[2019],B107) -> 0 | T107: 0
B108: 17:40 1,1 Gtd PS Friz Regular 9 | E108: =IFERROR(IF(VLOOKUP($B108,Таблица1[],9,0)=0,"",VLOOKUP($B108,Таблица1[],9,0)),"") ->  | F108: =IFERROR(VLOOKUP($B108,Таблица1[],16,0),"") ->  | G108: =IFERROR(VLOOKUP($B108,Таблица1[],10,0),"") ->  | H108: =IFERROR(VLOOKUP($B108,Таблица1[],11,0),"") ->  | I108: =IFERROR(VLOOKUP($B108,Таблица1[],12,0),"") ->  | J108: =IFERROR(VLOOKUP($B108,Таблица1[],13,0),"") ->  | K108: =IFERROR(VLOOKUP($B108,Таблица1[],14,0),"") ->  | L108: =COUNTIFS(Таблица1[2019],B108)+SUMIFS(Таблица1[Re-entry],Таблица1[2019],B108) -> 0 | M108: =SUMIFS(Таблица1[Total Buy-In],Таблица1[2019],B108) -> 0 | N108: 0 | O108: =IFERROR(COUNTIFS(Таблица1[2019],B108,Таблица1[Winnings],">0")/L108*100,0) -> 0 | P108: =SUMIFS(Таблица1[Total Hands],Таблица1[2019],B108) -> 0 | Q108: =IFERROR(SUMIFS(Таблица1[bb/101],Таблица1[2019],B108)/P108,0) -> 0 | R108: =IFERROR(SUMIFS(Таблица1[EV bb/101],Таблица1[2019],B108)/P108,0) -> 0 | S108: =SUMIFS(Таблица1[Net Winnings],Таблица1[2019],B108) -> 0 | T108: 0
B109: 18:00 1,1 Satellite PS Friz Regular 8 | E109: =IFERROR(IF(VLOOKUP($B109,Таблица1[],9,0)=0,"",VLOOKUP($B109,Таблица1[],9,0)),"") ->  | F109: =IFERROR(VLOOKUP($B109,Таблица1[],16,0),"") ->  | G109: =IFERROR(VLOOKUP($B109,Таблица1[],10,0),"") ->  | H109: =IFERROR(VLOOKUP($B109,Таблица1[],11,0),"") ->  | I109: =IFERROR(VLOOKUP($B109,Таблица1[],12,0),"") ->  | J109: =IFERROR(VLOOKUP($B109,Таблица1[],13,0),"") ->  | K109: =IFERROR(VLOOKUP($B109,Таблица1[],14,0),"") ->  | L109: =COUNTIFS(Таблица1[2019],B109)+SUMIFS(Таблица1[Re-entry],Таблица1[2019],B109) -> 0 | M109: =SUMIFS(Таблица1[Total Buy-In],Таблица1[2019],B109) -> 0 | N109: 0 | O109: =IFERROR(COUNTIFS(Таблица1[2019],B109,Таблица1[Winnings],">0")/L109*100,0) -> 0 | P109: =SUMIFS(Таблица1[Total Hands],Таблица1[2019],B109) -> 0 | Q109: =IFERROR(SUMIFS(Таблица1[bb/101],Таблица1[2019],B109)/P109,0) -> 0 | R109: =IFERROR(SUMIFS(Таблица1[EV bb/101],Таблица1[2019],B109)/P109,0) -> 0 | S109: =SUMIFS(Таблица1[Net Winnings],Таблица1[2019],B109) -> 0 | T109: 0
B110: 18:00 3 Mini Swordfish PAC Friz Regular 9 | E110: =IFERROR(IF(VLOOKUP($B110,Таблица1[],9,0)=0,"",VLOOKUP($B110,Таблица1[],9,0)),"") ->  | F110: =IFERROR(VLOOKUP($B110,Таблица1[],16,0),"") ->  | G110: =IFERROR(VLOOKUP($B110,Таблица1[],10,0),"") ->  | H110: =IFERROR(VLOOKUP($B110,Таблица1[],11,0),"") ->  | I110: =IFERROR(VLOOKUP($B110,Таблица1[],12,0),"") ->  | J110: =IFERROR(VLOOKUP($B110,Таблица1[],13,0),"") ->  | K110: =IFERROR(VLOOKUP($B110,Таблица1[],14,0),"") ->  | L110: =COUNTIFS(Таблица1[2019],B110)+SUMIFS(Таблица1[Re-entry],Таблица1[2019],B110) -> 0 | M110: =SUMIFS(Таблица1[Total Buy-In],Таблица1[2019],B110) -> 0 | N110: 0 | O110: =IFERROR(COUNTIFS(Таблица1[2019],B110,Таблица1[Winnings],">0")/L110*100,0) -> 0 | P110: =SUMIFS(Таблица1[Total Hands],Таблица1[2019],B110) -> 0 | Q110: =IFERROR(SUMIFS(Таблица1[bb/101],Таблица1[2019],B110)/P110,0) -> 0 | R110: =IFERROR(SUMIFS(Таблица1[EV bb/101],Таблица1[2019],B110)/P110,0) -> 0 | S110: =SUMIFS(Таблица1[Net Winnings],Таблица1[2019],B110) -> 0 | T110: 0
B111: 18:15 3 Big ES Friz Regular 9 | E111: =IFERROR(IF(VLOOKUP($B111,Таблица1[],9,0)=0,"",VLOOKUP($B111,Таблица1[],9,0)),"") ->  | F111: =IFERROR(VLOOKUP($B111,Таблица1[],16,0),"") ->  | G111: =IFERROR(VLOOKUP($B111,Таблица1[],10,0),"") ->  | H111: =IFERROR(VLOOKUP($B111,Таблица1[],11,0),"") ->  | I111: =IFERROR(VLOOKUP($B111,Таблица1[],12,0),"") ->  | J111: =IFERROR(VLOOKUP($B111,Таблица1[],13,0),"") ->  | K111: =IFERROR(VLOOKUP($B111,Таблица1[],14,0),"") ->  | L111: =COUNTIFS(Таблица1[2019],B111)+SUMIFS(Таблица1[Re-entry],Таблица1[2019],B111) -> 0 | M111: =SUMIFS(Таблица1[Total Buy-In],Таблица1[2019],B111) -> 0 | N111: 0 | O111: =IFERROR(COUNTIFS(Таблица1[2019],B111,Таблица1[Winnings],">0")/L111*100,0) -> 0 | P111: =SUMIFS(Таблица1[Total Hands],Таблица1[2019],B111) -> 0 | Q111: =IFERROR(SUMIFS(Таблица1[bb/101],Таблица1[2019],B111)/P111,0) -> 0 | R111: =IFERROR(SUMIFS(Таблица1[EV bb/101],Таблица1[2019],B111)/P111,0) -> 0 | S111: =SUMIFS(Таблица1[Net Winnings],Таблица1[2019],B111) -> 0 | T111: 0
B112: 18:15 3,3 Player Cap PS Friz Regular 9 | E112: =IFERROR(IF(VLOOKUP($B112,Таблица1[],9,0)=0,"",VLOOKUP($B112,Таблица1[],9,0)),"") ->  | F112: =IFERROR(VLOOKUP($B112,Таблица1[],16,0),"") ->  | G112: =IFERROR(VLOOKUP($B112,Таблица1[],10,0),"") ->  | H112: =IFERROR(VLOOKUP($B112,Таблица1[],11,0),"") ->  | I112: =IFERROR(VLOOKUP($B112,Таблица1[],12,0),"") ->  | J112: =IFERROR(VLOOKUP($B112,Таблица1[],13,0),"") ->  | K112: =IFERROR(VLOOKUP($B112,Таблица1[],14,0),"") ->  | L112: =COUNTIFS(Таблица1[2019],B112)+SUMIFS(Таблица1[Re-entry],Таблица1[2019],B112) -> 0 | M112: =SUMIFS(Таблица1[Total Buy-In],Таблица1[2019],B112) -> 0 | N112: 0 | O112: =IFERROR(COUNTIFS(Таблица1[2019],B112,Таблица1[Winnings],">0")/L112*100,0) -> 0 | P112: =SUMIFS(Таблица1[Total Hands],Таблица1[2019],B112) -> 0 | Q112: =IFERROR(SUMIFS(Таблица1[bb/101],Таблица1[2019],B112)/P112,0) -> 0 | R112: =IFERROR(SUMIFS(Таблица1[EV bb/101],Таблица1[2019],B112)/P112,0) -> 0 | S112: =SUMIFS(Таблица1[Net Winnings],Таблица1[2019],B112) -> 0 | T112: 0
B113: 18:25 0,55 Bubble Rush PS Friz Turbo 9 | E113: =IFERROR(IF(VLOOKUP($B113,Таблица1[],9,0)=0,"",VLOOKUP($B113,Таблица1[],9,0)),"") ->  | F113: =IFERROR(VLOOKUP($B113,Таблица1[],16,0),"") ->  | G113: =IFERROR(VLOOKUP($B113,Таблица1[],10,0),"") ->  | H113: =IFERROR(VLOOKUP($B113,Таблица1[],11,0),"") ->  | I113: =IFERROR(VLOOKUP($B113,Таблица1[],12,0),"") ->  | J113: =IFERROR(VLOOKUP($B113,Таблица1[],13,0),"") ->  | K113: =IFERROR(VLOOKUP($B113,Таблица1[],14,0),"") ->  | L113: =COUNTIFS(Таблица1[2019],B113)+SUMIFS(Таблица1[Re-entry],Таблица1[2019],B113) -> 0 | M113: =SUMIFS(Таблица1[Total Buy-In],Таблица1[2019],B113) -> 0 | N113: 0 | O113: =IFERROR(COUNTIFS(Таблица1[2019],B113,Таблица1[Winnings],">0")/L113*100,0) -> 0 | P113: =SUMIFS(Таблица1[Total Hands],Таблица1[2019],B113) -> 0 | Q113: =IFERROR(SUMIFS(Таблица1[bb/101],Таблица1[2019],B113)/P113,0) -> 0 | R113: =IFERROR(SUMIFS(Таблица1[EV bb/101],Таблица1[2019],B113)/P113,0) -> 0 | S113: =SUMIFS(Таблица1[Net Winnings],Таблица1[2019],B113) -> 0 | T113: 0
B114: 18:30 2,2 Bounty Builder PS KO Regular 9 | E114: =IFERROR(IF(VLOOKUP($B114,Таблица1[],9,0)=0,"",VLOOKUP($B114,Таблица1[],9,0)),"") ->  | F114: =IFERROR(VLOOKUP($B114,Таблица1[],16,0),"") ->  | G114: =IFERROR(VLOOKUP($B114,Таблица1[],10,0),"") ->  | H114: =IFERROR(VLOOKUP($B114,Таблица1[],11,0),"") ->  | I114: =IFERROR(VLOOKUP($B114,Таблица1[],12,0),"") ->  | J114: =IFERROR(VLOOKUP($B114,Таблица1[],13,0),"") ->  | K114: =IFERROR(VLOOKUP($B114,Таблица1[],14,0),"") ->  | L114: =COUNTIFS(Таблица1[2019],B114)+SUMIFS(Таблица1[Re-entry],Таблица1[2019],B114) -> 0 | M114: =SUMIFS(Таблица1[Total Buy-In],Таблица1[2019],B114) -> 0 | N114: 0 | O114: =IFERROR(COUNTIFS(Таблица1[2019],B114,Таблица1[Winnings],">0")/L114*100,0) -> 0 | P114: =SUMIFS(Таблица1[Total Hands],Таблица1[2019],B114) -> 0 | Q114: =IFERROR(SUMIFS(Таблица1[bb/101],Таблица1[2019],B114)/P114,0) -> 0 | R114: =IFERROR(SUMIFS(Таблица1[EV bb/101],Таблица1[2019],B114)/P114,0) -> 0 | S114: =SUMIFS(Таблица1[Net Winnings],Таблица1[2019],B114) -> 0 | T114: 0
B115: 18:40 1,1 Zoom PS Friz Turbo 9 | E115: =IFERROR(IF(VLOOKUP($B115,Таблица1[],9,0)=0,"",VLOOKUP($B115,Таблица1[],9,0)),"") ->  | F115: =IFERROR(VLOOKUP($B115,Таблица1[],16,0),"") ->  | G115: =IFERROR(VLOOKUP($B115,Таблица1[],10,0),"") ->  | H115: =IFERROR(VLOOKUP($B115,Таблица1[],11,0),"") ->  | I115: =IFERROR(VLOOKUP($B115,Таблица1[],12,0),"") ->  | J115: =IFERROR(VLOOKUP($B115,Таблица1[],13,0),"") ->  | K115: =IFERROR(VLOOKUP($B115,Таблица1[],14,0),"") ->  | L115: =COUNTIFS(Таблица1[2019],B115)+SUMIFS(Таблица1[Re-entry],Таблица1[2019],B115) -> 0 | M115: =SUMIFS(Таблица1[Total Buy-In],Таблица1[2019],B115) -> 0 | N115: =IFERROR((S115/M115)*100,0) -> 0 | O115: =IFERROR(COUNTIFS(Таблица1[2019],B115,Таблица1[Winnings],">0")/L115*100,0) -> 0 | P115: =SUMIFS(Таблица1[Total Hands],Таблица1[2019],B115) -> 0 | Q115: =IFERROR(SUMIFS(Таблица1[bb/101],Таблица1[2019],B115)/P115,0) -> 0 | R115: =IFERROR(SUMIFS(Таблица1[EV bb/101],Таблица1[2019],B115)/P115,0) -> 0 | S115: =SUMIFS(Таблица1[Net Winnings],Таблица1[2019],B115) -> 0 | T115: =IFERROR(S115/L115,0) -> 0
B116: 18:45 1 Gtd ES Friz Regular 6 | E116: =IFERROR(IF(VLOOKUP($B116,Таблица1[],9,0)=0,"",VLOOKUP($B116,Таблица1[],9,0)),"") ->  | F116: =IFERROR(VLOOKUP($B116,Таблица1[],16,0),"") ->  | G116: =IFERROR(VLOOKUP($B116,Таблица1[],10,0),"") ->  | H116: =IFERROR(VLOOKUP($B116,Таблица1[],11,0),"") ->  | I116: =IFERROR(VLOOKUP($B116,Таблица1[],12,0),"") ->  | J116: =IFERROR(VLOOKUP($B116,Таблица1[],13,0),"") ->  | K116: =IFERROR(VLOOKUP($B116,Таблица1[],14,0),"") ->  | L116: =COUNTIFS(Таблица1[2019],B116)+SUMIFS(Таблица1[Re-entry],Таблица1[2019],B116) -> 0 | M116: =SUMIFS(Таблица1[Total Buy-In],Таблица1[2019],B116) -> 0 | N116: 0 | O116: =IFERROR(COUNTIFS(Таблица1[2019],B116,Таблица1[Winnings],">0")/L116*100,0) -> 0 | P116: =SUMIFS(Таблица1[Total Hands],Таблица1[2019],B116) -> 0 | Q116: =IFERROR(SUMIFS(Таблица1[bb/101],Таблица1[2019],B116)/P116,0) -> 0 | R116: =IFERROR(SUMIFS(Таблица1[EV bb/101],Таблица1[2019],B116)/P116,0) -> 0 | S116: =SUMIFS(Таблица1[Net Winnings],Таблица1[2019],B116) -> 0 | T116: 0
B117: 19:00 1 Deep Stacks ES Friz Regular 6 | E117: =IFERROR(IF(VLOOKUP($B117,Таблица1[],9,0)=0,"",VLOOKUP($B117,Таблица1[],9,0)),"") ->  | F117: =IFERROR(VLOOKUP($B117,Таблица1[],16,0),"") ->  | G117: =IFERROR(VLOOKUP($B117,Таблица1[],10,0),"") ->  | H117: =IFERROR(VLOOKUP($B117,Таблица1[],11,0),"") ->  | I117: =IFERROR(VLOOKUP($B117,Таблица1[],12,0),"") ->  | J117: =IFERROR(VLOOKUP($B117,Таблица1[],13,0),"") ->  | K117: =IFERROR(VLOOKUP($B117,Таблица1[],14,0),"") ->  | L117: =COUNTIFS(Таблица1[2019],B117)+SUMIFS(Таблица1[Re-entry],Таблица1[2019],B117) -> 0 | M117: =SUMIFS(Таблица1[Total Buy-In],Таблица1[2019],B117) -> 0 | N117: 0 | O117: =IFERROR(COUNTIFS(Таблица1[2019],B117,Таблица1[Winnings],">0")/L117*100,0) -> 0 | P117: =SUMIFS(Таблица1[Total Hands],Таблица1[2019],B117) -> 0 | Q117: =IFERROR(SUMIFS(Таблица1[bb/101],Таблица1[2019],B117)/P117,0) -> 0 | R117: =IFERROR(SUMIFS(Таблица1[EV bb/101],Таблица1[2019],B117)/P117,0) -> 0 | S117: =SUMIFS(Таблица1[Net Winnings],Таблица1[2019],B117) -> 0 | T117: 0
B118: 19:00 3,3 Big PS Friz Regular 9 | E118: =IFERROR(IF(VLOOKUP($B118,Таблица1[],9,0)=0,"",VLOOKUP($B118,Таблица1[],9,0)),"") ->  | F118: =IFERROR(VLOOKUP($B118,Таблица1[],16,0),"") ->  | G118: =IFERROR(VLOOKUP($B118,Таблица1[],10,0),"") ->  | H118: =IFERROR(VLOOKUP($B118,Таблица1[],11,0),"") ->  | I118: =IFERROR(VLOOKUP($B118,Таблица1[],12,0),"") ->  | J118: =IFERROR(VLOOKUP($B118,Таблица1[],13,0),"") ->  | K118: =IFERROR(VLOOKUP($B118,Таблица1[],14,0),"") ->  | L118: =COUNTIFS(Таблица1[2019],B118)+SUMIFS(Таблица1[Re-entry],Таблица1[2019],B118) -> 0 | M118: =SUMIFS(Таблица1[Total Buy-In],Таблица1[2019],B118) -> 0 | N118: 0 | O118: =IFERROR(COUNTIFS(Таблица1[2019],B118,Таблица1[Winnings],">0")/L118*100,0) -> 0 | P118: =SUMIFS(Таблица1[Total Hands],Таблица1[2019],B118) -> 0 | Q118: =IFERROR(SUMIFS(Таблица1[bb/101],Таблица1[2019],B118)/P118,0) -> 0 | R118: =IFERROR(SUMIFS(Таблица1[EV bb/101],Таблица1[2019],B118)/P118,0) -> 0 | S118: =SUMIFS(Таблица1[Net Winnings],Таблица1[2019],B118) -> 0 | T118: 0
B119: 19:15 1 SuperStack ES Friz Regular 6 | E119: =IFERROR(IF(VLOOKUP($B119,Таблица1[],9,0)=0,"",VLOOKUP($B119,Таблица1[],9,0)),"") ->  | F119: =IFERROR(VLOOKUP($B119,Таблица1[],16,0),"") ->  | G119: =IFERROR(VLOOKUP($B119,Таблица1[],10,0),"") ->  | H119: =IFERROR(VLOOKUP($B119,Таблица1[],11,0),"") ->  | I119: =IFERROR(VLOOKUP($B119,Таблица1[],12,0),"") ->  | J119: =IFERROR(VLOOKUP($B119,Таблица1[],13,0),"") ->  | K119: =IFERROR(VLOOKUP($B119,Таблица1[],14,0),"") ->  | L119: =COUNTIFS(Таблица1[2019],B119)+SUMIFS(Таблица1[Re-entry],Таблица1[2019],B119) -> 0 | M119: =SUMIFS(Таблица1[Total Buy-In],Таблица1[2019],B119) -> 0 | N119: 0 | O119: =IFERROR(COUNTIFS(Таблица1[2019],B119,Таблица1[Winnings],">0")/L119*100,0) -> 0 | P119: =SUMIFS(Таблица1[Total Hands],Таблица1[2019],B119) -> 0 | Q119: =IFERROR(SUMIFS(Таблица1[bb/101],Таблица1[2019],B119)/P119,0) -> 0 | R119: =IFERROR(SUMIFS(Таблица1[EV bb/101],Таблица1[2019],B119)/P119,0) -> 0 | S119: =SUMIFS(Таблица1[Net Winnings],Таблица1[2019],B119) -> 0 | T119: 0
B120: 19:15 2,2 Gtd PS Friz Turbo 9 | E120: =IFERROR(IF(VLOOKUP($B120,Таблица1[],9,0)=0,"",VLOOKUP($B120,Таблица1[],9,0)),"") ->  | F120: =IFERROR(VLOOKUP($B120,Таблица1[],16,0),"") ->  | G120: =IFERROR(VLOOKUP($B120,Таблица1[],10,0),"") ->  | H120: =IFERROR(VLOOKUP($B120,Таблица1[],11,0),"") ->  | I120: =IFERROR(VLOOKUP($B120,Таблица1[],12,0),"") ->  | J120: =IFERROR(VLOOKUP($B120,Таблица1[],13,0),"") ->  | K120: =IFERROR(VLOOKUP($B120,Таблица1[],14,0),"") ->  | L120: =COUNTIFS(Таблица1[2019],B120)+SUMIFS(Таблица1[Re-entry],Таблица1[2019],B120) -> 0 | M120: =SUMIFS(Таблица1[Total Buy-In],Таблица1[2019],B120) -> 0 | N120: 0 | O120: =IFERROR(COUNTIFS(Таблица1[2019],B120,Таблица1[Winnings],">0")/L120*100,0) -> 0 | P120: =SUMIFS(Таблица1[Total Hands],Таблица1[2019],B120) -> 0 | Q120: =IFERROR(SUMIFS(Таблица1[bb/101],Таблица1[2019],B120)/P120,0) -> 0 | R120: =IFERROR(SUMIFS(Таблица1[EV bb/101],Таблица1[2019],B120)/P120,0) -> 0 | S120: =SUMIFS(Таблица1[Net Winnings],Таблица1[2019],B120) -> 0 | T120: 0
B121: 19:25 1,1 Gtd PS Friz Regular 6
B122: 19:30 0,55 Bounty Builder PS KO Regular 9
B123: 19:45 0,55 Gtd PS Friz Turbo 8
B124: 20:00 1,1 Big PS Friz Regular 9
B125: 20:00 1,1 MicroMillions PS Friz Turbo 9
B126: 20:15 0,55 Hot PS Friz Turbo 9
B127: 20:15 3 SuperStack ES Friz Regular 6
B128: 20:30 3,3 Bounty Builder PS KO Regular 9
B129: 21:00 0,55 Big PS Friz Regular 9
B130: 21:00 2,2 Micro Fast Friday PS Friz Turbo 8
B131: 21:00 22 MicroMillions PS Friz Regular 8
B132: 21:05 11 Sunday Storm PS Friz Regular 9
B133: 21:10 3,3 Player Cap PS Friz Regular 9
B134: 21:15 1,1 Splash R/a PS Friz Turbo 9
B135: 21:15 2 Big ES Friz Regular 9
B136: 21:15 2,2 Hot PS Friz Turbo 9
B137: 21:30 1,1 Bounty Builder PS KO Regular 9
B138: 21:40 3,3 Zoom PS Friz Turbo 9
B139: 22:00 1 Daily Micro ES Friz Regular 9
B140: 22:00 2,2 Big PS Friz Regular 9
B141: 22:00 50 MicroMillions ES Friz Regular 9
B142: 22:15 3,3 Hot PS Friz Turbo 9
B143: 22:25 1 Bubble Rush ES Friz Turbo 9
B144: 22:30 1,1 Player Cap PS Friz Regular 9
B145: 22:50 3,3 Gtd PS Friz Regular 6
B146: 23:10 2,2 Deep Stacks PS Friz Regular 9
B147: 23:15 1,1 Hot PS Friz Turbo 9
B148: 23:30 2,2 Bounty Builder PS KO Regular 9
B149: 23:40 3,3 Gtd PS Friz Regular 8
B150: Общий итог

Sheet HM
B2: Number | C2: Hand Date | D2: Start Time | E2: End Time | F2: Size | G2: Table size | H2: Total Buy-In | I2: Finish | J2: Winnings | K2: Net Winnings | L2: Total Hands | M2: bb/100 | N2: EV bb/100 | O2: Player
B3: 2640633096 | C3: 2019-07-01 | D3: 2019-07-01T09:10:06 | E3: 2019-07-01T09:23:25 | F3: 45 | G3: 9 | H3: 0.25 | I3: 38 | J3: 0 | K3: -0.25 | L3: 13 | M3: -563.33 | N3: -561.84 | O3: mâro (PS)
B4: 2640635094 | C4: 2019-07-01 | D4: 2019-07-01T09:23:35 | E4: 2019-07-01T10:42:14 | F4: 45 | G4: 9 | H4: 0.25 | I4: 11 | J4: 0 | K4: -0.25 | L4: 110 | M4: -18.41 | N4: -43.95 | O4: mâro (PS)
B5: 2640638091 | C5: 2019-07-01 | D5: 2019-07-01T09:31:12 | E5: 2019-07-01T09:52:34 | F5: 45 | G5: 9 | H5: 0.25 | I5: 31 | J5: 0 | K5: -0.25 | L5: 19 | M5: -153.93 | N5: 253.05 | O5: mâro (PS)
B6: 2640644187 | C6: 2019-07-01 | D6: 2019-07-01T09:59:29 | E6: 2019-07-01T12:19:26 | F6: 45 | G6: 9 | H6: 0.25 | I6: 1 | J6: 3.23 | K6: 2.98 | L6: 274 | M6: 73.12 | N6: 35.85 | O6: mâro (PS)

Sheet BAZA()
K2: =COUNTIFS(Таблица1[Name],"=0") -> 0 | L2: =COUNTIFS(Таблица1[Room],88) -> 0 | M2: =COUNTIFS(Таблица1[KO/Friz],"=0") -> 0 | N2: =COUNTIFS(Таблица1[Speed],"=0") -> 0
B3: 2019 | C3: Meset | D3: No | E3: deni nedeli | F3: Number | G3: Date | H3: Столбец3 | I3: Столбец4 | J3: Start | K3: Name | L3: Room | M3: KO/Friz | N3: Speed | O3: Table size | P3: Size | Q3: Buy-In | R3: R/A | S3: Re-entry | T3: Total Buy-In | U3: Finish | V3: Winnings | W3: Net Winnings | X3: Total Hands | Y3: bb/100 | Z3: EV bb/100 | AA3: bb/101 | AB3: EV bb/101 | AC3: 2
B4: =IF(Таблица1[[#This Row],[Number]]="","",CONCATENATE(TEXT(TIME(HOUR(J4),MINUTE(J4),0),"[hh]:mm;@")," ",Таблица1[[#This Row],[Buy-In]]," ",Таблица1[[#This Row],[Name]]," ",Таблица1[[#This Row],[Room]]," ",Таблица1[[#This Row],[KO/Friz]]," ",Таблица1[[#This Row],[Speed]]," ",Таблица1[[#This Row],[Table size]])) -> 00:00 0,25 45 Max PS Friz Regular 9 | C4: =IF(Таблица1[[#This Row],[Number]]="","",TEXT(Таблица1[[#This Row],[Date]],"mmmm")) -> июль | D4: =IF(Таблица1[[#This Row],[Number]]="","",WEEKNUM(Таблица1[[#This Row],[Date]],2)) -> 27 | E4: =IF(Таблица1[[#This Row],[Number]]="","",CHOOSE(WEEKDAY(Таблица1[[#This Row],[Date]],2),"понедельник","вторник","среда","четверг","пятница","суббота","воскресенье")) -> понедельник | F4: =IFERROR(INDEX(Таблица2[Number],MATCH(0,COUNTIF($F$3:F3,Таблица2[Number]),0)),"") -> 2640633096 | G4: =IF(Таблица1[[#This Row],[Number]]="","",VLOOKUP(Таблица1[[#This Row],[Number]],Таблица2[],2,0)) -> 2019-07-01 | H4: =IF(Таблица1[[#This Row],[Number]]="","",VLOOKUP(Таблица1[[#This Row],[Number]],Таблица2[],3,0)) -> 43647.38201 | I4: =IF(Таблица1[[#This Row],[Number]]="","",VLOOKUP(Таблица1[[#This Row],[Number]],Таблица2[],4,0)) -> 43647.39126 | K4: =IF(OR(CONCATENATE(Таблица1[[#This Row],[Buy-In]],Таблица1[[#This Row],[Size]]) ="0,2545", CONCATENATE(Таблица1[[#This Row],[Buy-In]],Таблица1[[#This Row],[Size]]) ="0,545", CONCATENATE(Таблица1[[#This Row],[Buy-In]],Таблица1[[#This Row],[Size]]) ="145" ), "45 Max", IF(OR(CONCATENATE(Таблица1[[#This Row],[Buy-In]],Таблица1[[#This Row],[Size]]) ="1180", CONCATENATE(Таблица1[[#This Row],[Buy-In]],Таблица1[[#This Row],[Size]]) ="1180"), "180 Max","") ) -> 45 Max | L4: =IF(Таблица1[[#This Row],[Number]]="","",IF(VLOOKUP(Таблица1[[#This Row],[Number]],Таблица2[],14,0)="mâro (PS)","PS")) -> PS | M4: =IF(Таблица1[[#This Row],[Number]]="","",IF(OR(Таблица1[[#This Row],[Name]]="Bounty Builder",Таблица1[[#This Row],[Name]]="Progressive KO"),"KO","Friz")) -> Friz | N4: =IF(Таблица1[[#This Row],[Number]]="","",IF( Таблица1[[#This Row],[2]]="0:000,2545 maxps", "Regular",0)) -> Regular | O4: =IF(Таблица1[[#This Row],[Number]]="","",VLOOKUP(Таблица1[[#This Row],[Number]],Таблица2[],6,0)) -> 9 | P4: =IF(Таблица1[[#This Row],[Number]]="","",VLOOKUP(Таблица1[[#This Row],[Number]],Таблица2[],5,0)) -> 45 | Q4: =IF(Таблица1[[#This Row],[Number]]="","",VLOOKUP(Таблица1[[#This Row],[Number]],Таблица2[],7,0)) -> 0.25 | T4: =IF(Таблица1[[#This Row],[Number]]="","",Таблица1[[#This Row],[Re-entry]]*Таблица1[[#This Row],[Buy-In]]+Таблица1[[#This Row],[Buy-In]]+Таблица1[[#This Row],[R/A]]*Таблица1[[#This Row],[Buy-In]]) -> 0.25 | U4: =IF(Таблица1[[#This Row],[Number]]="","",VLOOKUP(Таблица1[[#This Row],[Number]],Таблица2[],8,0)) -> 38 | V4: =IF(Таблица1[[#This Row],[Number]]="","",VLOOKUP(Таблица1[[#This Row],[Number]],Таблица2[],9,0)) -> 0 | W4: =IF(Таблица1[[#This Row],[Number]]="","",Таблица1[[#This Row],[Winnings]]-Таблица1[[#This Row],[Total Buy-In]]) -> -0.25 | X4: =IF(Таблица1[[#This Row],[Number]]="","",VLOOKUP(Таблица1[[#This Row],[Number]],Таблица2[],11,0)) -> 13 | Y4: =IF(Таблица1[[#This Row],[Number]]="","",VLOOKUP(Таблица1[[#This Row],[Number]],Таблица2[],12,0)) -> -563.33 | Z4: =IF(Таблица1[[#This Row],[Number]]="","",VLOOKUP(Таблица1[[#This Row],[Number]],Таблица2[],13,0)) -> -561.84 | AA4: =IF(Таблица1[[#This Row],[Number]]="","",Таблица1[[#This Row],[bb/100]]*Таблица1[[#This Row],[Total Hands]]) -> -7323.29 | AB4: =IF(Таблица1[[#This Row],[Number]]="","",Таблица1[[#This Row],[EV bb/100]]*Таблица1[[#This Row],[Total Hands]]) -> -7303.92 | AC4: =IF(Таблица1[[#This Row],[Number]]="","",CONCATENATE(TEXT(TIME(HOUR(J4),MINUTE(J4),0),"h:mm"),Таблица1[[#This Row],[Buy-In]],Таблица1[[#This Row],[Name]],Таблица1[[#This Row],[Room]])) -> 0:000,2545 MaxPS
B5: =IF(Таблица1[[#This Row],[Number]]="","",CONCATENATE(TEXT(TIME(HOUR(J5),MINUTE(J5),0),"[hh]:mm;@")," ",Таблица1[[#This Row],[Buy-In]]," ",Таблица1[[#This Row],[Name]]," ",Таблица1[[#This Row],[Room]]," ",Таблица1[[#This Row],[KO/Friz]]," ",Таблица1[[#This Row],[Speed]]," ",Таблица1[[#This Row],[Table size]])) -> 00:00 0,25 45 Max PS Friz Regular 9 | C5: =IF(Таблица1[[#This Row],[Number]]="","",TEXT(Таблица1[[#This Row],[Date]],"mmmm")) -> июль | D5: =IF(Таблица1[[#This Row],[Number]]="","",WEEKNUM(Таблица1[[#This Row],[Date]],2)) -> 27 | E5: =IF(Таблица1[[#This Row],[Number]]="","",CHOOSE(WEEKDAY(Таблица1[[#This Row],[Date]],2),"понедельник","вторник","среда","четверг","пятница","суббота","воскресенье")) -> понедельник | F5: =IFERROR(INDEX(Таблица2[Number],MATCH(0,COUNTIF($F$3:F4,Таблица2[Number]),0)),"") -> 2640635094 | G5: =IF(Таблица1[[#This Row],[Number]]="","",VLOOKUP(Таблица1[[#This Row],[Number]],Таблица2[],2,0)) -> 2019-07-01 | H5: =IF(Таблица1[[#This Row],[Number]]="","",VLOOKUP(Таблица1[[#This Row],[Number]],Таблица2[],3,0)) -> 43647.39138 | I5: =IF(Таблица1[[#This Row],[Number]]="","",VLOOKUP(Таблица1[[#This Row],[Number]],Таблица2[],4,0)) -> 43647.446 | K5: =IF(OR(CONCATENATE(Таблица1[[#This Row],[Buy-In]],Таблица1[[#This Row],[Size]]) ="0,2545", CONCATENATE(Таблица1[[#This Row],[Buy-In]],Таблица1[[#This Row],[Size]]) ="0,545", CONCATENATE(Таблица1[[#This Row],[Buy-In]],Таблица1[[#This Row],[Size]]) ="145" ), "45 Max", IF(OR(CONCATENATE(Таблица1[[#This Row],[Buy-In]],Таблица1[[#This Row],[Size]]) ="1180", CONCATENATE(Таблица1[[#This Row],[Buy-In]],Таблица1[[#This Row],[Size]]) ="1180"), "180 Max","") ) -> 45 Max | L5: =IF(Таблица1[[#This Row],[Number]]="","",IF(VLOOKUP(Таблица1[[#This Row],[Number]],Таблица2[],14,0)="mâro (PS)","PS")) -> PS | M5: =IF(Таблица1[[#This Row],[Number]]="","",IF(OR(Таблица1[[#This Row],[Name]]="Bounty Builder",Таблица1[[#This Row],[Name]]="Progressive KO"),"KO","Friz")) -> Friz | N5: =IF(Таблица1[[#This Row],[Number]]="","",IF( Таблица1[[#This Row],[2]]="0:000,2545 maxps", "Regular",0)) -> Regular | O5: =IF(Таблица1[[#This Row],[Number]]="","",VLOOKUP(Таблица1[[#This Row],[Number]],Таблица2[],6,0)) -> 9 | P5: =IF(Таблица1[[#This Row],[Number]]="","",VLOOKUP(Таблица1[[#This Row],[Number]],Таблица2[],5,0)) -> 45 | Q5: =IF(Таблица1[[#This Row],[Number]]="","",VLOOKUP(Таблица1[[#This Row],[Number]],Таблица2[],7,0)) -> 0.25 | T5: =IF(Таблица1[[#This Row],[Number]]="","",Таблица1[[#This Row],[Re-entry]]*Таблица1[[#This Row],[Buy-In]]+Таблица1[[#This Row],[Buy-In]]+Таблица1[[#This Row],[R/A]]*Таблица1[[#This Row],[Buy-In]]) -> 0.25 | U5: =IF(Таблица1[[#This Row],[Number]]="","",VLOOKUP(Таблица1[[#This Row],[Number]],Таблица2[],8,0)) -> 11 | V5: =IF(Таблица1[[#This Row],[Number]]="","",VLOOKUP(Таблица1[[#This Row],[Number]],Таблица2[],9,0)) -> 0 | W5: =IF(Таблица1[[#This Row],[Number]]="","",Таблица1[[#This Row],[Winnings]]-Таблица1[[#This Row],[Total Buy-In]]) -> -0.25 | X5: =IF(Таблица1[[#This Row],[Number]]="","",VLOOKUP(Таблица1[[#This Row],[Number]],Таблица2[],11,0)) -> 110 | Y5: =IF(Таблица1[[#This Row],[Number]]="","",VLOOKUP(Таблица1[[#This Row],[Number]],Таблица2[],12,0)) -> -18.41 | Z5: =IF(Таблица1[[#This Row],[Number]]="","",VLOOKUP(Таблица1[[#This Row],[Number]],Таблица2[],13,0)) -> -43.95 | AA5: =IF(Таблица1[[#This Row],[Number]]="","",Таблица1[[#This Row],[bb/100]]*Таблица1[[#This Row],[Total Hands]]) -> -2025.1 | AB5: =IF(Таблица1[[#This Row],[Number]]="","",Таблица1[[#This Row],[EV bb/100]]*Таблица1[[#This Row],[Total Hands]]) -> -4834.5 | AC5: =IF(Таблица1[[#This Row],[Number]]="","",CONCATENATE(TEXT(TIME(HOUR(J5),MINUTE(J5),0),"h:mm"),Таблица1[[#This Row],[Buy-In]],Таблица1[[#This Row],[Name]],Таблица1[[#This Row],[Room]])) -> 0:000,2545 MaxPS
B6: =IF(Таблица1[[#This Row],[Number]]="","",CONCATENATE(TEXT(TIME(HOUR(J6),MINUTE(J6),0),"[hh]:mm;@")," ",Таблица1[[#This Row],[Buy-In]]," ",Таблица1[[#This Row],[Name]]," ",Таблица1[[#This Row],[Room]]," ",Таблица1[[#This Row],[KO/Friz]]," ",Таблица1[[#This Row],[Speed]]," ",Таблица1[[#This Row],[Table size]])) -> 00:00 0,25 45 Max PS Friz Regular 9 | C6: =IF(Таблица1[[#This Row],[Number]]="","",TEXT(Таблица1[[#This Row],[Date]],"mmmm")) -> июль | D6: =IF(Таблица1[[#This Row],[Number]]="","",WEEKNUM(Таблица1[[#This Row],[Date]],2)) -> 27 | E6: =IF(Таблица1[[#This Row],[Number]]="","",CHOOSE(WEEKDAY(Таблица1[[#This Row],[Date]],2),"понедельник","вторник","среда","четверг","пятница","суббота","воскресенье")) -> понедельник | F6: =IFERROR(INDEX(Таблица2[Number],MATCH(0,COUNTIF($F$3:F5,Таблица2[Number]),0)),"") -> 2640638091 | G6: =IF(Таблица1[[#This Row],[Number]]="","",VLOOKUP(Таблица1[[#This Row],[Number]],Таблица2[],2,0)) -> 2019-07-01 | H6: =IF(Таблица1[[#This Row],[Number]]="","",VLOOKUP(Таблица1[[#This Row],[Number]],Таблица2[],3,0)) -> 43647.39667 | I6: =IF(Таблица1[[#This Row],[Number]]="","",VLOOKUP(Таблица1[[#This Row],[Number]],Таблица2[],4,0)) -> 43647.4115 | K6: =IF(OR(CONCATENATE(Таблица1[[#This Row],[Buy-In]],Таблица1[[#This Row],[Size]]) ="0,2545", CONCATENATE(Таблица1[[#This Row],[Buy-In]],Таблица1[[#This Row],[Size]]) ="0,545", CONCATENATE(Таблица1[[#This Row],[Buy-In]],Таблица1[[#This Row],[Size]]) ="145" ), "45 Max", IF(OR(CONCATENATE(Таблица1[[#This Row],[Buy-In]],Таблица1[[#This Row],[Size]]) ="1180", CONCATENATE(Таблица1[[#This Row],[Buy-In]],Таблица1[[#This Row],[Size]]) ="1180"), "180 Max","") ) -> 45 Max | L6: =IF(Таблица1[[#This Row],[Number]]="","",IF(VLOOKUP(Таблица1[[#This Row],[Number]],Таблица2[],14,0)="mâro (PS)","PS")) -> PS | M6: =IF(Таблица1[[#This Row],[Number]]="","",IF(OR(Таблица1[[#This Row],[Name]]="Bounty Builder",Таблица1[[#This Row],[Name]]="Progressive KO"),"KO","Friz")) -> Friz | N6: =IF(Таблица1[[#This Row],[Number]]="","",IF( Таблица1[[#This Row],[2]]="0:000,2545 maxps", "Regular",0)) -> Regular | O6: =IF(Таблица1[[#This Row],[Number]]="","",VLOOKUP(Таблица1[[#This Row],[Number]],Таблица2[],6,0)) -> 9 | P6: =IF(Таблица1[[#This Row],[Number]]="","",VLOOKUP(Таблица1[[#This Row],[Number]],Таблица2[],5,0)) -> 45 | Q6: =IF(Таблица1[[#This Row],[Number]]="","",VLOOKUP(Таблица1[[#This Row],[Number]],Таблица2[],7,0)) -> 0.25 | T6: =IF(Таблица1[[#This Row],[Number]]="","",Таблица1[[#This Row],[Re-entry]]*Таблица1[[#This Row],[Buy-In]]+Таблица1[[#This Row],[Buy-In]]+Таблица1[[#This Row],[R/A]]*Таблица1[[#This Row],[Buy-In]]) -> 0.25 | U6: =IF(Таблица1[[#This Row],[Number]]="","",VLOOKUP(Таблица1[[#This Row],[Number]],Таблица2[],8,0)) -> 31 | V6: =IF(Таблица1[[#This Row],[Number]]="","",VLOOKUP(Таблица1[[#This Row],[Number]],Таблица2[],9,0)) -> 0 | W6: =IF(Таблица1[[#This Row],[Number]]="","",Таблица1[[#This Row],[Winnings]]-Таблица1[[#This Row],[Total Buy-In]]) -> -0.25 | X6: =IF(Таблица1[[#This Row],[Number]]="","",VLOOKUP(Таблица1[[#This Row],[Number]],Таблица2[],11,0)) -> 19 | Y6: =IF(Таблица1[[#This Row],[Number]]="","",VLOOKUP(Таблица1[[#This Row],[Number]],Таблица2[],12,0)) -> -153.93 | Z6: =IF(Таблица1[[#This Row],[Number]]="","",VLOOKUP(Таблица1[[#This Row],[Number]],Таблица2[],13,0)) -> 253.05 | AA6: =IF(Таблица1[[#This Row],[Number]]="","",Таблица1[[#This Row],[bb/100]]*Таблица1[[#This Row],[Total Hands]]) -> -2924.67 | AB6: =IF(Таблица1[[#This Row],[Number]]="","",Таблица1[[#This Row],[EV bb/100]]*Таблица1[[#This Row],[Total Hands]]) -> 4807.95 | AC6: =IF(Таблица1[[#This Row],[Number]]="","",CONCATENATE(TEXT(TIME(HOUR(J6),MINUTE(J6),0),"h:mm"),Таблица1[[#This Row],[Buy-In]],Таблица1[[#This Row],[Name]],Таблица1[[#This Row],[Room]])) -> 0:000,2545 MaxPS
B7: =IF(Таблица1[[#This Row],[Number]]="","",CONCATENATE(TEXT(TIME(HOUR(J7),MINUTE(J7),0),"[hh]:mm;@")," ",Таблица1[[#This Row],[Buy-In]]," ",Таблица1[[#This Row],[Name]]," ",Таблица1[[#This Row],[Room]]," ",Таблица1[[#This Row],[KO/Friz]]," ",Таблица1[[#This Row],[Speed]]," ",Таблица1[[#This Row],[Table size]])) -> 00:00 0,25 45 Max PS Friz Regular 9 | C7: =IF(Таблица1[[#This Row],[Number]]="","",TEXT(Таблица1[[#This Row],[Date]],"mmmm")) -> июль | D7: =IF(Таблица1[[#This Row],[Number]]="","",WEEKNUM(Таблица1[[#This Row],[Date]],2)) -> 27 | E7: =IF(Таблица1[[#This Row],[Number]]="","",CHOOSE(WEEKDAY(Таблица1[[#This Row],[Date]],2),"понедельник","вторник","среда","четверг","пятница","суббота","воскресенье")) -> понедельник | F7: =IFERROR(INDEX(Таблица2[Number],MATCH(0,COUNTIF($F$3:F6,Таблица2[Number]),0)),"") -> 2640644187 | G7: =IF(Таблица1[[#This Row],[Number]]="","",VLOOKUP(Таблица1[[#This Row],[Number]],Таблица2[],2,0)) -> 2019-07-01 | H7: =IF(Таблица1[[#This Row],[Number]]="","",VLOOKUP(Таблица1[[#This Row],[Number]],Таблица2[],3,0)) -> 43647.41631 | I7: =IF(Таблица1[[#This Row],[Number]]="","",VLOOKUP(Таблица1[[#This Row],[Number]],Таблица2[],4,0)) -> 43647.5135 | K7: =IF(OR(CONCATENATE(Таблица1[[#This Row],[Buy-In]],Таблица1[[#This Row],[Size]]) ="0,2545", CONCATENATE(Таблица1[[#This Row],[Buy-In]],Таблица1[[#This Row],[Size]]) ="0,545", CONCATENATE(Таблица1[[#This Row],[Buy-In]],Таблица1[[#This Row],[Size]]) ="145" ), "45 Max", IF(OR(CONCATENATE(Таблица1[[#This Row],[Buy-In]],Таблица1[[#This Row],[Size]]) ="1180", CONCATENATE(Таблица1[[#This Row],[Buy-In]],Таблица1[[#This Row],[Size]]) ="1180"), "180 Max","") ) -> 45 Max | L7: =IF(Таблица1[[#This Row],[Number]]="","",IF(VLOOKUP(Таблица1[[#This Row],[Number]],Таблица2[],14,0)="mâro (PS)","PS")) -> PS | M7: =IF(Таблица1[[#This Row],[Number]]="","",IF(OR(Таблица1[[#This Row],[Name]]="Bounty Builder",Таблица1[[#This Row],[Name]]="Progressive KO"),"KO","Friz")) -> Friz | N7: =IF(Таблица1[[#This Row],[Number]]="","",IF( Таблица1[[#This Row],[2]]="0:000,2545 maxps", "Regular",0)) -> Regular | O7: =IF(Таблица1[[#This Row],[Number]]="","",VLOOKUP(Таблица1[[#This Row],[Number]],Таблица2[],6,0)) -> 9 | P7: =IF(Таблица1[[#This Row],[Number]]="","",VLOOKUP(Таблица1[[#This Row],[Number]],Таблица2[],5,0)) -> 45 | Q7: =IF(Таблица1[[#This Row],[Number]]="","",VLOOKUP(Таблица1[[#This Row],[Number]],Таблица2[],7,0)) -> 0.25 | T7: =IF(Таблица1[[#This Row],[Number]]="","",Таблица1[[#This Row],[Re-entry]]*Таблица1[[#This Row],[Buy-In]]+Таблица1[[#This Row],[Buy-In]]+Таблица1[[#This Row],[R/A]]*Таблица1[[#This Row],[Buy-In]]) -> 0.25 | U7: =IF(Таблица1[[#This Row],[Number]]="","",VLOOKUP(Таблица1[[#This Row],[Number]],Таблица2[],8,0)) -> 1 | V7: =IF(Таблица1[[#This Row],[Number]]="","",VLOOKUP(Таблица1[[#This Row],[Number]],Таблица2[],9,0)) -> 3.23 | W7: =IF(Таблица1[[#This Row],[Number]]="","",Таблица1[[#This Row],[Winnings]]-Таблица1[[#This Row],[Total Buy-In]]) -> 2.98 | X7: =IF(Таблица1[[#This Row],[Number]]="","",VLOOKUP(Таблица1[[#This Row],[Number]],Таблица2[],11,0)) -> 274 | Y7: =IF(Таблица1[[#This Row],[Number]]="","",VLOOKUP(Таблица1[[#This Row],[Number]],Таблица2[],12,0)) -> 73.12 | Z7: =IF(Таблица1[[#This Row],[Number]]="","",VLOOKUP(Таблица1[[#This Row],[Number]],Таблица2[],13,0)) -> 35.85 | AA7: =IF(Таблица1[[#This Row],[Number]]="","",Таблица1[[#This Row],[bb/100]]*Таблица1[[#This Row],[Total Hands]]) -> 20034.88 | AB7: =IF(Таблица1[[#This Row],[Number]]="","",Таблица1[[#This Row],[EV bb/100]]*Таблица1[[#This Row],[Total Hands]]) -> 9822.9 | AC7: =IF(Таблица1[[#This Row],[Number]]="","",CONCATENATE(TEXT(TIME(HOUR(J7),MINUTE(J7),0),"h:mm"),Таблица1[[#This Row],[Buy-In]],Таблица1[[#This Row],[Name]],Таблица1[[#This Row],[Room]])) -> 0:000,2545 MaxPS

Sheet день
B2: 2019 | C2: Games | D2: Buy-in | E2: ABI | F2: Roi | G2: Itm | H2: Hand | I2: bb/100 | J2: EV bb/100 | K2: Profit | L2: Pr/Game
B3: 2019-07-01 | C3: =COUNTIFS(Таблица1[Date],Таблица6[[#This Row],[2019]])+SUMIFS(Таблица1[Re-entry],Таблица1[Date],Таблица6[[#This Row],[2019]]) -> 4 | D3: =SUMIFS(Таблица1[Total Buy-In],Таблица1[Date],Таблица6[[#This Row],[2019]]) -> 1 | E3: =IFERROR(Таблица6[Buy-in]/Таблица6[Games],0) -> 0.25 | F3: =IFERROR((Таблица6[Profit]/Таблица6[Buy-in])*100,0) -> 223 | G3: =IFERROR((COUNTIFS(Таблица1[Date],Таблица6[2019],Таблица1[Winnings],">0")/Таблица6[Games])*100,0) -> 25 | H3: =SUMIFS(Таблица1[Total Hands],Таблица1[Date],Таблица6[[#This Row],[2019]]) -> 416 | I3: =IFERROR(SUMIFS(Таблица1[bb/101],Таблица1[Date],Таблица6[[#This Row],[2019]])/Таблица6[[#This Row],[Hand]],0) -> 18.65822115 | J3: =IFERROR(SUMIFS(Таблица1[EV bb/101],Таблица1[Date],Таблица6[[#This Row],[2019]])/Таблица6[[#This Row],[Hand]],0) -> 5.991418269 | K3: =SUMIFS(Таблица1[Net Winnings],Таблица1[Date],Таблица6[2019]) -> 2.23 | L3: =IFERROR(Таблица6[[#This Row],[Profit]]/Таблица6[[#This Row],[Games]],0) -> 0.5575
B4: 2019-07-02 | C4: =COUNTIFS(Таблица1[Date],Таблица6[[#This Row],[2019]])+SUMIFS(Таблица1[Re-entry],Таблица1[Date],Таблица6[[#This Row],[2019]]) -> 0 | D4: =SUMIFS(Таблица1[Total Buy-In],Таблица1[Date],Таблица6[[#This Row],[2019]]) -> 0 | E4: =IFERROR(Таблица6[Buy-in]/Таблица6[Games],0) -> 0 | F4: =IFERROR((Таблица6[Profit]/Таблица6[Buy-in])*100,0) -> 0 | G4: =IFERROR((COUNTIFS(Таблица1[Date],Таблица6[2019],Таблица1[Winnings],">0")/Таблица6[Games])*100,0) -> 0 | H4: =SUMIFS(Таблица1[Total Hands],Таблица1[Date],Таблица6[[#This Row],[2019]]) -> 0 | I4: =IFERROR(SUMIFS(Таблица1[bb/101],Таблица1[Date],Таблица6[[#This Row],[2019]])/Таблица6[[#This Row],[Hand]],0) -> 0 | J4: =IFERROR(SUMIFS(Таблица1[EV bb/101],Таблица1[Date],Таблица6[[#This Row],[2019]])/Таблица6[[#This Row],[Hand]],0) -> 0 | K4: =SUMIFS(Таблица1[Net Winnings],Таблица1[Date],Таблица6[2019]) -> 0 | L4: =IFERROR(Таблица6[[#This Row],[Profit]]/Таблица6[[#This Row],[Games]],0) -> 0
B5: 2019-07-03 | C5: =COUNTIFS(Таблица1[Date],Таблица6[[#This Row],[2019]])+SUMIFS(Таблица1[Re-entry],Таблица1[Date],Таблица6[[#This Row],[2019]]) -> 0 | D5: =SUMIFS(Таблица1[Total Buy-In],Таблица1[Date],Таблица6[[#This Row],[2019]]) -> 0 | E5: =IFERROR(Таблица6[Buy-in]/Таблица6[Games],0) -> 0 | F5: =IFERROR((Таблица6[Profit]/Таблица6[Buy-in])*100,0) -> 0 | G5: =IFERROR((COUNTIFS(Таблица1[Date],Таблица6[2019],Таблица1[Winnings],">0")/Таблица6[Games])*100,0) -> 0 | H5: =SUMIFS(Таблица1[Total Hands],Таблица1[Date],Таблица6[[#This Row],[2019]]) -> 0 | I5: =IFERROR(SUMIFS(Таблица1[bb/101],Таблица1[Date],Таблица6[[#This Row],[2019]])/Таблица6[[#This Row],[Hand]],0) -> 0 | J5: =IFERROR(SUMIFS(Таблица1[EV bb/101],Таблица1[Date],Таблица6[[#This Row],[2019]])/Таблица6[[#This Row],[Hand]],0) -> 0 | K5: =SUMIFS(Таблица1[Net Winnings],Таблица1[Date],Таблица6[2019]) -> 0 | L5: =IFERROR(Таблица6[[#This Row],[Profit]]/Таблица6[[#This Row],[Games]],0) -> 0
B6: 2019-07-04 | C6: =COUNTIFS(Таблица1[Date],Таблица6[[#This Row],[2019]])+SUMIFS(Таблица1[Re-entry],Таблица1[Date],Таблица6[[#This Row],[2019]]) -> 0 | D6: =SUMIFS(Таблица1[Total Buy-In],Таблица1[Date],Таблица6[[#This Row],[2019]]) -> 0 | E6: =IFERROR(Таблица6[Buy-in]/Таблица6[Games],0) -> 0 | F6: =IFERROR((Таблица6[Profit]/Таблица6[Buy-in])*100,0) -> 0 | G6: =IFERROR((COUNTIFS(Таблица1[Date],Таблица6[2019],Таблица1[Winnings],">0")/Таблица6[Games])*100,0) -> 0 | H6: =SUMIFS(Таблица1[Total Hands],Таблица1[Date],Таблица6[[#This Row],[2019]]) -> 0 | I6: =IFERROR(SUMIFS(Таблица1[bb/101],Таблица1[Date],Таблица6[[#This Row],[2019]])/Таблица6[[#This Row],[Hand]],0) -> 0 | J6: =IFERROR(SUMIFS(Таблица1[EV bb/101],Таблица1[Date],Таблица6[[#This Row],[2019]])/Таблица6[[#This Row],[Hand]],0) -> 0 | K6: =SUMIFS(Таблица1[Net Winnings],Таблица1[Date],Таблица6[2019]) -> 0 | L6: =IFERROR(Таблица6[[#This Row],[Profit]]/Таблица6[[#This Row],[Games]],0) -> 0
B7: 2019-07-05 | C7: =COUNTIFS(Таблица1[Date],Таблица6[[#This Row],[2019]])+SUMIFS(Таблица1[Re-entry],Таблица1[Date],Таблица6[[#This Row],[2019]]) -> 0 | D7: =SUMIFS(Таблица1[Total Buy-In],Таблица1[Date],Таблица6[[#This Row],[2019]]) -> 0 | E7: =IFERROR(Таблица6[Buy-in]/Таблица6[Games],0) -> 0 | F7: =IFERROR((Таблица6[Profit]/Таблица6[Buy-in])*100,0) -> 0 | G7: =IFERROR((COUNTIFS(Таблица1[Date],Таблица6[2019],Таблица1[Winnings],">0")/Таблица6[Games])*100,0) -> 0 | H7: =SUMIFS(Таблица1[Total Hands],Таблица1[Date],Таблица6[[#This Row],[2019]]) -> 0 | I7: =IFERROR(SUMIFS(Таблица1[bb/101],Таблица1[Date],Таблица6[[#This Row],[2019]])/Таблица6[[#This Row],[Hand]],0) -> 0 | J7: =IFERROR(SUMIFS(Таблица1[EV bb/101],Таблица1[Date],Таблица6[[#This Row],[2019]])/Таблица6[[#This Row],[Hand]],0) -> 0 | K7: =SUMIFS(Таблица1[Net Winnings],Таблица1[Date],Таблица6[2019]) -> 0 | L7: =IFERROR(Таблица6[[#This Row],[Profit]]/Таблица6[[#This Row],[Games]],0) -> 0
B8: 2019-07-06 | C8: =COUNTIFS(Таблица1[Date],Таблица6[[#This Row],[2019]])+SUMIFS(Таблица1[Re-entry],Таблица1[Date],Таблица6[[#This Row],[2019]]) -> 0 | D8: =SUMIFS(Таблица1[Total Buy-In],Таблица1[Date],Таблица6[[#This Row],[2019]]) -> 0 | E8: =IFERROR(Таблица6[Buy-in]/Таблица6[Games],0) -> 0 | F8: =IFERROR((Таблица6[Profit]/Таблица6[Buy-in])*100,0) -> 0 | G8: =IFERROR((COUNTIFS(Таблица1[Date],Таблица6[2019],Таблица1[Winnings],">0")/Таблица6[Games])*100,0) -> 0 | H8: =SUMIFS(Таблица1[Total Hands],Таблица1[Date],Таблица6[[#This Row],[2019]]) -> 0 | I8: =IFERROR(SUMIFS(Таблица1[bb/101],Таблица1[Date],Таблица6[[#This Row],[2019]])/Таблица6[[#This Row],[Hand]],0) -> 0 | J8: =IFERROR(SUMIFS(Таблица1[EV bb/101],Таблица1[Date],Таблица6[[#This Row],[2019]])/Таблица6[[#This Row],[Hand]],0) -> 0 | K8: =SUMIFS(Таблица1[Net Winnings],Таблица1[Date],Таблица6[2019]) -> 0 | L8: =IFERROR(Таблица6[[#This Row],[Profit]]/Таблица6[[#This Row],[Games]],0) -> 0
B9: 2019-07-07 | C9: =COUNTIFS(Таблица1[Date],Таблица6[[#This Row],[2019]])+SUMIFS(Таблица1[Re-entry],Таблица1[Date],Таблица6[[#This Row],[2019]]) -> 0 | D9: =SUMIFS(Таблица1[Total Buy-In],Таблица1[Date],Таблица6[[#This Row],[2019]]) -> 0 | E9: =IFERROR(Таблица6[Buy-in]/Таблица6[Games],0) -> 0 | F9: =IFERROR((Таблица6[Profit]/Таблица6[Buy-in])*100,0) -> 0 | G9: =IFERROR((COUNTIFS(Таблица1[Date],Таблица6[2019],Таблица1[Winnings],">0")/Таблица6[Games])*100,0) -> 0 | H9: =SUMIFS(Таблица1[Total Hands],Таблица1[Date],Таблица6[[#This Row],[2019]]) -> 0 | I9: =IFERROR(SUMIFS(Таблица1[bb/101],Таблица1[Date],Таблица6[[#This Row],[2019]])/Таблица6[[#This Row],[Hand]],0) -> 0 | J9: =IFERROR(SUMIFS(Таблица1[EV bb/101],Таблица1[Date],Таблица6[[#This Row],[2019]])/Таблица6[[#This Row],[Hand]],0) -> 0 | K9: =SUMIFS(Таблица1[Net Winnings],Таблица1[Date],Таблица6[2019]) -> 0 | L9: =IFERROR(Таблица6[[#This Row],[Profit]]/Таблица6[[#This Row],[Games]],0) -> 0
B10: 2019-07-08 | C10: =COUNTIFS(Таблица1[Date],Таблица6[[#This Row],[2019]])+SUMIFS(Таблица1[Re-entry],Таблица1[Date],Таблица6[[#This Row],[2019]]) -> 0 | D10: =SUMIFS(Таблица1[Total Buy-In],Таблица1[Date],Таблица6[[#This Row],[2019]]) -> 0 | E10: =IFERROR(Таблица6[Buy-in]/Таблица6[Games],0) -> 0 | F10: =IFERROR((Таблица6[Profit]/Таблица6[Buy-in])*100,0) -> 0 | G10: =IFERROR((COUNTIFS(Таблица1[Date],Таблица6[2019],Таблица1[Winnings],">0")/Таблица6[Games])*100,0) -> 0 | H10: =SUMIFS(Таблица1[Total Hands],Таблица1[Date],Таблица6[[#This Row],[2019]]) -> 0 | I10: =IFERROR(SUMIFS(Таблица1[bb/101],Таблица1[Date],Таблица6[[#This Row],[2019]])/Таблица6[[#This Row],[Hand]],0) -> 0 | J10: =IFERROR(SUMIFS(Таблица1[EV bb/101],Таблица1[Date],Таблица6[[#This Row],[2019]])/Таблица6[[#This Row],[Hand]],0) -> 0 | K10: =SUMIFS(Таблица1[Net Winnings],Таблица1[Date],Таблица6[2019]) -> 0 | L10: =IFERROR(Таблица6[[#This Row],[Profit]]/Таблица6[[#This Row],[Games]],0) -> 0
B11: 2019-07-09 | C11: =COUNTIFS(Таблица1[Date],Таблица6[[#This Row],[2019]])+SUMIFS(Таблица1[Re-entry],Таблица1[Date],Таблица6[[#This Row],[2019]]) -> 0 | D11: =SUMIFS(Таблица1[Total Buy-In],Таблица1[Date],Таблица6[[#This Row],[2019]]) -> 0 | E11: =IFERROR(Таблица6[Buy-in]/Таблица6[Games],0) -> 0 | F11: =IFERROR((Таблица6[Profit]/Таблица6[Buy-in])*100,0) -> 0 | G11: =IFERROR((COUNTIFS(Таблица1[Date],Таблица6[2019],Таблица1[Winnings],">0")/Таблица6[Games])*100,0) -> 0 | H11: =SUMIFS(Таблица1[Total Hands],Таблица1[Date],Таблица6[[#This Row],[2019]]) -> 0 | I11: =IFERROR(SUMIFS(Таблица1[bb/101],Таблица1[Date],Таблица6[[#This Row],[2019]])/Таблица6[[#This Row],[Hand]],0) -> 0 | J11: =IFERROR(SUMIFS(Таблица1[EV bb/101],Таблица1[Date],Таблица6[[#This Row],[2019]])/Таблица6[[#This Row],[Hand]],0) -> 0 | K11: =SUMIFS(Таблица1[Net Winnings],Таблица1[Date],Таблица6[2019]) -> 0 | L11: =IFERROR(Таблица6[[#This Row],[Profit]]/Таблица6[[#This Row],[Games]],0) -> 0
B12: 2019-07-10 | C12: =COUNTIFS(Таблица1[Date],Таблица6[[#This Row],[2019]])+SUMIFS(Таблица1[Re-entry],Таблица1[Date],Таблица6[[#This Row],[2019]]) -> 0 | D12: =SUMIFS(Таблица1[Total Buy-In],Таблица1[Date],Таблица6[[#This Row],[2019]]) -> 0 | E12: =IFERROR(Таблица6[Buy-in]/Таблица6[Games],0) -> 0 | F12: =IFERROR((Таблица6[Profit]/Таблица6[Buy-in])*100,0) -> 0 | G12: =IFERROR((COUNTIFS(Таблица1[Date],Таблица6[2019],Таблица1[Winnings],">0")/Таблица6[Games])*100,0) -> 0 | H12: =SUMIFS(Таблица1[Total Hands],Таблица1[Date],Таблица6[[#This Row],[2019]]) -> 0 | I12: =IFERROR(SUMIFS(Таблица1[bb/101],Таблица1[Date],Таблица6[[#This Row],[2019]])/Таблица6[[#This Row],[Hand]],0) -> 0 | J12: =IFERROR(SUMIFS(Таблица1[EV bb/101],Таблица1[Date],Таблица6[[#This Row],[2019]])/Таблица6[[#This Row],[Hand]],0) -> 0 | K12: =SUMIFS(Таблица1[Net Winnings],Таблица1[Date],Таблица6[2019]) -> 0 | L12: =IFERROR(Таблица6[[#This Row],[Profit]]/Таблица6[[#This Row],[Games]],0) -> 0
B13: 2019-07-11 | C13: =COUNTIFS(Таблица1[Date],Таблица6[[#This Row],[2019]])+SUMIFS(Таблица1[Re-entry],Таблица1[Date],Таблица6[[#This Row],[2019]]) -> 0 | D13: =SUMIFS(Таблица1[Total Buy-In],Таблица1[Date],Таблица6[[#This Row],[2019]]) -> 0 | E13: =IFERROR(Таблица6[Buy-in]/Таблица6[Games],0) -> 0 | F13: =IFERROR((Таблица6[Profit]/Таблица6[Buy-in])*100,0) -> 0 | G13: =IFERROR((COUNTIFS(Таблица1[Date],Таблица6[2019],Таблица1[Winnings],">0")/Таблица6[Games])*100,0) -> 0 | H13: =SUMIFS(Таблица1[Total Hands],Таблица1[Date],Таблица6[[#This Row],[2019]]) -> 0 | I13: =IFERROR(SUMIFS(Таблица1[bb/101],Таблица1[Date],Таблица6[[#This Row],[2019]])/Таблица6[[#This Row],[Hand]],0) -> 0 | J13: =IFERROR(SUMIFS(Таблица1[EV bb/101],Таблица1[Date],Таблица6[[#This Row],[2019]])/Таблица6[[#This Row],[Hand]],0) -> 0 | K13: =SUMIFS(Таблица1[Net Winnings],Таблица1[Date],Таблица6[2019]) -> 0 | L13: =IFERROR(Таблица6[[#This Row],[Profit]]/Таблица6[[#This Row],[Games]],0) -> 0
B14: 2019-07-12 | C14: =COUNTIFS(Таблица1[Date],Таблица6[[#This Row],[2019]])+SUMIFS(Таблица1[Re-entry],Таблица1[Date],Таблица6[[#This Row],[2019]]) -> 0 | D14: =SUMIFS(Таблица1[Total Buy-In],Таблица1[Date],Таблица6[[#This Row],[2019]]) -> 0 | E14: =IFERROR(Таблица6[Buy-in]/Таблица6[Games],0) -> 0 | F14: =IFERROR((Таблица6[Profit]/Таблица6[Buy-in])*100,0) -> 0 | G14: =IFERROR((COUNTIFS(Таблица1[Date],Таблица6[2019],Таблица1[Winnings],">0")/Таблица6[Games])*100,0) -> 0 | H14: =SUMIFS(Таблица1[Total Hands],Таблица1[Date],Таблица6[[#This Row],[2019]]) -> 0 | I14: =IFERROR(SUMIFS(Таблица1[bb/101],Таблица1[Date],Таблица6[[#This Row],[2019]])/Таблица6[[#This Row],[Hand]],0) -> 0 | J14: =IFERROR(SUMIFS(Таблица1[EV bb/101],Таблица1[Date],Таблица6[[#This Row],[2019]])/Таблица6[[#This Row],[Hand]],0) -> 0 | K14: =SUMIFS(Таблица1[Net Winnings],Таблица1[Date],Таблица6[2019]) -> 0 | L14: =IFERROR(Таблица6[[#This Row],[Profit]]/Таблица6[[#This Row],[Games]],0) -> 0
B15: 2019-07-13 | C15: =COUNTIFS(Таблица1[Date],Таблица6[[#This Row],[2019]])+SUMIFS(Таблица1[Re-entry],Таблица1[Date],Таблица6[[#This Row],[2019]]) -> 0 | D15: =SUMIFS(Таблица1[Total Buy-In],Таблица1[Date],Таблица6[[#This Row],[2019]]) -> 0 | E15: =IFERROR(Таблица6[Buy-in]/Таблица6[Games],0) -> 0 | F15: =IFERROR((Таблица6[Profit]/Таблица6[Buy-in])*100,0) -> 0 | G15: =IFERROR((COUNTIFS(Таблица1[Date],Таблица6[2019],Таблица1[Winnings],">0")/Таблица6[Games])*100,0) -> 0 | H15: =SUMIFS(Таблица1[Total Hands],Таблица1[Date],Таблица6[[#This Row],[2019]]) -> 0 | I15: =IFERROR(SUMIFS(Таблица1[bb/101],Таблица1[Date],Таблица6[[#This Row],[2019]])/Таблица6[[#This Row],[Hand]],0) -> 0 | J15: =IFERROR(SUMIFS(Таблица1[EV bb/101],Таблица1[Date],Таблица6[[#This Row],[2019]])/Таблица6[[#This Row],[Hand]],0) -> 0 | K15: =SUMIFS(Таблица1[Net Winnings],Таблица1[Date],Таблица6[2019]) -> 0 | L15: =IFERROR(Таблица6[[#This Row],[Profit]]/Таблица6[[#This Row],[Games]],0) -> 0
B16: 2019-07-14 | C16: =COUNTIFS(Таблица1[Date],Таблица6[[#This Row],[2019]])+SUMIFS(Таблица1[Re-entry],Таблица1[Date],Таблица6[[#This Row],[2019]]) -> 0 | D16: =SUMIFS(Таблица1[Total Buy-In],Таблица1[Date],Таблица6[[#This Row],[2019]]) -> 0 | E16: =IFERROR(Таблица6[Buy-in]/Таблица6[Games],0) -> 0 | F16: =IFERROR((Таблица6[Profit]/Таблица6[Buy-in])*100,0) -> 0 | G16: =IFERROR((COUNTIFS(Таблица1[Date],Таблица6[2019],Таблица1[Winnings],">0")/Таблица6[Games])*100,0) -> 0 | H16: =SUMIFS(Таблица1[Total Hands],Таблица1[Date],Таблица6[[#This Row],[2019]]) -> 0 | I16: =IFERROR(SUMIFS(Таблица1[bb/101],Таблица1[Date],Таблица6[[#This Row],[2019]])/Таблица6[[#This Row],[Hand]],0) -> 0 | J16: =IFERROR(SUMIFS(Таблица1[EV bb/101],Таблица1[Date],Таблица6[[#This Row],[2019]])/Таблица6[[#This Row],[Hand]],0) -> 0 | K16: =SUMIFS(Таблица1[Net Winnings],Таблица1[Date],Таблица6[2019]) -> 0 | L16: =IFERROR(Таблица6[[#This Row],[Profit]]/Таблица6[[#This Row],[Games]],0) -> 0
B17: 2019-07-15 | C17: =COUNTIFS(Таблица1[Date],Таблица6[[#This Row],[2019]])+SUMIFS(Таблица1[Re-entry],Таблица1[Date],Таблица6[[#This Row],[2019]]) -> 0 | D17: =SUMIFS(Таблица1[Total Buy-In],Таблица1[Date],Таблица6[[#This Row],[2019]]) -> 0 | E17: =IFERROR(Таблица6[Buy-in]/Таблица6[Games],0) -> 0 | F17: =IFERROR((Таблица6[Profit]/Таблица6[Buy-in])*100,0) -> 0 | G17: =IFERROR((COUNTIFS(Таблица1[Date],Таблица6[2019],Таблица1[Winnings],">0")/Таблица6[Games])*100,0) -> 0 | H17: =SUMIFS(Таблица1[Total Hands],Таблица1[Date],Таблица6[[#This Row],[2019]]) -> 0 | I17: =IFERROR(SUMIFS(Таблица1[bb/101],Таблица1[Date],Таблица6[[#This Row],[2019]])/Таблица6[[#This Row],[Hand]],0) -> 0 | J17: =IFERROR(SUMIFS(Таблица1[EV bb/101],Таблица1[Date],Таблица6[[#This Row],[2019]])/Таблица6[[#This Row],[Hand]],0) -> 0 | K17: =SUMIFS(Таблица1[Net Winnings],Таблица1[Date],Таблица6[2019]) -> 0 | L17: =IFERROR(Таблица6[[#This Row],[Profit]]/Таблица6[[#This Row],[Games]],0) -> 0
B18: 2019-07-16 | C18: =COUNTIFS(Таблица1[Date],Таблица6[[#This Row],[2019]])+SUMIFS(Таблица1[Re-entry],Таблица1[Date],Таблица6[[#This Row],[2019]]) -> 0 | D18: =SUMIFS(Таблица1[Total Buy-In],Таблица1[Date],Таблица6[[#This Row],[2019]]) -> 0 | E18: =IFERROR(Таблица6[Buy-in]/Таблица6[Games],0) -> 0 | F18: =IFERROR((Таблица6[Profit]/Таблица6[Buy-in])*100,0) -> 0 | G18: =IFERROR((COUNTIFS(Таблица1[Date],Таблица6[2019],Таблица1[Winnings],">0")/Таблица6[Games])*100,0) -> 0 | H18: =SUMIFS(Таблица1[Total Hands],Таблица1[Date],Таблица6[[#This Row],[2019]]) -> 0 | I18: =IFERROR(SUMIFS(Таблица1[bb/101],Таблица1[Date],Таблица6[[#This Row],[2019]])/Таблица6[[#This Row],[Hand]],0) -> 0 | J18: =IFERROR(SUMIFS(Таблица1[EV bb/101],Таблица1[Date],Таблица6[[#This Row],[2019]])/Таблица6[[#This Row],[Hand]],0) -> 0 | K18: =SUMIFS(Таблица1[Net Winnings],Таблица1[Date],Таблица6[2019]) -> 0 | L18: =IFERROR(Таблица6[[#This Row],[Profit]]/Таблица6[[#This Row],[Games]],0) -> 0
B19: 2019-07-17 | C19: =COUNTIFS(Таблица1[Date],Таблица6[[#This Row],[2019]])+SUMIFS(Таблица1[Re-entry],Таблица1[Date],Таблица6[[#This Row],[2019]]) -> 0 | D19: =SUMIFS(Таблица1[Total Buy-In],Таблица1[Date],Таблица6[[#This Row],[2019]]) -> 0 | E19: =IFERROR(Таблица6[Buy-in]/Таблица6[Games],0) -> 0 | F19: =IFERROR((Таблица6[Profit]/Таблица6[Buy-in])*100,0) -> 0 | G19: =IFERROR((COUNTIFS(Таблица1[Date],Таблица6[2019],Таблица1[Winnings],">0")/Таблица6[Games])*100,0) -> 0 | H19: =SUMIFS(Таблица1[Total Hands],Таблица1[Date],Таблица6[[#This Row],[2019]]) -> 0 | I19: =IFERROR(SUMIFS(Таблица1[bb/101],Таблица1[Date],Таблица6[[#This Row],[2019]])/Таблица6[[#This Row],[Hand]],0) -> 0 | J19: =IFERROR(SUMIFS(Таблица1[EV bb/101],Таблица1[Date],Таблица6[[#This Row],[2019]])/Таблица6[[#This Row],[Hand]],0) -> 0 | K19: =SUMIFS(Таблица1[Net Winnings],Таблица1[Date],Таблица6[2019]) -> 0 | L19: =IFERROR(Таблица6[[#This Row],[Profit]]/Таблица6[[#This Row],[Games]],0) -> 0
B20: 2019-07-18 | C20: =COUNTIFS(Таблица1[Date],Таблица6[[#This Row],[2019]])+SUMIFS(Таблица1[Re-entry],Таблица1[Date],Таблица6[[#This Row],[2019]]) -> 0 | D20: =SUMIFS(Таблица1[Total Buy-In],Таблица1[Date],Таблица6[[#This Row],[2019]]) -> 0 | E20: =IFERROR(Таблица6[Buy-in]/Таблица6[Games],0) -> 0 | F20: =IFERROR((Таблица6[Profit]/Таблица6[Buy-in])*100,0) -> 0 | G20: =IFERROR((COUNTIFS(Таблица1[Date],Таблица6[2019],Таблица1[Winnings],">0")/Таблица6[Games])*100,0) -> 0 | H20: =SUMIFS(Таблица1[Total Hands],Таблица1[Date],Таблица6[[#This Row],[2019]]) -> 0 | I20: =IFERROR(SUMIFS(Таблица1[bb/101],Таблица1[Date],Таблица6[[#This Row],[2019]])/Таблица6[[#This Row],[Hand]],0) -> 0 | J20: =IFERROR(SUMIFS(Таблица1[EV bb/101],Таблица1[Date],Таблица6[[#This Row],[2019]])/Таблица6[[#This Row],[Hand]],0) -> 0 | K20: =SUMIFS(Таблица1[Net Winnings],Таблица1[Date],Таблица6[2019]) -> 0 | L20: =IFERROR(Таблица6[[#This Row],[Profit]]/Таблица6[[#This Row],[Games]],0) -> 0
B21: 2019-07-19 | C21: =COUNTIFS(Таблица1[Date],Таблица6[[#This Row],[2019]])+SUMIFS(Таблица1[Re-entry],Таблица1[Date],Таблица6[[#This Row],[2019]]) -> 0 | D21: =SUMIFS(Таблица1[Total Buy-In],Таблица1[Date],Таблица6[[#This Row],[2019]]) -> 0 | E21: =IFERROR(Таблица6[Buy-in]/Таблица6[Games],0) -> 0 | F21: =IFERROR((Таблица6[Profit]/Таблица6[Buy-in])*100,0) -> 0 | G21: =IFERROR((COUNTIFS(Таблица1[Date],Таблица6[2019],Таблица1[Winnings],">0")/Таблица6[Games])*100,0) -> 0 | H21: =SUMIFS(Таблица1[Total Hands],Таблица1[Date],Таблица6[[#This Row],[2019]]) -> 0 | I21: =IFERROR(SUMIFS(Таблица1[bb/101],Таблица1[Date],Таблица6[[#This Row],[2019]])/Таблица6[[#This Row],[Hand]],0) -> 0 | J21: =IFERROR(SUMIFS(Таблица1[EV bb/101],Таблица1[Date],Таблица6[[#This Row],[2019]])/Таблица6[[#This Row],[Hand]],0) -> 0 | K21: =SUMIFS(Таблица1[Net Winnings],Таблица1[Date],Таблица6[2019]) -> 0 | L21: =IFERROR(Таблица6[[#This Row],[Profit]]/Таблица6[[#This Row],[Games]],0) -> 0
B22: 2019-07-20 | C22: =COUNTIFS(Таблица1[Date],Таблица6[[#This Row],[2019]])+SUMIFS(Таблица1[Re-entry],Таблица1[Date],Таблица6[[#This Row],[2019]]) -> 0 | D22: =SUMIFS(Таблица1[Total Buy-In],Таблица1[Date],Таблица6[[#This Row],[2019]]) -> 0 | E22: =IFERROR(Таблица6[Buy-in]/Таблица6[Games],0) -> 0 | F22: =IFERROR((Таблица6[Profit]/Таблица6[Buy-in])*100,0) -> 0 | G22: =IFERROR((COUNTIFS(Таблица1[Date],Таблица6[2019],Таблица1[Winnings],">0")/Таблица6[Games])*100,0) -> 0 | H22: =SUMIFS(Таблица1[Total Hands],Таблица1[Date],Таблица6[[#This Row],[2019]]) -> 0 | I22: =IFERROR(SUMIFS(Таблица1[bb/101],Таблица1[Date],Таблица6[[#This Row],[2019]])/Таблица6[[#This Row],[Hand]],0) -> 0 | J22: =IFERROR(SUMIFS(Таблица1[EV bb/101],Таблица1[Date],Таблица6[[#This Row],[2019]])/Таблица6[[#This Row],[Hand]],0) -> 0 | K22: =SUMIFS(Таблица1[Net Winnings],Таблица1[Date],Таблица6[2019]) -> 0 | L22: =IFERROR(Таблица6[[#This Row],[Profit]]/Таблица6[[#This Row],[Games]],0) -> 0
B23: 2019-07-21 | C23: =COUNTIFS(Таблица1[Date],Таблица6[[#This Row],[2019]])+SUMIFS(Таблица1[Re-entry],Таблица1[Date],Таблица6[[#This Row],[2019]]) -> 0 | D23: =SUMIFS(Таблица1[Total Buy-In],Таблица1[Date],Таблица6[[#This Row],[2019]]) -> 0 | E23: =IFERROR(Таблица6[Buy-in]/Таблица6[Games],0) -> 0 | F23: =IFERROR((Таблица6[Profit]/Таблица6[Buy-in])*100,0) -> 0 | G23: =IFERROR((COUNTIFS(Таблица1[Date],Таблица6[2019],Таблица1[Winnings],">0")/Таблица6[Games])*100,0) -> 0 | H23: =SUMIFS(Таблица1[Total Hands],Таблица1[Date],Таблица6[[#This Row],[2019]]) -> 0 | I23: =IFERROR(SUMIFS(Таблица1[bb/101],Таблица1[Date],Таблица6[[#This Row],[2019]])/Таблица6[[#This Row],[Hand]],0) -> 0 | J23: =IFERROR(SUMIFS(Таблица1[EV bb/101],Таблица1[Date],Таблица6[[#This Row],[2019]])/Таблица6[[#This Row],[Hand]],0) -> 0 | K23: =SUMIFS(Таблица1[Net Winnings],Таблица1[Date],Таблица6[2019]) -> 0 | L23: =IFERROR(Таблица6[[#This Row],[Profit]]/Таблица6[[#This Row],[Games]],0) -> 0
B24: 2019-07-22 | C24: =COUNTIFS(Таблица1[Date],Таблица6[[#This Row],[2019]])+SUMIFS(Таблица1[Re-entry],Таблица1[Date],Таблица6[[#This Row],[2019]]) -> 0 | D24: =SUMIFS(Таблица1[Total Buy-In],Таблица1[Date],Таблица6[[#This Row],[2019]]) -> 0 | E24: =IFERROR(Таблица6[Buy-in]/Таблица6[Games],0) -> 0 | F24: =IFERROR((Таблица6[Profit]/Таблица6[Buy-in])*100,0) -> 0 | G24: =IFERROR((COUNTIFS(Таблица1[Date],Таблица6[2019],Таблица1[Winnings],">0")/Таблица6[Games])*100,0) -> 0 | H24: =SUMIFS(Таблица1[Total Hands],Таблица1[Date],Таблица6[[#This Row],[2019]]) -> 0 | I24: =IFERROR(SUMIFS(Таблица1[bb/101],Таблица1[Date],Таблица6[[#This Row],[2019]])/Таблица6[[#This Row],[Hand]],0) -> 0 | J24: =IFERROR(SUMIFS(Таблица1[EV bb/101],Таблица1[Date],Таблица6[[#This Row],[2019]])/Таблица6[[#This Row],[Hand]],0) -> 0 | K24: =SUMIFS(Таблица1[Net Winnings],Таблица1[Date],Таблица6[2019]) -> 0 | L24: =IFERROR(Таблица6[[#This Row],[Profit]]/Таблица6[[#This Row],[Games]],0) -> 0
B25: 2019-07-23 | C25: =COUNTIFS(Таблица1[Date],Таблица6[[#This Row],[2019]])+SUMIFS(Таблица1[Re-entry],Таблица1[Date],Таблица6[[#This Row],[2019]]) -> 0 | D25: =SUMIFS(Таблица1[Total Buy-In],Таблица1[Date],Таблица6[[#This Row],[2019]]) -> 0 | E25: =IFERROR(Таблица6[Buy-in]/Таблица6[Games],0) -> 0 | F25: =IFERROR((Таблица6[Profit]/Таблица6[Buy-in])*100,0) -> 0 | G25: =IFERROR((COUNTIFS(Таблица1[Date],Таблица6[2019],Таблица1[Winnings],">0")/Таблица6[Games])*100,0) -> 0 | H25: =SUMIFS(Таблица1[Total Hands],Таблица1[Date],Таблица6[[#This Row],[2019]]) -> 0 | I25: =IFERROR(SUMIFS(Таблица1[bb/101],Таблица1[Date],Таблица6[[#This Row],[2019]])/Таблица6[[#This Row],[Hand]],0) -> 0 | J25: =IFERROR(SUMIFS(Таблица1[EV bb/101],Таблица1[Date],Таблица6[[#This Row],[2019]])/Таблица6[[#This Row],[Hand]],0) -> 0 | K25: =SUMIFS(Таблица1[Net Winnings],Таблица1[Date],Таблица6[2019]) -> 0 | L25: =IFERROR(Таблица6[[#This Row],[Profit]]/Таблица6[[#This Row],[Games]],0) -> 0
B26: 2019-07-24 | C26: =COUNTIFS(Таблица1[Date],Таблица6[[#This Row],[2019]])+SUMIFS(Таблица1[Re-entry],Таблица1[Date],Таблица6[[#This Row],[2019]]) -> 0 | D26: =SUMIFS(Таблица1[Total Buy-In],Таблица1[Date],Таблица6[[#This Row],[2019]]) -> 0 | E26: =IFERROR(Таблица6[Buy-in]/Таблица6[Games],0) -> 0 | F26: =IFERROR((Таблица6[Profit]/Таблица6[Buy-in])*100,0) -> 0 | G26: =IFERROR((COUNTIFS(Таблица1[Date],Таблица6[2019],Таблица1[Winnings],">0")/Таблица6[Games])*100,0) -> 0 | H26: =SUMIFS(Таблица1[Total Hands],Таблица1[Date],Таблица6[[#This Row],[2019]]) -> 0 | I26: =IFERROR(SUMIFS(Таблица1[bb/101],Таблица1[Date],Таблица6[[#This Row],[2019]])/Таблица6[[#This Row],[Hand]],0) -> 0 | J26: =IFERROR(SUMIFS(Таблица1[EV bb/101],Таблица1[Date],Таблица6[[#This Row],[2019]])/Таблица6[[#This Row],[Hand]],0) -> 0 | K26: =SUMIFS(Таблица1[Net Winnings],Таблица1[Date],Таблица6[2019]) -> 0 | L26: =IFERROR(Таблица6[[#This Row],[Profit]]/Таблица6[[#This Row],[Games]],0) -> 0
B27: 2019-07-25 | C27: =COUNTIFS(Таблица1[Date],Таблица6[[#This Row],[2019]])+SUMIFS(Таблица1[Re-entry],Таблица1[Date],Таблица6[[#This Row],[2019]]) -> 0 | D27: =SUMIFS(Таблица1[Total Buy-In],Таблица1[Date],Таблица6[[#This Row],[2019]]) -> 0 | E27: =IFERROR(Таблица6[Buy-in]/Таблица6[Games],0) -> 0 | F27: =IFERROR((Таблица6[Profit]/Таблица6[Buy-in])*100,0) -> 0 | G27: =IFERROR((COUNTIFS(Таблица1[Date],Таблица6[2019],Таблица1[Winnings],">0")/Таблица6[Games])*100,0) -> 0 | H27: =SUMIFS(Таблица1[Total Hands],Таблица1[Date],Таблица6[[#This Row],[2019]]) -> 0 | I27: =IFERROR(SUMIFS(Таблица1[bb/101],Таблица1[Date],Таблица6[[#This Row],[2019]])/Таблица6[[#This Row],[Hand]],0) -> 0 | J27: =IFERROR(SUMIFS(Таблица1[EV bb/101],Таблица1[Date],Таблица6[[#This Row],[2019]])/Таблица6[[#This Row],[Hand]],0) -> 0 | K27: =SUMIFS(Таблица1[Net Winnings],Таблица1[Date],Таблица6[2019]) -> 0 | L27: =IFERROR(Таблица6[[#This Row],[Profit]]/Таблица6[[#This Row],[Games]],0) -> 0
B28: 2019-07-26 | C28: =COUNTIFS(Таблица1[Date],Таблица6[[#This Row],[2019]])+SUMIFS(Таблица1[Re-entry],Таблица1[Date],Таблица6[[#This Row],[2019]]) -> 0 | D28: =SUMIFS(Таблица1[Total Buy-In],Таблица1[Date],Таблица6[[#This Row],[2019]]) -> 0 | E28: =IFERROR(Таблица6[Buy-in]/Таблица6[Games],0) -> 0 | F28: =IFERROR((Таблица6[Profit]/Таблица6[Buy-in])*100,0) -> 0 | G28: =IFERROR((COUNTIFS(Таблица1[Date],Таблица6[2019],Таблица1[Winnings],">0")/Таблица6[Games])*100,0) -> 0 | H28: =SUMIFS(Таблица1[Total Hands],Таблица1[Date],Таблица6[[#This Row],[2019]]) -> 0 | I28: =IFERROR(SUMIFS(Таблица1[bb/101],Таблица1[Date],Таблица6[[#This Row],[2019]])/Таблица6[[#This Row],[Hand]],0) -> 0 | J28: =IFERROR(SUMIFS(Таблица1[EV bb/101],Таблица1[Date],Таблица6[[#This Row],[2019]])/Таблица6[[#This Row],[Hand]],0) -> 0 | K28: =SUMIFS(Таблица1[Net Winnings],Таблица1[Date],Таблица6[2019]) -> 0 | L28: =IFERROR(Таблица6[[#This Row],[Profit]]/Таблица6[[#This Row],[Games]],0) -> 0
B29: 2019-07-27 | C29: =COUNTIFS(Таблица1[Date],Таблица6[[#This Row],[2019]])+SUMIFS(Таблица1[Re-entry],Таблица1[Date],Таблица6[[#This Row],[2019]]) -> 0 | D29: =SUMIFS(Таблица1[Total Buy-In],Таблица1[Date],Таблица6[[#This Row],[2019]]) -> 0 | E29: =IFERROR(Таблица6[Buy-in]/Таблица6[Games],0) -> 0 | F29: =IFERROR((Таблица6[Profit]/Таблица6[Buy-in])*100,0) -> 0 | G29: =IFERROR((COUNTIFS(Таблица1[Date],Таблица6[2019],Таблица1[Winnings],">0")/Таблица6[Games])*100,0) -> 0 | H29: =SUMIFS(Таблица1[Total Hands],Таблица1[Date],Таблица6[[#This Row],[2019]]) -> 0 | I29: =IFERROR(SUMIFS(Таблица1[bb/101],Таблица1[Date],Таблица6[[#This Row],[2019]])/Таблица6[[#This Row],[Hand]],0) -> 0 | J29: =IFERROR(SUMIFS(Таблица1[EV bb/101],Таблица1[Date],Таблица6[[#This Row],[2019]])/Таблица6[[#This Row],[Hand]],0) -> 0 | K29: =SUMIFS(Таблица1[Net Winnings],Таблица1[Date],Таблица6[2019]) -> 0 | L29: =IFERROR(Таблица6[[#This Row],[Profit]]/Таблица6[[#This Row],[Games]],0) -> 0
B30: 2019-07-28 | C30: =COUNTIFS(Таблица1[Date],Таблица6[[#This Row],[2019]])+SUMIFS(Таблица1[Re-entry],Таблица1[Date],Таблица6[[#This Row],[2019]]) -> 0 | D30: =SUMIFS(Таблица1[Total Buy-In],Таблица1[Date],Таблица6[[#This Row],[2019]]) -> 0 | E30: =IFERROR(Таблица6[Buy-in]/Таблица6[Games],0) -> 0 | F30: =IFERROR((Таблица6[Profit]/Таблица6[Buy-in])*100,0) -> 0 | G30: =IFERROR((COUNTIFS(Таблица1[Date],Таблица6[2019],Таблица1[Winnings],">0")/Таблица6[Games])*100,0) -> 0 | H30: =SUMIFS(Таблица1[Total Hands],Таблица1[Date],Таблица6[[#This Row],[2019]]) -> 0 | I30: =IFERROR(SUMIFS(Таблица1[bb/101],Таблица1[Date],Таблица6[[#This Row],[2019]])/Таблица6[[#This Row],[Hand]],0) -> 0 | J30: =IFERROR(SUMIFS(Таблица1[EV bb/101],Таблица1[Date],Таблица6[[#This Row],[2019]])/Таблица6[[#This Row],[Hand]],0) -> 0 | K30: =SUMIFS(Таблица1[Net Winnings],Таблица1[Date],Таблица6[2019]) -> 0 | L30: =IFERROR(Таблица6[[#This Row],[Profit]]/Таблица6[[#This Row],[Games]],0) -> 0
B31: 2019-07-29 | C31: =COUNTIFS(Таблица1[Date],Таблица6[[#This Row],[2019]])+SUMIFS(Таблица1[Re-entry],Таблица1[Date],Таблица6[[#This Row],[2019]]) -> 0 | D31: =SUMIFS(Таблица1[Total Buy-In],Таблица1[Date],Таблица6[[#This Row],[2019]]) -> 0 | E31: =IFERROR(Таблица6[Buy-in]/Таблица6[Games],0) -> 0 | F31: =IFERROR((Таблица6[Profit]/Таблица6[Buy-in])*100,0) -> 0 | G31: =IFERROR((COUNTIFS(Таблица1[Date],Таблица6[2019],Таблица1[Winnings],">0")/Таблица6[Games])*100,0) -> 0 | H31: =SUMIFS(Таблица1[Total Hands],Таблица1[Date],Таблица6[[#This Row],[2019]]) -> 0 | I31: =IFERROR(SUMIFS(Таблица1[bb/101],Таблица1[Date],Таблица6[[#This Row],[2019]])/Таблица6[[#This Row],[Hand]],0) -> 0 | J31: =IFERROR(SUMIFS(Таблица1[EV bb/101],Таблица1[Date],Таблица6[[#This Row],[2019]])/Таблица6[[#This Row],[Hand]],0) -> 0 | K31: =SUMIFS(Таблица1[Net Winnings],Таблица1[Date],Таблица6[2019]) -> 0 | L31: =IFERROR(Таблица6[[#This Row],[Profit]]/Таблица6[[#This Row],[Games]],0) -> 0
B32: 2019-07-30 | C32: =COUNTIFS(Таблица1[Date],Таблица6[[#This Row],[2019]])+SUMIFS(Таблица1[Re-entry],Таблица1[Date],Таблица6[[#This Row],[2019]]) -> 0 | D32: =SUMIFS(Таблица1[Total Buy-In],Таблица1[Date],Таблица6[[#This Row],[2019]]) -> 0 | E32: =IFERROR(Таблица6[Buy-in]/Таблица6[Games],0) -> 0 | F32: =IFERROR((Таблица6[Profit]/Таблица6[Buy-in])*100,0) -> 0 | G32: =IFERROR((COUNTIFS(Таблица1[Date],Таблица6[2019],Таблица1[Winnings],">0")/Таблица6[Games])*100,0) -> 0 | H32: =SUMIFS(Таблица1[Total Hands],Таблица1[Date],Таблица6[[#This Row],[2019]]) -> 0 | I32: =IFERROR(SUMIFS(Таблица1[bb/101],Таблица1[Date],Таблица6[[#This Row],[2019]])/Таблица6[[#This Row],[Hand]],0) -> 0 | J32: =IFERROR(SUMIFS(Таблица1[EV bb/101],Таблица1[Date],Таблица6[[#This Row],[2019]])/Таблица6[[#This Row],[Hand]],0) -> 0 | K32: =SUMIFS(Таблица1[Net Winnings],Таблица1[Date],Таблица6[2019]) -> 0 | L32: =IFERROR(Таблица6[[#This Row],[Profit]]/Таблица6[[#This Row],[Games]],0) -> 0
B33: 2019-07-31 | C33: =COUNTIFS(Таблица1[Date],Таблица6[[#This Row],[2019]])+SUMIFS(Таблица1[Re-entry],Таблица1[Date],Таблица6[[#This Row],[2019]]) -> 0 | D33: =SUMIFS(Таблица1[Total Buy-In],Таблица1[Date],Таблица6[[#This Row],[2019]]) -> 0 | E33: =IFERROR(Таблица6[Buy-in]/Таблица6[Games],0) -> 0 | F33: =IFERROR((Таблица6[Profit]/Таблица6[Buy-in])*100,0) -> 0 | G33: =IFERROR((COUNTIFS(Таблица1[Date],Таблица6[2019],Таблица1[Winnings],">0")/Таблица6[Games])*100,0) -> 0 | H33: =SUMIFS(Таблица1[Total Hands],Таблица1[Date],Таблица6[[#This Row],[2019]]) -> 0 | I33: =IFERROR(SUMIFS(Таблица1[bb/101],Таблица1[Date],Таблица6[[#This Row],[2019]])/Таблица6[[#This Row],[Hand]],0) -> 0 | J33: =IFERROR(SUMIFS(Таблица1[EV bb/101],Таблица1[Date],Таблица6[[#This Row],[2019]])/Таблица6[[#This Row],[Hand]],0) -> 0 | K33: =SUMIFS(Таблица1[Net Winnings],Таблица1[Date],Таблица6[2019]) -> 0 | L33: =IFERROR(Таблица6[[#This Row],[Profit]]/Таблица6[[#This Row],[Games]],0) -> 0
B34: 2019-08-01 | C34: =COUNTIFS(Таблица1[Date],Таблица6[[#This Row],[2019]])+SUMIFS(Таблица1[Re-entry],Таблица1[Date],Таблица6[[#This Row],[2019]]) -> 0 | D34: =SUMIFS(Таблица1[Total Buy-In],Таблица1[Date],Таблица6[[#This Row],[2019]]) -> 0 | E34: =IFERROR(Таблица6[Buy-in]/Таблица6[Games],0) -> 0 | F34: =IFERROR((Таблица6[Profit]/Таблица6[Buy-in])*100,0) -> 0 | G34: =IFERROR((COUNTIFS(Таблица1[Date],Таблица6[2019],Таблица1[Winnings],">0")/Таблица6[Games])*100,0) -> 0 | H34: =SUMIFS(Таблица1[Total Hands],Таблица1[Date],Таблица6[[#This Row],[2019]]) -> 0 | I34: =IFERROR(SUMIFS(Таблица1[bb/101],Таблица1[Date],Таблица6[[#This Row],[2019]])/Таблица6[[#This Row],[Hand]],0) -> 0 | J34: =IFERROR(SUMIFS(Таблица1[EV bb/101],Таблица1[Date],Таблица6[[#This Row],[2019]])/Таблица6[[#This Row],[Hand]],0) -> 0 | K34: =SUMIFS(Таблица1[Net Winnings],Таблица1[Date],Таблица6[2019]) -> 0 | L34: =IFERROR(Таблица6[[#This Row],[Profit]]/Таблица6[[#This Row],[Games]],0) -> 0
B35: 2019-08-02 | C35: =COUNTIFS(Таблица1[Date],Таблица6[[#This Row],[2019]])+SUMIFS(Таблица1[Re-entry],Таблица1[Date],Таблица6[[#This Row],[2019]]) -> 0 | D35: =SUMIFS(Таблица1[Total Buy-In],Таблица1[Date],Таблица6[[#This Row],[2019]]) -> 0 | E35: =IFERROR(Таблица6[Buy-in]/Таблица6[Games],0) -> 0 | F35: =IFERROR((Таблица6[Profit]/Таблица6[Buy-in])*100,0) -> 0 | G35: =IFERROR((COUNTIFS(Таблица1[Date],Таблица6[2019],Таблица1[Winnings],">0")/Таблица6[Games])*100,0) -> 0 | H35: =SUMIFS(Таблица1[Total Hands],Таблица1[Date],Таблица6[[#This Row],[2019]]) -> 0 | I35: =IFERROR(SUMIFS(Таблица1[bb/101],Таблица1[Date],Таблица6[[#This Row],[2019]])/Таблица6[[#This Row],[Hand]],0) -> 0 | J35: =IFERROR(SUMIFS(Таблица1[EV bb/101],Таблица1[Date],Таблица6[[#This Row],[2019]])/Таблица6[[#This Row],[Hand]],0) -> 0 | K35: =SUMIFS(Таблица1[Net Winnings],Таблица1[Date],Таблица6[2019]) -> 0 | L35: =IFERROR(Таблица6[[#This Row],[Profit]]/Таблица6[[#This Row],[Games]],0) -> 0
B36: 2019-08-03 | C36: =COUNTIFS(Таблица1[Date],Таблица6[[#This Row],[2019]])+SUMIFS(Таблица1[Re-entry],Таблица1[Date],Таблица6[[#This Row],[2019]]) -> 0 | D36: =SUMIFS(Таблица1[Total Buy-In],Таблица1[Date],Таблица6[[#This Row],[2019]]) -> 0 | E36: =IFERROR(Таблица6[Buy-in]/Таблица6[Games],0) -> 0 | F36: =IFERROR((Таблица6[Profit]/Таблица6[Buy-in])*100,0) -> 0 | G36: =IFERROR((COUNTIFS(Таблица1[Date],Таблица6[2019],Таблица1[Winnings],">0")/Таблица6[Games])*100,0) -> 0 | H36: =SUMIFS(Таблица1[Total Hands],Таблица1[Date],Таблица6[[#This Row],[2019]]) -> 0 | I36: =IFERROR(SUMIFS(Таблица1[bb/101],Таблица1[Date],Таблица6[[#This Row],[2019]])/Таблица6[[#This Row],[Hand]],0) -> 0 | J36: =IFERROR(SUMIFS(Таблица1[EV bb/101],Таблица1[Date],Таблица6[[#This Row],[2019]])/Таблица6[[#This Row],[Hand]],0) -> 0 | K36: =SUMIFS(Таблица1[Net Winnings],Таблица1[Date],Таблица6[2019]) -> 0 | L36: =IFERROR(Таблица6[[#This Row],[Profit]]/Таблица6[[#This Row],[Games]],0) -> 0
B37: 2019-08-04 | C37: =COUNTIFS(Таблица1[Date],Таблица6[[#This Row],[2019]])+SUMIFS(Таблица1[Re-entry],Таблица1[Date],Таблица6[[#This Row],[2019]]) -> 0 | D37: =SUMIFS(Таблица1[Total Buy-In],Таблица1[Date],Таблица6[[#This Row],[2019]]) -> 0 | E37: =IFERROR(Таблица6[Buy-in]/Таблица6[Games],0) -> 0 | F37: =IFERROR((Таблица6[Profit]/Таблица6[Buy-in])*100,0) -> 0 | G37: =IFERROR((COUNTIFS(Таблица1[Date],Таблица6[2019],Таблица1[Winnings],">0")/Таблица6[Games])*100,0) -> 0 | H37: =SUMIFS(Таблица1[Total Hands],Таблица1[Date],Таблица6[[#This Row],[2019]]) -> 0 | I37: =IFERROR(SUMIFS(Таблица1[bb/101],Таблица1[Date],Таблица6[[#This Row],[2019]])/Таблица6[[#This Row],[Hand]],0) -> 0 | J37: =IFERROR(SUMIFS(Таблица1[EV bb/101],Таблица1[Date],Таблица6[[#This Row],[2019]])/Таблица6[[#This Row],[Hand]],0) -> 0 | K37: =SUMIFS(Таблица1[Net Winnings],Таблица1[Date],Таблица6[2019]) -> 0 | L37: =IFERROR(Таблица6[[#This Row],[Profit]]/Таблица6[[#This Row],[Games]],0) -> 0
B38: 2019-08-05 | C38: =COUNTIFS(Таблица1[Date],Таблица6[[#This Row],[2019]])+SUMIFS(Таблица1[Re-entry],Таблица1[Date],Таблица6[[#This Row],[2019]]) -> 0 | D38: =SUMIFS(Таблица1[Total Buy-In],Таблица1[Date],Таблица6[[#This Row],[2019]]) -> 0 | E38: =IFERROR(Таблица6[Buy-in]/Таблица6[Games],0) -> 0 | F38: =IFERROR((Таблица6[Profit]/Таблица6[Buy-in])*100,0) -> 0 | G38: =IFERROR((COUNTIFS(Таблица1[Date],Таблица6[2019],Таблица1[Winnings],">0")/Таблица6[Games])*100,0) -> 0 | H38: =SUMIFS(Таблица1[Total Hands],Таблица1[Date],Таблица6[[#This Row],[2019]]) -> 0 | I38: =IFERROR(SUMIFS(Таблица1[bb/101],Таблица1[Date],Таблица6[[#This Row],[2019]])/Таблица6[[#This Row],[Hand]],0) -> 0 | J38: =IFERROR(SUMIFS(Таблица1[EV bb/101],Таблица1[Date],Таблица6[[#This Row],[2019]])/Таблица6[[#This Row],[Hand]],0) -> 0 | K38: =SUMIFS(Таблица1[Net Winnings],Таблица1[Date],Таблица6[2019]) -> 0 | L38: =IFERROR(Таблица6[[#This Row],[Profit]]/Таблица6[[#This Row],[Games]],0) -> 0
B39: 2019-08-06 | C39: =COUNTIFS(Таблица1[Date],Таблица6[[#This Row],[2019]])+SUMIFS(Таблица1[Re-entry],Таблица1[Date],Таблица6[[#This Row],[2019]]) -> 0 | D39: =SUMIFS(Таблица1[Total Buy-In],Таблица1[Date],Таблица6[[#This Row],[2019]]) -> 0 | E39: =IFERROR(Таблица6[Buy-in]/Таблица6[Games],0) -> 0 | F39: =IFERROR((Таблица6[Profit]/Таблица6[Buy-in])*100,0) -> 0 | G39: =IFERROR((COUNTIFS(Таблица1[Date],Таблица6[2019],Таблица1[Winnings],">0")/Таблица6[Games])*100,0) -> 0 | H39: =SUMIFS(Таблица1[Total Hands],Таблица1[Date],Таблица6[[#This Row],[2019]]) -> 0 | I39: =IFERROR(SUMIFS(Таблица1[bb/101],Таблица1[Date],Таблица6[[#This Row],[2019]])/Таблица6[[#This Row],[Hand]],0) -> 0 | J39: =IFERROR(SUMIFS(Таблица1[EV bb/101],Таблица1[Date],Таблица6[[#This Row],[2019]])/Таблица6[[#This Row],[Hand]],0) -> 0 | K39: =SUMIFS(Таблица1[Net Winnings],Таблица1[Date],Таблица6[2019]) -> 0 | L39: =IFERROR(Таблица6[[#This Row],[Profit]]/Таблица6[[#This Row],[Games]],0) -> 0
B40: 2019-08-07 | C40: =COUNTIFS(Таблица1[Date],Таблица6[[#This Row],[2019]])+SUMIFS(Таблица1[Re-entry],Таблица1[Date],Таблица6[[#This Row],[2019]]) -> 0 | D40: =SUMIFS(Таблица1[Total Buy-In],Таблица1[Date],Таблица6[[#This Row],[2019]]) -> 0 | E40: =IFERROR(Таблица6[Buy-in]/Таблица6[Games],0) -> 0 | F40: =IFERROR((Таблица6[Profit]/Таблица6[Buy-in])*100,0) -> 0 | G40: =IFERROR((COUNTIFS(Таблица1[Date],Таблица6[2019],Таблица1[Winnings],">0")/Таблица6[Games])*100,0) -> 0 | H40: =SUMIFS(Таблица1[Total Hands],Таблица1[Date],Таблица6[[#This Row],[2019]]) -> 0 | I40: =IFERROR(SUMIFS(Таблица1[bb/101],Таблица1[Date],Таблица6[[#This Row],[2019]])/Таблица6[[#This Row],[Hand]],0) -> 0 | J40: =IFERROR(SUMIFS(Таблица1[EV bb/101],Таблица1[Date],Таблица6[[#This Row],[2019]])/Таблица6[[#This Row],[Hand]],0) -> 0 | K40: =SUMIFS(Таблица1[Net Winnings],Таблица1[Date],Таблица6[2019]) -> 0 | L40: =IFERROR(Таблица6[[#This Row],[Profit]]/Таблица6[[#This Row],[Games]],0) -> 0
B41: 2019-08-08 | C41: =COUNTIFS(Таблица1[Date],Таблица6[[#This Row],[2019]])+SUMIFS(Таблица1[Re-entry],Таблица1[Date],Таблица6[[#This Row],[2019]]) -> 0 | D41: =SUMIFS(Таблица1[Total Buy-In],Таблица1[Date],Таблица6[[#This Row],[2019]]) -> 0 | E41: =IFERROR(Таблица6[Buy-in]/Таблица6[Games],0) -> 0 | F41: =IFERROR((Таблица6[Profit]/Таблица6[Buy-in])*100,0) -> 0 | G41: =IFERROR((COUNTIFS(Таблица1[Date],Таблица6[2019],Таблица1[Winnings],">0")/Таблица6[Games])*100,0) -> 0 | H41: =SUMIFS(Таблица1[Total Hands],Таблица1[Date],Таблица6[[#This Row],[2019]]) -> 0 | I41: =IFERROR(SUMIFS(Таблица1[bb/101],Таблица1[Date],Таблица6[[#This Row],[2019]])/Таблица6[[#This Row],[Hand]],0) -> 0 | J41: =IFERROR(SUMIFS(Таблица1[EV bb/101],Таблица1[Date],Таблица6[[#This Row],[2019]])/Таблица6[[#This Row],[Hand]],0) -> 0 | K41: =SUMIFS(Таблица1[Net Winnings],Таблица1[Date],Таблица6[2019]) -> 0 | L41: =IFERROR(Таблица6[[#This Row],[Profit]]/Таблица6[[#This Row],[Games]],0) -> 0
B42: 2019-08-09 | C42: =COUNTIFS(Таблица1[Date],Таблица6[[#This Row],[2019]])+SUMIFS(Таблица1[Re-entry],Таблица1[Date],Таблица6[[#This Row],[2019]]) -> 0 | D42: =SUMIFS(Таблица1[Total Buy-In],Таблица1[Date],Таблица6[[#This Row],[2019]]) -> 0 | E42: =IFERROR(Таблица6[Buy-in]/Таблица6[Games],0) -> 0 | F42: =IFERROR((Таблица6[Profit]/Таблица6[Buy-in])*100,0) -> 0 | G42: =IFERROR((COUNTIFS(Таблица1[Date],Таблица6[2019],Таблица1[Winnings],">0")/Таблица6[Games])*100,0) -> 0 | H42: =SUMIFS(Таблица1[Total Hands],Таблица1[Date],Таблица6[[#This Row],[2019]]) -> 0 | I42: =IFERROR(SUMIFS(Таблица1[bb/101],Таблица1[Date],Таблица6[[#This Row],[2019]])/Таблица6[[#This Row],[Hand]],0) -> 0 | J42: =IFERROR(SUMIFS(Таблица1[EV bb/101],Таблица1[Date],Таблица6[[#This Row],[2019]])/Таблица6[[#This Row],[Hand]],0) -> 0 | K42: =SUMIFS(Таблица1[Net Winnings],Таблица1[Date],Таблица6[2019]) -> 0 | L42: =IFERROR(Таблица6[[#This Row],[Profit]]/Таблица6[[#This Row],[Games]],0) -> 0
B43: 2019-08-10 | C43: =COUNTIFS(Таблица1[Date],Таблица6[[#This Row],[2019]])+SUMIFS(Таблица1[Re-entry],Таблица1[Date],Таблица6[[#This Row],[2019]]) -> 0 | D43: =SUMIFS(Таблица1[Total Buy-In],Таблица1[Date],Таблица6[[#This Row],[2019]]) -> 0 | E43: =IFERROR(Таблица6[Buy-in]/Таблица6[Games],0) -> 0 | F43: =IFERROR((Таблица6[Profit]/Таблица6[Buy-in])*100,0) -> 0 | G43: =IFERROR((COUNTIFS(Таблица1[Date],Таблица6[2019],Таблица1[Winnings],">0")/Таблица6[Games])*100,0) -> 0 | H43: =SUMIFS(Таблица1[Total Hands],Таблица1[Date],Таблица6[[#This Row],[2019]]) -> 0 | I43: =IFERROR(SUMIFS(Таблица1[bb/101],Таблица1[Date],Таблица6[[#This Row],[2019]])/Таблица6[[#This Row],[Hand]],0) -> 0 | J43: =IFERROR(SUMIFS(Таблица1[EV bb/101],Таблица1[Date],Таблица6[[#This Row],[2019]])/Таблица6[[#This Row],[Hand]],0) -> 0 | K43: =SUMIFS(Таблица1[Net Winnings],Таблица1[Date],Таблица6[2019]) -> 0 | L43: =IFERROR(Таблица6[[#This Row],[Profit]]/Таблица6[[#This Row],[Games]],0) -> 0
B44: 2019-08-11 | C44: =COUNTIFS(Таблица1[Date],Таблица6[[#This Row],[2019]])+SUMIFS(Таблица1[Re-entry],Таблица1[Date],Таблица6[[#This Row],[2019]]) -> 0 | D44: =SUMIFS(Таблица1[Total Buy-In],Таблица1[Date],Таблица6[[#This Row],[2019]]) -> 0 | E44: =IFERROR(Таблица6[Buy-in]/Таблица6[Games],0) -> 0 | F44: =IFERROR((Таблица6[Profit]/Таблица6[Buy-in])*100,0) -> 0 | G44: =IFERROR((COUNTIFS(Таблица1[Date],Таблица6[2019],Таблица1[Winnings],">0")/Таблица6[Games])*100,0) -> 0 | H44: =SUMIFS(Таблица1[Total Hands],Таблица1[Date],Таблица6[[#This Row],[2019]]) -> 0 | I44: =IFERROR(SUMIFS(Таблица1[bb/101],Таблица1[Date],Таблица6[[#This Row],[2019]])/Таблица6[[#This Row],[Hand]],0) -> 0 | J44: =IFERROR(SUMIFS(Таблица1[EV bb/101],Таблица1[Date],Таблица6[[#This Row],[2019]])/Таблица6[[#This Row],[Hand]],0) -> 0 | K44: =SUMIFS(Таблица1[Net Winnings],Таблица1[Date],Таблица6[2019]) -> 0 | L44: =IFERROR(Таблица6[[#This Row],[Profit]]/Таблица6[[#This Row],[Games]],0) -> 0
B45: 2019-08-12 | C45: =COUNTIFS(Таблица1[Date],Таблица6[[#This Row],[2019]])+SUMIFS(Таблица1[Re-entry],Таблица1[Date],Таблица6[[#This Row],[2019]]) -> 0 | D45: =SUMIFS(Таблица1[Total Buy-In],Таблица1[Date],Таблица6[[#This Row],[2019]]) -> 0 | E45: =IFERROR(Таблица6[Buy-in]/Таблица6[Games],0) -> 0 | F45: =IFERROR((Таблица6[Profit]/Таблица6[Buy-in])*100,0) -> 0 | G45: =IFERROR((COUNTIFS(Таблица1[Date],Таблица6[2019],Таблица1[Winnings],">0")/Таблица6[Games])*100,0) -> 0 | H45: =SUMIFS(Таблица1[Total Hands],Таблица1[Date],Таблица6[[#This Row],[2019]]) -> 0 | I45: =IFERROR(SUMIFS(Таблица1[bb/101],Таблица1[Date],Таблица6[[#This Row],[2019]])/Таблица6[[#This Row],[Hand]],0) -> 0 | J45: =IFERROR(SUMIFS(Таблица1[EV bb/101],Таблица1[Date],Таблица6[[#This Row],[2019]])/Таблица6[[#This Row],[Hand]],0) -> 0 | K45: =SUMIFS(Таблица1[Net Winnings],Таблица1[Date],Таблица6[2019]) -> 0 | L45: =IFERROR(Таблица6[[#This Row],[Profit]]/Таблица6[[#This Row],[Games]],0) -> 0
B46: 2019-08-13 | C46: =COUNTIFS(Таблица1[Date],Таблица6[[#This Row],[2019]])+SUMIFS(Таблица1[Re-entry],Таблица1[Date],Таблица6[[#This Row],[2019]]) -> 0 | D46: =SUMIFS(Таблица1[Total Buy-In],Таблица1[Date],Таблица6[[#This Row],[2019]]) -> 0 | E46: =IFERROR(Таблица6[Buy-in]/Таблица6[Games],0) -> 0 | F46: =IFERROR((Таблица6[Profit]/Таблица6[Buy-in])*100,0) -> 0 | G46: =IFERROR((COUNTIFS(Таблица1[Date],Таблица6[2019],Таблица1[Winnings],">0")/Таблица6[Games])*100,0) -> 0 | H46: =SUMIFS(Таблица1[Total Hands],Таблица1[Date],Таблица6[[#This Row],[2019]]) -> 0 | I46: =IFERROR(SUMIFS(Таблица1[bb/101],Таблица1[Date],Таблица6[[#This Row],[2019]])/Таблица6[[#This Row],[Hand]],0) -> 0 | J46: =IFERROR(SUMIFS(Таблица1[EV bb/101],Таблица1[Date],Таблица6[[#This Row],[2019]])/Таблица6[[#This Row],[Hand]],0) -> 0 | K46: =SUMIFS(Таблица1[Net Winnings],Таблица1[Date],Таблица6[2019]) -> 0 | L46: =IFERROR(Таблица6[[#This Row],[Profit]]/Таблица6[[#This Row],[Games]],0) -> 0
B47: 2019-08-14 | C47: =COUNTIFS(Таблица1[Date],Таблица6[[#This Row],[2019]])+SUMIFS(Таблица1[Re-entry],Таблица1[Date],Таблица6[[#This Row],[2019]]) -> 0 | D47: =SUMIFS(Таблица1[Total Buy-In],Таблица1[Date],Таблица6[[#This Row],[2019]]) -> 0 | E47: =IFERROR(Таблица6[Buy-in]/Таблица6[Games],0) -> 0 | F47: =IFERROR((Таблица6[Profit]/Таблица6[Buy-in])*100,0) -> 0 | G47: =IFERROR((COUNTIFS(Таблица1[Date],Таблица6[2019],Таблица1[Winnings],">0")/Таблица6[Games])*100,0) -> 0 | H47: =SUMIFS(Таблица1[Total Hands],Таблица1[Date],Таблица6[[#This Row],[2019]]) -> 0 | I47: =IFERROR(SUMIFS(Таблица1[bb/101],Таблица1[Date],Таблица6[[#This Row],[2019]])/Таблица6[[#This Row],[Hand]],0) -> 0 | J47: =IFERROR(SUMIFS(Таблица1[EV bb/101],Таблица1[Date],Таблица6[[#This Row],[2019]])/Таблица6[[#This Row],[Hand]],0) -> 0 | K47: =SUMIFS(Таблица1[Net Winnings],Таблица1[Date],Таблица6[2019]) -> 0 | L47: =IFERROR(Таблица6[[#This Row],[Profit]]/Таблица6[[#This Row],[Games]],0) -> 0
B48: 2019-08-15 | C48: =COUNTIFS(Таблица1[Date],Таблица6[[#This Row],[2019]])+SUMIFS(Таблица1[Re-entry],Таблица1[Date],Таблица6[[#This Row],[2019]]) -> 0 | D48: =SUMIFS(Таблица1[Total Buy-In],Таблица1[Date],Таблица6[[#This Row],[2019]]) -> 0 | E48: =IFERROR(Таблица6[Buy-in]/Таблица6[Games],0) -> 0 | F48: =IFERROR((Таблица6[Profit]/Таблица6[Buy-in])*100,0) -> 0 | G48: =IFERROR((COUNTIFS(Таблица1[Date],Таблица6[2019],Таблица1[Winnings],">0")/Таблица6[Games])*100,0) -> 0 | H48: =SUMIFS(Таблица1[Total Hands],Таблица1[Date],Таблица6[[#This Row],[2019]]) -> 0 | I48: =IFERROR(SUMIFS(Таблица1[bb/101],Таблица1[Date],Таблица6[[#This Row],[2019]])/Таблица6[[#This Row],[Hand]],0) -> 0 | J48: =IFERROR(SUMIFS(Таблица1[EV bb/101],Таблица1[Date],Таблица6[[#This Row],[2019]])/Таблица6[[#This Row],[Hand]],0) -> 0 | K48: =SUMIFS(Таблица1[Net Winnings],Таблица1[Date],Таблица6[2019]) -> 0 | L48: =IFERROR(Таблица6[[#This Row],[Profit]]/Таблица6[[#This Row],[Games]],0) -> 0
B49: 2019-08-16 | C49: =COUNTIFS(Таблица1[Date],Таблица6[[#This Row],[2019]])+SUMIFS(Таблица1[Re-entry],Таблица1[Date],Таблица6[[#This Row],[2019]]) -> 0 | D49: =SUMIFS(Таблица1[Total Buy-In],Таблица1[Date],Таблица6[[#This Row],[2019]]) -> 0 | E49: =IFERROR(Таблица6[Buy-in]/Таблица6[Games],0) -> 0 | F49: =IFERROR((Таблица6[Profit]/Таблица6[Buy-in])*100,0) -> 0 | G49: =IFERROR((COUNTIFS(Таблица1[Date],Таблица6[2019],Таблица1[Winnings],">0")/Таблица6[Games])*100,0) -> 0 | H49: =SUMIFS(Таблица1[Total Hands],Таблица1[Date],Таблица6[[#This Row],[2019]]) -> 0 | I49: =IFERROR(SUMIFS(Таблица1[bb/101],Таблица1[Date],Таблица6[[#This Row],[2019]])/Таблица6[[#This Row],[Hand]],0) -> 0 | J49: =IFERROR(SUMIFS(Таблица1[EV bb/101],Таблица1[Date],Таблица6[[#This Row],[2019]])/Таблица6[[#This Row],[Hand]],0) -> 0 | K49: =SUMIFS(Таблица1[Net Winnings],Таблица1[Date],Таблица6[2019]) -> 0 | L49: =IFERROR(Таблица6[[#This Row],[Profit]]/Таблица6[[#This Row],[Games]],0) -> 0
B50: 2019-08-17 | C50: =COUNTIFS(Таблица1[Date],Таблица6[[#This Row],[2019]])+SUMIFS(Таблица1[Re-entry],Таблица1[Date],Таблица6[[#This Row],[2019]]) -> 0 | D50: =SUMIFS(Таблица1[Total Buy-In],Таблица1[Date],Таблица6[[#This Row],[2019]]) -> 0 | E50: =IFERROR(Таблица6[Buy-in]/Таблица6[Games],0) -> 0 | F50: =IFERROR((Таблица6[Profit]/Таблица6[Buy-in])*100,0) -> 0 | G50: =IFERROR((COUNTIFS(Таблица1[Date],Таблица6[2019],Таблица1[Winnings],">0")/Таблица6[Games])*100,0) -> 0 | H50: =SUMIFS(Таблица1[Total Hands],Таблица1[Date],Таблица6[[#This Row],[2019]]) -> 0 | I50: =IFERROR(SUMIFS(Таблица1[bb/101],Таблица1[Date],Таблица6[[#This Row],[2019]])/Таблица6[[#This Row],[Hand]],0) -> 0 | J50: =IFERROR(SUMIFS(Таблица1[EV bb/101],Таблица1[Date],Таблица6[[#This Row],[2019]])/Таблица6[[#This Row],[Hand]],0) -> 0 | K50: =SUMIFS(Таблица1[Net Winnings],Таблица1[Date],Таблица6[2019]) -> 0 | L50: =IFERROR(Таблица6[[#This Row],[Profit]]/Таблица6[[#This Row],[Games]],0) -> 0
B51: 2019-08-18 | C51: =COUNTIFS(Таблица1[Date],Таблица6[[#This Row],[2019]])+SUMIFS(Таблица1[Re-entry],Таблица1[Date],Таблица6[[#This Row],[2019]]) -> 0 | D51: =SUMIFS(Таблица1[Total Buy-In],Таблица1[Date],Таблица6[[#This Row],[2019]]) -> 0 | E51: =IFERROR(Таблица6[Buy-in]/Таблица6[Games],0) -> 0 | F51: =IFERROR((Таблица6[Profit]/Таблица6[Buy-in])*100,0) -> 0 | G51: =IFERROR((COUNTIFS(Таблица1[Date],Таблица6[2019],Таблица1[Winnings],">0")/Таблица6[Games])*100,0) -> 0 | H51: =SUMIFS(Таблица1[Total Hands],Таблица1[Date],Таблица6[[#This Row],[2019]]) -> 0 | I51: =IFERROR(SUMIFS(Таблица1[bb/101],Таблица1[Date],Таблица6[[#This Row],[2019]])/Таблица6[[#This Row],[Hand]],0) -> 0 | J51: =IFERROR(SUMIFS(Таблица1[EV bb/101],Таблица1[Date],Таблица6[[#This Row],[2019]])/Таблица6[[#This Row],[Hand]],0) -> 0 | K51: =SUMIFS(Таблица1[Net Winnings],Таблица1[Date],Таблица6[2019]) -> 0 | L51: =IFERROR(Таблица6[[#This Row],[Profit]]/Таблица6[[#This Row],[Games]],0) -> 0
B52: 2019-08-19 | C52: =COUNTIFS(Таблица1[Date],Таблица6[[#This Row],[2019]])+SUMIFS(Таблица1[Re-entry],Таблица1[Date],Таблица6[[#This Row],[2019]]) -> 0 | D52: =SUMIFS(Таблица1[Total Buy-In],Таблица1[Date],Таблица6[[#This Row],[2019]]) -> 0 | E52: =IFERROR(Таблица6[Buy-in]/Таблица6[Games],0) -> 0 | F52: =IFERROR((Таблица6[Profit]/Таблица6[Buy-in])*100,0) -> 0 | G52: =IFERROR((COUNTIFS(Таблица1[Date],Таблица6[2019],Таблица1[Winnings],">0")/Таблица6[Games])*100,0) -> 0 | H52: =SUMIFS(Таблица1[Total Hands],Таблица1[Date],Таблица6[[#This Row],[2019]]) -> 0 | I52: =IFERROR(SUMIFS(Таблица1[bb/101],Таблица1[Date],Таблица6[[#This Row],[2019]])/Таблица6[[#This Row],[Hand]],0) -> 0 | J52: =IFERROR(SUMIFS(Таблица1[EV bb/101],Таблица1[Date],Таблица6[[#This Row],[2019]])/Таблица6[[#This Row],[Hand]],0) -> 0 | K52: =SUMIFS(Таблица1[Net Winnings],Таблица1[Date],Таблица6[2019]) -> 0 | L52: =IFERROR(Таблица6[[#This Row],[Profit]]/Таблица6[[#This Row],[Games]],0) -> 0
B53: 2019-08-20 | C53: =COUNTIFS(Таблица1[Date],Таблица6[[#This Row],[2019]])+SUMIFS(Таблица1[Re-entry],Таблица1[Date],Таблица6[[#This Row],[2019]]) -> 0 | D53: =SUMIFS(Таблица1[Total Buy-In],Таблица1[Date],Таблица6[[#This Row],[2019]]) -> 0 | E53: =IFERROR(Таблица6[Buy-in]/Таблица6[Games],0) -> 0 | F53: =IFERROR((Таблица6[Profit]/Таблица6[Buy-in])*100,0) -> 0 | G53: =IFERROR((COUNTIFS(Таблица1[Date],Таблица6[2019],Таблица1[Winnings],">0")/Таблица6[Games])*100,0) -> 0 | H53: =SUMIFS(Таблица1[Total Hands],Таблица1[Date],Таблица6[[#This Row],[2019]]) -> 0 | I53: =IFERROR(SUMIFS(Таблица1[bb/101],Таблица1[Date],Таблица6[[#This Row],[2019]])/Таблица6[[#This Row],[Hand]],0) -> 0 | J53: =IFERROR(SUMIFS(Таблица1[EV bb/101],Таблица1[Date],Таблица6[[#This Row],[2019]])/Таблица6[[#This Row],[Hand]],0) -> 0 | K53: =SUMIFS(Таблица1[Net Winnings],Таблица1[Date],Таблица6[2019]) -> 0 | L53: =IFERROR(Таблица6[[#This Row],[Profit]]/Таблица6[[#This Row],[Games]],0) -> 0
B54: 2019-08-21 | C54: =COUNTIFS(Таблица1[Date],Таблица6[[#This Row],[2019]])+SUMIFS(Таблица1[Re-entry],Таблица1[Date],Таблица6[[#This Row],[2019]]) -> 0 | D54: =SUMIFS(Таблица1[Total Buy-In],Таблица1[Date],Таблица6[[#This Row],[2019]]) -> 0 | E54: =IFERROR(Таблица6[Buy-in]/Таблица6[Games],0) -> 0 | F54: =IFERROR((Таблица6[Profit]/Таблица6[Buy-in])*100,0) -> 0 | G54: =IFERROR((COUNTIFS(Таблица1[Date],Таблица6[2019],Таблица1[Winnings],">0")/Таблица6[Games])*100,0) -> 0 | H54: =SUMIFS(Таблица1[Total Hands],Таблица1[Date],Таблица6[[#This Row],[2019]]) -> 0 | I54: =IFERROR(SUMIFS(Таблица1[bb/101],Таблица1[Date],Таблица6[[#This Row],[2019]])/Таблица6[[#This Row],[Hand]],0) -> 0 | J54: =IFERROR(SUMIFS(Таблица1[EV bb/101],Таблица1[Date],Таблица6[[#This Row],[2019]])/Таблица6[[#This Row],[Hand]],0) -> 0 | K54: =SUMIFS(Таблица1[Net Winnings],Таблица1[Date],Таблица6[2019]) -> 0 | L54: =IFERROR(Таблица6[[#This Row],[Profit]]/Таблица6[[#This Row],[Games]],0) -> 0
B55: 2019-08-22 | C55: =COUNTIFS(Таблица1[Date],Таблица6[[#This Row],[2019]])+SUMIFS(Таблица1[Re-entry],Таблица1[Date],Таблица6[[#This Row],[2019]]) -> 0 | D55: =SUMIFS(Таблица1[Total Buy-In],Таблица1[Date],Таблица6[[#This Row],[2019]]) -> 0 | E55: =IFERROR(Таблица6[Buy-in]/Таблица6[Games],0) -> 0 | F55: =IFERROR((Таблица6[Profit]/Таблица6[Buy-in])*100,0) -> 0 | G55: =IFERROR((COUNTIFS(Таблица1[Date],Таблица6[2019],Таблица1[Winnings],">0")/Таблица6[Games])*100,0) -> 0 | H55: =SUMIFS(Таблица1[Total Hands],Таблица1[Date],Таблица6[[#This Row],[2019]]) -> 0 | I55: =IFERROR(SUMIFS(Таблица1[bb/101],Таблица1[Date],Таблица6[[#This Row],[2019]])/Таблица6[[#This Row],[Hand]],0) -> 0 | J55: =IFERROR(SUMIFS(Таблица1[EV bb/101],Таблица1[Date],Таблица6[[#This Row],[2019]])/Таблица6[[#This Row],[Hand]],0) -> 0 | K55: =SUMIFS(Таблица1[Net Winnings],Таблица1[Date],Таблица6[2019]) -> 0 | L55: =IFERROR(Таблица6[[#This Row],[Profit]]/Таблица6[[#This Row],[Games]],0) -> 0
B56: 2019-08-23 | C56: =COUNTIFS(Таблица1[Date],Таблица6[[#This Row],[2019]])+SUMIFS(Таблица1[Re-entry],Таблица1[Date],Таблица6[[#This Row],[2019]]) -> 0 | D56: =SUMIFS(Таблица1[Total Buy-In],Таблица1[Date],Таблица6[[#This Row],[2019]]) -> 0 | E56: =IFERROR(Таблица6[Buy-in]/Таблица6[Games],0) -> 0 | F56: =IFERROR((Таблица6[Profit]/Таблица6[Buy-in])*100,0) -> 0 | G56: =IFERROR((COUNTIFS(Таблица1[Date],Таблица6[2019],Таблица1[Winnings],">0")/Таблица6[Games])*100,0) -> 0 | H56: =SUMIFS(Таблица1[Total Hands],Таблица1[Date],Таблица6[[#This Row],[2019]]) -> 0 | I56: =IFERROR(SUMIFS(Таблица1[bb/101],Таблица1[Date],Таблица6[[#This Row],[2019]])/Таблица6[[#This Row],[Hand]],0) -> 0 | J56: =IFERROR(SUMIFS(Таблица1[EV bb/101],Таблица1[Date],Таблица6[[#This Row],[2019]])/Таблица6[[#This Row],[Hand]],0) -> 0 | K56: =SUMIFS(Таблица1[Net Winnings],Таблица1[Date],Таблица6[2019]) -> 0 | L56: =IFERROR(Таблица6[[#This Row],[Profit]]/Таблица6[[#This Row],[Games]],0) -> 0
B57: 2019-08-24 | C57: =COUNTIFS(Таблица1[Date],Таблица6[[#This Row],[2019]])+SUMIFS(Таблица1[Re-entry],Таблица1[Date],Таблица6[[#This Row],[2019]]) -> 0 | D57: =SUMIFS(Таблица1[Total Buy-In],Таблица1[Date],Таблица6[[#This Row],[2019]]) -> 0 | E57: =IFERROR(Таблица6[Buy-in]/Таблица6[Games],0) -> 0 | F57: =IFERROR((Таблица6[Profit]/Таблица6[Buy-in])*100,0) -> 0 | G57: =IFERROR((COUNTIFS(Таблица1[Date],Таблица6[2019],Таблица1[Winnings],">0")/Таблица6[Games])*100,0) -> 0 | H57: =SUMIFS(Таблица1[Total Hands],Таблица1[Date],Таблица6[[#This Row],[2019]]) -> 0 | I57: =IFERROR(SUMIFS(Таблица1[bb/101],Таблица1[Date],Таблица6[[#This Row],[2019]])/Таблица6[[#This Row],[Hand]],0) -> 0 | J57: =IFERROR(SUMIFS(Таблица1[EV bb/101],Таблица1[Date],Таблица6[[#This Row],[2019]])/Таблица6[[#This Row],[Hand]],0) -> 0 | K57: =SUMIFS(Таблица1[Net Winnings],Таблица1[Date],Таблица6[2019]) -> 0 | L57: =IFERROR(Таблица6[[#This Row],[Profit]]/Таблица6[[#This Row],[Games]],0) -> 0
B58: 2019-08-25 | C58: =COUNTIFS(Таблица1[Date],Таблица6[[#This Row],[2019]])+SUMIFS(Таблица1[Re-entry],Таблица1[Date],Таблица6[[#This Row],[2019]]) -> 0 | D58: =SUMIFS(Таблица1[Total Buy-In],Таблица1[Date],Таблица6[[#This Row],[2019]]) -> 0 | E58: =IFERROR(Таблица6[Buy-in]/Таблица6[Games],0) -> 0 | F58: =IFERROR((Таблица6[Profit]/Таблица6[Buy-in])*100,0) -> 0 | G58: =IFERROR((COUNTIFS(Таблица1[Date],Таблица6[2019],Таблица1[Winnings],">0")/Таблица6[Games])*100,0) -> 0 | H58: =SUMIFS(Таблица1[Total Hands],Таблица1[Date],Таблица6[[#This Row],[2019]]) -> 0 | I58: =IFERROR(SUMIFS(Таблица1[bb/101],Таблица1[Date],Таблица6[[#This Row],[2019]])/Таблица6[[#This Row],[Hand]],0) -> 0 | J58: =IFERROR(SUMIFS(Таблица1[EV bb/101],Таблица1[Date],Таблица6[[#This Row],[2019]])/Таблица6[[#This Row],[Hand]],0) -> 0 | K58: =SUMIFS(Таблица1[Net Winnings],Таблица1[Date],Таблица6[2019]) -> 0 | L58: =IFERROR(Таблица6[[#This Row],[Profit]]/Таблица6[[#This Row],[Games]],0) -> 0
B59: 2019-08-26 | C59: =COUNTIFS(Таблица1[Date],Таблица6[[#This Row],[2019]])+SUMIFS(Таблица1[Re-entry],Таблица1[Date],Таблица6[[#This Row],[2019]]) -> 0 | D59: =SUMIFS(Таблица1[Total Buy-In],Таблица1[Date],Таблица6[[#This Row],[2019]]) -> 0 | E59: =IFERROR(Таблица6[Buy-in]/Таблица6[Games],0) -> 0 | F59: =IFERROR((Таблица6[Profit]/Таблица6[Buy-in])*100,0) -> 0 | G59: =IFERROR((COUNTIFS(Таблица1[Date],Таблица6[2019],Таблица1[Winnings],">0")/Таблица6[Games])*100,0) -> 0 | H59: =SUMIFS(Таблица1[Total Hands],Таблица1[Date],Таблица6[[#This Row],[2019]]) -> 0 | I59: =IFERROR(SUMIFS(Таблица1[bb/101],Таблица1[Date],Таблица6[[#This Row],[2019]])/Таблица6[[#This Row],[Hand]],0) -> 0 | J59: =IFERROR(SUMIFS(Таблица1[EV bb/101],Таблица1[Date],Таблица6[[#This Row],[2019]])/Таблица6[[#This Row],[Hand]],0) -> 0 | K59: =SUMIFS(Таблица1[Net Winnings],Таблица1[Date],Таблица6[2019]) -> 0 | L59: =IFERROR(Таблица6[[#This Row],[Profit]]/Таблица6[[#This Row],[Games]],0) -> 0
B60: 2019-08-27 | C60: =COUNTIFS(Таблица1[Date],Таблица6[[#This Row],[2019]])+SUMIFS(Таблица1[Re-entry],Таблица1[Date],Таблица6[[#This Row],[2019]]) -> 0 | D60: =SUMIFS(Таблица1[Total Buy-In],Таблица1[Date],Таблица6[[#This Row],[2019]]) -> 0 | E60: =IFERROR(Таблица6[Buy-in]/Таблица6[Games],0) -> 0 | F60: =IFERROR((Таблица6[Profit]/Таблица6[Buy-in])*100,0) -> 0 | G60: =IFERROR((COUNTIFS(Таблица1[Date],Таблица6[2019],Таблица1[Winnings],">0")/Таблица6[Games])*100,0) -> 0 | H60: =SUMIFS(Таблица1[Total Hands],Таблица1[Date],Таблица6[[#This Row],[2019]]) -> 0 | I60: =IFERROR(SUMIFS(Таблица1[bb/101],Таблица1[Date],Таблица6[[#This Row],[2019]])/Таблица6[[#This Row],[Hand]],0) -> 0 | J60: =IFERROR(SUMIFS(Таблица1[EV bb/101],Таблица1[Date],Таблица6[[#This Row],[2019]])/Таблица6[[#This Row],[Hand]],0) -> 0 | K60: =SUMIFS(Таблица1[Net Winnings],Таблица1[Date],Таблица6[2019]) -> 0 | L60: =IFERROR(Таблица6[[#This Row],[Profit]]/Таблица6[[#This Row],[Games]],0) -> 0
B61: 2019-08-28 | C61: =COUNTIFS(Таблица1[Date],Таблица6[[#This Row],[2019]])+SUMIFS(Таблица1[Re-entry],Таблица1[Date],Таблица6[[#This Row],[2019]]) -> 0 | D61: =SUMIFS(Таблица1[Total Buy-In],Таблица1[Date],Таблица6[[#This Row],[2019]]) -> 0 | E61: =IFERROR(Таблица6[Buy-in]/Таблица6[Games],0) -> 0 | F61: =IFERROR((Таблица6[Profit]/Таблица6[Buy-in])*100,0) -> 0 | G61: =IFERROR((COUNTIFS(Таблица1[Date],Таблица6[2019],Таблица1[Winnings],">0")/Таблица6[Games])*100,0) -> 0 | H61: =SUMIFS(Таблица1[Total Hands],Таблица1[Date],Таблица6[[#This Row],[2019]]) -> 0 | I61: =IFERROR(SUMIFS(Таблица1[bb/101],Таблица1[Date],Таблица6[[#This Row],[2019]])/Таблица6[[#This Row],[Hand]],0) -> 0 | J61: =IFERROR(SUMIFS(Таблица1[EV bb/101],Таблица1[Date],Таблица6[[#This Row],[2019]])/Таблица6[[#This Row],[Hand]],0) -> 0 | K61: =SUMIFS(Таблица1[Net Winnings],Таблица1[Date],Таблица6[2019]) -> 0 | L61: =IFERROR(Таблица6[[#This Row],[Profit]]/Таблица6[[#This Row],[Games]],0) -> 0
B62: 2019-08-29 | C62: =COUNTIFS(Таблица1[Date],Таблица6[[#This Row],[2019]])+SUMIFS(Таблица1[Re-entry],Таблица1[Date],Таблица6[[#This Row],[2019]]) -> 0 | D62: =SUMIFS(Таблица1[Total Buy-In],Таблица1[Date],Таблица6[[#This Row],[2019]]) -> 0 | E62: =IFERROR(Таблица6[Buy-in]/Таблица6[Games],0) -> 0 | F62: =IFERROR((Таблица6[Profit]/Таблица6[Buy-in])*100,0) -> 0 | G62: =IFERROR((COUNTIFS(Таблица1[Date],Таблица6[2019],Таблица1[Winnings],">0")/Таблица6[Games])*100,0) -> 0 | H62: =SUMIFS(Таблица1[Total Hands],Таблица1[Date],Таблица6[[#This Row],[2019]]) -> 0 | I62: =IFERROR(SUMIFS(Таблица1[bb/101],Таблица1[Date],Таблица6[[#This Row],[2019]])/Таблица6[[#This Row],[Hand]],0) -> 0 | J62: =IFERROR(SUMIFS(Таблица1[EV bb/101],Таблица1[Date],Таблица6[[#This Row],[2019]])/Таблица6[[#This Row],[Hand]],0) -> 0 | K62: =SUMIFS(Таблица1[Net Winnings],Таблица1[Date],Таблица6[2019]) -> 0 | L62: =IFERROR(Таблица6[[#This Row],[Profit]]/Таблица6[[#This Row],[Games]],0) -> 0
B63: 2019-08-30 | C63: =COUNTIFS(Таблица1[Date],Таблица6[[#This Row],[2019]])+SUMIFS(Таблица1[Re-entry],Таблица1[Date],Таблица6[[#This Row],[2019]]) -> 0 | D63: =SUMIFS(Таблица1[Total Buy-In],Таблица1[Date],Таблица6[[#This Row],[2019]]) -> 0 | E63: =IFERROR(Таблица6[Buy-in]/Таблица6[Games],0) -> 0 | F63: =IFERROR((Таблица6[Profit]/Таблица6[Buy-in])*100,0) -> 0 | G63: =IFERROR((COUNTIFS(Таблица1[Date],Таблица6[2019],Таблица1[Winnings],">0")/Таблица6[Games])*100,0) -> 0 | H63: =SUMIFS(Таблица1[Total Hands],Таблица1[Date],Таблица6[[#This Row],[2019]]) -> 0 | I63: =IFERROR(SUMIFS(Таблица1[bb/101],Таблица1[Date],Таблица6[[#This Row],[2019]])/Таблица6[[#This Row],[Hand]],0) -> 0 | J63: =IFERROR(SUMIFS(Таблица1[EV bb/101],Таблица1[Date],Таблица6[[#This Row],[2019]])/Таблица6[[#This Row],[Hand]],0) -> 0 | K63: =SUMIFS(Таблица1[Net Winnings],Таблица1[Date],Таблица6[2019]) -> 0 | L63: =IFERROR(Таблица6[[#This Row],[Profit]]/Таблица6[[#This Row],[Games]],0) -> 0
B64: 2019-08-31 | C64: =COUNTIFS(Таблица1[Date],Таблица6[[#This Row],[2019]])+SUMIFS(Таблица1[Re-entry],Таблица1[Date],Таблица6[[#This Row],[2019]]) -> 0 | D64: =SUMIFS(Таблица1[Total Buy-In],Таблица1[Date],Таблица6[[#This Row],[2019]]) -> 0 | E64: =IFERROR(Таблица6[Buy-in]/Таблица6[Games],0) -> 0 | F64: =IFERROR((Таблица6[Profit]/Таблица6[Buy-in])*100,0) -> 0 | G64: =IFERROR((COUNTIFS(Таблица1[Date],Таблица6[2019],Таблица1[Winnings],">0")/Таблица6[Games])*100,0) -> 0 | H64: =SUMIFS(Таблица1[Total Hands],Таблица1[Date],Таблица6[[#This Row],[2019]]) -> 0 | I64: =IFERROR(SUMIFS(Таблица1[bb/101],Таблица1[Date],Таблица6[[#This Row],[2019]])/Таблица6[[#This Row],[Hand]],0) -> 0 | J64: =IFERROR(SUMIFS(Таблица1[EV bb/101],Таблица1[Date],Таблица6[[#This Row],[2019]])/Таблица6[[#This Row],[Hand]],0) -> 0 | K64: =SUMIFS(Таблица1[Net Winnings],Таблица1[Date],Таблица6[2019]) -> 0 | L64: =IFERROR(Таблица6[[#This Row],[Profit]]/Таблица6[[#This Row],[Games]],0) -> 0

Sheet неделя
D3: 2019 | E3: Games | F3: Buy-in | G3: ABI | H3: Roi | I3: Itm | J3: Hand | K3: bb/100 | L3: EV bb/100 | M3: Profit | N3: Pr/Game
D4: 1 | E4: =COUNTIFS(Таблица1[No],Таблица69171116[[#This Row],[2019]])+SUMIFS(Таблица1[Re-entry],Таблица1[No],Таблица69171116[[#This Row],[2019]]) -> 0 | F4: =SUMIFS(Таблица1[Total Buy-In],Таблица1[No],Таблица69171116[[#This Row],[2019]]) -> 0 | G4: =IFERROR(Таблица69171116[Buy-in]/Таблица69171116[Games],0) -> 0 | H4: =IFERROR((Таблица69171116[Profit]/Таблица69171116[Buy-in])*100,0) -> 0 | I4: =IFERROR((COUNTIFS(Таблица1[No],Таблица69171116[2019],Таблица1[Winnings],">0")/Таблица69171116[Games])*100,0) -> 0 | J4: =SUMIFS(Таблица1[Total Hands],Таблица1[No],Таблица69171116[[#This Row],[2019]]) -> 0 | K4: =IFERROR(SUMIFS(Таблица1[bb/101],Таблица1[No],Таблица69171116[[#This Row],[2019]])/Таблица69171116[[#This Row],[Hand]],0) -> 0 | L4: =IFERROR(SUMIFS(Таблица1[EV bb/101],Таблица1[No],Таблица69171116[[#This Row],[2019]])/Таблица69171116[[#This Row],[Hand]],0) -> 0 | M4: =SUMIFS(Таблица1[Net Winnings],Таблица1[No],Таблица69171116[2019]) -> 0 | N4: =IFERROR(Таблица69171116[[#This Row],[Profit]]/Таблица69171116[[#This Row],[Games]],0) -> 0
D5: 2 | E5: =COUNTIFS(Таблица1[No],Таблица69171116[[#This Row],[2019]])+SUMIFS(Таблица1[Re-entry],Таблица1[No],Таблица69171116[[#This Row],[2019]]) -> 0 | F5: =SUMIFS(Таблица1[Total Buy-In],Таблица1[No],Таблица69171116[[#This Row],[2019]]) -> 0 | G5: =IFERROR(Таблица69171116[Buy-in]/Таблица69171116[Games],0) -> 0 | H5: =IFERROR((Таблица69171116[Profit]/Таблица69171116[Buy-in])*100,0) -> 0 | I5: =IFERROR((COUNTIFS(Таблица1[No],Таблица69171116[2019],Таблица1[Winnings],">0")/Таблица69171116[Games])*100,0) -> 0 | J5: =SUMIFS(Таблица1[Total Hands],Таблица1[No],Таблица69171116[[#This Row],[2019]]) -> 0 | K5: =IFERROR(SUMIFS(Таблица1[bb/101],Таблица1[No],Таблица69171116[[#This Row],[2019]])/Таблица69171116[[#This Row],[Hand]],0) -> 0 | L5: =IFERROR(SUMIFS(Таблица1[EV bb/101],Таблица1[No],Таблица69171116[[#This Row],[2019]])/Таблица69171116[[#This Row],[Hand]],0) -> 0 | M5: =SUMIFS(Таблица1[Net Winnings],Таблица1[No],Таблица69171116[2019]) -> 0 | N5: =IFERROR(Таблица69171116[[#This Row],[Profit]]/Таблица69171116[[#This Row],[Games]],0) -> 0
D6: 3 | E6: =COUNTIFS(Таблица1[No],Таблица69171116[[#This Row],[2019]])+SUMIFS(Таблица1[Re-entry],Таблица1[No],Таблица69171116[[#This Row],[2019]]) -> 0 | F6: =SUMIFS(Таблица1[Total Buy-In],Таблица1[No],Таблица69171116[[#This Row],[2019]]) -> 0 | G6: =IFERROR(Таблица69171116[Buy-in]/Таблица69171116[Games],0) -> 0 | H6: =IFERROR((Таблица69171116[Profit]/Таблица69171116[Buy-in])*100,0) -> 0 | I6: =IFERROR((COUNTIFS(Таблица1[No],Таблица69171116[2019],Таблица1[Winnings],">0")/Таблица69171116[Games])*100,0) -> 0 | J6: =SUMIFS(Таблица1[Total Hands],Таблица1[No],Таблица69171116[[#This Row],[2019]]) -> 0 | K6: =IFERROR(SUMIFS(Таблица1[bb/101],Таблица1[No],Таблица69171116[[#This Row],[2019]])/Таблица69171116[[#This Row],[Hand]],0) -> 0 | L6: =IFERROR(SUMIFS(Таблица1[EV bb/101],Таблица1[No],Таблица69171116[[#This Row],[2019]])/Таблица69171116[[#This Row],[Hand]],0) -> 0 | M6: =SUMIFS(Таблица1[Net Winnings],Таблица1[No],Таблица69171116[2019]) -> 0 | N6: =IFERROR(Таблица69171116[[#This Row],[Profit]]/Таблица69171116[[#This Row],[Games]],0) -> 0
D7: 4 | E7: =COUNTIFS(Таблица1[No],Таблица69171116[[#This Row],[2019]])+SUMIFS(Таблица1[Re-entry],Таблица1[No],Таблица69171116[[#This Row],[2019]]) -> 0 | F7: =SUMIFS(Таблица1[Total Buy-In],Таблица1[No],Таблица69171116[[#This Row],[2019]]) -> 0 | G7: =IFERROR(Таблица69171116[Buy-in]/Таблица69171116[Games],0) -> 0 | H7: =IFERROR((Таблица69171116[Profit]/Таблица69171116[Buy-in])*100,0) -> 0 | I7: =IFERROR((COUNTIFS(Таблица1[No],Таблица69171116[2019],Таблица1[Winnings],">0")/Таблица69171116[Games])*100,0) -> 0 | J7: =SUMIFS(Таблица1[Total Hands],Таблица1[No],Таблица69171116[[#This Row],[2019]]) -> 0 | K7: =IFERROR(SUMIFS(Таблица1[bb/101],Таблица1[No],Таблица69171116[[#This Row],[2019]])/Таблица69171116[[#This Row],[Hand]],0) -> 0 | L7: =IFERROR(SUMIFS(Таблица1[EV bb/101],Таблица1[No],Таблица69171116[[#This Row],[2019]])/Таблица69171116[[#This Row],[Hand]],0) -> 0 | M7: =SUMIFS(Таблица1[Net Winnings],Таблица1[No],Таблица69171116[2019]) -> 0 | N7: =IFERROR(Таблица69171116[[#This Row],[Profit]]/Таблица69171116[[#This Row],[Games]],0) -> 0
D8: 5 | E8: =COUNTIFS(Таблица1[No],Таблица69171116[[#This Row],[2019]])+SUMIFS(Таблица1[Re-entry],Таблица1[No],Таблица69171116[[#This Row],[2019]]) -> 0 | F8: =SUMIFS(Таблица1[Total Buy-In],Таблица1[No],Таблица69171116[[#This Row],[2019]]) -> 0 | G8: =IFERROR(Таблица69171116[Buy-in]/Таблица69171116[Games],0) -> 0 | H8: =IFERROR((Таблица69171116[Profit]/Таблица69171116[Buy-in])*100,0) -> 0 | I8: =IFERROR((COUNTIFS(Таблица1[No],Таблица69171116[2019],Таблица1[Winnings],">0")/Таблица69171116[Games])*100,0) -> 0 | J8: =SUMIFS(Таблица1[Total Hands],Таблица1[No],Таблица69171116[[#This Row],[2019]]) -> 0 | K8: =IFERROR(SUMIFS(Таблица1[bb/101],Таблица1[No],Таблица69171116[[#This Row],[2019]])/Таблица69171116[[#This Row],[Hand]],0) -> 0 | L8: =IFERROR(SUMIFS(Таблица1[EV bb/101],Таблица1[No],Таблица69171116[[#This Row],[2019]])/Таблица69171116[[#This Row],[Hand]],0) -> 0 | M8: =SUMIFS(Таблица1[Net Winnings],Таблица1[No],Таблица69171116[2019]) -> 0 | N8: =IFERROR(Таблица69171116[[#This Row],[Profit]]/Таблица69171116[[#This Row],[Games]],0) -> 0
D9: 6 | E9: =COUNTIFS(Таблица1[No],Таблица69171116[[#This Row],[2019]])+SUMIFS(Таблица1[Re-entry],Таблица1[No],Таблица69171116[[#This Row],[2019]]) -> 0 | F9: =SUMIFS(Таблица1[Total Buy-In],Таблица1[No],Таблица69171116[[#This Row],[2019]]) -> 0 | G9: =IFERROR(Таблица69171116[Buy-in]/Таблица69171116[Games],0) -> 0 | H9: =IFERROR((Таблица69171116[Profit]/Таблица69171116[Buy-in])*100,0) -> 0 | I9: =IFERROR((COUNTIFS(Таблица1[No],Таблица69171116[2019],Таблица1[Winnings],">0")/Таблица69171116[Games])*100,0) -> 0 | J9: =SUMIFS(Таблица1[Total Hands],Таблица1[No],Таблица69171116[[#This Row],[2019]]) -> 0 | K9: =IFERROR(SUMIFS(Таблица1[bb/101],Таблица1[No],Таблица69171116[[#This Row],[2019]])/Таблица69171116[[#This Row],[Hand]],0) -> 0 | L9: =IFERROR(SUMIFS(Таблица1[EV bb/101],Таблица1[No],Таблица69171116[[#This Row],[2019]])/Таблица69171116[[#This Row],[Hand]],0) -> 0 | M9: =SUMIFS(Таблица1[Net Winnings],Таблица1[No],Таблица69171116[2019]) -> 0 | N9: =IFERROR(Таблица69171116[[#This Row],[Profit]]/Таблица69171116[[#This Row],[Games]],0) -> 0
D10: 7 | E10: =COUNTIFS(Таблица1[No],Таблица69171116[[#This Row],[2019]])+SUMIFS(Таблица1[Re-entry],Таблица1[No],Таблица69171116[[#This Row],[2019]]) -> 0 | F10: =SUMIFS(Таблица1[Total Buy-In],Таблица1[No],Таблица69171116[[#This Row],[2019]]) -> 0 | G10: =IFERROR(Таблица69171116[Buy-in]/Таблица69171116[Games],0) -> 0 | H10: =IFERROR((Таблица69171116[Profit]/Таблица69171116[Buy-in])*100,0) -> 0 | I10: =IFERROR((COUNTIFS(Таблица1[No],Таблица69171116[2019],Таблица1[Winnings],">0")/Таблица69171116[Games])*100,0) -> 0 | J10: =SUMIFS(Таблица1[Total Hands],Таблица1[No],Таблица69171116[[#This Row],[2019]]) -> 0 | K10: =IFERROR(SUMIFS(Таблица1[bb/101],Таблица1[No],Таблица69171116[[#This Row],[2019]])/Таблица69171116[[#This Row],[Hand]],0) -> 0 | L10: =IFERROR(SUMIFS(Таблица1[EV bb/101],Таблица1[No],Таблица69171116[[#This Row],[2019]])/Таблица69171116[[#This Row],[Hand]],0) -> 0 | M10: =SUMIFS(Таблица1[Net Winnings],Таблица1[No],Таблица69171116[2019]) -> 0 | N10: =IFERROR(Таблица69171116[[#This Row],[Profit]]/Таблица69171116[[#This Row],[Games]],0) -> 0
D11: 8 | E11: =COUNTIFS(Таблица1[No],Таблица69171116[[#This Row],[2019]])+SUMIFS(Таблица1[Re-entry],Таблица1[No],Таблица69171116[[#This Row],[2019]]) -> 0 | F11: =SUMIFS(Таблица1[Total Buy-In],Таблица1[No],Таблица69171116[[#This Row],[2019]]) -> 0 | G11: =IFERROR(Таблица69171116[Buy-in]/Таблица69171116[Games],0) -> 0 | H11: =IFERROR((Таблица69171116[Profit]/Таблица69171116[Buy-in])*100,0) -> 0 | I11: =IFERROR((COUNTIFS(Таблица1[No],Таблица69171116[2019],Таблица1[Winnings],">0")/Таблица69171116[Games])*100,0) -> 0 | J11: =SUMIFS(Таблица1[Total Hands],Таблица1[No],Таблица69171116[[#This Row],[2019]]) -> 0 | K11: =IFERROR(SUMIFS(Таблица1[bb/101],Таблица1[No],Таблица69171116[[#This Row],[2019]])/Таблица69171116[[#This Row],[Hand]],0) -> 0 | L11: =IFERROR(SUMIFS(Таблица1[EV bb/101],Таблица1[No],Таблица69171116[[#This Row],[2019]])/Таблица69171116[[#This Row],[Hand]],0) -> 0 | M11: =SUMIFS(Таблица1[Net Winnings],Таблица1[No],Таблица69171116[2019]) -> 0 | N11: =IFERROR(Таблица69171116[[#This Row],[Profit]]/Таблица69171116[[#This Row],[Games]],0) -> 0
D12: 9 | E12: =COUNTIFS(Таблица1[No],Таблица69171116[[#This Row],[2019]])+SUMIFS(Таблица1[Re-entry],Таблица1[No],Таблица69171116[[#This Row],[2019]]) -> 0 | F12: =SUMIFS(Таблица1[Total Buy-In],Таблица1[No],Таблица69171116[[#This Row],[2019]]) -> 0 | G12: =IFERROR(Таблица69171116[Buy-in]/Таблица69171116[Games],0) -> 0 | H12: =IFERROR((Таблица69171116[Profit]/Таблица69171116[Buy-in])*100,0) -> 0 | I12: =IFERROR((COUNTIFS(Таблица1[No],Таблица69171116[2019],Таблица1[Winnings],">0")/Таблица69171116[Games])*100,0) -> 0 | J12: =SUMIFS(Таблица1[Total Hands],Таблица1[No],Таблица69171116[[#This Row],[2019]]) -> 0 | K12: =IFERROR(SUMIFS(Таблица1[bb/101],Таблица1[No],Таблица69171116[[#This Row],[2019]])/Таблица69171116[[#This Row],[Hand]],0) -> 0 | L12: =IFERROR(SUMIFS(Таблица1[EV bb/101],Таблица1[No],Таблица69171116[[#This Row],[2019]])/Таблица69171116[[#This Row],[Hand]],0) -> 0 | M12: =SUMIFS(Таблица1[Net Winnings],Таблица1[No],Таблица69171116[2019]) -> 0 | N12: =IFERROR(Таблица69171116[[#This Row],[Profit]]/Таблица69171116[[#This Row],[Games]],0) -> 0
D13: 10 | E13: =COUNTIFS(Таблица1[No],Таблица69171116[[#This Row],[2019]])+SUMIFS(Таблица1[Re-entry],Таблица1[No],Таблица69171116[[#This Row],[2019]]) -> 0 | F13: =SUMIFS(Таблица1[Total Buy-In],Таблица1[No],Таблица69171116[[#This Row],[2019]]) -> 0 | G13: =IFERROR(Таблица69171116[Buy-in]/Таблица69171116[Games],0) -> 0 | H13: =IFERROR((Таблица69171116[Profit]/Таблица69171116[Buy-in])*100,0) -> 0 | I13: =IFERROR((COUNTIFS(Таблица1[No],Таблица69171116[2019],Таблица1[Winnings],">0")/Таблица69171116[Games])*100,0) -> 0 | J13: =SUMIFS(Таблица1[Total Hands],Таблица1[No],Таблица69171116[[#This Row],[2019]]) -> 0 | K13: =IFERROR(SUMIFS(Таблица1[bb/101],Таблица1[No],Таблица69171116[[#This Row],[2019]])/Таблица69171116[[#This Row],[Hand]],0) -> 0 | L13: =IFERROR(SUMIFS(Таблица1[EV bb/101],Таблица1[No],Таблица69171116[[#This Row],[2019]])/Таблица69171116[[#This Row],[Hand]],0) -> 0 | M13: =SUMIFS(Таблица1[Net Winnings],Таблица1[No],Таблица69171116[2019]) -> 0 | N13: =IFERROR(Таблица69171116[[#This Row],[Profit]]/Таблица69171116[[#This Row],[Games]],0) -> 0
D14: 11 | E14: =COUNTIFS(Таблица1[No],Таблица69171116[[#This Row],[2019]])+SUMIFS(Таблица1[Re-entry],Таблица1[No],Таблица69171116[[#This Row],[2019]]) -> 0 | F14: =SUMIFS(Таблица1[Total Buy-In],Таблица1[No],Таблица69171116[[#This Row],[2019]]) -> 0 | G14: =IFERROR(Таблица69171116[Buy-in]/Таблица69171116[Games],0) -> 0 | H14: =IFERROR((Таблица69171116[Profit]/Таблица69171116[Buy-in])*100,0) -> 0 | I14: =IFERROR((COUNTIFS(Таблица1[No],Таблица69171116[2019],Таблица1[Winnings],">0")/Таблица69171116[Games])*100,0) -> 0 | J14: =SUMIFS(Таблица1[Total Hands],Таблица1[No],Таблица69171116[[#This Row],[2019]]) -> 0 | K14: =IFERROR(SUMIFS(Таблица1[bb/101],Таблица1[No],Таблица69171116[[#This Row],[2019]])/Таблица69171116[[#This Row],[Hand]],0) -> 0 | L14: =IFERROR(SUMIFS(Таблица1[EV bb/101],Таблица1[No],Таблица69171116[[#This Row],[2019]])/Таблица69171116[[#This Row],[Hand]],0) -> 0 | M14: =SUMIFS(Таблица1[Net Winnings],Таблица1[No],Таблица69171116[2019]) -> 0 | N14: =IFERROR(Таблица69171116[[#This Row],[Profit]]/Таблица69171116[[#This Row],[Games]],0) -> 0
D15: 12 | E15: =COUNTIFS(Таблица1[No],Таблица69171116[[#This Row],[2019]])+SUMIFS(Таблица1[Re-entry],Таблица1[No],Таблица69171116[[#This Row],[2019]]) -> 0 | F15: =SUMIFS(Таблица1[Total Buy-In],Таблица1[No],Таблица69171116[[#This Row],[2019]]) -> 0 | G15: =IFERROR(Таблица69171116[Buy-in]/Таблица69171116[Games],0) -> 0 | H15: =IFERROR((Таблица69171116[Profit]/Таблица69171116[Buy-in])*100,0) -> 0 | I15: =IFERROR((COUNTIFS(Таблица1[No],Таблица69171116[2019],Таблица1[Winnings],">0")/Таблица69171116[Games])*100,0) -> 0 | J15: =SUMIFS(Таблица1[Total Hands],Таблица1[No],Таблица69171116[[#This Row],[2019]]) -> 0 | K15: =IFERROR(SUMIFS(Таблица1[bb/101],Таблица1[No],Таблица69171116[[#This Row],[2019]])/Таблица69171116[[#This Row],[Hand]],0) -> 0 | L15: =IFERROR(SUMIFS(Таблица1[EV bb/101],Таблица1[No],Таблица69171116[[#This Row],[2019]])/Таблица69171116[[#This Row],[Hand]],0) -> 0 | M15: =SUMIFS(Таблица1[Net Winnings],Таблица1[No],Таблица69171116[2019]) -> 0 | N15: =IFERROR(Таблица69171116[[#This Row],[Profit]]/Таблица69171116[[#This Row],[Games]],0) -> 0
D16: 13 | E16: =COUNTIFS(Таблица1[No],Таблица69171116[[#This Row],[2019]])+SUMIFS(Таблица1[Re-entry],Таблица1[No],Таблица69171116[[#This Row],[2019]]) -> 0 | F16: =SUMIFS(Таблица1[Total Buy-In],Таблица1[No],Таблица69171116[[#This Row],[2019]]) -> 0 | G16: =IFERROR(Таблица69171116[Buy-in]/Таблица69171116[Games],0) -> 0 | H16: =IFERROR((Таблица69171116[Profit]/Таблица69171116[Buy-in])*100,0) -> 0 | I16: =IFERROR((COUNTIFS(Таблица1[No],Таблица69171116[2019],Таблица1[Winnings],">0")/Таблица69171116[Games])*100,0) -> 0 | J16: =SUMIFS(Таблица1[Total Hands],Таблица1[No],Таблица69171116[[#This Row],[2019]]) -> 0 | K16: =IFERROR(SUMIFS(Таблица1[bb/101],Таблица1[No],Таблица69171116[[#This Row],[2019]])/Таблица69171116[[#This Row],[Hand]],0) -> 0 | L16: =IFERROR(SUMIFS(Таблица1[EV bb/101],Таблица1[No],Таблица69171116[[#This Row],[2019]])/Таблица69171116[[#This Row],[Hand]],0) -> 0 | M16: =SUMIFS(Таблица1[Net Winnings],Таблица1[No],Таблица69171116[2019]) -> 0 | N16: =IFERROR(Таблица69171116[[#This Row],[Profit]]/Таблица69171116[[#This Row],[Games]],0) -> 0
D17: 14 | E17: =COUNTIFS(Таблица1[No],Таблица69171116[[#This Row],[2019]])+SUMIFS(Таблица1[Re-entry],Таблица1[No],Таблица69171116[[#This Row],[2019]]) -> 0 | F17: =SUMIFS(Таблица1[Total Buy-In],Таблица1[No],Таблица69171116[[#This Row],[2019]]) -> 0 | G17: =IFERROR(Таблица69171116[Buy-in]/Таблица69171116[Games],0) -> 0 | H17: =IFERROR((Таблица69171116[Profit]/Таблица69171116[Buy-in])*100,0) -> 0 | I17: =IFERROR((COUNTIFS(Таблица1[No],Таблица69171116[2019],Таблица1[Winnings],">0")/Таблица69171116[Games])*100,0) -> 0 | J17: =SUMIFS(Таблица1[Total Hands],Таблица1[No],Таблица69171116[[#This Row],[2019]]) -> 0 | K17: =IFERROR(SUMIFS(Таблица1[bb/101],Таблица1[No],Таблица69171116[[#This Row],[2019]])/Таблица69171116[[#This Row],[Hand]],0) -> 0 | L17: =IFERROR(SUMIFS(Таблица1[EV bb/101],Таблица1[No],Таблица69171116[[#This Row],[2019]])/Таблица69171116[[#This Row],[Hand]],0) -> 0 | M17: =SUMIFS(Таблица1[Net Winnings],Таблица1[No],Таблица69171116[2019]) -> 0 | N17: =IFERROR(Таблица69171116[[#This Row],[Profit]]/Таблица69171116[[#This Row],[Games]],0) -> 0
D18: 15 | E18: =COUNTIFS(Таблица1[No],Таблица69171116[[#This Row],[2019]])+SUMIFS(Таблица1[Re-entry],Таблица1[No],Таблица69171116[[#This Row],[2019]]) -> 0 | F18: =SUMIFS(Таблица1[Total Buy-In],Таблица1[No],Таблица69171116[[#This Row],[2019]]) -> 0 | G18: =IFERROR(Таблица69171116[Buy-in]/Таблица69171116[Games],0) -> 0 | H18: =IFERROR((Таблица69171116[Profit]/Таблица69171116[Buy-in])*100,0) -> 0 | I18: =IFERROR((COUNTIFS(Таблица1[No],Таблица69171116[2019],Таблица1[Winnings],">0")/Таблица69171116[Games])*100,0) -> 0 | J18: =SUMIFS(Таблица1[Total Hands],Таблица1[No],Таблица69171116[[#This Row],[2019]]) -> 0 | K18: =IFERROR(SUMIFS(Таблица1[bb/101],Таблица1[No],Таблица69171116[[#This Row],[2019]])/Таблица69171116[[#This Row],[Hand]],0) -> 0 | L18: =IFERROR(SUMIFS(Таблица1[EV bb/101],Таблица1[No],Таблица69171116[[#This Row],[2019]])/Таблица69171116[[#This Row],[Hand]],0) -> 0 | M18: =SUMIFS(Таблица1[Net Winnings],Таблица1[No],Таблица69171116[2019]) -> 0 | N18: =IFERROR(Таблица69171116[[#This Row],[Profit]]/Таблица69171116[[#This Row],[Games]],0) -> 0
D19: 16 | E19: =COUNTIFS(Таблица1[No],Таблица69171116[[#This Row],[2019]])+SUMIFS(Таблица1[Re-entry],Таблица1[No],Таблица69171116[[#This Row],[2019]]) -> 0 | F19: =SUMIFS(Таблица1[Total Buy-In],Таблица1[No],Таблица69171116[[#This Row],[2019]]) -> 0 | G19: =IFERROR(Таблица69171116[Buy-in]/Таблица69171116[Games],0) -> 0 | H19: =IFERROR((Таблица69171116[Profit]/Таблица69171116[Buy-in])*100,0) -> 0 | I19: =IFERROR((COUNTIFS(Таблица1[No],Таблица69171116[2019],Таблица1[Winnings],">0")/Таблица69171116[Games])*100,0) -> 0 | J19: =SUMIFS(Таблица1[Total Hands],Таблица1[No],Таблица69171116[[#This Row],[2019]]) -> 0 | K19: =IFERROR(SUMIFS(Таблица1[bb/101],Таблица1[No],Таблица69171116[[#This Row],[2019]])/Таблица69171116[[#This Row],[Hand]],0) -> 0 | L19: =IFERROR(SUMIFS(Таблица1[EV bb/101],Таблица1[No],Таблица69171116[[#This Row],[2019]])/Таблица69171116[[#This Row],[Hand]],0) -> 0 | M19: =SUMIFS(Таблица1[Net Winnings],Таблица1[No],Таблица69171116[2019]) -> 0 | N19: =IFERROR(Таблица69171116[[#This Row],[Profit]]/Таблица69171116[[#This Row],[Games]],0) -> 0
D20: 17 | E20: =COUNTIFS(Таблица1[No],Таблица69171116[[#This Row],[2019]])+SUMIFS(Таблица1[Re-entry],Таблица1[No],Таблица69171116[[#This Row],[2019]]) -> 0 | F20: =SUMIFS(Таблица1[Total Buy-In],Таблица1[No],Таблица69171116[[#This Row],[2019]]) -> 0 | G20: =IFERROR(Таблица69171116[Buy-in]/Таблица69171116[Games],0) -> 0 | H20: =IFERROR((Таблица69171116[Profit]/Таблица69171116[Buy-in])*100,0) -> 0 | I20: =IFERROR((COUNTIFS(Таблица1[No],Таблица69171116[2019],Таблица1[Winnings],">0")/Таблица69171116[Games])*100,0) -> 0 | J20: =SUMIFS(Таблица1[Total Hands],Таблица1[No],Таблица69171116[[#This Row],[2019]]) -> 0 | K20: =IFERROR(SUMIFS(Таблица1[bb/101],Таблица1[No],Таблица69171116[[#This Row],[2019]])/Таблица69171116[[#This Row],[Hand]],0) -> 0 | L20: =IFERROR(SUMIFS(Таблица1[EV bb/101],Таблица1[No],Таблица69171116[[#This Row],[2019]])/Таблица69171116[[#This Row],[Hand]],0) -> 0 | M20: =SUMIFS(Таблица1[Net Winnings],Таблица1[No],Таблица69171116[2019]) -> 0 | N20: =IFERROR(Таблица69171116[[#This Row],[Profit]]/Таблица69171116[[#This Row],[Games]],0) -> 0
D21: 18 | E21: =COUNTIFS(Таблица1[No],Таблица69171116[[#This Row],[2019]])+SUMIFS(Таблица1[Re-entry],Таблица1[No],Таблица69171116[[#This Row],[2019]]) -> 0 | F21: =SUMIFS(Таблица1[Total Buy-In],Таблица1[No],Таблица69171116[[#This Row],[2019]]) -> 0 | G21: =IFERROR(Таблица69171116[Buy-in]/Таблица69171116[Games],0) -> 0 | H21: =IFERROR((Таблица69171116[Profit]/Таблица69171116[Buy-in])*100,0) -> 0 | I21: =IFERROR((COUNTIFS(Таблица1[No],Таблица69171116[2019],Таблица1[Winnings],">0")/Таблица69171116[Games])*100,0) -> 0 | J21: =SUMIFS(Таблица1[Total Hands],Таблица1[No],Таблица69171116[[#This Row],[2019]]) -> 0 | K21: =IFERROR(SUMIFS(Таблица1[bb/101],Таблица1[No],Таблица69171116[[#This Row],[2019]])/Таблица69171116[[#This Row],[Hand]],0) -> 0 | L21: =IFERROR(SUMIFS(Таблица1[EV bb/101],Таблица1[No],Таблица69171116[[#This Row],[2019]])/Таблица69171116[[#This Row],[Hand]],0) -> 0 | M21: =SUMIFS(Таблица1[Net Winnings],Таблица1[No],Таблица69171116[2019]) -> 0 | N21: =IFERROR(Таблица69171116[[#This Row],[Profit]]/Таблица69171116[[#This Row],[Games]],0) -> 0
D22: 19 | E22: =COUNTIFS(Таблица1[No],Таблица69171116[[#This Row],[2019]])+SUMIFS(Таблица1[Re-entry],Таблица1[No],Таблица69171116[[#This Row],[2019]]) -> 0 | F22: =SUMIFS(Таблица1[Total Buy-In],Таблица1[No],Таблица69171116[[#This Row],[2019]]) -> 0 | G22: =IFERROR(Таблица69171116[Buy-in]/Таблица69171116[Games],0) -> 0 | H22: =IFERROR((Таблица69171116[Profit]/Таблица69171116[Buy-in])*100,0) -> 0 | I22: =IFERROR((COUNTIFS(Таблица1[No],Таблица69171116[2019],Таблица1[Winnings],">0")/Таблица69171116[Games])*100,0) -> 0 | J22: =SUMIFS(Таблица1[Total Hands],Таблица1[No],Таблица69171116[[#This Row],[2019]]) -> 0 | K22: =IFERROR(SUMIFS(Таблица1[bb/101],Таблица1[No],Таблица69171116[[#This Row],[2019]])/Таблица69171116[[#This Row],[Hand]],0) -> 0 | L22: =IFERROR(SUMIFS(Таблица1[EV bb/101],Таблица1[No],Таблица69171116[[#This Row],[2019]])/Таблица69171116[[#This Row],[Hand]],0) -> 0 | M22: =SUMIFS(Таблица1[Net Winnings],Таблица1[No],Таблица69171116[2019]) -> 0 | N22: =IFERROR(Таблица69171116[[#This Row],[Profit]]/Таблица69171116[[#This Row],[Games]],0) -> 0
D23: 20 | E23: =COUNTIFS(Таблица1[No],Таблица69171116[[#This Row],[2019]])+SUMIFS(Таблица1[Re-entry],Таблица1[No],Таблица69171116[[#This Row],[2019]]) -> 0 | F23: =SUMIFS(Таблица1[Total Buy-In],Таблица1[No],Таблица69171116[[#This Row],[2019]]) -> 0 | G23: =IFERROR(Таблица69171116[Buy-in]/Таблица69171116[Games],0) -> 0 | H23: =IFERROR((Таблица69171116[Profit]/Таблица69171116[Buy-in])*100,0) -> 0 | I23: =IFERROR((COUNTIFS(Таблица1[No],Таблица69171116[2019],Таблица1[Winnings],">0")/Таблица69171116[Games])*100,0) -> 0 | J23: =SUMIFS(Таблица1[Total Hands],Таблица1[No],Таблица69171116[[#This Row],[2019]]) -> 0 | K23: =IFERROR(SUMIFS(Таблица1[bb/101],Таблица1[No],Таблица69171116[[#This Row],[2019]])/Таблица69171116[[#This Row],[Hand]],0) -> 0 | L23: =IFERROR(SUMIFS(Таблица1[EV bb/101],Таблица1[No],Таблица69171116[[#This Row],[2019]])/Таблица69171116[[#This Row],[Hand]],0) -> 0 | M23: =SUMIFS(Таблица1[Net Winnings],Таблица1[No],Таблица69171116[2019]) -> 0 | N23: =IFERROR(Таблица69171116[[#This Row],[Profit]]/Таблица69171116[[#This Row],[Games]],0) -> 0
D24: 21 | E24: =COUNTIFS(Таблица1[No],Таблица69171116[[#This Row],[2019]])+SUMIFS(Таблица1[Re-entry],Таблица1[No],Таблица69171116[[#This Row],[2019]]) -> 0 | F24: =SUMIFS(Таблица1[Total Buy-In],Таблица1[No],Таблица69171116[[#This Row],[2019]]) -> 0 | G24: =IFERROR(Таблица69171116[Buy-in]/Таблица69171116[Games],0) -> 0 | H24: =IFERROR((Таблица69171116[Profit]/Таблица69171116[Buy-in])*100,0) -> 0 | I24: =IFERROR((COUNTIFS(Таблица1[No],Таблица69171116[2019],Таблица1[Winnings],">0")/Таблица69171116[Games])*100,0) -> 0 | J24: =SUMIFS(Таблица1[Total Hands],Таблица1[No],Таблица69171116[[#This Row],[2019]]) -> 0 | K24: =IFERROR(SUMIFS(Таблица1[bb/101],Таблица1[No],Таблица69171116[[#This Row],[2019]])/Таблица69171116[[#This Row],[Hand]],0) -> 0 | L24: =IFERROR(SUMIFS(Таблица1[EV bb/101],Таблица1[No],Таблица69171116[[#This Row],[2019]])/Таблица69171116[[#This Row],[Hand]],0) -> 0 | M24: =SUMIFS(Таблица1[Net Winnings],Таблица1[No],Таблица69171116[2019]) -> 0 | N24: =IFERROR(Таблица69171116[[#This Row],[Profit]]/Таблица69171116[[#This Row],[Games]],0) -> 0
D25: 22 | E25: =COUNTIFS(Таблица1[No],Таблица69171116[[#This Row],[2019]])+SUMIFS(Таблица1[Re-entry],Таблица1[No],Таблица69171116[[#This Row],[2019]]) -> 0 | F25: =SUMIFS(Таблица1[Total Buy-In],Таблица1[No],Таблица69171116[[#This Row],[2019]]) -> 0 | G25: =IFERROR(Таблица69171116[Buy-in]/Таблица69171116[Games],0) -> 0 | H25: =IFERROR((Таблица69171116[Profit]/Таблица69171116[Buy-in])*100,0) -> 0 | I25: =IFERROR((COUNTIFS(Таблица1[No],Таблица69171116[2019],Таблица1[Winnings],">0")/Таблица69171116[Games])*100,0) -> 0 | J25: =SUMIFS(Таблица1[Total Hands],Таблица1[No],Таблица69171116[[#This Row],[2019]]) -> 0 | K25: =IFERROR(SUMIFS(Таблица1[bb/101],Таблица1[No],Таблица69171116[[#This Row],[2019]])/Таблица69171116[[#This Row],[Hand]],0) -> 0 | L25: =IFERROR(SUMIFS(Таблица1[EV bb/101],Таблица1[No],Таблица69171116[[#This Row],[2019]])/Таблица69171116[[#This Row],[Hand]],0) -> 0 | M25: =SUMIFS(Таблица1[Net Winnings],Таблица1[No],Таблица69171116[2019]) -> 0 | N25: =IFERROR(Таблица69171116[[#This Row],[Profit]]/Таблица69171116[[#This Row],[Games]],0) -> 0
D26: 23 | E26: =COUNTIFS(Таблица1[No],Таблица69171116[[#This Row],[2019]])+SUMIFS(Таблица1[Re-entry],Таблица1[No],Таблица69171116[[#This Row],[2019]]) -> 0 | F26: =SUMIFS(Таблица1[Total Buy-In],Таблица1[No],Таблица69171116[[#This Row],[2019]]) -> 0 | G26: =IFERROR(Таблица69171116[Buy-in]/Таблица69171116[Games],0) -> 0 | H26: =IFERROR((Таблица69171116[Profit]/Таблица69171116[Buy-in])*100,0) -> 0 | I26: =IFERROR((COUNTIFS(Таблица1[No],Таблица69171116[2019],Таблица1[Winnings],">0")/Таблица69171116[Games])*100,0) -> 0 | J26: =SUMIFS(Таблица1[Total Hands],Таблица1[No],Таблица69171116[[#This Row],[2019]]) -> 0 | K26: =IFERROR(SUMIFS(Таблица1[bb/101],Таблица1[No],Таблица69171116[[#This Row],[2019]])/Таблица69171116[[#This Row],[Hand]],0) -> 0 | L26: =IFERROR(SUMIFS(Таблица1[EV bb/101],Таблица1[No],Таблица69171116[[#This Row],[2019]])/Таблица69171116[[#This Row],[Hand]],0) -> 0 | M26: =SUMIFS(Таблица1[Net Winnings],Таблица1[No],Таблица69171116[2019]) -> 0 | N26: =IFERROR(Таблица69171116[[#This Row],[Profit]]/Таблица69171116[[#This Row],[Games]],0) -> 0
D27: 24 | E27: =COUNTIFS(Таблица1[No],Таблица69171116[[#This Row],[2019]])+SUMIFS(Таблица1[Re-entry],Таблица1[No],Таблица69171116[[#This Row],[2019]]) -> 0 | F27: =SUMIFS(Таблица1[Total Buy-In],Таблица1[No],Таблица69171116[[#This Row],[2019]]) -> 0 | G27: =IFERROR(Таблица69171116[Buy-in]/Таблица69171116[Games],0) -> 0 | H27: =IFERROR((Таблица69171116[Profit]/Таблица69171116[Buy-in])*100,0) -> 0 | I27: =IFERROR((COUNTIFS(Таблица1[No],Таблица69171116[2019],Таблица1[Winnings],">0")/Таблица69171116[Games])*100,0) -> 0 | J27: =SUMIFS(Таблица1[Total Hands],Таблица1[No],Таблица69171116[[#This Row],[2019]]) -> 0 | K27: =IFERROR(SUMIFS(Таблица1[bb/101],Таблица1[No],Таблица69171116[[#This Row],[2019]])/Таблица69171116[[#This Row],[Hand]],0) -> 0 | L27: =IFERROR(SUMIFS(Таблица1[EV bb/101],Таблица1[No],Таблица69171116[[#This Row],[2019]])/Таблица69171116[[#This Row],[Hand]],0) -> 0 | M27: =SUMIFS(Таблица1[Net Winnings],Таблица1[No],Таблица69171116[2019]) -> 0 | N27: =IFERROR(Таблица69171116[[#This Row],[Profit]]/Таблица69171116[[#This Row],[Games]],0) -> 0
D28: 25 | E28: =COUNTIFS(Таблица1[No],Таблица69171116[[#This Row],[2019]])+SUMIFS(Таблица1[Re-entry],Таблица1[No],Таблица69171116[[#This Row],[2019]]) -> 0 | F28: =SUMIFS(Таблица1[Total Buy-In],Таблица1[No],Таблица69171116[[#This Row],[2019]]) -> 0 | G28: =IFERROR(Таблица69171116[Buy-in]/Таблица69171116[Games],0) -> 0 | H28: =IFERROR((Таблица69171116[Profit]/Таблица69171116[Buy-in])*100,0) -> 0 | I28: =IFERROR((COUNTIFS(Таблица1[No],Таблица69171116[2019],Таблица1[Winnings],">0")/Таблица69171116[Games])*100,0) -> 0 | J28: =SUMIFS(Таблица1[Total Hands],Таблица1[No],Таблица69171116[[#This Row],[2019]]) -> 0 | K28: =IFERROR(SUMIFS(Таблица1[bb/101],Таблица1[No],Таблица69171116[[#This Row],[2019]])/Таблица69171116[[#This Row],[Hand]],0) -> 0 | L28: =IFERROR(SUMIFS(Таблица1[EV bb/101],Таблица1[No],Таблица69171116[[#This Row],[2019]])/Таблица69171116[[#This Row],[Hand]],0) -> 0 | M28: =SUMIFS(Таблица1[Net Winnings],Таблица1[No],Таблица69171116[2019]) -> 0 | N28: =IFERROR(Таблица69171116[[#This Row],[Profit]]/Таблица69171116[[#This Row],[Games]],0) -> 0
D29: 26 | E29: =COUNTIFS(Таблица1[No],Таблица69171116[[#This Row],[2019]])+SUMIFS(Таблица1[Re-entry],Таблица1[No],Таблица69171116[[#This Row],[2019]]) -> 0 | F29: =SUMIFS(Таблица1[Total Buy-In],Таблица1[No],Таблица69171116[[#This Row],[2019]]) -> 0 | G29: =IFERROR(Таблица69171116[Buy-in]/Таблица69171116[Games],0) -> 0 | H29: =IFERROR((Таблица69171116[Profit]/Таблица69171116[Buy-in])*100,0) -> 0 | I29: =IFERROR((COUNTIFS(Таблица1[No],Таблица69171116[2019],Таблица1[Winnings],">0")/Таблица69171116[Games])*100,0) -> 0 | J29: =SUMIFS(Таблица1[Total Hands],Таблица1[No],Таблица69171116[[#This Row],[2019]]) -> 0 | K29: =IFERROR(SUMIFS(Таблица1[bb/101],Таблица1[No],Таблица69171116[[#This Row],[2019]])/Таблица69171116[[#This Row],[Hand]],0) -> 0 | L29: =IFERROR(SUMIFS(Таблица1[EV bb/101],Таблица1[No],Таблица69171116[[#This Row],[2019]])/Таблица69171116[[#This Row],[Hand]],0) -> 0 | M29: =SUMIFS(Таблица1[Net Winnings],Таблица1[No],Таблица69171116[2019]) -> 0 | N29: =IFERROR(Таблица69171116[[#This Row],[Profit]]/Таблица69171116[[#This Row],[Games]],0) -> 0
D30: 27 | E30: =COUNTIFS(Таблица1[No],Таблица69171116[[#This Row],[2019]])+SUMIFS(Таблица1[Re-entry],Таблица1[No],Таблица69171116[[#This Row],[2019]]) -> 4 | F30: =SUMIFS(Таблица1[Total Buy-In],Таблица1[No],Таблица69171116[[#This Row],[2019]]) -> 1 | G30: =IFERROR(Таблица69171116[Buy-in]/Таблица69171116[Games],0) -> 0.25 | H30: =IFERROR((Таблица69171116[Profit]/Таблица69171116[Buy-in])*100,0) -> 223 | I30: =IFERROR((COUNTIFS(Таблица1[No],Таблица69171116[2019],Таблица1[Winnings],">0")/Таблица69171116[Games])*100,0) -> 25 | J30: =SUMIFS(Таблица1[Total Hands],Таблица1[No],Таблица69171116[[#This Row],[2019]]) -> 416 | K30: =IFERROR(SUMIFS(Таблица1[bb/101],Таблица1[No],Таблица69171116[[#This Row],[2019]])/Таблица69171116[[#This Row],[Hand]],0) -> 18.65822115 | L30: =IFERROR(SUMIFS(Таблица1[EV bb/101],Таблица1[No],Таблица69171116[[#This Row],[2019]])/Таблица69171116[[#This Row],[Hand]],0) -> 5.991418269 | M30: =SUMIFS(Таблица1[Net Winnings],Таблица1[No],Таблица69171116[2019]) -> 2.23 | N30: =IFERROR(Таблица69171116[[#This Row],[Profit]]/Таблица69171116[[#This Row],[Games]],0) -> 0.5575
D31: 28 | E31: =COUNTIFS(Таблица1[No],Таблица69171116[[#This Row],[2019]])+SUMIFS(Таблица1[Re-entry],Таблица1[No],Таблица69171116[[#This Row],[2019]]) -> 0 | F31: =SUMIFS(Таблица1[Total Buy-In],Таблица1[No],Таблица69171116[[#This Row],[2019]]) -> 0 | G31: =IFERROR(Таблица69171116[Buy-in]/Таблица69171116[Games],0) -> 0 | H31: =IFERROR((Таблица69171116[Profit]/Таблица69171116[Buy-in])*100,0) -> 0 | I31: =IFERROR((COUNTIFS(Таблица1[No],Таблица69171116[2019],Таблица1[Winnings],">0")/Таблица69171116[Games])*100,0) -> 0 | J31: =SUMIFS(Таблица1[Total Hands],Таблица1[No],Таблица69171116[[#This Row],[2019]]) -> 0 | K31: =IFERROR(SUMIFS(Таблица1[bb/101],Таблица1[No],Таблица69171116[[#This Row],[2019]])/Таблица69171116[[#This Row],[Hand]],0) -> 0 | L31: =IFERROR(SUMIFS(Таблица1[EV bb/101],Таблица1[No],Таблица69171116[[#This Row],[2019]])/Таблица69171116[[#This Row],[Hand]],0) -> 0 | M31: =SUMIFS(Таблица1[Net Winnings],Таблица1[No],Таблица69171116[2019]) -> 0 | N31: =IFERROR(Таблица69171116[[#This Row],[Profit]]/Таблица69171116[[#This Row],[Games]],0) -> 0
D32: 29 | E32: =COUNTIFS(Таблица1[No],Таблица69171116[[#This Row],[2019]])+SUMIFS(Таблица1[Re-entry],Таблица1[No],Таблица69171116[[#This Row],[2019]]) -> 0 | F32: =SUMIFS(Таблица1[Total Buy-In],Таблица1[No],Таблица69171116[[#This Row],[2019]]) -> 0 | G32: =IFERROR(Таблица69171116[Buy-in]/Таблица69171116[Games],0) -> 0 | H32: =IFERROR((Таблица69171116[Profit]/Таблица69171116[Buy-in])*100,0) -> 0 | I32: =IFERROR((COUNTIFS(Таблица1[No],Таблица69171116[2019],Таблица1[Winnings],">0")/Таблица69171116[Games])*100,0) -> 0 | J32: =SUMIFS(Таблица1[Total Hands],Таблица1[No],Таблица69171116[[#This Row],[2019]]) -> 0 | K32: =IFERROR(SUMIFS(Таблица1[bb/101],Таблица1[No],Таблица69171116[[#This Row],[2019]])/Таблица69171116[[#This Row],[Hand]],0) -> 0 | L32: =IFERROR(SUMIFS(Таблица1[EV bb/101],Таблица1[No],Таблица69171116[[#This Row],[2019]])/Таблица69171116[[#This Row],[Hand]],0) -> 0 | M32: =SUMIFS(Таблица1[Net Winnings],Таблица1[No],Таблица69171116[2019]) -> 0 | N32: =IFERROR(Таблица69171116[[#This Row],[Profit]]/Таблица69171116[[#This Row],[Games]],0) -> 0
D33: 30 | E33: =COUNTIFS(Таблица1[No],Таблица69171116[[#This Row],[2019]])+SUMIFS(Таблица1[Re-entry],Таблица1[No],Таблица69171116[[#This Row],[2019]]) -> 0 | F33: =SUMIFS(Таблица1[Total Buy-In],Таблица1[No],Таблица69171116[[#This Row],[2019]]) -> 0 | G33: =IFERROR(Таблица69171116[Buy-in]/Таблица69171116[Games],0) -> 0 | H33: =IFERROR((Таблица69171116[Profit]/Таблица69171116[Buy-in])*100,0) -> 0 | I33: =IFERROR((COUNTIFS(Таблица1[No],Таблица69171116[2019],Таблица1[Winnings],">0")/Таблица69171116[Games])*100,0) -> 0 | J33: =SUMIFS(Таблица1[Total Hands],Таблица1[No],Таблица69171116[[#This Row],[2019]]) -> 0 | K33: =IFERROR(SUMIFS(Таблица1[bb/101],Таблица1[No],Таблица69171116[[#This Row],[2019]])/Таблица69171116[[#This Row],[Hand]],0) -> 0 | L33: =IFERROR(SUMIFS(Таблица1[EV bb/101],Таблица1[No],Таблица69171116[[#This Row],[2019]])/Таблица69171116[[#This Row],[Hand]],0) -> 0 | M33: =SUMIFS(Таблица1[Net Winnings],Таблица1[No],Таблица69171116[2019]) -> 0 | N33: =IFERROR(Таблица69171116[[#This Row],[Profit]]/Таблица69171116[[#This Row],[Games]],0) -> 0
D34: 31 | E34: =COUNTIFS(Таблица1[No],Таблица69171116[[#This Row],[2019]])+SUMIFS(Таблица1[Re-entry],Таблица1[No],Таблица69171116[[#This Row],[2019]]) -> 0 | F34: =SUMIFS(Таблица1[Total Buy-In],Таблица1[No],Таблица69171116[[#This Row],[2019]]) -> 0 | G34: =IFERROR(Таблица69171116[Buy-in]/Таблица69171116[Games],0) -> 0 | H34: =IFERROR((Таблица69171116[Profit]/Таблица69171116[Buy-in])*100,0) -> 0 | I34: =IFERROR((COUNTIFS(Таблица1[No],Таблица69171116[2019],Таблица1[Winnings],">0")/Таблица69171116[Games])*100,0) -> 0 | J34: =SUMIFS(Таблица1[Total Hands],Таблица1[No],Таблица69171116[[#This Row],[2019]]) -> 0 | K34: =IFERROR(SUMIFS(Таблица1[bb/101],Таблица1[No],Таблица69171116[[#This Row],[2019]])/Таблица69171116[[#This Row],[Hand]],0) -> 0 | L34: =IFERROR(SUMIFS(Таблица1[EV bb/101],Таблица1[No],Таблица69171116[[#This Row],[2019]])/Таблица69171116[[#This Row],[Hand]],0) -> 0 | M34: =SUMIFS(Таблица1[Net Winnings],Таблица1[No],Таблица69171116[2019]) -> 0 | N34: =IFERROR(Таблица69171116[[#This Row],[Profit]]/Таблица69171116[[#This Row],[Games]],0) -> 0
D35: 32 | E35: =COUNTIFS(Таблица1[No],Таблица69171116[[#This Row],[2019]])+SUMIFS(Таблица1[Re-entry],Таблица1[No],Таблица69171116[[#This Row],[2019]]) -> 0 | F35: =SUMIFS(Таблица1[Total Buy-In],Таблица1[No],Таблица69171116[[#This Row],[2019]]) -> 0 | G35: =IFERROR(Таблица69171116[Buy-in]/Таблица69171116[Games],0) -> 0 | H35: =IFERROR((Таблица69171116[Profit]/Таблица69171116[Buy-in])*100,0) -> 0 | I35: =IFERROR((COUNTIFS(Таблица1[No],Таблица69171116[2019],Таблица1[Winnings],">0")/Таблица69171116[Games])*100,0) -> 0 | J35: =SUMIFS(Таблица1[Total Hands],Таблица1[No],Таблица69171116[[#This Row],[2019]]) -> 0 | K35: =IFERROR(SUMIFS(Таблица1[bb/101],Таблица1[No],Таблица69171116[[#This Row],[2019]])/Таблица69171116[[#This Row],[Hand]],0) -> 0 | L35: =IFERROR(SUMIFS(Таблица1[EV bb/101],Таблица1[No],Таблица69171116[[#This Row],[2019]])/Таблица69171116[[#This Row],[Hand]],0) -> 0 | M35: =SUMIFS(Таблица1[Net Winnings],Таблица1[No],Таблица69171116[2019]) -> 0 | N35: =IFERROR(Таблица69171116[[#This Row],[Profit]]/Таблица69171116[[#This Row],[Games]],0) -> 0
D36: 33 | E36: =COUNTIFS(Таблица1[No],Таблица69171116[[#This Row],[2019]])+SUMIFS(Таблица1[Re-entry],Таблица1[No],Таблица69171116[[#This Row],[2019]]) -> 0 | F36: =SUMIFS(Таблица1[Total Buy-In],Таблица1[No],Таблица69171116[[#This Row],[2019]]) -> 0 | G36: =IFERROR(Таблица69171116[Buy-in]/Таблица69171116[Games],0) -> 0 | H36: =IFERROR((Таблица69171116[Profit]/Таблица69171116[Buy-in])*100,0) -> 0 | I36: =IFERROR((COUNTIFS(Таблица1[No],Таблица69171116[2019],Таблица1[Winnings],">0")/Таблица69171116[Games])*100,0) -> 0 | J36: =SUMIFS(Таблица1[Total Hands],Таблица1[No],Таблица69171116[[#This Row],[2019]]) -> 0 | K36: =IFERROR(SUMIFS(Таблица1[bb/101],Таблица1[No],Таблица69171116[[#This Row],[2019]])/Таблица69171116[[#This Row],[Hand]],0) -> 0 | L36: =IFERROR(SUMIFS(Таблица1[EV bb/101],Таблица1[No],Таблица69171116[[#This Row],[2019]])/Таблица69171116[[#This Row],[Hand]],0) -> 0 | M36: =SUMIFS(Таблица1[Net Winnings],Таблица1[No],Таблица69171116[2019]) -> 0 | N36: =IFERROR(Таблица69171116[[#This Row],[Profit]]/Таблица69171116[[#This Row],[Games]],0) -> 0
D37: 34 | E37: =COUNTIFS(Таблица1[No],Таблица69171116[[#This Row],[2019]])+SUMIFS(Таблица1[Re-entry],Таблица1[No],Таблица69171116[[#This Row],[2019]]) -> 0 | F37: =SUMIFS(Таблица1[Total Buy-In],Таблица1[No],Таблица69171116[[#This Row],[2019]]) -> 0 | G37: =IFERROR(Таблица69171116[Buy-in]/Таблица69171116[Games],0) -> 0 | H37: =IFERROR((Таблица69171116[Profit]/Таблица69171116[Buy-in])*100,0) -> 0 | I37: =IFERROR((COUNTIFS(Таблица1[No],Таблица69171116[2019],Таблица1[Winnings],">0")/Таблица69171116[Games])*100,0) -> 0 | J37: =SUMIFS(Таблица1[Total Hands],Таблица1[No],Таблица69171116[[#This Row],[2019]]) -> 0 | K37: =IFERROR(SUMIFS(Таблица1[bb/101],Таблица1[No],Таблица69171116[[#This Row],[2019]])/Таблица69171116[[#This Row],[Hand]],0) -> 0 | L37: =IFERROR(SUMIFS(Таблица1[EV bb/101],Таблица1[No],Таблица69171116[[#This Row],[2019]])/Таблица69171116[[#This Row],[Hand]],0) -> 0 | M37: =SUMIFS(Таблица1[Net Winnings],Таблица1[No],Таблица69171116[2019]) -> 0 | N37: =IFERROR(Таблица69171116[[#This Row],[Profit]]/Таблица69171116[[#This Row],[Games]],0) -> 0
D38: 35 | E38: =COUNTIFS(Таблица1[No],Таблица69171116[[#This Row],[2019]])+SUMIFS(Таблица1[Re-entry],Таблица1[No],Таблица69171116[[#This Row],[2019]]) -> 0 | F38: =SUMIFS(Таблица1[Total Buy-In],Таблица1[No],Таблица69171116[[#This Row],[2019]]) -> 0 | G38: =IFERROR(Таблица69171116[Buy-in]/Таблица69171116[Games],0) -> 0 | H38: =IFERROR((Таблица69171116[Profit]/Таблица69171116[Buy-in])*100,0) -> 0 | I38: =IFERROR((COUNTIFS(Таблица1[No],Таблица69171116[2019],Таблица1[Winnings],">0")/Таблица69171116[Games])*100,0) -> 0 | J38: =SUMIFS(Таблица1[Total Hands],Таблица1[No],Таблица69171116[[#This Row],[2019]]) -> 0 | K38: =IFERROR(SUMIFS(Таблица1[bb/101],Таблица1[No],Таблица69171116[[#This Row],[2019]])/Таблица69171116[[#This Row],[Hand]],0) -> 0 | L38: =IFERROR(SUMIFS(Таблица1[EV bb/101],Таблица1[No],Таблица69171116[[#This Row],[2019]])/Таблица69171116[[#This Row],[Hand]],0) -> 0 | M38: =SUMIFS(Таблица1[Net Winnings],Таблица1[No],Таблица69171116[2019]) -> 0 | N38: =IFERROR(Таблица69171116[[#This Row],[Profit]]/Таблица69171116[[#This Row],[Games]],0) -> 0
D39: 36 | E39: =COUNTIFS(Таблица1[No],Таблица69171116[[#This Row],[2019]])+SUMIFS(Таблица1[Re-entry],Таблица1[No],Таблица69171116[[#This Row],[2019]]) -> 0 | F39: =SUMIFS(Таблица1[Total Buy-In],Таблица1[No],Таблица69171116[[#This Row],[2019]]) -> 0 | G39: =IFERROR(Таблица69171116[Buy-in]/Таблица69171116[Games],0) -> 0 | H39: =IFERROR((Таблица69171116[Profit]/Таблица69171116[Buy-in])*100,0) -> 0 | I39: =IFERROR((COUNTIFS(Таблица1[No],Таблица69171116[2019],Таблица1[Winnings],">0")/Таблица69171116[Games])*100,0) -> 0 | J39: =SUMIFS(Таблица1[Total Hands],Таблица1[No],Таблица69171116[[#This Row],[2019]]) -> 0 | K39: =IFERROR(SUMIFS(Таблица1[bb/101],Таблица1[No],Таблица69171116[[#This Row],[2019]])/Таблица69171116[[#This Row],[Hand]],0) -> 0 | L39: =IFERROR(SUMIFS(Таблица1[EV bb/101],Таблица1[No],Таблица69171116[[#This Row],[2019]])/Таблица69171116[[#This Row],[Hand]],0) -> 0 | M39: =SUMIFS(Таблица1[Net Winnings],Таблица1[No],Таблица69171116[2019]) -> 0 | N39: =IFERROR(Таблица69171116[[#This Row],[Profit]]/Таблица69171116[[#This Row],[Games]],0) -> 0
D40: 37 | E40: =COUNTIFS(Таблица1[No],Таблица69171116[[#This Row],[2019]])+SUMIFS(Таблица1[Re-entry],Таблица1[No],Таблица69171116[[#This Row],[2019]]) -> 0 | F40: =SUMIFS(Таблица1[Total Buy-In],Таблица1[No],Таблица69171116[[#This Row],[2019]]) -> 0 | G40: =IFERROR(Таблица69171116[Buy-in]/Таблица69171116[Games],0) -> 0 | H40: =IFERROR((Таблица69171116[Profit]/Таблица69171116[Buy-in])*100,0) -> 0 | I40: =IFERROR((COUNTIFS(Таблица1[No],Таблица69171116[2019],Таблица1[Winnings],">0")/Таблица69171116[Games])*100,0) -> 0 | J40: =SUMIFS(Таблица1[Total Hands],Таблица1[No],Таблица69171116[[#This Row],[2019]]) -> 0 | K40: =IFERROR(SUMIFS(Таблица1[bb/101],Таблица1[No],Таблица69171116[[#This Row],[2019]])/Таблица69171116[[#This Row],[Hand]],0) -> 0 | L40: =IFERROR(SUMIFS(Таблица1[EV bb/101],Таблица1[No],Таблица69171116[[#This Row],[2019]])/Таблица69171116[[#This Row],[Hand]],0) -> 0 | M40: =SUMIFS(Таблица1[Net Winnings],Таблица1[No],Таблица69171116[2019]) -> 0 | N40: =IFERROR(Таблица69171116[[#This Row],[Profit]]/Таблица69171116[[#This Row],[Games]],0) -> 0
D41: 38 | E41: =COUNTIFS(Таблица1[No],Таблица69171116[[#This Row],[2019]])+SUMIFS(Таблица1[Re-entry],Таблица1[No],Таблица69171116[[#This Row],[2019]]) -> 0 | F41: =SUMIFS(Таблица1[Total Buy-In],Таблица1[No],Таблица69171116[[#This Row],[2019]]) -> 0 | G41: =IFERROR(Таблица69171116[Buy-in]/Таблица69171116[Games],0) -> 0 | H41: =IFERROR((Таблица69171116[Profit]/Таблица69171116[Buy-in])*100,0) -> 0 | I41: =IFERROR((COUNTIFS(Таблица1[No],Таблица69171116[2019],Таблица1[Winnings],">0")/Таблица69171116[Games])*100,0) -> 0 | J41: =SUMIFS(Таблица1[Total Hands],Таблица1[No],Таблица69171116[[#This Row],[2019]]) -> 0 | K41: =IFERROR(SUMIFS(Таблица1[bb/101],Таблица1[No],Таблица69171116[[#This Row],[2019]])/Таблица69171116[[#This Row],[Hand]],0) -> 0 | L41: =IFERROR(SUMIFS(Таблица1[EV bb/101],Таблица1[No],Таблица69171116[[#This Row],[2019]])/Таблица69171116[[#This Row],[Hand]],0) -> 0 | M41: =SUMIFS(Таблица1[Net Winnings],Таблица1[No],Таблица69171116[2019]) -> 0 | N41: =IFERROR(Таблица69171116[[#This Row],[Profit]]/Таблица69171116[[#This Row],[Games]],0) -> 0
D42: 39 | E42: =COUNTIFS(Таблица1[No],Таблица69171116[[#This Row],[2019]])+SUMIFS(Таблица1[Re-entry],Таблица1[No],Таблица69171116[[#This Row],[2019]]) -> 0 | F42: =SUMIFS(Таблица1[Total Buy-In],Таблица1[No],Таблица69171116[[#This Row],[2019]]) -> 0 | G42: =IFERROR(Таблица69171116[Buy-in]/Таблица69171116[Games],0) -> 0 | H42: =IFERROR((Таблица69171116[Profit]/Таблица69171116[Buy-in])*100,0) -> 0 | I42: =IFERROR((COUNTIFS(Таблица1[No],Таблица69171116[2019],Таблица1[Winnings],">0")/Таблица69171116[Games])*100,0) -> 0 | J42: =SUMIFS(Таблица1[Total Hands],Таблица1[No],Таблица69171116[[#This Row],[2019]]) -> 0 | K42: =IFERROR(SUMIFS(Таблица1[bb/101],Таблица1[No],Таблица69171116[[#This Row],[2019]])/Таблица69171116[[#This Row],[Hand]],0) -> 0 | L42: =IFERROR(SUMIFS(Таблица1[EV bb/101],Таблица1[No],Таблица69171116[[#This Row],[2019]])/Таблица69171116[[#This Row],[Hand]],0) -> 0 | M42: =SUMIFS(Таблица1[Net Winnings],Таблица1[No],Таблица69171116[2019]) -> 0 | N42: =IFERROR(Таблица69171116[[#This Row],[Profit]]/Таблица69171116[[#This Row],[Games]],0) -> 0
D43: 40 | E43: =COUNTIFS(Таблица1[No],Таблица69171116[[#This Row],[2019]])+SUMIFS(Таблица1[Re-entry],Таблица1[No],Таблица69171116[[#This Row],[2019]]) -> 0 | F43: =SUMIFS(Таблица1[Total Buy-In],Таблица1[No],Таблица69171116[[#This Row],[2019]]) -> 0 | G43: =IFERROR(Таблица69171116[Buy-in]/Таблица69171116[Games],0) -> 0 | H43: =IFERROR((Таблица69171116[Profit]/Таблица69171116[Buy-in])*100,0) -> 0 | I43: =IFERROR((COUNTIFS(Таблица1[No],Таблица69171116[2019],Таблица1[Winnings],">0")/Таблица69171116[Games])*100,0) -> 0 | J43: =SUMIFS(Таблица1[Total Hands],Таблица1[No],Таблица69171116[[#This Row],[2019]]) -> 0 | K43: =IFERROR(SUMIFS(Таблица1[bb/101],Таблица1[No],Таблица69171116[[#This Row],[2019]])/Таблица69171116[[#This Row],[Hand]],0) -> 0 | L43: =IFERROR(SUMIFS(Таблица1[EV bb/101],Таблица1[No],Таблица69171116[[#This Row],[2019]])/Таблица69171116[[#This Row],[Hand]],0) -> 0 | M43: =SUMIFS(Таблица1[Net Winnings],Таблица1[No],Таблица69171116[2019]) -> 0 | N43: =IFERROR(Таблица69171116[[#This Row],[Profit]]/Таблица69171116[[#This Row],[Games]],0) -> 0
D44: 41 | E44: =COUNTIFS(Таблица1[No],Таблица69171116[[#This Row],[2019]])+SUMIFS(Таблица1[Re-entry],Таблица1[No],Таблица69171116[[#This Row],[2019]]) -> 0 | F44: =SUMIFS(Таблица1[Total Buy-In],Таблица1[No],Таблица69171116[[#This Row],[2019]]) -> 0 | G44: =IFERROR(Таблица69171116[Buy-in]/Таблица69171116[Games],0) -> 0 | H44: =IFERROR((Таблица69171116[Profit]/Таблица69171116[Buy-in])*100,0) -> 0 | I44: =IFERROR((COUNTIFS(Таблица1[No],Таблица69171116[2019],Таблица1[Winnings],">0")/Таблица69171116[Games])*100,0) -> 0 | J44: =SUMIFS(Таблица1[Total Hands],Таблица1[No],Таблица69171116[[#This Row],[2019]]) -> 0 | K44: =IFERROR(SUMIFS(Таблица1[bb/101],Таблица1[No],Таблица69171116[[#This Row],[2019]])/Таблица69171116[[#This Row],[Hand]],0) -> 0 | L44: =IFERROR(SUMIFS(Таблица1[EV bb/101],Таблица1[No],Таблица69171116[[#This Row],[2019]])/Таблица69171116[[#This Row],[Hand]],0) -> 0 | M44: =SUMIFS(Таблица1[Net Winnings],Таблица1[No],Таблица69171116[2019]) -> 0 | N44: =IFERROR(Таблица69171116[[#This Row],[Profit]]/Таблица69171116[[#This Row],[Games]],0) -> 0
D45: 42 | E45: =COUNTIFS(Таблица1[No],Таблица69171116[[#This Row],[2019]])+SUMIFS(Таблица1[Re-entry],Таблица1[No],Таблица69171116[[#This Row],[2019]]) -> 0 | F45: =SUMIFS(Таблица1[Total Buy-In],Таблица1[No],Таблица69171116[[#This Row],[2019]]) -> 0 | G45: =IFERROR(Таблица69171116[Buy-in]/Таблица69171116[Games],0) -> 0 | H45: =IFERROR((Таблица69171116[Profit]/Таблица69171116[Buy-in])*100,0) -> 0 | I45: =IFERROR((COUNTIFS(Таблица1[No],Таблица69171116[2019],Таблица1[Winnings],">0")/Таблица69171116[Games])*100,0) -> 0 | J45: =SUMIFS(Таблица1[Total Hands],Таблица1[No],Таблица69171116[[#This Row],[2019]]) -> 0 | K45: =IFERROR(SUMIFS(Таблица1[bb/101],Таблица1[No],Таблица69171116[[#This Row],[2019]])/Таблица69171116[[#This Row],[Hand]],0) -> 0 | L45: =IFERROR(SUMIFS(Таблица1[EV bb/101],Таблица1[No],Таблица69171116[[#This Row],[2019]])/Таблица69171116[[#This Row],[Hand]],0) -> 0 | M45: =SUMIFS(Таблица1[Net Winnings],Таблица1[No],Таблица69171116[2019]) -> 0 | N45: =IFERROR(Таблица69171116[[#This Row],[Profit]]/Таблица69171116[[#This Row],[Games]],0) -> 0
D46: 43 | E46: =COUNTIFS(Таблица1[No],Таблица69171116[[#This Row],[2019]])+SUMIFS(Таблица1[Re-entry],Таблица1[No],Таблица69171116[[#This Row],[2019]]) -> 0 | F46: =SUMIFS(Таблица1[Total Buy-In],Таблица1[No],Таблица69171116[[#This Row],[2019]]) -> 0 | G46: =IFERROR(Таблица69171116[Buy-in]/Таблица69171116[Games],0) -> 0 | H46: =IFERROR((Таблица69171116[Profit]/Таблица69171116[Buy-in])*100,0) -> 0 | I46: =IFERROR((COUNTIFS(Таблица1[No],Таблица69171116[2019],Таблица1[Winnings],">0")/Таблица69171116[Games])*100,0) -> 0 | J46: =SUMIFS(Таблица1[Total Hands],Таблица1[No],Таблица69171116[[#This Row],[2019]]) -> 0 | K46: =IFERROR(SUMIFS(Таблица1[bb/101],Таблица1[No],Таблица69171116[[#This Row],[2019]])/Таблица69171116[[#This Row],[Hand]],0) -> 0 | L46: =IFERROR(SUMIFS(Таблица1[EV bb/101],Таблица1[No],Таблица69171116[[#This Row],[2019]])/Таблица69171116[[#This Row],[Hand]],0) -> 0 | M46: =SUMIFS(Таблица1[Net Winnings],Таблица1[No],Таблица69171116[2019]) -> 0 | N46: =IFERROR(Таблица69171116[[#This Row],[Profit]]/Таблица69171116[[#This Row],[Games]],0) -> 0
D47: 44 | E47: =COUNTIFS(Таблица1[No],Таблица69171116[[#This Row],[2019]])+SUMIFS(Таблица1[Re-entry],Таблица1[No],Таблица69171116[[#This Row],[2019]]) -> 0 | F47: =SUMIFS(Таблица1[Total Buy-In],Таблица1[No],Таблица69171116[[#This Row],[2019]]) -> 0 | G47: =IFERROR(Таблица69171116[Buy-in]/Таблица69171116[Games],0) -> 0 | H47: =IFERROR((Таблица69171116[Profit]/Таблица69171116[Buy-in])*100,0) -> 0 | I47: =IFERROR((COUNTIFS(Таблица1[No],Таблица69171116[2019],Таблица1[Winnings],">0")/Таблица69171116[Games])*100,0) -> 0 | J47: =SUMIFS(Таблица1[Total Hands],Таблица1[No],Таблица69171116[[#This Row],[2019]]) -> 0 | K47: =IFERROR(SUMIFS(Таблица1[bb/101],Таблица1[No],Таблица69171116[[#This Row],[2019]])/Таблица69171116[[#This Row],[Hand]],0) -> 0 | L47: =IFERROR(SUMIFS(Таблица1[EV bb/101],Таблица1[No],Таблица69171116[[#This Row],[2019]])/Таблица69171116[[#This Row],[Hand]],0) -> 0 | M47: =SUMIFS(Таблица1[Net Winnings],Таблица1[No],Таблица69171116[2019]) -> 0 | N47: =IFERROR(Таблица69171116[[#This Row],[Profit]]/Таблица69171116[[#This Row],[Games]],0) -> 0
D48: 45 | E48: =COUNTIFS(Таблица1[No],Таблица69171116[[#This Row],[2019]])+SUMIFS(Таблица1[Re-entry],Таблица1[No],Таблица69171116[[#This Row],[2019]]) -> 0 | F48: =SUMIFS(Таблица1[Total Buy-In],Таблица1[No],Таблица69171116[[#This Row],[2019]]) -> 0 | G48: =IFERROR(Таблица69171116[Buy-in]/Таблица69171116[Games],0) -> 0 | H48: =IFERROR((Таблица69171116[Profit]/Таблица69171116[Buy-in])*100,0) -> 0 | I48: =IFERROR((COUNTIFS(Таблица1[No],Таблица69171116[2019],Таблица1[Winnings],">0")/Таблица69171116[Games])*100,0) -> 0 | J48: =SUMIFS(Таблица1[Total Hands],Таблица1[No],Таблица69171116[[#This Row],[2019]]) -> 0 | K48: =IFERROR(SUMIFS(Таблица1[bb/101],Таблица1[No],Таблица69171116[[#This Row],[2019]])/Таблица69171116[[#This Row],[Hand]],0) -> 0 | L48: =IFERROR(SUMIFS(Таблица1[EV bb/101],Таблица1[No],Таблица69171116[[#This Row],[2019]])/Таблица69171116[[#This Row],[Hand]],0) -> 0 | M48: =SUMIFS(Таблица1[Net Winnings],Таблица1[No],Таблица69171116[2019]) -> 0 | N48: =IFERROR(Таблица69171116[[#This Row],[Profit]]/Таблица69171116[[#This Row],[Games]],0) -> 0
D49: 46 | E49: =COUNTIFS(Таблица1[No],Таблица69171116[[#This Row],[2019]])+SUMIFS(Таблица1[Re-entry],Таблица1[No],Таблица69171116[[#This Row],[2019]]) -> 0 | F49: =SUMIFS(Таблица1[Total Buy-In],Таблица1[No],Таблица69171116[[#This Row],[2019]]) -> 0 | G49: =IFERROR(Таблица69171116[Buy-in]/Таблица69171116[Games],0) -> 0 | H49: =IFERROR((Таблица69171116[Profit]/Таблица69171116[Buy-in])*100,0) -> 0 | I49: =IFERROR((COUNTIFS(Таблица1[No],Таблица69171116[2019],Таблица1[Winnings],">0")/Таблица69171116[Games])*100,0) -> 0 | J49: =SUMIFS(Таблица1[Total Hands],Таблица1[No],Таблица69171116[[#This Row],[2019]]) -> 0 | K49: =IFERROR(SUMIFS(Таблица1[bb/101],Таблица1[No],Таблица69171116[[#This Row],[2019]])/Таблица69171116[[#This Row],[Hand]],0) -> 0 | L49: =IFERROR(SUMIFS(Таблица1[EV bb/101],Таблица1[No],Таблица69171116[[#This Row],[2019]])/Таблица69171116[[#This Row],[Hand]],0) -> 0 | M49: =SUMIFS(Таблица1[Net Winnings],Таблица1[No],Таблица69171116[2019]) -> 0 | N49: =IFERROR(Таблица69171116[[#This Row],[Profit]]/Таблица69171116[[#This Row],[Games]],0) -> 0
D50: 47 | E50: =COUNTIFS(Таблица1[No],Таблица69171116[[#This Row],[2019]])+SUMIFS(Таблица1[Re-entry],Таблица1[No],Таблица69171116[[#This Row],[2019]]) -> 0 | F50: =SUMIFS(Таблица1[Total Buy-In],Таблица1[No],Таблица69171116[[#This Row],[2019]]) -> 0 | G50: =IFERROR(Таблица69171116[Buy-in]/Таблица69171116[Games],0) -> 0 | H50: =IFERROR((Таблица69171116[Profit]/Таблица69171116[Buy-in])*100,0) -> 0 | I50: =IFERROR((COUNTIFS(Таблица1[No],Таблица69171116[2019],Таблица1[Winnings],">0")/Таблица69171116[Games])*100,0) -> 0 | J50: =SUMIFS(Таблица1[Total Hands],Таблица1[No],Таблица69171116[[#This Row],[2019]]) -> 0 | K50: =IFERROR(SUMIFS(Таблица1[bb/101],Таблица1[No],Таблица69171116[[#This Row],[2019]])/Таблица69171116[[#This Row],[Hand]],0) -> 0 | L50: =IFERROR(SUMIFS(Таблица1[EV bb/101],Таблица1[No],Таблица69171116[[#This Row],[2019]])/Таблица69171116[[#This Row],[Hand]],0) -> 0 | M50: =SUMIFS(Таблица1[Net Winnings],Таблица1[No],Таблица69171116[2019]) -> 0 | N50: =IFERROR(Таблица69171116[[#This Row],[Profit]]/Таблица69171116[[#This Row],[Games]],0) -> 0
D51: 48 | E51: =COUNTIFS(Таблица1[No],Таблица69171116[[#This Row],[2019]])+SUMIFS(Таблица1[Re-entry],Таблица1[No],Таблица69171116[[#This Row],[2019]]) -> 0 | F51: =SUMIFS(Таблица1[Total Buy-In],Таблица1[No],Таблица69171116[[#This Row],[2019]]) -> 0 | G51: =IFERROR(Таблица69171116[Buy-in]/Таблица69171116[Games],0) -> 0 | H51: =IFERROR((Таблица69171116[Profit]/Таблица69171116[Buy-in])*100,0) -> 0 | I51: =IFERROR((COUNTIFS(Таблица1[No],Таблица69171116[2019],Таблица1[Winnings],">0")/Таблица69171116[Games])*100,0) -> 0 | J51: =SUMIFS(Таблица1[Total Hands],Таблица1[No],Таблица69171116[[#This Row],[2019]]) -> 0 | K51: =IFERROR(SUMIFS(Таблица1[bb/101],Таблица1[No],Таблица69171116[[#This Row],[2019]])/Таблица69171116[[#This Row],[Hand]],0) -> 0 | L51: =IFERROR(SUMIFS(Таблица1[EV bb/101],Таблица1[No],Таблица69171116[[#This Row],[2019]])/Таблица69171116[[#This Row],[Hand]],0) -> 0 | M51: =SUMIFS(Таблица1[Net Winnings],Таблица1[No],Таблица69171116[2019]) -> 0 | N51: =IFERROR(Таблица69171116[[#This Row],[Profit]]/Таблица69171116[[#This Row],[Games]],0) -> 0
D52: 49 | E52: =COUNTIFS(Таблица1[No],Таблица69171116[[#This Row],[2019]])+SUMIFS(Таблица1[Re-entry],Таблица1[No],Таблица69171116[[#This Row],[2019]]) -> 0 | F52: =SUMIFS(Таблица1[Total Buy-In],Таблица1[No],Таблица69171116[[#This Row],[2019]]) -> 0 | G52: =IFERROR(Таблица69171116[Buy-in]/Таблица69171116[Games],0) -> 0 | H52: =IFERROR((Таблица69171116[Profit]/Таблица69171116[Buy-in])*100,0) -> 0 | I52: =IFERROR((COUNTIFS(Таблица1[No],Таблица69171116[2019],Таблица1[Winnings],">0")/Таблица69171116[Games])*100,0) -> 0 | J52: =SUMIFS(Таблица1[Total Hands],Таблица1[No],Таблица69171116[[#This Row],[2019]]) -> 0 | K52: =IFERROR(SUMIFS(Таблица1[bb/101],Таблица1[No],Таблица69171116[[#This Row],[2019]])/Таблица69171116[[#This Row],[Hand]],0) -> 0 | L52: =IFERROR(SUMIFS(Таблица1[EV bb/101],Таблица1[No],Таблица69171116[[#This Row],[2019]])/Таблица69171116[[#This Row],[Hand]],0) -> 0 | M52: =SUMIFS(Таблица1[Net Winnings],Таблица1[No],Таблица69171116[2019]) -> 0 | N52: =IFERROR(Таблица69171116[[#This Row],[Profit]]/Таблица69171116[[#This Row],[Games]],0) -> 0
D53: 50 | E53: =COUNTIFS(Таблица1[No],Таблица69171116[[#This Row],[2019]])+SUMIFS(Таблица1[Re-entry],Таблица1[No],Таблица69171116[[#This Row],[2019]]) -> 0 | F53: =SUMIFS(Таблица1[Total Buy-In],Таблица1[No],Таблица69171116[[#This Row],[2019]]) -> 0 | G53: =IFERROR(Таблица69171116[Buy-in]/Таблица69171116[Games],0) -> 0 | H53: =IFERROR((Таблица69171116[Profit]/Таблица69171116[Buy-in])*100,0) -> 0 | I53: =IFERROR((COUNTIFS(Таблица1[No],Таблица69171116[2019],Таблица1[Winnings],">0")/Таблица69171116[Games])*100,0) -> 0 | J53: =SUMIFS(Таблица1[Total Hands],Таблица1[No],Таблица69171116[[#This Row],[2019]]) -> 0 | K53: =IFERROR(SUMIFS(Таблица1[bb/101],Таблица1[No],Таблица69171116[[#This Row],[2019]])/Таблица69171116[[#This Row],[Hand]],0) -> 0 | L53: =IFERROR(SUMIFS(Таблица1[EV bb/101],Таблица1[No],Таблица69171116[[#This Row],[2019]])/Таблица69171116[[#This Row],[Hand]],0) -> 0 | M53: =SUMIFS(Таблица1[Net Winnings],Таблица1[No],Таблица69171116[2019]) -> 0 | N53: =IFERROR(Таблица69171116[[#This Row],[Profit]]/Таблица69171116[[#This Row],[Games]],0) -> 0
D54: 51 | E54: =COUNTIFS(Таблица1[No],Таблица69171116[[#This Row],[2019]])+SUMIFS(Таблица1[Re-entry],Таблица1[No],Таблица69171116[[#This Row],[2019]]) -> 0 | F54: =SUMIFS(Таблица1[Total Buy-In],Таблица1[No],Таблица69171116[[#This Row],[2019]]) -> 0 | G54: =IFERROR(Таблица69171116[Buy-in]/Таблица69171116[Games],0) -> 0 | H54: =IFERROR((Таблица69171116[Profit]/Таблица69171116[Buy-in])*100,0) -> 0 | I54: =IFERROR((COUNTIFS(Таблица1[No],Таблица69171116[2019],Таблица1[Winnings],">0")/Таблица69171116[Games])*100,0) -> 0 | J54: =SUMIFS(Таблица1[Total Hands],Таблица1[No],Таблица69171116[[#This Row],[2019]]) -> 0 | K54: =IFERROR(SUMIFS(Таблица1[bb/101],Таблица1[No],Таблица69171116[[#This Row],[2019]])/Таблица69171116[[#This Row],[Hand]],0) -> 0 | L54: =IFERROR(SUMIFS(Таблица1[EV bb/101],Таблица1[No],Таблица69171116[[#This Row],[2019]])/Таблица69171116[[#This Row],[Hand]],0) -> 0 | M54: =SUMIFS(Таблица1[Net Winnings],Таблица1[No],Таблица69171116[2019]) -> 0 | N54: =IFERROR(Таблица69171116[[#This Row],[Profit]]/Таблица69171116[[#This Row],[Games]],0) -> 0
D55: 52 | E55: =COUNTIFS(Таблица1[No],Таблица69171116[[#This Row],[2019]])+SUMIFS(Таблица1[Re-entry],Таблица1[No],Таблица69171116[[#This Row],[2019]]) -> 0 | F55: =SUMIFS(Таблица1[Total Buy-In],Таблица1[No],Таблица69171116[[#This Row],[2019]]) -> 0 | G55: =IFERROR(Таблица69171116[Buy-in]/Таблица69171116[Games],0) -> 0 | H55: =IFERROR((Таблица69171116[Profit]/Таблица69171116[Buy-in])*100,0) -> 0 | I55: =IFERROR((COUNTIFS(Таблица1[No],Таблица69171116[2019],Таблица1[Winnings],">0")/Таблица69171116[Games])*100,0) -> 0 | J55: =SUMIFS(Таблица1[Total Hands],Таблица1[No],Таблица69171116[[#This Row],[2019]]) -> 0 | K55: =IFERROR(SUMIFS(Таблица1[bb/101],Таблица1[No],Таблица69171116[[#This Row],[2019]])/Таблица69171116[[#This Row],[Hand]],0) -> 0 | L55: =IFERROR(SUMIFS(Таблица1[EV bb/101],Таблица1[No],Таблица69171116[[#This Row],[2019]])/Таблица69171116[[#This Row],[Hand]],0) -> 0 | M55: =SUMIFS(Таблица1[Net Winnings],Таблица1[No],Таблица69171116[2019]) -> 0 | N55: =IFERROR(Таблица69171116[[#This Row],[Profit]]/Таблица69171116[[#This Row],[Games]],0) -> 0
D56: 53 | E56: =COUNTIFS(Таблица1[No],Таблица69171116[[#This Row],[2019]])+SUMIFS(Таблица1[Re-entry],Таблица1[No],Таблица69171116[[#This Row],[2019]]) -> 0 | F56: =SUMIFS(Таблица1[Total Buy-In],Таблица1[No],Таблица69171116[[#This Row],[2019]]) -> 0 | G56: =IFERROR(Таблица69171116[Buy-in]/Таблица69171116[Games],0) -> 0 | H56: =IFERROR((Таблица69171116[Profit]/Таблица69171116[Buy-in])*100,0) -> 0 | I56: =IFERROR((COUNTIFS(Таблица1[No],Таблица69171116[2019],Таблица1[Winnings],">0")/Таблица69171116[Games])*100,0) -> 0 | J56: =SUMIFS(Таблица1[Total Hands],Таблица1[No],Таблица69171116[[#This Row],[2019]]) -> 0 | K56: =IFERROR(SUMIFS(Таблица1[bb/101],Таблица1[No],Таблица69171116[[#This Row],[2019]])/Таблица69171116[[#This Row],[Hand]],0) -> 0 | L56: =IFERROR(SUMIFS(Таблица1[EV bb/101],Таблица1[No],Таблица69171116[[#This Row],[2019]])/Таблица69171116[[#This Row],[Hand]],0) -> 0 | M56: =SUMIFS(Таблица1[Net Winnings],Таблица1[No],Таблица69171116[2019]) -> 0 | N56: =IFERROR(Таблица69171116[[#This Row],[Profit]]/Таблица69171116[[#This Row],[Games]],0) -> 0

Sheet деньнед
B3: 2019 | C3: Games | D3: Buy-in | E3: ABI | F3: Roi | G3: Itm | H3: Hand | I3: bb/100 | J3: EV bb/100 | K3: Profit | L3: Pr/Game
B4: понедельник | C4: =COUNTIFS(Таблица1[deni nedeli],Таблица6917[[#This Row],[2019]])+SUMIFS(Таблица1[Re-entry],Таблица1[deni nedeli],Таблица6917[[#This Row],[2019]]) -> 4 | D4: =SUMIFS(Таблица1[Total Buy-In],Таблица1[deni nedeli],Таблица6917[[#This Row],[2019]]) -> 1 | E4: =IFERROR(Таблица6917[Buy-in]/Таблица6917[Games],0) -> 0.25 | F4: =IFERROR((Таблица6917[Profit]/Таблица6917[Buy-in])*100,0) -> 223 | G4: =IFERROR((COUNTIFS(Таблица1[deni nedeli],Таблица6917[2019],Таблица1[Winnings],">0")/Таблица6917[Games])*100,0) -> 25 | H4: =SUMIFS(Таблица1[Total Hands],Таблица1[deni nedeli],Таблица6917[[#This Row],[2019]]) -> 416 | I4: =IFERROR(SUMIFS(Таблица1[bb/101],Таблица1[deni nedeli],Таблица6917[[#This Row],[2019]])/Таблица6917[[#This Row],[Hand]],0) -> 18.65822115 | J4: =IFERROR(SUMIFS(Таблица1[EV bb/101],Таблица1[deni nedeli],Таблица6917[[#This Row],[2019]])/Таблица6917[[#This Row],[Hand]],0) -> 5.991418269 | K4: =SUMIFS(Таблица1[Net Winnings],Таблица1[deni nedeli],Таблица6917[2019]) -> 2.23 | L4: =IFERROR(Таблица6917[[#This Row],[Profit]]/Таблица6917[[#This Row],[Games]],0) -> 0.5575
B5: вторник | C5: =COUNTIFS(Таблица1[deni nedeli],Таблица6917[[#This Row],[2019]])+SUMIFS(Таблица1[Re-entry],Таблица1[deni nedeli],Таблица6917[[#This Row],[2019]]) -> 0 | D5: =SUMIFS(Таблица1[Total Buy-In],Таблица1[deni nedeli],Таблица6917[[#This Row],[2019]]) -> 0 | E5: =IFERROR(Таблица6917[Buy-in]/Таблица6917[Games],0) -> 0 | F5: =IFERROR((Таблица6917[Profit]/Таблица6917[Buy-in])*100,0) -> 0 | G5: =IFERROR((COUNTIFS(Таблица1[deni nedeli],Таблица6917[2019],Таблица1[Winnings],">0")/Таблица6917[Games])*100,0) -> 0 | H5: =SUMIFS(Таблица1[Total Hands],Таблица1[deni nedeli],Таблица6917[[#This Row],[2019]]) -> 0 | I5: =IFERROR(SUMIFS(Таблица1[bb/101],Таблица1[deni nedeli],Таблица6917[[#This Row],[2019]])/Таблица6917[[#This Row],[Hand]],0) -> 0 | J5: =IFERROR(SUMIFS(Таблица1[EV bb/101],Таблица1[deni nedeli],Таблица6917[[#This Row],[2019]])/Таблица6917[[#This Row],[Hand]],0) -> 0 | K5: =SUMIFS(Таблица1[Net Winnings],Таблица1[deni nedeli],Таблица6917[2019]) -> 0 | L5: =IFERROR(Таблица6917[[#This Row],[Profit]]/Таблица6917[[#This Row],[Games]],0) -> 0
B6: среда | C6: =COUNTIFS(Таблица1[deni nedeli],Таблица6917[[#This Row],[2019]])+SUMIFS(Таблица1[Re-entry],Таблица1[deni nedeli],Таблица6917[[#This Row],[2019]]) -> 0 | D6: =SUMIFS(Таблица1[Total Buy-In],Таблица1[deni nedeli],Таблица6917[[#This Row],[2019]]) -> 0 | E6: =IFERROR(Таблица6917[Buy-in]/Таблица6917[Games],0) -> 0 | F6: =IFERROR((Таблица6917[Profit]/Таблица6917[Buy-in])*100,0) -> 0 | G6: =IFERROR((COUNTIFS(Таблица1[deni nedeli],Таблица6917[2019],Таблица1[Winnings],">0")/Таблица6917[Games])*100,0) -> 0 | H6: =SUMIFS(Таблица1[Total Hands],Таблица1[deni nedeli],Таблица6917[[#This Row],[2019]]) -> 0 | I6: =IFERROR(SUMIFS(Таблица1[bb/101],Таблица1[deni nedeli],Таблица6917[[#This Row],[2019]])/Таблица6917[[#This Row],[Hand]],0) -> 0 | J6: =IFERROR(SUMIFS(Таблица1[EV bb/101],Таблица1[deni nedeli],Таблица6917[[#This Row],[2019]])/Таблица6917[[#This Row],[Hand]],0) -> 0 | K6: =SUMIFS(Таблица1[Net Winnings],Таблица1[deni nedeli],Таблица6917[2019]) -> 0 | L6: =IFERROR(Таблица6917[[#This Row],[Profit]]/Таблица6917[[#This Row],[Games]],0) -> 0
B7: четверг | C7: =COUNTIFS(Таблица1[deni nedeli],Таблица6917[[#This Row],[2019]])+SUMIFS(Таблица1[Re-entry],Таблица1[deni nedeli],Таблица6917[[#This Row],[2019]]) -> 0 | D7: =SUMIFS(Таблица1[Total Buy-In],Таблица1[deni nedeli],Таблица6917[[#This Row],[2019]]) -> 0 | E7: =IFERROR(Таблица6917[Buy-in]/Таблица6917[Games],0) -> 0 | F7: =IFERROR((Таблица6917[Profit]/Таблица6917[Buy-in])*100,0) -> 0 | G7: =IFERROR((COUNTIFS(Таблица1[deni nedeli],Таблица6917[2019],Таблица1[Winnings],">0")/Таблица6917[Games])*100,0) -> 0 | H7: =SUMIFS(Таблица1[Total Hands],Таблица1[deni nedeli],Таблица6917[[#This Row],[2019]]) -> 0 | I7: =IFERROR(SUMIFS(Таблица1[bb/101],Таблица1[deni nedeli],Таблица6917[[#This Row],[2019]])/Таблица6917[[#This Row],[Hand]],0) -> 0 | J7: =IFERROR(SUMIFS(Таблица1[EV bb/101],Таблица1[deni nedeli],Таблица6917[[#This Row],[2019]])/Таблица6917[[#This Row],[Hand]],0) -> 0 | K7: =SUMIFS(Таблица1[Net Winnings],Таблица1[deni nedeli],Таблица6917[2019]) -> 0 | L7: =IFERROR(Таблица6917[[#This Row],[Profit]]/Таблица6917[[#This Row],[Games]],0) -> 0
B8: пятница | C8: =COUNTIFS(Таблица1[deni nedeli],Таблица6917[[#This Row],[2019]])+SUMIFS(Таблица1[Re-entry],Таблица1[deni nedeli],Таблица6917[[#This Row],[2019]]) -> 0 | D8: =SUMIFS(Таблица1[Total Buy-In],Таблица1[deni nedeli],Таблица6917[[#This Row],[2019]]) -> 0 | E8: =IFERROR(Таблица6917[Buy-in]/Таблица6917[Games],0) -> 0 | F8: =IFERROR((Таблица6917[Profit]/Таблица6917[Buy-in])*100,0) -> 0 | G8: =IFERROR((COUNTIFS(Таблица1[deni nedeli],Таблица6917[2019],Таблица1[Winnings],">0")/Таблица6917[Games])*100,0) -> 0 | H8: =SUMIFS(Таблица1[Total Hands],Таблица1[deni nedeli],Таблица6917[[#This Row],[2019]]) -> 0 | I8: =IFERROR(SUMIFS(Таблица1[bb/101],Таблица1[deni nedeli],Таблица6917[[#This Row],[2019]])/Таблица6917[[#This Row],[Hand]],0) -> 0 | J8: =IFERROR(SUMIFS(Таблица1[EV bb/101],Таблица1[deni nedeli],Таблица6917[[#This Row],[2019]])/Таблица6917[[#This Row],[Hand]],0) -> 0 | K8: =SUMIFS(Таблица1[Net Winnings],Таблица1[deni nedeli],Таблица6917[2019]) -> 0 | L8: =IFERROR(Таблица6917[[#This Row],[Profit]]/Таблица6917[[#This Row],[Games]],0) -> 0
B9: суббота | C9: =COUNTIFS(Таблица1[deni nedeli],Таблица6917[[#This Row],[2019]])+SUMIFS(Таблица1[Re-entry],Таблица1[deni nedeli],Таблица6917[[#This Row],[2019]]) -> 0 | D9: =SUMIFS(Таблица1[Total Buy-In],Таблица1[deni nedeli],Таблица6917[[#This Row],[2019]]) -> 0 | E9: =IFERROR(Таблица6917[Buy-in]/Таблица6917[Games],0) -> 0 | F9: =IFERROR((Таблица6917[Profit]/Таблица6917[Buy-in])*100,0) -> 0 | G9: =IFERROR((COUNTIFS(Таблица1[deni nedeli],Таблица6917[2019],Таблица1[Winnings],">0")/Таблица6917[Games])*100,0) -> 0 | H9: =SUMIFS(Таблица1[Total Hands],Таблица1[deni nedeli],Таблица6917[[#This Row],[2019]]) -> 0 | I9: =IFERROR(SUMIFS(Таблица1[bb/101],Таблица1[deni nedeli],Таблица6917[[#This Row],[2019]])/Таблица6917[[#This Row],[Hand]],0) -> 0 | J9: =IFERROR(SUMIFS(Таблица1[EV bb/101],Таблица1[deni nedeli],Таблица6917[[#This Row],[2019]])/Таблица6917[[#This Row],[Hand]],0) -> 0 | K9: =SUMIFS(Таблица1[Net Winnings],Таблица1[deni nedeli],Таблица6917[2019]) -> 0 | L9: =IFERROR(Таблица6917[[#This Row],[Profit]]/Таблица6917[[#This Row],[Games]],0) -> 0
B10: воскресенье | C10: =COUNTIFS(Таблица1[deni nedeli],Таблица6917[[#This Row],[2019]])+SUMIFS(Таблица1[Re-entry],Таблица1[deni nedeli],Таблица6917[[#This Row],[2019]]) -> 0 | D10: =SUMIFS(Таблица1[Total Buy-In],Таблица1[deni nedeli],Таблица6917[[#This Row],[2019]]) -> 0 | E10: =IFERROR(Таблица6917[Buy-in]/Таблица6917[Games],0) -> 0 | F10: =IFERROR((Таблица6917[Profit]/Таблица6917[Buy-in])*100,0) -> 0 | G10: =IFERROR((COUNTIFS(Таблица1[deni nedeli],Таблица6917[2019],Таблица1[Winnings],">0")/Таблица6917[Games])*100,0) -> 0 | H10: =SUMIFS(Таблица1[Total Hands],Таблица1[deni nedeli],Таблица6917[[#This Row],[2019]]) -> 0 | I10: =IFERROR(SUMIFS(Таблица1[bb/101],Таблица1[deni nedeli],Таблица6917[[#This Row],[2019]])/Таблица6917[[#This Row],[Hand]],0) -> 0 | J10: =IFERROR(SUMIFS(Таблица1[EV bb/101],Таблица1[deni nedeli],Таблица6917[[#This Row],[2019]])/Таблица6917[[#This Row],[Hand]],0) -> 0 | K10: =SUMIFS(Таблица1[Net Winnings],Таблица1[deni nedeli],Таблица6917[2019]) -> 0 | L10: =IFERROR(Таблица6917[[#This Row],[Profit]]/Таблица6917[[#This Row],[Games]],0) -> 0

Sheet buy-in
B3: 2019 | C3: Games | D3: Buy-in | E3: ABI | F3: Roi | G3: Itm | H3: Hand | I3: bb/100 | J3: EV bb/100 | K3: Profit | L3: Pr/Game
B4: 0.25 | C4: =COUNTIFS(Таблица1[Buy-In],Таблица691711[[#This Row],[2019]])+SUMIFS(Таблица1[Re-entry],Таблица1[Buy-In],Таблица691711[[#This Row],[2019]]) -> 4 | D4: =SUMIFS(Таблица1[Total Buy-In],Таблица1[Buy-In],Таблица691711[[#This Row],[2019]]) -> 1 | E4: =IFERROR(Таблица691711[Buy-in]/Таблица691711[Games],0) -> 0.25 | F4: =IFERROR((Таблица691711[Profit]/Таблица691711[Buy-in])*100,0) -> 223 | G4: =IFERROR((COUNTIFS(Таблица1[Buy-In],Таблица691711[2019],Таблица1[Winnings],">0")/Таблица691711[Games])*100,0) -> 25 | H4: =SUMIFS(Таблица1[Total Hands],Таблица1[Buy-In],Таблица691711[[#This Row],[2019]]) -> 416 | I4: =IFERROR(SUMIFS(Таблица1[bb/101],Таблица1[Buy-In],Таблица691711[[#This Row],[2019]])/Таблица691711[[#This Row],[Hand]],0) -> 18.65822115 | J4: =IFERROR(SUMIFS(Таблица1[EV bb/101],Таблица1[Buy-In],Таблица691711[[#This Row],[2019]])/Таблица691711[[#This Row],[Hand]],0) -> 5.991418269 | K4: =SUMIFS(Таблица1[Net Winnings],Таблица1[Buy-In],Таблица691711[2019]) -> 2.23 | L4: =IFERROR(Таблица691711[[#This Row],[Profit]]/Таблица691711[[#This Row],[Games]],0) -> 0.5575
B5: 0.5 | C5: =COUNTIFS(Таблица1[Buy-In],Таблица691711[[#This Row],[2019]])+SUMIFS(Таблица1[Re-entry],Таблица1[Buy-In],Таблица691711[[#This Row],[2019]]) -> 0 | D5: =SUMIFS(Таблица1[Total Buy-In],Таблица1[Buy-In],Таблица691711[[#This Row],[2019]]) -> 0 | E5: =IFERROR(Таблица691711[Buy-in]/Таблица691711[Games],0) -> 0 | F5: =IFERROR((Таблица691711[Profit]/Таблица691711[Buy-in])*100,0) -> 0 | G5: =IFERROR((COUNTIFS(Таблица1[Buy-In],Таблица691711[2019],Таблица1[Winnings],">0")/Таблица691711[Games])*100,0) -> 0 | H5: =SUMIFS(Таблица1[Total Hands],Таблица1[Buy-In],Таблица691711[[#This Row],[2019]]) -> 0 | I5: =IFERROR(SUMIFS(Таблица1[bb/101],Таблица1[Buy-In],Таблица691711[[#This Row],[2019]])/Таблица691711[[#This Row],[Hand]],0) -> 0 | J5: =IFERROR(SUMIFS(Таблица1[EV bb/101],Таблица1[Buy-In],Таблица691711[[#This Row],[2019]])/Таблица691711[[#This Row],[Hand]],0) -> 0 | K5: =SUMIFS(Таблица1[Net Winnings],Таблица1[Buy-In],Таблица691711[2019]) -> 0 | L5: =IFERROR(Таблица691711[[#This Row],[Profit]]/Таблица691711[[#This Row],[Games]],0) -> 0
B6: 0.55 | C6: =COUNTIFS(Таблица1[Buy-In],Таблица691711[[#This Row],[2019]])+SUMIFS(Таблица1[Re-entry],Таблица1[Buy-In],Таблица691711[[#This Row],[2019]]) -> 0 | D6: =SUMIFS(Таблица1[Total Buy-In],Таблица1[Buy-In],Таблица691711[[#This Row],[2019]]) -> 0 | E6: =IFERROR(Таблица691711[Buy-in]/Таблица691711[Games],0) -> 0 | F6: =IFERROR((Таблица691711[Profit]/Таблица691711[Buy-in])*100,0) -> 0 | G6: =IFERROR((COUNTIFS(Таблица1[Buy-In],Таблица691711[2019],Таблица1[Winnings],">0")/Таблица691711[Games])*100,0) -> 0 | H6: =SUMIFS(Таблица1[Total Hands],Таблица1[Buy-In],Таблица691711[[#This Row],[2019]]) -> 0 | I6: =IFERROR(SUMIFS(Таблица1[bb/101],Таблица1[Buy-In],Таблица691711[[#This Row],[2019]])/Таблица691711[[#This Row],[Hand]],0) -> 0 | J6: =IFERROR(SUMIFS(Таблица1[EV bb/101],Таблица1[Buy-In],Таблица691711[[#This Row],[2019]])/Таблица691711[[#This Row],[Hand]],0) -> 0 | K6: =SUMIFS(Таблица1[Net Winnings],Таблица1[Buy-In],Таблица691711[2019]) -> 0 | L6: =IFERROR(Таблица691711[[#This Row],[Profit]]/Таблица691711[[#This Row],[Games]],0) -> 0
B7: 1 | C7: =COUNTIFS(Таблица1[Buy-In],Таблица691711[[#This Row],[2019]])+SUMIFS(Таблица1[Re-entry],Таблица1[Buy-In],Таблица691711[[#This Row],[2019]]) -> 0 | D7: =SUMIFS(Таблица1[Total Buy-In],Таблица1[Buy-In],Таблица691711[[#This Row],[2019]]) -> 0 | E7: =IFERROR(Таблица691711[Buy-in]/Таблица691711[Games],0) -> 0 | F7: =IFERROR((Таблица691711[Profit]/Таблица691711[Buy-in])*100,0) -> 0 | G7: =IFERROR((COUNTIFS(Таблица1[Buy-In],Таблица691711[2019],Таблица1[Winnings],">0")/Таблица691711[Games])*100,0) -> 0 | H7: =SUMIFS(Таблица1[Total Hands],Таблица1[Buy-In],Таблица691711[[#This Row],[2019]]) -> 0 | I7: =IFERROR(SUMIFS(Таблица1[bb/101],Таблица1[Buy-In],Таблица691711[[#This Row],[2019]])/Таблица691711[[#This Row],[Hand]],0) -> 0 | J7: =IFERROR(SUMIFS(Таблица1[EV bb/101],Таблица1[Buy-In],Таблица691711[[#This Row],[2019]])/Таблица691711[[#This Row],[Hand]],0) -> 0 | K7: =SUMIFS(Таблица1[Net Winnings],Таблица1[Buy-In],Таблица691711[2019]) -> 0 | L7: =IFERROR(Таблица691711[[#This Row],[Profit]]/Таблица691711[[#This Row],[Games]],0) -> 0
B8: 1.1 | C8: =COUNTIFS(Таблица1[Buy-In],Таблица691711[[#This Row],[2019]])+SUMIFS(Таблица1[Re-entry],Таблица1[Buy-In],Таблица691711[[#This Row],[2019]]) -> 0 | D8: =SUMIFS(Таблица1[Total Buy-In],Таблица1[Buy-In],Таблица691711[[#This Row],[2019]]) -> 0 | E8: =IFERROR(Таблица691711[Buy-in]/Таблица691711[Games],0) -> 0 | F8: =IFERROR((Таблица691711[Profit]/Таблица691711[Buy-in])*100,0) -> 0 | G8: =IFERROR((COUNTIFS(Таблица1[Buy-In],Таблица691711[2019],Таблица1[Winnings],">0")/Таблица691711[Games])*100,0) -> 0 | H8: =SUMIFS(Таблица1[Total Hands],Таблица1[Buy-In],Таблица691711[[#This Row],[2019]]) -> 0 | I8: =IFERROR(SUMIFS(Таблица1[bb/101],Таблица1[Buy-In],Таблица691711[[#This Row],[2019]])/Таблица691711[[#This Row],[Hand]],0) -> 0 | J8: =IFERROR(SUMIFS(Таблица1[EV bb/101],Таблица1[Buy-In],Таблица691711[[#This Row],[2019]])/Таблица691711[[#This Row],[Hand]],0) -> 0 | K8: =SUMIFS(Таблица1[Net Winnings],Таблица1[Buy-In],Таблица691711[2019]) -> 0 | L8: =IFERROR(Таблица691711[[#This Row],[Profit]]/Таблица691711[[#This Row],[Games]],0) -> 0
B9: 2 | C9: =COUNTIFS(Таблица1[Buy-In],Таблица691711[[#This Row],[2019]])+SUMIFS(Таблица1[Re-entry],Таблица1[Buy-In],Таблица691711[[#This Row],[2019]]) -> 0 | D9: =SUMIFS(Таблица1[Total Buy-In],Таблица1[Buy-In],Таблица691711[[#This Row],[2019]]) -> 0 | E9: =IFERROR(Таблица691711[Buy-in]/Таблица691711[Games],0) -> 0 | F9: =IFERROR((Таблица691711[Profit]/Таблица691711[Buy-in])*100,0) -> 0 | G9: =IFERROR((COUNTIFS(Таблица1[Buy-In],Таблица691711[2019],Таблица1[Winnings],">0")/Таблица691711[Games])*100,0) -> 0 | H9: =SUMIFS(Таблица1[Total Hands],Таблица1[Buy-In],Таблица691711[[#This Row],[2019]]) -> 0 | I9: =IFERROR(SUMIFS(Таблица1[bb/101],Таблица1[Buy-In],Таблица691711[[#This Row],[2019]])/Таблица691711[[#This Row],[Hand]],0) -> 0 | J9: =IFERROR(SUMIFS(Таблица1[EV bb/101],Таблица1[Buy-In],Таблица691711[[#This Row],[2019]])/Таблица691711[[#This Row],[Hand]],0) -> 0 | K9: =SUMIFS(Таблица1[Net Winnings],Таблица1[Buy-In],Таблица691711[2019]) -> 0 | L9: =IFERROR(Таблица691711[[#This Row],[Profit]]/Таблица691711[[#This Row],[Games]],0) -> 0
B10: 2.2 | C10: =COUNTIFS(Таблица1[Buy-In],Таблица691711[[#This Row],[2019]])+SUMIFS(Таблица1[Re-entry],Таблица1[Buy-In],Таблица691711[[#This Row],[2019]]) -> 0 | D10: =SUMIFS(Таблица1[Total Buy-In],Таблица1[Buy-In],Таблица691711[[#This Row],[2019]]) -> 0 | E10: =IFERROR(Таблица691711[Buy-in]/Таблица691711[Games],0) -> 0 | F10: =IFERROR((Таблица691711[Profit]/Таблица691711[Buy-in])*100,0) -> 0 | G10: =IFERROR((COUNTIFS(Таблица1[Buy-In],Таблица691711[2019],Таблица1[Winnings],">0")/Таблица691711[Games])*100,0) -> 0 | H10: =SUMIFS(Таблица1[Total Hands],Таблица1[Buy-In],Таблица691711[[#This Row],[2019]]) -> 0 | I10: =IFERROR(SUMIFS(Таблица1[bb/101],Таблица1[Buy-In],Таблица691711[[#This Row],[2019]])/Таблица691711[[#This Row],[Hand]],0) -> 0 | J10: =IFERROR(SUMIFS(Таблица1[EV bb/101],Таблица1[Buy-In],Таблица691711[[#This Row],[2019]])/Таблица691711[[#This Row],[Hand]],0) -> 0 | K10: =SUMIFS(Таблица1[Net Winnings],Таблица1[Buy-In],Таблица691711[2019]) -> 0 | L10: =IFERROR(Таблица691711[[#This Row],[Profit]]/Таблица691711[[#This Row],[Games]],0) -> 0
B11: 2.5 | C11: =COUNTIFS(Таблица1[Buy-In],Таблица691711[[#This Row],[2019]])+SUMIFS(Таблица1[Re-entry],Таблица1[Buy-In],Таблица691711[[#This Row],[2019]]) -> 0 | D11: =SUMIFS(Таблица1[Total Buy-In],Таблица1[Buy-In],Таблица691711[[#This Row],[2019]]) -> 0 | E11: =IFERROR(Таблица691711[Buy-in]/Таблица691711[Games],0) -> 0 | F11: =IFERROR((Таблица691711[Profit]/Таблица691711[Buy-in])*100,0) -> 0 | G11: =IFERROR((COUNTIFS(Таблица1[Buy-In],Таблица691711[2019],Таблица1[Winnings],">0")/Таблица691711[Games])*100,0) -> 0 | H11: =SUMIFS(Таблица1[Total Hands],Таблица1[Buy-In],Таблица691711[[#This Row],[2019]]) -> 0 | I11: =IFERROR(SUMIFS(Таблица1[bb/101],Таблица1[Buy-In],Таблица691711[[#This Row],[2019]])/Таблица691711[[#This Row],[Hand]],0) -> 0 | J11: =IFERROR(SUMIFS(Таблица1[EV bb/101],Таблица1[Buy-In],Таблица691711[[#This Row],[2019]])/Таблица691711[[#This Row],[Hand]],0) -> 0 | K11: =SUMIFS(Таблица1[Net Winnings],Таблица1[Buy-In],Таблица691711[2019]) -> 0 | L11: =IFERROR(Таблица691711[[#This Row],[Profit]]/Таблица691711[[#This Row],[Games]],0) -> 0
B12: 3 | C12: =COUNTIFS(Таблица1[Buy-In],Таблица691711[[#This Row],[2019]])+SUMIFS(Таблица1[Re-entry],Таблица1[Buy-In],Таблица691711[[#This Row],[2019]]) -> 0 | D12: =SUMIFS(Таблица1[Total Buy-In],Таблица1[Buy-In],Таблица691711[[#This Row],[2019]]) -> 0 | E12: =IFERROR(Таблица691711[Buy-in]/Таблица691711[Games],0) -> 0 | F12: =IFERROR((Таблица691711[Profit]/Таблица691711[Buy-in])*100,0) -> 0 | G12: =IFERROR((COUNTIFS(Таблица1[Buy-In],Таблица691711[2019],Таблица1[Winnings],">0")/Таблица691711[Games])*100,0) -> 0 | H12: =SUMIFS(Таблица1[Total Hands],Таблица1[Buy-In],Таблица691711[[#This Row],[2019]]) -> 0 | I12: =IFERROR(SUMIFS(Таблица1[bb/101],Таблица1[Buy-In],Таблица691711[[#This Row],[2019]])/Таблица691711[[#This Row],[Hand]],0) -> 0 | J12: =IFERROR(SUMIFS(Таблица1[EV bb/101],Таблица1[Buy-In],Таблица691711[[#This Row],[2019]])/Таблица691711[[#This Row],[Hand]],0) -> 0 | K12: =SUMIFS(Таблица1[Net Winnings],Таблица1[Buy-In],Таблица691711[2019]) -> 0 | L12: =IFERROR(Таблица691711[[#This Row],[Profit]]/Таблица691711[[#This Row],[Games]],0) -> 0
B13: 3.3 | C13: =COUNTIFS(Таблица1[Buy-In],Таблица691711[[#This Row],[2019]])+SUMIFS(Таблица1[Re-entry],Таблица1[Buy-In],Таблица691711[[#This Row],[2019]]) -> 0 | D13: =SUMIFS(Таблица1[Total Buy-In],Таблица1[Buy-In],Таблица691711[[#This Row],[2019]]) -> 0 | E13: =IFERROR(Таблица691711[Buy-in]/Таблица691711[Games],0) -> 0 | F13: =IFERROR((Таблица691711[Profit]/Таблица691711[Buy-in])*100,0) -> 0 | G13: =IFERROR((COUNTIFS(Таблица1[Buy-In],Таблица691711[2019],Таблица1[Winnings],">0")/Таблица691711[Games])*100,0) -> 0 | H13: =SUMIFS(Таблица1[Total Hands],Таблица1[Buy-In],Таблица691711[[#This Row],[2019]]) -> 0 | I13: =IFERROR(SUMIFS(Таблица1[bb/101],Таблица1[Buy-In],Таблица691711[[#This Row],[2019]])/Таблица691711[[#This Row],[Hand]],0) -> 0 | J13: =IFERROR(SUMIFS(Таблица1[EV bb/101],Таблица1[Buy-In],Таблица691711[[#This Row],[2019]])/Таблица691711[[#This Row],[Hand]],0) -> 0 | K13: =SUMIFS(Таблица1[Net Winnings],Таблица1[Buy-In],Таблица691711[2019]) -> 0 | L13: =IFERROR(Таблица691711[[#This Row],[Profit]]/Таблица691711[[#This Row],[Games]],0) -> 0
B14: 4.4 | C14: =COUNTIFS(Таблица1[Buy-In],Таблица691711[[#This Row],[2019]])+SUMIFS(Таблица1[Re-entry],Таблица1[Buy-In],Таблица691711[[#This Row],[2019]]) -> 0 | D14: =SUMIFS(Таблица1[Total Buy-In],Таблица1[Buy-In],Таблица691711[[#This Row],[2019]]) -> 0 | E14: =IFERROR(Таблица691711[Buy-in]/Таблица691711[Games],0) -> 0 | F14: =IFERROR((Таблица691711[Profit]/Таблица691711[Buy-in])*100,0) -> 0 | G14: =IFERROR((COUNTIFS(Таблица1[Buy-In],Таблица691711[2019],Таблица1[Winnings],">0")/Таблица691711[Games])*100,0) -> 0 | H14: =SUMIFS(Таблица1[Total Hands],Таблица1[Buy-In],Таблица691711[[#This Row],[2019]]) -> 0 | I14: =IFERROR(SUMIFS(Таблица1[bb/101],Таблица1[Buy-In],Таблица691711[[#This Row],[2019]])/Таблица691711[[#This Row],[Hand]],0) -> 0 | J14: =IFERROR(SUMIFS(Таблица1[EV bb/101],Таблица1[Buy-In],Таблица691711[[#This Row],[2019]])/Таблица691711[[#This Row],[Hand]],0) -> 0 | K14: =SUMIFS(Таблица1[Net Winnings],Таблица1[Buy-In],Таблица691711[2019]) -> 0 | L14: =IFERROR(Таблица691711[[#This Row],[Profit]]/Таблица691711[[#This Row],[Games]],0) -> 0
B15: 5 | C15: =COUNTIFS(Таблица1[Buy-In],Таблица691711[[#This Row],[2019]])+SUMIFS(Таблица1[Re-entry],Таблица1[Buy-In],Таблица691711[[#This Row],[2019]]) -> 0 | D15: =SUMIFS(Таблица1[Total Buy-In],Таблица1[Buy-In],Таблица691711[[#This Row],[2019]]) -> 0 | E15: =IFERROR(Таблица691711[Buy-in]/Таблица691711[Games],0) -> 0 | F15: =IFERROR((Таблица691711[Profit]/Таблица691711[Buy-in])*100,0) -> 0 | G15: =IFERROR((COUNTIFS(Таблица1[Buy-In],Таблица691711[2019],Таблица1[Winnings],">0")/Таблица691711[Games])*100,0) -> 0 | H15: =SUMIFS(Таблица1[Total Hands],Таблица1[Buy-In],Таблица691711[[#This Row],[2019]]) -> 0 | I15: =IFERROR(SUMIFS(Таблица1[bb/101],Таблица1[Buy-In],Таблица691711[[#This Row],[2019]])/Таблица691711[[#This Row],[Hand]],0) -> 0 | J15: =IFERROR(SUMIFS(Таблица1[EV bb/101],Таблица1[Buy-In],Таблица691711[[#This Row],[2019]])/Таблица691711[[#This Row],[Hand]],0) -> 0 | K15: =SUMIFS(Таблица1[Net Winnings],Таблица1[Buy-In],Таблица691711[2019]) -> 0 | L15: =IFERROR(Таблица691711[[#This Row],[Profit]]/Таблица691711[[#This Row],[Games]],0) -> 0
B16: 5.5 | C16: =COUNTIFS(Таблица1[Buy-In],Таблица691711[[#This Row],[2019]])+SUMIFS(Таблица1[Re-entry],Таблица1[Buy-In],Таблица691711[[#This Row],[2019]]) -> 0 | D16: =SUMIFS(Таблица1[Total Buy-In],Таблица1[Buy-In],Таблица691711[[#This Row],[2019]]) -> 0 | E16: =IFERROR(Таблица691711[Buy-in]/Таблица691711[Games],0) -> 0 | F16: =IFERROR((Таблица691711[Profit]/Таблица691711[Buy-in])*100,0) -> 0 | G16: =IFERROR((COUNTIFS(Таблица1[Buy-In],Таблица691711[2019],Таблица1[Winnings],">0")/Таблица691711[Games])*100,0) -> 0 | H16: =SUMIFS(Таблица1[Total Hands],Таблица1[Buy-In],Таблица691711[[#This Row],[2019]]) -> 0 | I16: =IFERROR(SUMIFS(Таблица1[bb/101],Таблица1[Buy-In],Таблица691711[[#This Row],[2019]])/Таблица691711[[#This Row],[Hand]],0) -> 0 | J16: =IFERROR(SUMIFS(Таблица1[EV bb/101],Таблица1[Buy-In],Таблица691711[[#This Row],[2019]])/Таблица691711[[#This Row],[Hand]],0) -> 0 | K16: =SUMIFS(Таблица1[Net Winnings],Таблица1[Buy-In],Таблица691711[2019]) -> 0 | L16: =IFERROR(Таблица691711[[#This Row],[Profit]]/Таблица691711[[#This Row],[Games]],0) -> 0
B17: 7.5 | C17: =COUNTIFS(Таблица1[Buy-In],Таблица691711[[#This Row],[2019]])+SUMIFS(Таблица1[Re-entry],Таблица1[Buy-In],Таблица691711[[#This Row],[2019]]) -> 0 | D17: =SUMIFS(Таблица1[Total Buy-In],Таблица1[Buy-In],Таблица691711[[#This Row],[2019]]) -> 0 | E17: =IFERROR(Таблица691711[Buy-in]/Таблица691711[Games],0) -> 0 | F17: =IFERROR((Таблица691711[Profit]/Таблица691711[Buy-in])*100,0) -> 0 | G17: =IFERROR((COUNTIFS(Таблица1[Buy-In],Таблица691711[2019],Таблица1[Winnings],">0")/Таблица691711[Games])*100,0) -> 0 | H17: =SUMIFS(Таблица1[Total Hands],Таблица1[Buy-In],Таблица691711[[#This Row],[2019]]) -> 0 | I17: =IFERROR(SUMIFS(Таблица1[bb/101],Таблица1[Buy-In],Таблица691711[[#This Row],[2019]])/Таблица691711[[#This Row],[Hand]],0) -> 0 | J17: =IFERROR(SUMIFS(Таблица1[EV bb/101],Таблица1[Buy-In],Таблица691711[[#This Row],[2019]])/Таблица691711[[#This Row],[Hand]],0) -> 0 | K17: =SUMIFS(Таблица1[Net Winnings],Таблица1[Buy-In],Таблица691711[2019]) -> 0 | L17: =IFERROR(Таблица691711[[#This Row],[Profit]]/Таблица691711[[#This Row],[Games]],0) -> 0
B18: 11 | C18: =COUNTIFS(Таблица1[Buy-In],Таблица691711[[#This Row],[2019]])+SUMIFS(Таблица1[Re-entry],Таблица1[Buy-In],Таблица691711[[#This Row],[2019]]) -> 0 | D18: =SUMIFS(Таблица1[Total Buy-In],Таблица1[Buy-In],Таблица691711[[#This Row],[2019]]) -> 0 | E18: =IFERROR(Таблица691711[Buy-in]/Таблица691711[Games],0) -> 0 | F18: =IFERROR((Таблица691711[Profit]/Таблица691711[Buy-in])*100,0) -> 0 | G18: =IFERROR((COUNTIFS(Таблица1[Buy-In],Таблица691711[2019],Таблица1[Winnings],">0")/Таблица691711[Games])*100,0) -> 0 | H18: =SUMIFS(Таблица1[Total Hands],Таблица1[Buy-In],Таблица691711[[#This Row],[2019]]) -> 0 | I18: =IFERROR(SUMIFS(Таблица1[bb/101],Таблица1[Buy-In],Таблица691711[[#This Row],[2019]])/Таблица691711[[#This Row],[Hand]],0) -> 0 | J18: =IFERROR(SUMIFS(Таблица1[EV bb/101],Таблица1[Buy-In],Таблица691711[[#This Row],[2019]])/Таблица691711[[#This Row],[Hand]],0) -> 0 | K18: =SUMIFS(Таблица1[Net Winnings],Таблица1[Buy-In],Таблица691711[2019]) -> 0 | L18: =IFERROR(Таблица691711[[#This Row],[Profit]]/Таблица691711[[#This Row],[Games]],0) -> 0
B19: 12 | C19: =COUNTIFS(Таблица1[Buy-In],Таблица691711[[#This Row],[2019]])+SUMIFS(Таблица1[Re-entry],Таблица1[Buy-In],Таблица691711[[#This Row],[2019]]) -> 0 | D19: =SUMIFS(Таблица1[Total Buy-In],Таблица1[Buy-In],Таблица691711[[#This Row],[2019]]) -> 0 | E19: =IFERROR(Таблица691711[Buy-in]/Таблица691711[Games],0) -> 0 | F19: =IFERROR((Таблица691711[Profit]/Таблица691711[Buy-in])*100,0) -> 0 | G19: =IFERROR((COUNTIFS(Таблица1[Buy-In],Таблица691711[2019],Таблица1[Winnings],">0")/Таблица691711[Games])*100,0) -> 0 | H19: =SUMIFS(Таблица1[Total Hands],Таблица1[Buy-In],Таблица691711[[#This Row],[2019]]) -> 0 | I19: =IFERROR(SUMIFS(Таблица1[bb/101],Таблица1[Buy-In],Таблица691711[[#This Row],[2019]])/Таблица691711[[#This Row],[Hand]],0) -> 0 | J19: =IFERROR(SUMIFS(Таблица1[EV bb/101],Таблица1[Buy-In],Таблица691711[[#This Row],[2019]])/Таблица691711[[#This Row],[Hand]],0) -> 0 | K19: =SUMIFS(Таблица1[Net Winnings],Таблица1[Buy-In],Таблица691711[2019]) -> 0 | L19: =IFERROR(Таблица691711[[#This Row],[Profit]]/Таблица691711[[#This Row],[Games]],0) -> 0
B20: 22 | C20: =COUNTIFS(Таблица1[Buy-In],Таблица691711[[#This Row],[2019]])+SUMIFS(Таблица1[Re-entry],Таблица1[Buy-In],Таблица691711[[#This Row],[2019]]) -> 0 | D20: =SUMIFS(Таблица1[Total Buy-In],Таблица1[Buy-In],Таблица691711[[#This Row],[2019]]) -> 0 | E20: =IFERROR(Таблица691711[Buy-in]/Таблица691711[Games],0) -> 0 | F20: =IFERROR((Таблица691711[Profit]/Таблица691711[Buy-in])*100,0) -> 0 | G20: =IFERROR((COUNTIFS(Таблица1[Buy-In],Таблица691711[2019],Таблица1[Winnings],">0")/Таблица691711[Games])*100,0) -> 0 | H20: =SUMIFS(Таблица1[Total Hands],Таблица1[Buy-In],Таблица691711[[#This Row],[2019]]) -> 0 | I20: =IFERROR(SUMIFS(Таблица1[bb/101],Таблица1[Buy-In],Таблица691711[[#This Row],[2019]])/Таблица691711[[#This Row],[Hand]],0) -> 0 | J20: =IFERROR(SUMIFS(Таблица1[EV bb/101],Таблица1[Buy-In],Таблица691711[[#This Row],[2019]])/Таблица691711[[#This Row],[Hand]],0) -> 0 | K20: =SUMIFS(Таблица1[Net Winnings],Таблица1[Buy-In],Таблица691711[2019]) -> 0 | L20: =IFERROR(Таблица691711[[#This Row],[Profit]]/Таблица691711[[#This Row],[Games]],0) -> 0
B21: 50 | C21: =COUNTIFS(Таблица1[Buy-In],Таблица691711[[#This Row],[2019]])+SUMIFS(Таблица1[Re-entry],Таблица1[Buy-In],Таблица691711[[#This Row],[2019]]) -> 0 | D21: =SUMIFS(Таблица1[Total Buy-In],Таблица1[Buy-In],Таблица691711[[#This Row],[2019]]) -> 0 | E21: =IFERROR(Таблица691711[Buy-in]/Таблица691711[Games],0) -> 0 | F21: =IFERROR((Таблица691711[Profit]/Таблица691711[Buy-in])*100,0) -> 0 | G21: =IFERROR((COUNTIFS(Таблица1[Buy-In],Таблица691711[2019],Таблица1[Winnings],">0")/Таблица691711[Games])*100,0) -> 0 | H21: =SUMIFS(Таблица1[Total Hands],Таблица1[Buy-In],Таблица691711[[#This Row],[2019]]) -> 0 | I21: =IFERROR(SUMIFS(Таблица1[bb/101],Таблица1[Buy-In],Таблица691711[[#This Row],[2019]])/Таблица691711[[#This Row],[Hand]],0) -> 0 | J21: =IFERROR(SUMIFS(Таблица1[EV bb/101],Таблица1[Buy-In],Таблица691711[[#This Row],[2019]])/Таблица691711[[#This Row],[Hand]],0) -> 0 | K21: =SUMIFS(Таблица1[Net Winnings],Таблица1[Buy-In],Таблица691711[2019]) -> 0 | L21: =IFERROR(Таблица691711[[#This Row],[Profit]]/Таблица691711[[#This Row],[Games]],0) -> 0

Sheet месяц
B3: 2019 | C3: Games | D3: Buy-in | E3: ABI | F3: Roi | G3: Itm | H3: Hand | I3: bb/100 | J3: EV bb/100 | K3: Profit | L3: Pr/Game
B4: январь | C4: =COUNTIFS(Таблица1[Meset],Таблица69[[#This Row],[2019]])+SUMIFS(Таблица1[Re-entry],Таблица1[Meset],Таблица69[[#This Row],[2019]]) -> 0 | D4: =SUMIFS(Таблица1[Total Buy-In],Таблица1[Meset],Таблица69[[#This Row],[2019]]) -> 0 | E4: =IFERROR(Таблица69[Buy-in]/Таблица69[Games],0) -> 0 | F4: =IFERROR((Таблица69[Profit]/Таблица69[Buy-in])*100,0) -> 0 | G4: =IFERROR((COUNTIFS(Таблица1[Meset],Таблица69[2019],Таблица1[Winnings],">0")/Таблица69[Games])*100,0) -> 0 | H4: =SUMIFS(Таблица1[Total Hands],Таблица1[Meset],Таблица69[[#This Row],[2019]]) -> 0 | I4: =IFERROR(SUMIFS(Таблица1[bb/101],Таблица1[Meset],Таблица69[[#This Row],[2019]])/Таблица69[[#This Row],[Hand]],0) -> 0 | J4: =IFERROR(SUMIFS(Таблица1[EV bb/101],Таблица1[Meset],Таблица69[[#This Row],[2019]])/Таблица69[[#This Row],[Hand]],0) -> 0 | K4: =SUMIFS(Таблица1[Net Winnings],Таблица1[Meset],Таблица69[2019]) -> 0 | L4: =IFERROR(Таблица69[[#This Row],[Profit]]/Таблица69[[#This Row],[Games]],0) -> 0
B5: февраль | C5: =COUNTIFS(Таблица1[Meset],Таблица69[[#This Row],[2019]])+SUMIFS(Таблица1[Re-entry],Таблица1[Meset],Таблица69[[#This Row],[2019]]) -> 0 | D5: =SUMIFS(Таблица1[Total Buy-In],Таблица1[Meset],Таблица69[[#This Row],[2019]]) -> 0 | E5: =IFERROR(Таблица69[Buy-in]/Таблица69[Games],0) -> 0 | F5: =IFERROR((Таблица69[Profit]/Таблица69[Buy-in])*100,0) -> 0 | G5: =IFERROR((COUNTIFS(Таблица1[Meset],Таблица69[2019],Таблица1[Winnings],">0")/Таблица69[Games])*100,0) -> 0 | H5: =SUMIFS(Таблица1[Total Hands],Таблица1[Meset],Таблица69[[#This Row],[2019]]) -> 0 | I5: =IFERROR(SUMIFS(Таблица1[bb/101],Таблица1[Meset],Таблица69[[#This Row],[2019]])/Таблица69[[#This Row],[Hand]],0) -> 0 | J5: =IFERROR(SUMIFS(Таблица1[EV bb/101],Таблица1[Meset],Таблица69[[#This Row],[2019]])/Таблица69[[#This Row],[Hand]],0) -> 0 | K5: =SUMIFS(Таблица1[Net Winnings],Таблица1[Meset],Таблица69[2019]) -> 0 | L5: =IFERROR(Таблица69[[#This Row],[Profit]]/Таблица69[[#This Row],[Games]],0) -> 0
B6: март | C6: =COUNTIFS(Таблица1[Meset],Таблица69[[#This Row],[2019]])+SUMIFS(Таблица1[Re-entry],Таблица1[Meset],Таблица69[[#This Row],[2019]]) -> 0 | D6: =SUMIFS(Таблица1[Total Buy-In],Таблица1[Meset],Таблица69[[#This Row],[2019]]) -> 0 | E6: =IFERROR(Таблица69[Buy-in]/Таблица69[Games],0) -> 0 | F6: =IFERROR((Таблица69[Profit]/Таблица69[Buy-in])*100,0) -> 0 | G6: =IFERROR((COUNTIFS(Таблица1[Meset],Таблица69[2019],Таблица1[Winnings],">0")/Таблица69[Games])*100,0) -> 0 | H6: =SUMIFS(Таблица1[Total Hands],Таблица1[Meset],Таблица69[[#This Row],[2019]]) -> 0 | I6: =IFERROR(SUMIFS(Таблица1[bb/101],Таблица1[Meset],Таблица69[[#This Row],[2019]])/Таблица69[[#This Row],[Hand]],0) -> 0 | J6: =IFERROR(SUMIFS(Таблица1[EV bb/101],Таблица1[Meset],Таблица69[[#This Row],[2019]])/Таблица69[[#This Row],[Hand]],0) -> 0 | K6: =SUMIFS(Таблица1[Net Winnings],Таблица1[Meset],Таблица69[2019]) -> 0 | L6: =IFERROR(Таблица69[[#This Row],[Profit]]/Таблица69[[#This Row],[Games]],0) -> 0
B7: апрель | C7: =COUNTIFS(Таблица1[Meset],Таблица69[[#This Row],[2019]])+SUMIFS(Таблица1[Re-entry],Таблица1[Meset],Таблица69[[#This Row],[2019]]) -> 0 | D7: =SUMIFS(Таблица1[Total Buy-In],Таблица1[Meset],Таблица69[[#This Row],[2019]]) -> 0 | E7: =IFERROR(Таблица69[Buy-in]/Таблица69[Games],0) -> 0 | F7: =IFERROR((Таблица69[Profit]/Таблица69[Buy-in])*100,0) -> 0 | G7: =IFERROR((COUNTIFS(Таблица1[Meset],Таблица69[2019],Таблица1[Winnings],">0")/Таблица69[Games])*100,0) -> 0 | H7: =SUMIFS(Таблица1[Total Hands],Таблица1[Meset],Таблица69[[#This Row],[2019]]) -> 0 | I7: =IFERROR(SUMIFS(Таблица1[bb/101],Таблица1[Meset],Таблица69[[#This Row],[2019]])/Таблица69[[#This Row],[Hand]],0) -> 0 | J7: =IFERROR(SUMIFS(Таблица1[EV bb/101],Таблица1[Meset],Таблица69[[#This Row],[2019]])/Таблица69[[#This Row],[Hand]],0) -> 0 | K7: =SUMIFS(Таблица1[Net Winnings],Таблица1[Meset],Таблица69[2019]) -> 0 | L7: =IFERROR(Таблица69[[#This Row],[Profit]]/Таблица69[[#This Row],[Games]],0) -> 0
B8: май | C8: =COUNTIFS(Таблица1[Meset],Таблица69[[#This Row],[2019]])+SUMIFS(Таблица1[Re-entry],Таблица1[Meset],Таблица69[[#This Row],[2019]]) -> 0 | D8: =SUMIFS(Таблица1[Total Buy-In],Таблица1[Meset],Таблица69[[#This Row],[2019]]) -> 0 | E8: =IFERROR(Таблица69[Buy-in]/Таблица69[Games],0) -> 0 | F8: =IFERROR((Таблица69[Profit]/Таблица69[Buy-in])*100,0) -> 0 | G8: =IFERROR((COUNTIFS(Таблица1[Meset],Таблица69[2019],Таблица1[Winnings],">0")/Таблица69[Games])*100,0) -> 0 | H8: =SUMIFS(Таблица1[Total Hands],Таблица1[Meset],Таблица69[[#This Row],[2019]]) -> 0 | I8: =IFERROR(SUMIFS(Таблица1[bb/101],Таблица1[Meset],Таблица69[[#This Row],[2019]])/Таблица69[[#This Row],[Hand]],0) -> 0 | J8: =IFERROR(SUMIFS(Таблица1[EV bb/101],Таблица1[Meset],Таблица69[[#This Row],[2019]])/Таблица69[[#This Row],[Hand]],0) -> 0 | K8: =SUMIFS(Таблица1[Net Winnings],Таблица1[Meset],Таблица69[2019]) -> 0 | L8: =IFERROR(Таблица69[[#This Row],[Profit]]/Таблица69[[#This Row],[Games]],0) -> 0
B9: июнь | C9: =COUNTIFS(Таблица1[Meset],Таблица69[[#This Row],[2019]])+SUMIFS(Таблица1[Re-entry],Таблица1[Meset],Таблица69[[#This Row],[2019]]) -> 0 | D9: =SUMIFS(Таблица1[Total Buy-In],Таблица1[Meset],Таблица69[[#This Row],[2019]]) -> 0 | E9: =IFERROR(Таблица69[Buy-in]/Таблица69[Games],0) -> 0 | F9: =IFERROR((Таблица69[Profit]/Таблица69[Buy-in])*100,0) -> 0 | G9: =IFERROR((COUNTIFS(Таблица1[Meset],Таблица69[2019],Таблица1[Winnings],">0")/Таблица69[Games])*100,0) -> 0 | H9: =SUMIFS(Таблица1[Total Hands],Таблица1[Meset],Таблица69[[#This Row],[2019]]) -> 0 | I9: =IFERROR(SUMIFS(Таблица1[bb/101],Таблица1[Meset],Таблица69[[#This Row],[2019]])/Таблица69[[#This Row],[Hand]],0) -> 0 | J9: =IFERROR(SUMIFS(Таблица1[EV bb/101],Таблица1[Meset],Таблица69[[#This Row],[2019]])/Таблица69[[#This Row],[Hand]],0) -> 0 | K9: =SUMIFS(Таблица1[Net Winnings],Таблица1[Meset],Таблица69[2019]) -> 0 | L9: =IFERROR(Таблица69[[#This Row],[Profit]]/Таблица69[[#This Row],[Games]],0) -> 0
B10: июль | C10: =COUNTIFS(Таблица1[Meset],Таблица69[[#This Row],[2019]])+SUMIFS(Таблица1[Re-entry],Таблица1[Meset],Таблица69[[#This Row],[2019]]) -> 4 | D10: =SUMIFS(Таблица1[Total Buy-In],Таблица1[Meset],Таблица69[[#This Row],[2019]]) -> 1 | E10: =IFERROR(Таблица69[Buy-in]/Таблица69[Games],0) -> 0.25 | F10: =IFERROR((Таблица69[Profit]/Таблица69[Buy-in])*100,0) -> 223 | G10: =IFERROR((COUNTIFS(Таблица1[Meset],Таблица69[2019],Таблица1[Winnings],">0")/Таблица69[Games])*100,0) -> 25 | H10: =SUMIFS(Таблица1[Total Hands],Таблица1[Meset],Таблица69[[#This Row],[2019]]) -> 416 | I10: =IFERROR(SUMIFS(Таблица1[bb/101],Таблица1[Meset],Таблица69[[#This Row],[2019]])/Таблица69[[#This Row],[Hand]],0) -> 18.65822115 | J10: =IFERROR(SUMIFS(Таблица1[EV bb/101],Таблица1[Meset],Таблица69[[#This Row],[2019]])/Таблица69[[#This Row],[Hand]],0) -> 5.991418269 | K10: =SUMIFS(Таблица1[Net Winnings],Таблица1[Meset],Таблица69[2019]) -> 2.23 | L10: =IFERROR(Таблица69[[#This Row],[Profit]]/Таблица69[[#This Row],[Games]],0) -> 0.5575
B11: август | C11: =COUNTIFS(Таблица1[Meset],Таблица69[[#This Row],[2019]])+SUMIFS(Таблица1[Re-entry],Таблица1[Meset],Таблица69[[#This Row],[2019]]) -> 0 | D11: =SUMIFS(Таблица1[Total Buy-In],Таблица1[Meset],Таблица69[[#This Row],[2019]]) -> 0 | E11: =IFERROR(Таблица69[Buy-in]/Таблица69[Games],0) -> 0 | F11: =IFERROR((Таблица69[Profit]/Таблица69[Buy-in])*100,0) -> 0 | G11: =IFERROR((COUNTIFS(Таблица1[Meset],Таблица69[2019],Таблица1[Winnings],">0")/Таблица69[Games])*100,0) -> 0 | H11: =SUMIFS(Таблица1[Total Hands],Таблица1[Meset],Таблица69[[#This Row],[2019]]) -> 0 | I11: =IFERROR(SUMIFS(Таблица1[bb/101],Таблица1[Meset],Таблица69[[#This Row],[2019]])/Таблица69[[#This Row],[Hand]],0) -> 0 | J11: =IFERROR(SUMIFS(Таблица1[EV bb/101],Таблица1[Meset],Таблица69[[#This Row],[2019]])/Таблица69[[#This Row],[Hand]],0) -> 0 | K11: =SUMIFS(Таблица1[Net Winnings],Таблица1[Meset],Таблица69[2019]) -> 0 | L11: =IFERROR(Таблица69[[#This Row],[Profit]]/Таблица69[[#This Row],[Games]],0) -> 0
B12: сентябрь | C12: =COUNTIFS(Таблица1[Meset],Таблица69[[#This Row],[2019]])+SUMIFS(Таблица1[Re-entry],Таблица1[Meset],Таблица69[[#This Row],[2019]]) -> 0 | D12: =SUMIFS(Таблица1[Total Buy-In],Таблица1[Meset],Таблица69[[#This Row],[2019]]) -> 0 | E12: =IFERROR(Таблица69[Buy-in]/Таблица69[Games],0) -> 0 | F12: =IFERROR((Таблица69[Profit]/Таблица69[Buy-in])*100,0) -> 0 | G12: =IFERROR((COUNTIFS(Таблица1[Meset],Таблица69[2019],Таблица1[Winnings],">0")/Таблица69[Games])*100,0) -> 0 | H12: =SUMIFS(Таблица1[Total Hands],Таблица1[Meset],Таблица69[[#This Row],[2019]]) -> 0 | I12: =IFERROR(SUMIFS(Таблица1[bb/101],Таблица1[Meset],Таблица69[[#This Row],[2019]])/Таблица69[[#This Row],[Hand]],0) -> 0 | J12: =IFERROR(SUMIFS(Таблица1[EV bb/101],Таблица1[Meset],Таблица69[[#This Row],[2019]])/Таблица69[[#This Row],[Hand]],0) -> 0 | K12: =SUMIFS(Таблица1[Net Winnings],Таблица1[Meset],Таблица69[2019]) -> 0 | L12: =IFERROR(Таблица69[[#This Row],[Profit]]/Таблица69[[#This Row],[Games]],0) -> 0
B13: октябрь | C13: =COUNTIFS(Таблица1[Meset],Таблица69[[#This Row],[2019]])+SUMIFS(Таблица1[Re-entry],Таблица1[Meset],Таблица69[[#This Row],[2019]]) -> 0 | D13: =SUMIFS(Таблица1[Total Buy-In],Таблица1[Meset],Таблица69[[#This Row],[2019]]) -> 0 | E13: =IFERROR(Таблица69[Buy-in]/Таблица69[Games],0) -> 0 | F13: =IFERROR((Таблица69[Profit]/Таблица69[Buy-in])*100,0) -> 0 | G13: =IFERROR((COUNTIFS(Таблица1[Meset],Таблица69[2019],Таблица1[Winnings],">0")/Таблица69[Games])*100,0) -> 0 | H13: =SUMIFS(Таблица1[Total Hands],Таблица1[Meset],Таблица69[[#This Row],[2019]]) -> 0 | I13: =IFERROR(SUMIFS(Таблица1[bb/101],Таблица1[Meset],Таблица69[[#This Row],[2019]])/Таблица69[[#This Row],[Hand]],0) -> 0 | J13: =IFERROR(SUMIFS(Таблица1[EV bb/101],Таблица1[Meset],Таблица69[[#This Row],[2019]])/Таблица69[[#This Row],[Hand]],0) -> 0 | K13: =SUMIFS(Таблица1[Net Winnings],Таблица1[Meset],Таблица69[2019]) -> 0 | L13: =IFERROR(Таблица69[[#This Row],[Profit]]/Таблица69[[#This Row],[Games]],0) -> 0
B14: ноябрь | C14: =COUNTIFS(Таблица1[Meset],Таблица69[[#This Row],[2019]])+SUMIFS(Таблица1[Re-entry],Таблица1[Meset],Таблица69[[#This Row],[2019]]) -> 0 | D14: =SUMIFS(Таблица1[Total Buy-In],Таблица1[Meset],Таблица69[[#This Row],[2019]]) -> 0 | E14: =IFERROR(Таблица69[Buy-in]/Таблица69[Games],0) -> 0 | F14: =IFERROR((Таблица69[Profit]/Таблица69[Buy-in])*100,0) -> 0 | G14: =IFERROR((COUNTIFS(Таблица1[Meset],Таблица69[2019],Таблица1[Winnings],">0")/Таблица69[Games])*100,0) -> 0 | H14: =SUMIFS(Таблица1[Total Hands],Таблица1[Meset],Таблица69[[#This Row],[2019]]) -> 0 | I14: =IFERROR(SUMIFS(Таблица1[bb/101],Таблица1[Meset],Таблица69[[#This Row],[2019]])/Таблица69[[#This Row],[Hand]],0) -> 0 | J14: =IFERROR(SUMIFS(Таблица1[EV bb/101],Таблица1[Meset],Таблица69[[#This Row],[2019]])/Таблица69[[#This Row],[Hand]],0) -> 0 | K14: =SUMIFS(Таблица1[Net Winnings],Таблица1[Meset],Таблица69[2019]) -> 0 | L14: =IFERROR(Таблица69[[#This Row],[Profit]]/Таблица69[[#This Row],[Games]],0) -> 0
B15: декабрь | C15: =COUNTIFS(Таблица1[Meset],Таблица69[[#This Row],[2019]])+SUMIFS(Таблица1[Re-entry],Таблица1[Meset],Таблица69[[#This Row],[2019]]) -> 0 | D15: =SUMIFS(Таблица1[Total Buy-In],Таблица1[Meset],Таблица69[[#This Row],[2019]]) -> 0 | E15: =IFERROR(Таблица69[Buy-in]/Таблица69[Games],0) -> 0 | F15: =IFERROR((Таблица69[Profit]/Таблица69[Buy-in])*100,0) -> 0 | G15: =IFERROR((COUNTIFS(Таблица1[Meset],Таблица69[2019],Таблица1[Winnings],">0")/Таблица69[Games])*100,0) -> 0 | H15: =SUMIFS(Таблица1[Total Hands],Таблица1[Meset],Таблица69[[#This Row],[2019]]) -> 0 | I15: =IFERROR(SUMIFS(Таблица1[bb/101],Таблица1[Meset],Таблица69[[#This Row],[2019]])/Таблица69[[#This Row],[Hand]],0) -> 0 | J15: =IFERROR(SUMIFS(Таблица1[EV bb/101],Таблица1[Meset],Таблица69[[#This Row],[2019]])/Таблица69[[#This Row],[Hand]],0) -> 0 | K15: =SUMIFS(Таблица1[Net Winnings],Таблица1[Meset],Таблица69[2019]) -> 0 | L15: =IFERROR(Таблица69[[#This Row],[Profit]]/Таблица69[[#This Row],[Games]],0) -> 0
